Workbook

Sheet Inhoud
A1: INHOUDSOPGAVE
A2: Verwijzingen en beschrijvingen van de tabbladen in dit bestand | F2: Laatste update 16-3-2017 | I2: Verwijzing naar groepen
A3: WERKBLAD | B3: FUNCTIE | I3: 3D Rekenen
A4: Start | B4: Eenvoudige berekening | I4: Algemene informatie
A5: Optellen | B5: Optellen | I5: ALS functies
A6: Rekenen basis | B6: Eenvoudige formules en Functies | I6: Analyzes
A7: Rekenen basis 1 | B7: Eenvoudige formules en Functies | I7: Basis
A8: Rekenen basis 2 | B8: Eenvoudige formules en Functies | I8: Basisfuncties
A9: Rekenen basis 3 | B9: Eenvoudige formules en Functies | I9: Database functies
A10: Rekenen basis 4 | B10: Eenvoudige formules en Functies | I10: Datum functies
A11: Rekenen basis 5 | B11: Eenvoudige formules en Functies | I11: Draaitabellen en subtotalen
A12: Rekenen basis 6 | B12: Eenvoudige formules en Functies | D12: Basisbeginselen Excel | I12: Financiën
A13: Rekenen basis 7 | B13: Eenvoudige formules en Functies | D13: met eenvoudige formules en functies | I13: Grafiek
A14: Rekenen basis 8 | B14: Eenvoudige formules en Functies | I14: Macro's
A15: Rekenen basis 9 | B15: Eenvoudige formules en Functies | I15: Matrices
A16: Rekenen basis 10 | B16: Eenvoudige formules en Functies | I16: Nesten van Functies
A17: Reeksen | B17: Basis handelingen | I17: Samenvoegen en Consolideren4-8-2016
A18: Verplaatsen | B18: Basis handelingen | I18: Sorteren en filteren
A19: Selecteren | B19: Basis handelingen | I19: Tekst functies
A20: Gemiddelde | B20: Berekenen van Gemiddelde | I20: Tekst naar kolommen
A21: Gemiddelde 1 | B21: Berekenen van Gemiddelde | I21: Valideren en beveiligen
A22: Perc | B22: Percentage berekening | I22: Verwijzing
A23: Perc 1 | B23: Percentage berekening | I23: Voorwaardelijke opmaak
A24: Opmaak | B24: Opmaken van tabellen | I24: Zoek functies
A25: Opmaak 1 | B25: Opmaken van tabellen
A26: Opmaak 2 | B26: Opmaken van tabellen
A27: Voorwaardelijk | B27: Voorwaardelijke opmaak
A28: Voorwaardelijk 1 | B28: Voorwaardelijke opmaak
A29: Voorwaardelijk 2 | B29: Voorwaardelijke opmaak | D29: Tekst, getallen en tabellen opmaken
A30: Voorwaardelijk 3 | B30: Voorwaardelijke opmaak | D30: Opmaak van cellen genereren als deze aan een bepaalde voorwaarde voldoet
A31: Voorwaardelijk 4 | B31: Voorwaardelijke opmaak
A32: Voorwaardelijk 5 | B32: Voorwaardelijke opmaak | D32: Conditional Formatting
A33: Voorwaardelijk 6 | B33: Voorwaardelijke opmaak
A34: Voorwaardelijk 7 | B34: Voorwaardelijke opmaak
A35: Transponeren | B35: Tabellen omdraaien
A36: Transponeren 1 | B36: Tabellen omdraaien
A37: Verwijzingen | B37: Verwijzingen
A38: Verwijzingen 1 | B38: Verwijzingen
A39: Verwijzingen 2 | B39: Verwijzingen
A40: ABS Euro | B40: Verwijzingen
A41: ABS | B41: Verwijzingen
A42: ABS 1 | B42: Verwijzingen
A43: ABS 2 | B43: Verwijzingen
A44: ABS 3 | B44: Verwijzingen | D44: Verwijzen naar Rijen, Kolommen en Cellen
A45: ABS 4 | B45: Verwijzingen
A46: ABS 5 | B46: Verwijzingen
A47: ABS 6 | B47: Verwijzingen
A48: Gemengd | B48: Verwijzingen
A49: Gemengd 1 | B49: Verwijzingen
A50: Gemengd 2 | B50: Verwijzingen
A51: Gemengd 3 | B51: Verwijzingen
A52: Gemengd 4 | B52: Verwijzingen
A53: Gemengd 5 | B53: Verwijzingen
A54: Gemengd 6 | B54: Verwijzingen
A55: Grafiek | B55: Grafische weergave gegevens
A56: Grafiek 1 | B56: Grafische weergave gegevens | D56: Grafieken maken op basis van gegevens in tabellen
A57: Grafiek 2 | B57: Grafische weergave gegevens | D57: Via de functie HERHALING(); een Hystogram in een cel maken
A58: Grafiek 3 | B58: Grafische weergave gegevens
A59: Grafiek 4 | B59: Grafische weergave gegevens
A60: Inflatie | B60: Grafische weergave gegevens | D60: Functie REPT()
A61: Hystogram | B61: Grafische weergave gegevens
A62: Functie | B62: Eenvoudige functies
A63: Functies | B63: Eenvoudige functies
A64: Functies 0 | B64: Eenvoudige functies | D64: Starten met de functies, SOM(); GEMIDDELDE(); MAX(); MIN(); VANDAAG(); NU()
A65: Functies 1 | B65: Eenvoudige functies | D65: ALS(); AANTAL(); AANTAL.ALS(); INTEGER() EN AFRONDEN()
A66: Functies 2 | B66: Eenvoudige functies
A67: Functies 3 | B67: Eenvoudige functies
A68: Functies 4 | B68: Eenvoudige functies
A69: AlsBasis | B69: Eenvoudige ALS functies
A70: AlsBasis 1 | B70: Eenvoudige ALS functies
A71: AlsBasis 2 | B71: Eenvoudige ALS functies
A72: AlsBasis 3 | B72: Eenvoudige ALS functies | D72: SUM(); AVERAGE();MAX(); MIN();TODAY();NOW()
A73: Converteren | B73: Eenheden omzetten | D73: IF(); COUNT(); COUNTIF(); INT(); ROUND()
A74: Afronden | B74: Afronden van getallen
A75: Afronden VV | B75: Veelvouden afronden
A76: Aselect | B76: Willekeurig getal
A77: Als | B77: Uitgebreide functies
A78: Als 1 | B78: Uitgebreide functies
A79: Als 2 | B79: Uitgebreide functies
A80: Als 3 | B80: Uitgebreide functies
A81: Als Functie | B81: Uitgebreide functies
A82: AlsFout | B82: Uitgebreide functies
A83: Aantal Als | B83: Uitgebreide functies
A84: Aantal Als | B84: Uitgebreide functies
A85: Aantal Als 1 | B85: Uitgebreide functies
A86: Aantallen Als | B86: Uitgebreide functies | D86: Uitgebreider omgaan met ALS(); AANTAL.ALS(); AANTALLEN.ALS(); SOM.ALS() en ALS.FOUT()
A87: Som Als | B87: Uitgebreide functies
A88: Som Als 1 | B88: Uitgebreide functies | D88: IF();COUNTIF(); COUNTIFS(); SUMIF(); IFERROR(); ISERROR()
A89: Som Als 2 | B89: Uitgebreide functies
A90: Som Als 3 | B90: Uitgebreide functies
A91: Som Als 4 | B91: Uitgebreide functies
A92: Som + Aantal | B92: Uitgebreide functies
A93: Som + Aantal 1 | B93: Uitgebreide functies
A94: Aantallen en SommenAls | B94: Uitgebreide functies
A95: Aantallen Als | B95: Uitgebreide functies
A96: Sparen | B96: Financiéle functies
A97: Rente | B97: Financiéle functies
A98: Hypotheek | B98: Financiéle functies
A99: BET | B99: Financiéle functies | D99: Werken met de financiële functies RENTE() BET() of AFLOSSING(); HW() en TW()
A100: NPER | B100: Financiéle functies | D100: PBET() IBET()
A101: HW | B101: Financiéle functies | D101: PMT(); PV(); FV()
A102: TW | B102: Financiéle functies
A103: PBET | B103: Financiéle functies
A104: IBET | B104: Financiéle functies
A105: Lenen | B105: Financiéle functies
A106: Lineaire afschrijving | B106: Afschrijving
A107: Afschrijving | B107: Afschrijving
A108: DDB | B108: Afschrijving | D108: Aflossingsfuncties LIN.AFSCHR() DB() DDB() VDB() en SYD()
A109: VDB | B109: Afschrijving
A110: SYD | B110: Afschrijving
A111: Percentage | B111: Uitgebreide functies
A112: Interval | B112: Uitgebreide functies
A113: Statistisch | B113: Uitgebreide functies
A114: Rekenen | B114: Uitgebreide functies | D114: Combineren van functies
A115: Rekenen 1 | B115: Uitgebreide functies | D115: ALS(); EN(); OF(); DATUMVERSCHIL()
A116: Als Nesten | B116: Uitgebreide functies
A117: Als Nesten 2 | B117: Uitgebreide functies | D117: IF(); AND(); OR(); DATEDIF()
A118: Als Nesten 3 | B118: Uitgebreide functies
A119: Nesten | B119: Uitgebreide functies
A120: Nesten 1 | B120: Uitgebreide functies
A121: Datum | B121: Datum en tijd | D121: Datum en tijd functies
A122: Datum en tijd | B122: Rekenen met datum | D122: VANDAAG(); NU(); DATUM(); DAG(); MAAND(); JAAR(); DATUMVERSCHIL()
A123: Datum rekenen | B123: Rekenen met datum | D123: TIJD();UUR();MINUUT();
A124: Datum+ALS nesten | B124: Rekenen met datum | D124: TODAY(); NOW(); DATE(); DAY(); MONTH(); YEAR(); DATEDIF()
A125: Netto werkdagen | B125: Rekenen met datum | D125: TIME(); HOUR(); MINUTE()
A126: Tijden | B126: Rekenen met tijden
A127: Tijd | B127: Datum en tijd
A128: Datum Tijd | B128: Datum en tijd
A129: Datum en tekst | B129: Tekst en datumfuncties
A130: Tekstfuncties | B130: Tekstfuncties | D130: Tekstfuncties en combineren met tekstfuncties
A131: Tekst Aanpassen | B131: Tekstfuncties
A132: Tekst splitsen | B132: Tekstfuncties | D132: TEKST.SAMENVOEGEN(); HOOFDLETTERS(); BEGINLETTERS(); KLEINELETTERS(); LENGTE(); SPATIE.WISSEN(); LINKS(); RECHTS(); VIND.ALLES() FlashFill
A133: Tekst splitsen 1 | B133: Tekstfuncties | D133: &" "&
A134: Tekst splitsen 2 | B134: Tekstfuncties | D134: CONCATENATE(); UPPER();PROPER(); LOWER(); LEN(); TRIM(); LEFT(); RIGHT(); SEARCH(); FlashFill
A135: Tekst splitsen 3 | B135: Tekstfuncties
A136: Tekst splitsen 4 | B136: Tekstfuncties
A137: Tekst splitsen 5 | B137: Tekstfuncties
A138: Tekst splitsen 6 | B138: Tekstfuncties
A139: FlashFil 1 | B139: Tekstfuncties
A140: FlashFil 2 | B140: Tekstfuncties
A141: samenvoegen voor adresetiketten | B141: Tekstfuncties
A142: Tekst SV | B142: Tekstfuncties
A143: Rekenen | B143: Herhalingsopgave
A144: Zoek | B144: Zoekfuncties
A145: Zoeken | B145: Zoekfuncties
A146: Zoeken 1 | B146: Zoekfuncties
A147: Zoeken 2 | B147: Zoekfuncties
A148: Zoeken 3 | B148: Zoekfuncties
A149: V Zoeken | B149: Zoekfuncties | D149: Zoeken in tabellen met de functies
A150: VerZoeken | B150: Zoekfuncties | D150: ZOEKEN(); HOR.ZOEKEN(); VERT.ZOEKEN(); VERGELIJKEN()
A151: VerZoeken 1 | B151: Zoekfuncties
A152: V Zoeken 1 | B152: Zoekfuncties | D152: Ook het geven van namen aan cellen en bereiken
A153: Gegevens afnemers | B153: Tabel voor zoekfuncties | D153: LOOKUP(); HLOOKUP(); VLOOKUP(); MATCH()
A154: Vert.Zoeken | B154: Zoekfuncties
A155: VZ | B155: Zoekfuncties
A156: Tabellen | B156: Tabel voor zoekfuncties
A157: Opz + Valideren | B157: Zoekfuncties
A158: Personeelsleden | B158: Tabel voor zoekfuncties
A159: Constanten | B159: Tabel voor zoekfuncties
A160: Opz+val | B160: Zoeken en valideren
A161: Zoeken en Vergelijken | B161: Zoeken, valideren + vergelijken
A162: Zoeken en Vergelijken | B162: Zoeken, valideren + vergelijken
A163: Sorteren | B163: Sorteren
A164: Sorteren 1 | B164: Sorteren | D164: Sorteren van tabellen
A165: Sorteren 2 | B165: Sorteren
A166: Sorteer volgorden | B166: Eigen sorteervolgorde
A167: Horizontaal sorteren | B167: Horizontaal Sorteren
A168: Filter | B168: Autofilter
A169: Filter 1 | B169: Autofilter
A170: Filter 2 | B170: Autofilter | D170: Filteren in tabellen
A171: Filter 3 | B171: Autofilter | D171: Met standaardfilter en uitgebreidfilter
A172: Uitgebreid | B172: Uitgebreide filter
A173: Uitgebreid 1 | B173: Uitgebreide filter
A174: Uitgebreid 2 | B174: Uitgebreide filter
A175: Uitg 2 | B175: Uitgebreide filter
A176: Uitg 3 | B176: Uitgebreide filter
A177: Uitg 4 | B177: Uitgebreide filter
A178: Uitg 5 | B178: Uitgebreide filter | D178: Gegevens in een tabel ophalen mt de databasefuncties
A179: DB | B179: Database functies
A180: DB 1 | B180: Database functies | D180: DSOM(); DMIN(); DMAX(); DGEMIDDELDEN(); DHAAL(); VERGELIJKEN(); INDEX()
A181: DB Functies | B181: Database functies
A182: DB Functies 1 | B182: Database functies
A183: Index | B183: Database functies
A184: Vergelijken | B184: Database functies | D184: DSUM(); DMIN(); DMAX(); DAVERAGE(); DGET(); MATCH(); INDEX()
A185: Index en Verg | B185: Database functies
A186: Index en DB Lezen | B186: Database functies
A187: Index & vergelijken | B187: Database functies
A188: Databasefuncties | B188: Database functies
A189: Klanten | B189: Subtotalen
A190: Subtotaal | B190: Subtotalen | D190: Subtotalen berekenen in een gesorteerde tabel
A191: Subtotaal 1 | B191: Subtotalen | D191: SubTotals
A192: Subtotaal 2 | B192: Subtotalen
A193: DraaiStart | B193: Draaitabellen
A194: Draai | B194: Draaitabellen
A195: Draaitabel | B195: Draaitabellen
A196: Draaitabel 1 | B196: Draaitabellen | D196: Draaitabellen maken en aanpassen
A197: Draaitabel 2 | B197: Draaitabellen | D197: Pivot Table
A198: Draaitabel 3 | B198: Draaitabellen
A199: Draaitabel 4 | B199: Draaitabellen
A200: Draaitabel 5 | B200: Draaitabellen
... 54 more rows

Sheet Start
A1: Gegevens invullen | D1: Operators | F1: Gebruik om formules duidelijk te maken en om volgorde van berekening af te dwingen haakjes.
D2: Formule of Functie begint met | E2: =
A3: Eurobiscuit | B3: Koek en banket | D3: Machtsverheffen | E3: ^ | F3: Berekening | G3: Antwoord
A4: Microsoft Office Excel | B4: 2003 | D4: Delen | E4: / | F4: =6/2*3 | G4: =6/2*3 -> 9
A5: 12:45:00 | B5: 12345 | D5: Vermenigvuldigen | E5: * | F5: =(6/2)*3 | G5: =(6/2)*3 -> 9
A6: 12.45 | B6: 123456789 | D6: Optellen | E6: + | F6: =6/(2*3) | G6: =6/(2*3) -> 1
A7: 12.95 | B7: 1234.56789 | D7: Aftrekken | E7: -
A8: 12.95 | B8: 2011-04-01
A9: 2011-12-07 | B9: 1.25 | D9: Bekijk de volgende berekeningen.
A10: 2011-12-07 | B10: 0.25 | D10: Eerste getal | E10: 5
A11: 0.19 | B11: 0.25 | D11: Tweede getal | E11: 4
A12: 0.19 | B12: 0.25 | E12: Formule | F12: Antwoord
B13: 2013-06-01 | D13: Optellen | E13: =E10+E11 | F13: =E10+E11 -> 9
D14: Aftrekken | E14: =E10-E11 | F14: =E10-E11 -> 1
D15: Vermenigvuldigen | E15: =E10*E11 | F15: =E10*E11 -> 20
D16: Delen | E16: =E10/E11 | F16: =E10/E11 -> 1.25
A19: Rekenen
A20: Getal 1
A21: Getal 2
A24: Optellen: B15+16
A25: Aftrekken:B15-B16
A26: Vermenigvuldigen:B15*B16
A27: Delen:B15/B16

Sheet Optellen
A1: Citroen garage de Sleutel
A3: Verkoop nieuwe auto's 1e half jaar
H5: Totaal
A6: Saxo | B6: 85000 | C6: 82000 | D6: 68250 | E6: 120450 | F6: 43000 | G6: 62380
A7: Xsara | B7: 92000 | C7: 111350 | D7: 147250 | E7: 110350 | F7: 89370 | G7: 95760
A8: Xantia | B8: 135500 | C8: 127550 | D8: 123520 | E8: 145750 | F8: 98275 | G8: 132870
A9: XM | B9: 165750 | C9: 182970 | D9: 105370 | E9: 65000 | F9: 189730 | G9: 203880
A10: Berlingo | B10: 105370 | C10: 116850 | D10: 89370 | E10: 145650 | F10: 127800 | G10: 165080
A12: Totaal

Sheet Optellen opg
A1: Citroen garage de Sleutel
A3: Verkoop nieuwe auto's 1e half jaar
B5: Januari | C5: Februari | D5: Maart | E5: April | F5: Mei | G5: Juni | H5: Totaal
A6: Saxo | B6: 85000 | C6: 82000 | D6: 68250 | E6: 120450 | F6: 43000 | G6: 62380 | H6: =SUM(B6:G6) -> 461080
A7: Xsara | B7: 92000 | C7: 111350 | D7: 147250 | E7: 110350 | F7: 89370 | G7: 95760 | H7: =SUM(B7:G7) -> 646080
A8: Xantia | B8: 135500 | C8: 127550 | D8: 123520 | E8: 145750 | F8: 98275 | G8: 132870 | H8: =SUM(B8:G8) -> 763465
A9: XM | B9: 165750 | C9: 182970 | D9: 105370 | E9: 65000 | F9: 189730 | G9: 203880 | H9: =SUM(B9:G9) -> 912700
A10: Berlingo | B10: 105370 | C10: 116850 | D10: 89370 | E10: 145650 | F10: 127800 | G10: 165080 | H10: =SUM(B10:G10) -> 750120
A12: Totaal | B12: =SUM(B6:B11) -> 583620 | C12: 620720 | D12: 533760 | E12: 587200 | F12: 548175 | G12: 659970 | H12: =SUM(B12:G12) -> 3533445

Sheet Rekenen basis
A1: Verkoop | B1: Inkoop | C1: Verschil | F1: Inkoop | H1: Reken uit: | I1: Resultaat
A2: 34995 | B2: 30550 | D2: 1 | F2: 34995.35 | H2: Totaal inkoop:
A3: 2395 | B3: 1250 | F3: 2395.34
A4: 12.5 | B4: 9.95 | F4: 1256.23 | H4: Aantal bedragen:
A5: 2235 | B5: 1800 | F5: 2235.78 | H5: Gemiddelde inkoop:
A6: 321 | B6: 235 | F6: 3276.78 | H6: Hoogste inkoop:
F7: 5446.87 | H7: Laagste inkoop:
F8: 39885.75
A9: Inkoop | B9: Winst | C9: Som | F9: 89075.57
A10: 34995 | B10: 4445 | D10: 2 | F10: 64089.34
A11: 2395 | B11: 1145 | F11: 50897.65
A12: 12.5 | B12: 2.55 | F12: 9845.95
A13: 2235 | B13: 435 | F13: 76564.35
A14: 321 | B14: 86 | F14: 76445.2
A17: Inkoop | B17: Winst | C17: Percentage
A18: 34995 | B18: 4445 | D18: 3
A19: 2395 | B19: 1145
A20: 12.5 | B20: 2.55
A21: 2235 | B21: 435
A22: 321 | B22: 86
A25: Aantal | B25: Prijs | C25: Totaal
A26: 345 | B26: =A2 -> 34995 | D26: 4
A27: 2567 | B27: =A3 -> 2395
A28: 44456 | B28: =A4 -> 12.5
A29: 6789 | B29: =A5 -> 2235
A30: 57 | B30: =A6 -> 321

Sheet Rekenen basis opg
A1: Verkoop | B1: Inkoop | C1: Verschil | E1: Inkoop | G1: Reken uit: | H1: Resultaat
A2: 34995 | B2: 30550 | C2: =A2-B2 -> 4445 | E2: 34995.35 | G2: Totaal inkoop: | H2: =SUM(E2:E14) -> 456410.16
A3: 2395 | B3: 1250 | C3: =A3-B3 -> 1145 | E3: 2395.34
A4: 12.5 | B4: 9.95 | C4: =A4-B4 -> 2.55 | E4: 1256.23 | G4: Aantal bedragen: | H4: =COUNT(E2:E14) -> 13
A5: 2235 | B5: 1800 | C5: =A5-B5 -> 435 | E5: 2235.78 | G5: Gemiddelde inkoop: | H5: =AVERAGE(E2:E14) -> 35108.47385
A6: 321 | B6: 235 | C6: =A6-B6 -> 86 | E6: 3276.78 | G6: Hoogste inkoop: | H6: =MAX(E2:E14) -> 89075.57
E7: 5446.87 | G7: Laagste inkoop: | H7: =MIN(E2:E14) -> 1256.23
E8: 39885.75
A9: Inkoop | B9: Winst | C9: Som | E9: 89075.57
A10: 34995 | B10: 4445 | C10: =SUM(A10:B10) -> 39440 | E10: 64089.34
A11: 2395 | B11: 1145 | C11: =SUM(A11:B11) -> 3540 | E11: 50897.65
A12: 12.5 | B12: 2.55 | C12: =SUM(A12:B12) -> 15.05 | E12: 9845.95
A13: 2235 | B13: 435 | C13: =SUM(A13:B13) -> 2670 | E13: 76564.35
A14: 321 | B14: 86 | C14: =SUM(A14:B14) -> 407 | E14: 76445.2
A17: Inkoop | B17: Winst | C17: Percentage
A18: 34995 | B18: 4445 | C18: =B18/A18 -> 0.1270181454
A19: 2395 | B19: 1145 | C19: =B19/A19 -> 0.4780793319
A20: 12.5 | B20: 2.55 | C20: =B20/A20 -> 0.204
A21: 2235 | B21: 435 | C21: =B21/A21 -> 0.1946308725
A22: 321 | B22: 86 | C22: =B22/A22 -> 0.2679127726
A25: Aantal | B25: Prijs | C25: Totaal
A26: 345 | B26: =A2 -> 34995 | C26: =A26*B26 -> 12073275
A27: 2567 | B27: =A3 -> 2395 | C27: =A27*B27 -> 6147965
A28: 44456 | B28: =A4 -> 12.5 | C28: =A28*B28 -> 555700
A29: 6789 | B29: =A5 -> 2235 | C29: =A29*B29 -> 15173415
A30: 57 | B30: =A6 -> 321 | C30: =A30*B30 -> 18297

Sheet Rekenen basis 1
A1: HOTEL "DE GOLFBREKER"
A2: Tel.: 023-5723145 Fax.: 023-5723150 | E2: Datum: | F2: =NOW() -> 2017-03-16T20:09:21.390
A4: OVERNACHTINGEN | C4: aantal | D4: prijs | E4: totaal
B5: Volwassenen | C5: 2 | D5: 79.5
B6: Kinderen | C6: 3 | D6: 40
B7: 65+ | C7: 1 | D7: 45.75
A8: ONTBIJT | C8: 6 | D8: 10.5 | G8: Gegevens uit kolom C vermenigvuldigen met de gegevens uit kolom D
A9: LUNCH | C9: 6 | D9: 15.75
A10: DINER | C10: 6 | D10: 27.5
A11: AUTO | C11: 1 | D11: 5
A12: BOOT | C12: 1 | D12: 12.5
B13: Totaal: | G13: Optellen E5 tm E12
B14: Aantal nachten: | C14: 3 | E14: =C14 -> 3
G15: Vermenigvuldigen E13*E14
B16: Toeristenbelasting | D16: =3/100 -> 0.03 | G16: Vermenigvuldigen D16*E15
B17: TOTAAL TE VOLDOEN: | D17: € | G17: Optellen E15+E16

Sheet Rekenen basis 1 opg
B1: HOTEL "DE GOLFBREKER"
B2: Tel.: 023-5723145 Fax.: 023-5723150 | F2: Datum: | G2: =NOW() -> 2017-03-16T20:09:21.390
A4: OVERNACHTINGEN | C4: aantal | D4: prijs | E4: totaal
B5: Volwassenen | C5: 2 | D5: 79.5 | E5: =D5*C5 -> 159
B6: Kinderen | C6: 3 | D6: 40 | E6: 120
B7: 65+ | C7: 1 | D7: 45.75 | E7: 45.75
A8: ONTBIJT | C8: 6 | D8: 10.5 | E8: 63
A9: LUNCH | C9: 6 | D9: 15.75 | E9: 94.5
A10: DINER | C10: 6 | D10: 27.5 | E10: 165
A11: AUTO | C11: 1 | D11: 5 | E11: 5
A12: BOOT | C12: 1 | D12: 12.5 | E12: 12.5
B13: Totaal: | E13: =SUM(E5:E12) -> 664.75
B14: Aantal nachten: | C14: 3 | E14: =C14 -> 3
E15: =E14*E13 -> 1994.25
B16: Toeristenbelasting | D16: =3/100 -> 0.03 | E16: =D16*E15 -> 59.8275
B17: TOTAAL TE VOLDOEN: | D17: € | E17: =E16+E15 -> 2054.0775

Sheet Rekenen basis 2
A1: Noord | B1: Kwartaal 1 | C1: Kwartaal 2 | D1: Kwartaal 3 | E1: Kwartaal 4 | F1: Totaal | G1: Gemiddeld
A2: Chocomacronen | B2: 74030 | C2: 73470 | D2: 76220 | E2: 76130
A3: Appeltijgers | B3: 92720 | C3: 92920 | D3: 93920 | E3: 98530
A4: Stippetimpen | B4: 61450 | C4: 47900 | D4: 51730 | E4: 58340
A5: Krokolaatjes | B5: 71630 | C5: 69260 | D5: 75310 | E5: 75210
A6: Vlaaiflippen | B6: 41870 | C6: 52170 | D6: 46940 | E6: 45010
A7: Eurootjes | B7: 17490 | C7: 18050 | D7: 20530 | E7: 21020
A8: Totaal
A9: Gemiddeld

Sheet Rekenen basis 2 opg
A1: Noord | B1: Kwartaal 1 | C1: Kwartaal 2 | D1: Kwartaal 3 | E1: Kwartaal 4 | F1: Totaal | G1: Gemiddeld
A2: Chocomacronen | B2: 74030 | C2: 73470 | D2: 76220 | E2: 76130 | F2: =SUM(B2:E2) -> 299850 | G2: =AVERAGE(B2:E2) -> 74962.5
A3: Appeltijgers | B3: 92720 | C3: 92920 | D3: 93920 | E3: 98530 | F3: 378090 | G3: 94522.5
A4: Stippetimpen | B4: 61450 | C4: 47900 | D4: 51730 | E4: 58340 | F4: 219420 | G4: 54855
A5: Krokolaatjes | B5: 71630 | C5: 69260 | D5: 75310 | E5: 75210 | F5: 291410 | G5: 72852.5
A6: Vlaaiflippen | B6: 41870 | C6: 52170 | D6: 46940 | E6: 45010 | F6: 185990 | G6: 46497.5
A7: Eurootjes | B7: 17490 | C7: 18050 | D7: 20530 | E7: 21020 | F7: 77090 | G7: 19272.5
A8: Totaal | B8: =SUM(B2:B7) -> 359190 | C8: =SUM(C2:C7) -> 353770 | D8: =SUM(D2:D7) -> 364650 | E8: =SUM(E2:E7) -> 374240
A9: Gemiddeld | B9: =AVERAGE(B2:B7) -> 59865 | C9: =AVERAGE(C2:C7) -> 58961.66667 | D9: =AVERAGE(D2:D7) -> 60775 | E9: =AVERAGE(E2:E7) -> 62373.33333

Sheet Rekenen basis 3
A1: Factuur
A3: Beschrijving | B3: PPS | C3: Aantal | D3: Totaal
A5: Jas | B5: 306.25 | C5: 1
A6: Broek | B6: 149.875 | C6: 2
A7: Shirt | B7: 64.975 | C7: 1 | F7: Vermenigvuldigen
A8: Sokken | B8: 6.125 | C8: 5
A9: Stropdas | B9: 9.875 | C9: 2
A11: Totaal | F11: Optellen
A12: Vervoer | D12: 6.25
A14: Te betalen | F14: Optellen

Sheet Rekenen basis 3 opg
A1: Factuur
A3: Beschrijving | B3: PPS | C3: Aantal | D3: Totaal
A5: Jas | B5: 306.25 | C5: 1 | D5: =B5*C5 -> 306.25
A6: Broek | B6: 149.875 | C6: 2 | D6: =B6*C6 -> 299.75
A7: Shirt | B7: 64.975 | C7: 1 | D7: =B7*C7 -> 64.975
A8: Sokken | B8: 6.125 | C8: 5 | D8: =B8*C8 -> 30.625
A9: Stropdas | B9: 9.875 | C9: 2 | D9: =B9*C9 -> 19.75
A11: Totaal | D11: =SUM(D5:D10) -> 721.35
A12: Vervoer | D12: 6.25
A14: Te betalen | D14: =D11+D12 -> 727.6

Sheet Rekenen basis 4
A1: vier bestellingen
B3: bestelling 1 | G3: bestelling 2
B4: aantal | C4: artikel | D4: prijs | E4: totaal | G4: aantal | H4: artikel | I4: prijs | J4: totaal
B5: 6 | C5: blazer | D5: 54 | G5: 8 | H5: jeans | I5: 32
B6: 4 | C6: blouse | D6: 24 | G6: 12 | H6: poloshirt | I6: 25
B7: 8 | C7: broek | D7: 42 | G7: 6 | H7: regenjas | I7: 16
B8: 4 | C8: jack | D8: 62 | G8: 4 | H8: sweater | I8: 44
B9: 6 | C9: jeans | D9: 32 | G9: 10 | H9: T/shirt | I9: 18
B10: 12 | C10: poloshirt | D10: 25 | G10: 12 | H10: vest | I10: 56
D12: Totaalbedrag: | I12: Totaalbedrag:
G15: bestelling 4
G16: aantal | H16: artikel | I16: prijs | J16: totaal
B17: bestelling 3 | G17: 12 | H17: regenjas | I17: 16
B18: aantal | C18: artikel | D18: prijs | E18: totaal | G18: 18 | H18: T/shirt | I18: 18
B19: 20 | C19: broek | D19: 42 | G19: 15 | H19: blouse | I19: 24
B20: 20 | C20: jack | D20: 62 | G20: 24 | H20: poloshirt | I20: 25
B21: 22 | C21: jeans | D21: 32 | G21: 17 | H21: jeans | I21: 32
B22: 16 | C22: sweater | D22: 44
D24: Totaalbedrag: | I24: Totaalbedrag:
B29: Totaal van de bestellingen

Sheet Rekenen basis 4 opg
A1: vier bestellingen
B3: bestelling 1 | G3: bestelling 2
B4: aantal | C4: artikel | D4: prijs | E4: totaal | G4: aantal | H4: artikel | I4: prijs | J4: totaal
B5: 6 | C5: blazer | D5: 54 | E5: =B5*D5 -> 324 | G5: 8 | H5: jeans | I5: 32 | J5: =G5*I5 -> 256
B6: 4 | C6: blouse | D6: 24 | E6: 96 | G6: 12 | H6: poloshirt | I6: 25 | J6: 300
B7: 8 | C7: broek | D7: 42 | E7: 336 | G7: 6 | H7: regenjas | I7: 16 | J7: 96
B8: 4 | C8: jack | D8: 62 | E8: 248 | G8: 4 | H8: sweater | I8: 44 | J8: 176
B9: 6 | C9: jeans | D9: 32 | E9: 192 | G9: 10 | H9: T/shirt | I9: 18 | J9: 180
B10: 12 | C10: poloshirt | D10: 25 | E10: 300 | G10: 12 | H10: vest | I10: 56 | J10: 672
D12: Totaalbedrag: | E12: =SUM(E5:E11) -> 1496 | I12: Totaalbedrag: | J12: =SUM(J5:J11) -> 1680
G15: bestelling 4
G16: aantal | H16: artikel | I16: prijs | J16: totaal
B17: bestelling 3 | G17: 12 | H17: regenjas | I17: 16 | J17: =G17*I17 -> 192
B18: aantal | C18: artikel | D18: prijs | E18: totaal | G18: 18 | H18: T/shirt | I18: 18 | J18: =G18*I18 -> 324
B19: 20 | C19: broek | D19: 42 | E19: =B19*D19 -> 840 | G19: 15 | H19: blouse | I19: 24 | J19: =G19*I19 -> 360
B20: 20 | C20: jack | D20: 62 | E20: =B20*D20 -> 1240 | G20: 24 | H20: poloshirt | I20: 25 | J20: =G20*I20 -> 600
B21: 22 | C21: jeans | D21: 32 | E21: =B21*D21 -> 704 | G21: 17 | H21: jeans | I21: 32 | J21: =G21*I21 -> 544
B22: 16 | C22: sweater | D22: 44 | E22: =B22*D22 -> 704
D24: Totaalbedrag: | E24: =SUM(E19:E23) -> 3488 | I24: Totaalbedrag: | J24: =SUM(J17:J23) -> 2020
B29: Totaal van de bestellingen | E29: =E12+J12+E24+J24 -> 8684

Sheet Rekenen basis 5
A1: basisrekenwerk
A4: handeling | B4: optellen | C4: aftrekken | D4: delen | E4: vermenigvuldigen
A5: getal1 | B5: 23 | C5: 45 | D5: 60 | E5: 456
A6: getal2 | B6: 12 | C6: 13 | D6: 15 | E6: 34
A7: antwoord | G7: Bereken de totalen in rij 7 zoals vermeld in rij 4
A11: Groepen | B11: aantal leerlingen
A12: 1A | B12: 24
A13: 1B | B13: 22
A14: 2A | B14: 24
A15: 2B | B15: 24
A16: 3 | B16: 29
A17: 4 | B17: 30
A18: 5A | B18: 26
A19: 5B | B19: 24
A20: 6 | B20: 30
A21: 7 | B21: 26
A22: 8 | B22: 24
D23: Tel in cel B23 het aantal leerlingen op

Sheet Rekenen basis 5 opg
A1: basisrekenwerk
A4: handeling | B4: optellen | C4: aftrekken | D4: delen | E4: vermenigvuldigen
A5: getal1 | B5: 23 | C5: 45 | D5: 60 | E5: 456
A6: getal2 | B6: 12 | C6: 13 | D6: 15 | E6: 34
A7: antwoord | B7: =B5+B6 -> 35 | C7: =C5-C6 -> 32 | D7: =D5/D6 -> 4 | E7: =E5*E6 -> 15504
A11: Groepen | B11: aantal leerlingen
A12: 1A | B12: 24
A13: 1B | B13: 22
A14: 2A | B14: 24
A15: 2B | B15: 24
A16: 3 | B16: 29
A17: 4 | B17: 30
A18: 5A | B18: 26
A19: 5B | B19: 24
A20: 6 | B20: 30
A21: 7 | B21: 26
A22: 8 | B22: 24
B23: =SUM(B12:B22) -> 283

Sheet Rekenen basis 6
A1: BESTELLING
A2: Basisschool de Linde
A4: artikel | B4: prijs | C4: aantal | D4: aantal x prijs
A5: Tafel A | B5: 139 | C5: 10
A6: Stoel B | B6: 79 | C6: 15
A7: Kast br | B7: 225 | C7: 2 | F7: Bereken de totalen van cel D5 t.m. D10
A8: Tafel B | B8: 117 | C8: 2
A9: Digitaal schoolbord | B9: 1798 | C9: 1
A10: Archiefkast | B10: 375 | C10: 1
C11: totaal | F11: Bereken hier het totaal van de getallen in kolom D

Sheet Rekenen basis 6 opg
A1: BESTELLING
A2: Basisschool de Linde
A4: artikel | B4: prijs | C4: aantal | D4: aantal x prijs
A5: Tafel A | B5: 139 | C5: 10 | D5: =B5*C5 -> 1390
A6: Stoel B | B6: 79 | C6: 15 | D6: 1185
A7: Kast br | B7: 225 | C7: 2 | D7: 450
A8: Tafel B | B8: 117 | C8: 2 | D8: 234
A9: Digitaal schoolbord | B9: 1798 | C9: 1 | D9: 1798
A10: Archiefkast | B10: 375 | C10: 1 | D10: 375
C11: totaal | D11: =SUM(D5:D10) -> 5432

Sheet Rekenen basis 7
A1: Kantoorcentrale
B2: Voorraad aantallen
A3: Artikel | B3: Amsterdam | C3: Rotterdam | D3: Den Haag | E3: Utrecht | F3: Totalen per artikel
A4: Blocnote | B4: 12 | C4: 15 | D4: 10 | E4: 8
A5: Gum | B5: 23 | C5: 34 | D5: 11 | E5: 14
A6: Inktpen | B6: 8 | C6: 11 | D6: 12 | E6: 6
A7: Agenda | B7: 20 | C7: 15 | D7: 21 | E7: 13
A8: Kaftpapier | B8: 6 | C8: 8 | D8: 3 | E8: 5
A9: Liniaal | B9: 12 | C9: 14 | D9: 9 | E9: 11
A10: Passer | B10: 5 | C10: 3 | D10: 6 | E10: 9
A11: Geo-driehoek | B11: 21 | C11: 15 | D11: 12 | E11: 16
A12: Vulpotlood | B12: 6 | C12: 9 | D12: 4 | E12: 12
A13: Fineliner | B13: 56 | C13: 34 | D13: 39 | E13: 41
A14: Plakstift | B14: 25 | C14: 18 | D14: 16 | E14: 12
A15: Totalen

Sheet Rekenen basis 7 opg
A1: Kantoorcentrale
B2: Voorraad aantallen
A3: Artikel | B3: Amsterdam | C3: Rotterdam | D3: Den Haag | E3: Utrecht | F3: Totalen per artikel
A4: Blocnote | B4: 12 | C4: 15 | D4: 10 | E4: 8 | F4: =SUM(B4:E4) -> 45
A5: Gum | B5: 23 | C5: 34 | D5: 11 | E5: 14 | F5: 82
A6: Inktpen | B6: 8 | C6: 11 | D6: 12 | E6: 6 | F6: 37
A7: Agenda | B7: 20 | C7: 15 | D7: 21 | E7: 13 | F7: 69
A8: Kaftpapier | B8: 6 | C8: 8 | D8: 3 | E8: 5 | F8: 22
A9: Liniaal | B9: 12 | C9: 14 | D9: 9 | E9: 11 | F9: 46
A10: Passer | B10: 5 | C10: 3 | D10: 6 | E10: 9 | F10: 23
A11: Geo-driehoek | B11: 21 | C11: 15 | D11: 12 | E11: 16 | F11: 64
A12: Vulpotlood | B12: 6 | C12: 9 | D12: 4 | E12: 12 | F12: 31
A13: Fineliner | B13: 56 | C13: 34 | D13: 39 | E13: 41 | F13: 170
A14: Plakstift | B14: 25 | C14: 18 | D14: 16 | E14: 12 | F14: 71
A15: Totalen | B15: =SUM(B4:B14) -> 194 | C15: =SUM(C4:C14) -> 176 | D15: =SUM(D4:D14) -> 143 | E15: =SUM(E4:E14) -> 147

Sheet Rekenen basis 8
A1: Contract IT
A2: automatisering & advies
A4: Overzicht per:
B6: Jaar | C6: 2008 | D6: 2009 | H6: 2008 | I6: 2009
A7: Baten | F7: Lasten
A8: Verkoop software | C8: 1452300 | D8: 1964500 | F8: Salarissen | H8: 1975600 | I8: 2050300
A9: Verkoop hardware | C9: 568500 | D9: 923000 | F9: Kantoorkosten | H9: 1132800 | I9: 1245300
A10: Licentierechten | C10: 302700 | D10: 450300 | F10: Marketing/sponsoring | H10: 205000 | I10: 210000
A11: Consultancy | C11: 2349600 | D11: 1954800 | F11: Afschrijvingen | H11: 628600 | I11: 715600
A12: Trainingen | C12: 831400 | D12: 1023400 | F12: Verzekeringen | H12: 98500 | I12: 106300
A13: Webhosting | C13: 102300 | D13: 109400 | F13: Rente/bankkosten | H13: 120700 | I13: 80900
A14: Totaal baten | F14: Totaal lasten
B15: % stijging | G15: % stijging
A18: Resultaat bedrijfsvoering
A19: Bruto winst
A20: Belasting | F20: belasting
A21: Netto winst
B22: % stijging
A24: Rendement (%)

Sheet Rekenen basis 8 opg
A1: Contract IT
A2: automatisering & advies
A4: Overzicht per:
B6: Jaar | C6: 2008 | D6: 2009 | H6: 2008 | I6: 2009
A7: Baten | F7: Lasten
A8: Verkoop software | C8: 1452300 | D8: 1964500 | F8: Salarissen | H8: 1975600 | I8: 2050300
A9: Verkoop hardware | C9: 568500 | D9: 923000 | F9: Kantoorkosten | H9: 1132800 | I9: 1245300
A10: Licentierechten | C10: 302700 | D10: 450300 | F10: Marketing/sponsoring | H10: 205000 | I10: 210000
A11: Consultancy | C11: 2349600 | D11: 1954800 | F11: Afschrijvingen | H11: 628600 | I11: 715600
A12: Trainingen | C12: 831400 | D12: 1023400 | F12: Verzekeringen | H12: 98500 | I12: 106300
A13: Webhosting | C13: 102300 | D13: 109400 | F13: Rente/bankkosten | H13: 120700 | I13: 80900
A14: Totaal baten | C14: =SUM(C8:C13) -> 5606800 | D14: =SUM(D8:D13) -> 6425400 | F14: Totaal lasten | H14: =SUM(H8:H13) -> 4161200 | I14: =SUM(I8:I13) -> 4408400
B15: % stijging | D15: =D14/C14-1 -> 0.1460012842 | G15: % stijging | I15: =I14/H14-1 -> 0.05940594059
A18: Resultaat bedrijfsvoering
A19: Bruto winst
A20: Belasting | F20: belasting
A21: Netto winst | C21: =C14-H14 -> 1445600 | D21: =D14-I14 -> 2017000
B22: % stijging | D22: =D21/C21-1 -> 0.3952684007
A24: Rendement (%) | C24: =(C14-H14)/C14 -> 0.2578297781 | D24: =(D14-I14)/D14 -> 0.313910418

Sheet Rekenen basis 9
A1: Energieverbruik
A2: Kosten gas | C2: 0.25 | D2: per eenheid
A3: Kosten elektra | C3: 0.16 | D3: per eenheid
A4: Vaste kosten | C4: 22.5 | D4: per maand
A5: Voorschotten | C5: 95 | D5: per maand
A7: Verbruik
B8: meterstanden | D8: verbruik per maand
B9: gas | C9: elektra | D9: gas | E9: elektra
A10: beginstand | B10: 5865 | C10: 4879 | D10: --- | E10: ---
A11: Januari | B11: 6025 | C11: 5026
A12: Februari | B12: 6284 | C12: 5198
A13: Maart | B13: 6466 | C13: 5382
A14: April | B14: 6649 | C14: 5528 | H14: Bereken hier het verbruik van gas en electra
A15: Mei | B15: 6751 | C15: 5665
A16: Juni | B16: 6838 | C16: 5776
A17: Totaal
A19: Afrekening
A20: Kosten gas
A21: Kosten elektra | H21: Bereken hier de kosten van het verbruik en vastrecht
A22: Vaste kosten
A23: Totale kosten energieverbruik | H23: Tel de vaste kosten hier op
A24: Voorschotten | H24: Bereken hier het totaal betaalde voorscht
A25: Te betalen | H25: Bepaal hier de eindafrekening

Sheet Rekenen basis 9 opg
A1: Energieverbruik
A2: Kosten gas | C2: 0.25 | D2: per eenheid
A3: Kosten elektra | C3: 0.16 | D3: per eenheid
A4: Vaste kosten | C4: 22.5 | D4: per maand
A5: Voorschotten | C5: 95 | D5: per maand
A7: Verbruik
B8: meterstanden | D8: verbruik per maand
B9: gas | C9: elektra | D9: gas | E9: elektra
A10: beginstand | B10: 5865 | C10: 4879 | D10: --- | E10: ---
A11: Januari | B11: 6025 | C11: 5026 | D11: =B11-B10 -> 160 | E11: =C11-C10 -> 147
A12: Februari | B12: 6284 | C12: 5198 | D12: =B12-B11 -> 259 | E12: 172
A13: Maart | B13: 6466 | C13: 5382 | D13: 182 | E13: 184
A14: April | B14: 6649 | C14: 5528 | D14: 183 | E14: 146
A15: Mei | B15: 6751 | C15: 5665 | D15: 102 | E15: 137
A16: Juni | B16: 6838 | C16: 5776 | D16: 87 | E16: 111
A17: Totaal | D17: =SUM(D11:D16) -> 973 | E17: =SUM(E11:E16) -> 897
A19: Afrekening
A20: Kosten gas | D20: =D17*C2 -> 243.25
A21: Kosten elektra | D21: =E17*C3 -> 143.52
A22: Vaste kosten | D22: =C4*6 -> 135
A23: Totale kosten energieverbruik | D23: =SUM(D20:D22) -> 521.77
A24: Voorschotten | D24: =C5*6 -> 570
A25: Te betalen of terug te ontvangen | D25: =D23-D24 -> -48.23

Sheet Rekenen basis 10
A1: Autobedrijf 'van Bemmel'
A2: Regenbooglaan 33 | C2: 3038 AH Rotterdam | G2: tel: 010-3 76 76 76
A4: Schadecalculatie nr: | C4: =YEAR(TODAY())&"-0348" -> 2017-0348
F5: Nota voor:
A6: BTW-tarief | C6: 0.21
A7: Arbeidsloon | C7: 60 | D7: per uur | F7: De heer A. Nieuwenhuis
A8: Spuitwerk: tarief | C8: 75 | D8: per uur | F8: Pieterspad 65
A9: Spuitwerk: materiaaltoeslag | C9: 0.2 | F9: 3125 KN Spijkenisse
A11: Omschrijving schade: | C11: Aanrijding links voor
D13: Aantal | E13: uur | F13: Bedrag
A14: Onderdelen | F14: 625
A15: Klein materiaal (2,0%) | H15: F15: | I15: klein materiaal = 2% x bedrag onderdelen
B16: Totaal onderdelen | H16: G16: | I16: totaal onderdelen = onderdelen + klein materiaal
A18: Arbeidsloon
A19: Arbeid werkplaats | D19: 4 | E19: uur | H19: F19: | I19: arbeid werkplaats = aantal uur x arbeidsloon
A20: Arbeid kantoor | D20: 0.5 | E20: uur | H20: F20: | I20: arbeid kantoor = aantal uur x arbeidsloon
B21: Totaal arbeidsloon | H21: G21: | I21: totaal arbeidsloon = arbeid werkplaats + arbeid kantoor
A23: Spuitwerk arbeidsloon
A24: Spuittijd | D24: 2 | E24: uur | H24: F24: | I24: arbeid spuittijd = aantal uur x tarief spuitwerk
A25: Voorbereiding spuitwerk | D25: 3 | E25: uur | H25: F25: | I25: arbeid voorbereiding = aantal uur x tarief spuitwerk
A26: Materiaal spuitwerk | H26: F26: | I26: matariaal = materiaaltoeslag x (arbeid spuittijd + arbeid voorbereiding)
B27: Totaal Spuitwerk | H27: G27: | I27: totaal spuitwerk = arbeid spuitwerk + arbeid voorbereiding + materiaal
A29: Reparatiekosten (Excl. BTW) | H29: G29: | I29: kosten (ex BTW) = onderdelen + arbeidsloon + spuitwerk
A30: BTW (19%) | H30: G30: | I30: BTW-bedrag = BTW% x reparatiekosten
A32: Kosten reparatie | H32: G32: | I32: totale kosten = reparatiekosten + BTW

Sheet Rekenen basis 10 opg
A1: Autobedrijf 'van Bemmel'
A2: Regenbooglaan 33 | C2: 3038 AH Rotterdam | G2: tel: 010-3 76 76 76
A4: Schadecalculatie nr: | C4: =YEAR(TODAY())&"-0348" -> 2017-0348
F5: Nota voor:
A6: BTW-tarief | C6: 0.21
A7: Arbeidsloon | C7: 60 | D7: per uur | F7: De heer A. Nieuwenhuis
A8: Spuitwerk: tarief | C8: 75 | D8: per uur | F8: Pieterspad 65
A9: Spuitwerk: materiaaltoeslag | C9: 0.2 | F9: 3125 KN Spijkenisse
A11: Omschrijving schade: | C11: Aanrijding links voor
D13: Aantal | E13: uur | F13: Bedrag
A14: Onderdelen | F14: 625
A15: Klein materiaal (2,0%) | F15: =F14*2% -> 12.5 | H15: F15: | I15: klein materiaal = 2% x bedrag onderdelen
B16: Totaal onderdelen | G16: =SUM(F14:F15) -> 637.5 | H16: G16: | I16: totaal onderdelen = onderdelen + klein materiaal
A18: Arbeidsloon
A19: Arbeid werkplaats | D19: 4 | E19: uur | F19: =C7*D19 -> 240 | H19: F19: | I19: arbeid werkplaats = aantal uur x arbeidsloon
A20: Arbeid kantoor | D20: 0.5 | E20: uur | F20: =C7*D20 -> 30 | H20: F20: | I20: arbeid kantoor = aantal uur x arbeidsloon
B21: Totaal arbeidsloon | G21: =SUM(F19:F20) -> 270 | H21: G21: | I21: totaal arbeidsloon = arbeid werkplaats + arbeid kantoor
A23: Spuitwerk arbeidsloon
A24: Spuittijd | D24: 2 | E24: uur | F24: =C8*D24 -> 150 | H24: F24: | I24: arbeid spuittijd = aantal uur x tarief spuitwerk
A25: Voorbereiding spuitwerk | D25: 3 | E25: uur | F25: =C8*D25 -> 225 | H25: F25: | I25: arbeid voorbereiding = aantal uur x tarief spuitwerk
A26: Materiaal spuitwerk | F26: =(F24+F25)*20% -> 75 | H26: F26: | I26: matariaal = materiaaltoeslag x (arbeid spuittijd + arbeid voorbereiding)
B27: Totaal Spuitwerk | G27: =SUM(F24:F26) -> 450 | H27: G27: | I27: totaal spuitwerk = arbeid spuitwerk + arbeid voorbereiding + materiaal
A29: Reparatiekosten (Excl. BTW) | G29: =SUM(G16:G27) -> 1357.5 | H29: G29: | I29: kosten (ex BTW) = onderdelen + arbeidsloon + spuitwerk
A30: BTW (21%) | G30: =G29*C6 -> 285.075 | H30: G30: | I30: BTW-bedrag = BTW% x reparatiekosten
A32: Kosten reparatie | G32: =SUM(G29:G30) -> 1642.575 | H32: G32: | I32: totale kosten = reparatiekosten + BTW

Sheet Reeksen
A1: Maand en weekdagen | G1: Datums
A2: Lang | B2: Kort | C2: Lang | D2: Kort | E2: Lang WKD | F2: Kort WKD | G2: Alle dagen | H2: Weekdagen | I2: Maanden | J2: Jaren | K2: Tijden | L2: Tekst en cijfer
A3: Januari | B3: jan | C3: Maandag | D3: Ma | E3: Maandag | F3: Ma | G3: 2016-04-16 | H3: 2016-04-16 | I3: 2016-04-16 | J3: 2016-04-16 | K3: 10:28:00 | L3: 1e kwartaal | M3: 1e etage | N3: 1 | O3: 2

Sheet Reeksen opg
A1: Maand en weekdagen | G1: Datums
A2: Lang | B2: Kort | C2: Lang | D2: Kort | E2: Lang WKD | F2: Kort WKD | G2: Alle dagen | H2: Weekdagen | I2: Maanden | J2: Jaren | K2: Tijden | L2: Tekst en cijfer
A3: Januari | B3: jan | C3: Maandag | D3: Ma | E3: Maandag | F3: Ma | G3: 2013-06-04 | H3: 2013-06-04 | I3: 2013-06-04 | J3: 2013-06-04 | K3: 10:28:00 | L3: 1e kwartaal | M3: 1e etage | N3: 1 | O3: 2
A4: Februari | B4: feb | C4: Dinsdag | D4: Di | E4: Dinsdag | F4: Di | G4: 2013-06-05 | H4: 2013-06-05 | I4: 2013-07-04 | J4: 2014-06-04 | K4: 11:28:00 | L4: 2e kwartaal | M4: 2e etage | N4: 2 | O4: 4
A5: Maart | B5: mrt | C5: Woensdag | D5: Wo | E5: Woensdag | F5: Wo | G5: 2013-06-06 | H5: 2013-06-06 | I5: 2013-08-04 | J5: 2015-06-04 | K5: 12:28:00 | L5: 3e kwartaal | M5: 3e etage | N5: 3 | O5: 6
A6: April | B6: apr | C6: Donderdag | D6: Do | E6: Donderdag | F6: Do | G6: 2013-06-07 | H6: 2013-06-07 | I6: 2013-09-04 | J6: 2016-06-04 | K6: 13:28:00 | L6: 4e kwartaal | M6: 4e etage | N6: 4 | O6: 8
A7: Mei | B7: mei | C7: Vrijdag | D7: Vr | E7: Vrijdag | F7: Vr | G7: 2013-06-08 | H7: 2013-06-10 | I7: 2013-10-04 | J7: 2017-06-04 | K7: 14:28:00 | L7: 1e kwartaal | M7: 5e etage | N7: 5 | O7: 10
A8: Juni | B8: jun | C8: Zaterdag | D8: Za | E8: Maandag | F8: Ma | G8: 2013-06-09 | H8: 2013-06-11 | I8: 2013-11-04 | J8: 2018-06-04 | K8: 15:28:00 | L8: 2e kwartaal | M8: 6e etage | N8: 6 | O8: 12
A9: Juli | B9: jul | C9: Zondag | D9: Zo | E9: Dinsdag | F9: Di | G9: 2013-06-10 | H9: 2013-06-12 | I9: 2013-12-04 | J9: 2019-06-04 | K9: 16:28:00 | L9: 3e kwartaal | M9: 7e etage | N9: 7 | O9: 14
A10: Augustus | B10: aug | C10: Maandag | D10: Ma | E10: Woensdag | F10: Wo | G10: 2013-06-11 | H10: 2013-06-13 | I10: 2014-01-04 | J10: 2020-06-04 | K10: 17:28:00 | L10: 4e kwartaal | M10: 8e etage | N10: 8 | O10: 16
A11: September | B11: sep | C11: Dinsdag | D11: Di | E11: Donderdag | F11: Do | G11: 2013-06-12 | H11: 2013-06-14 | I11: 2014-02-04 | J11: 2021-06-04 | K11: 18:28:00 | L11: 1e kwartaal | M11: 9e etage | N11: 9 | O11: 18
A12: Oktober | B12: okt | C12: Woensdag | D12: Wo | E12: Vrijdag | F12: Vr | G12: 2013-06-13 | H12: 2013-06-17 | I12: 2014-03-04 | J12: 2022-06-04 | K12: 19:28:00 | L12: 2e kwartaal | M12: 10e etage | N12: 10 | O12: 20
A13: November | B13: nov | C13: Donderdag | D13: Do | E13: Maandag | F13: Ma | G13: 2013-06-14 | H13: 2013-06-18 | I13: 2014-04-04 | J13: 2023-06-04 | K13: 20:28:00 | L13: 3e kwartaal | M13: 11e etage | N13: 11 | O13: 22
A14: December | B14: dec | C14: Vrijdag | D14: Vr | E14: Dinsdag | F14: Di | G14: 2013-06-15 | H14: 2013-06-19 | I14: 2014-05-04 | J14: 2024-06-04 | K14: 21:28:00 | L14: 4e kwartaal | M14: 12e etage | N14: 12 | O14: 24
A15: December | B15: dec | C15: Maandag | D15: Ma | E15: Woensdag | F15: Wo | G15: 2013-06-16 | H15: 2013-06-20 | I15: 2014-06-04 | J15: 2025-06-04 | K15: 22:28:00 | L15: 1e kwartaal | M15: 13e etage | N15: 13 | O15: 26

Sheet Verplaatsen
L2: 1 | M2: c | N2: o | O2: m | P2: 2
L3: p | P3: p
L4: m | P4: u
L5: o | P5: t | Z5: 7 | AA5: t | AB5: r | AC5: a | AD5: i | AE5: n | AF5: c | AG5: o | AH5: m | AI5: p | AJ5: u | AK5: t | AL5: 8
L6: c | P6: r | Z6: u | AL6: r
L7: n | P7: a | Z7: p | AL7: a
L8: i | P8: i | W8: 5 | X8: o | Y8: m | Z8: 6 | AL8: i
L9: a | P9: n | W9: c | AL9: n
L10: r | P10: c | W10: n | AL10: c
L11: t | P11: o | W11: i | AL11: o
J12: 27 | K12: u | L12: 28 | P12: 3 | Q12: m | R12: p | S12: u | T12: t | U12: r | V12: a | W12: 4 | AL12: m
J13: p | AL13: p
H14: 25 | I14: m | J14: 26 | AL14: u
H15: o | AL15: t
H16: c | AL16: r
H17: 24 | I17: n | J17: 23 | AL17: a
J18: i | AL18: i
J19: a | AL19: n
J20: r | AL20: c
J21: t | AL21: o
J22: 22 | K22: u | L22: 21 | O22: 18 | P22: a | Q22: r | R22: t | S22: u | T22: p | U22: m | V22: o | W22: c | X22: n | Y22: i | Z22: a | AA22: 17 | AD22: 14 | AE22: c | AF22: n | AG22: 13 | AJ22: 10 | AK22: m | AL22: 9
L23: p | O23: i | AA23: r | AD23: o | AG23: i | AJ23: p
L24: m | O24: n | AA24: t | AD24: m | AG24: a | AJ24: u
L25: 20 | M25: o | N25: c | O25: 19 | AA25: 16 | AB25: u | AC25: p | AD25: 15 | AG25: 12 | AH25: r | AI25: t | AJ25: 11

Sheet Verpl+Sel
A1: Productnr | B1: Boektitel | C1: Uitgeverij | D1: Taal | E1: Categorie | F1: Prijs | G1: Kwartaal 1 | H1: Kwartaal 2 | I1: Kwartaal 3 | J1: Kwartaal 4 | K1: Bedrag kw1 | L1: bedrag kw2 | M1: bedrag kw3 | N1: bedrag kw4 | O1: Totaal | P1: Gemiddeld
A2: 17 | B2: Alleen is ook maar alleen | C2: Universiteit Vogelvrij | D2: NL | E2: Jeugdboeken | F2: 19.95 | G2: 23 | H2: 10 | I2: 32 | J2: 38 | K2: 458.85 | L2: 199.5 | M2: 638.4 | N2: 758.1 | O2: =SUM(F2:N2) -> 2177.8 | P2: =AVERAGE(K2:N2) -> 513.7125
A3: 18 | B3: Alleen op vakantie | C3: Van Haette Ketering | D3: NL | E3: Jeugdboeken | F3: 16.9 | G3: 48 | H3: 40 | I3: 43 | J3: 10 | K3: 811.2 | L3: 676 | M3: 726.7 | N3: 169 | O3: 2540.8 | P3: =AVERAGE(K3:N3) -> 595.725
A4: 19 | B4: Blijf van me af! | C4: Van Haette Ketering | D4: NL | E4: Jeugdboeken | F4: 15.9 | G4: 24 | H4: 7 | I4: 45 | J4: 30 | K4: 381.6 | L4: 111.3 | M4: 715.5 | N4: 477 | O4: 1807.3 | P4: 421.35
A5: 20 | B5: Het geheim van het Amulet ontrafeld | C5: Van Haette Ketering | D5: NL | E5: Jeugdboeken | F5: 29 | G5: 32 | H5: 1 | I5: 44 | J5: 33 | K5: 928 | L5: 29 | M5: 1276 | N5: 957 | O5: 3329 | P5: 797.5
A6: 21 | B6: Amulets secret revealed | C6: Van Haette Ketering | D6: EN | E6: Jeugdboeken | F6: 29 | G6: 6 | H6: 11 | I6: 32 | J6: 26 | K6: 174 | L6: 319 | M6: 928 | N6: 754 | O6: 2279 | P6: 543.75
A7: 22 | B7: Lifters | C7: Verspui Warenhuis | D7: NL | E7: Jeugdboeken | F7: 21 | G7: 49 | H7: 0 | I7: 50 | J7: 44 | K7: 1029 | M7: 1050 | N7: 924 | O7: 3167 | P7: 1001
A8: 23 | B8: Magie tussen gesloten deuren | C8: Verspui Warenhuis | D8: NL | E8: Jeugdboeken | F8: 19.5 | G8: 20 | H8: 30 | I8: 0 | J8: 24 | K8: 390 | L8: 585 | N8: 468 | O8: 1536.5 | P8: 481
A9: 24 | B9: Mysterieus en charmant, zij is voor mij! | C9: Verspui Warenhuis | D9: NL | E9: Jeugdboeken | F9: 31.23 | G9: 34 | H9: 35 | I9: 41 | J9: 50 | K9: 1061.82 | L9: 1093.05 | M9: 1280.43 | N9: 1561.5 | O9: 5188.03 | P9: 1249.2
A10: 25 | B10: Mysterious and Charming, she's mine | C10: Verspui Warenhuis | D10: EN | E10: Jeugdboeken | F10: 31.23 | G10: 27 | H10: 1 | I10: 17 | J10: 1 | K10: 843.21 | L10: 31.23 | M10: 530.91 | N10: 31.23 | O10: 1513.81 | P10: 359.145
A11: 26 | B11: Schrijf me! | C11: VSR Boekhandel | D11: NL | E11: Jeugdboeken | F11: 19.5 | G11: 35 | H11: 46 | I11: 16 | J11: 23 | K11: 682.5 | L11: 897 | M11: 312 | N11: 448.5 | O11: 2479.5 | P11: 585
A12: 27 | B12: Stop! | C12: Wave | D12: NL | E12: Jeugdboeken | F12: 23.46 | G12: 38 | H12: 43 | I12: 50 | J12: 27 | K12: 891.48 | L12: 1008.78 | M12: 1173 | N12: 633.42 | O12: 3888.14 | P12: 926.67
A13: 28 | B13: Wat als, ik dat ook ga doen! | C13: Wave | D13: NL | E13: Jeugdboeken | F13: 25.89 | G13: 27 | H13: 32 | I13: 9 | J13: 8 | K13: 699.03 | L13: 828.48 | M13: 233.01 | N13: 207.12 | O13: 2069.53 | P13: 491.91
A14: 29 | B14: Wat jij kan doe ik beter! | C14: Wave | D14: NL | E14: Jeugdboeken | F14: 25.89 | G14: 0 | H14: 15 | I14: 28 | J14: 32 | L14: 388.35 | M14: 724.92 | N14: 828.48 | O14: 2042.64 | P14: 647.25
A15: 30 | B15: Everything you can do, i can do better | C15: Yace Library | D15: EN | E15: Jeugdboeken | F15: 25.89 | G15: 17 | H15: 11 | I15: 24 | J15: 2 | K15: 440.13 | L15: 284.79 | M15: 621.36 | N15: 51.78 | O15: 1477.95 | P15: 349.515
A16: 31 | B16: Bril Smurfs ontdekking | C16: Yace Library | D16: NL | E16: Kinderboeken | F16: 12.5 | G16: 50 | H16: 17 | I16: 11 | J16: 17 | K16: 625 | L16: 212.5 | M16: 137.5 | N16: 212.5 | O16: 1295 | P16: 296.875
A17: 32 | B17: De mooiste sprookjes van Royer | C17: Yace Library | D17: NL | E17: Kinderboeken | F17: 32 | G17: 16 | H17: 21 | I17: 36 | J17: 29 | K17: 512 | L17: 672 | M17: 1152 | N17: 928 | O17: 3398 | P17: 816
A18: 33 | B18: De zijden speeltuin | C18: Yace Library | D18: NL | E18: Kinderboeken | F18: 12.5 | G18: 42 | H18: 7 | I18: 5 | J18: 28 | K18: 525 | L18: 87.5 | M18: 62.5 | N18: 350 | O18: 1119.5 | P18: 256.25
A19: 34 | B19: Het grote voorleesboek | C19: Yace Library | D19: NL | E19: Kinderboeken | F19: 14 | G19: 44 | H19: 30 | I19: 43 | J19: 14 | K19: 616 | L19: 420 | M19: 602 | N19: 196 | O19: 1979 | P19: 458.5
A20: 35 | B20: Kelly ik vind jou lief! | C20: Zeeuwse Bibliotheek LLS | D20: NL | E20: Kinderboeken | F20: 16.5 | G20: 41 | H20: 10 | I20: 23 | J20: 1 | K20: 676.5 | L20: 165 | M20: 379.5 | N20: 16.5 | O20: 1329 | P20: 309.375
A21: 36 | B21: Koe de KREKEL | C21: Zeeuwse Bibliotheek LLS | D21: NL | E21: Kinderboeken | F21: 13.5 | G21: 27 | H21: 44 | I21: 18 | J21: 21 | K21: 364.5 | L21: 594 | M21: 243 | N21: 283.5 | O21: 1608.5 | P21: 371.25
A22: 37 | B22: Lekker puh! | C22: Zeeuwse Bibliotheek LLS | D22: NL | E22: Kinderboeken | F22: 17 | G22: 9 | H22: 11 | I22: 27 | J22: 1 | K22: 153 | L22: 187 | M22: 459 | N22: 17 | O22: 881 | P22: 204
A23: 38 | B23: Mam, het spookt in mijn kamer | C23: Zeeuwse Bibliotheek LLS | D23: NL | E23: Kinderboeken | F23: 16 | G23: 39 | H23: 23 | I23: 27 | J23: 17 | K23: 624 | L23: 368 | M23: 432 | N23: 272 | O23: 1818 | P23: 424
A24: 39 | B24: Pak me dan als je kan, je kan me toch niet pakken! | C24: Zeeuwse Bibliotheek LLS | D24: NL | E24: Kinderboeken | F24: 18 | G24: 23 | H24: 4 | I24: 31 | J24: 13 | K24: 414 | L24: 72 | M24: 558 | N24: 234 | O24: 1367 | P24: 319.5
A25: 40 | B25: Sip & Annemieke | C25: Yace Library | D25: NL | E25: Kinderboeken | F25: 18.4 | G25: 29 | H25: 7 | I25: 45 | J25: 1 | K25: 533.6 | L25: 128.8 | M25: 828 | N25: 18.4 | O25: 1609.2 | P25: 377.2
A26: 41 | B26: Zwemmen met dolfijnen | C26: Universiteit Vogelvrij | D26: NL | E26: Kinderboeken | F26: 9.65 | G26: 32 | H26: 6 | I26: 33 | J26: 41 | K26: 308.8 | L26: 57.9 | M26: 318.45 | N26: 395.65 | O26: 1202.45 | P26: 270.2
A27: 42 | B27: De Ziel openstellen | C27: Van Haette Ketering | D27: NL | E27: Literatuur | F27: 24 | G27: 5 | H27: 42 | I27: 21 | J27: 13 | K27: 120 | L27: 1008 | M27: 504 | N27: 312 | O27: 2049 | P27: 486
A28: 43 | B28: Een duivel op naaldhakken | C28: Van Haette Ketering | D28: NL | E28: Literatuur | F28: 39 | G28: 3 | H28: 8 | I28: 2 | J28: 49 | K28: 117 | L28: 312 | M28: 78 | N28: 1911 | O28: 2519 | P28: 604.5
A29: 44 | B29: Devil on heals | C29: Van Haette Ketering | D29: EN | E29: Literatuur | F29: 39 | G29: 30 | H29: 47 | I29: 21 | J29: 39 | K29: 1170 | L29: 1833 | M29: 819 | N29: 1521 | O29: 5519 | P29: 1335.75
A30: 45 | B30: Ik was 15 en toen… | C30: Van Haette Ketering | D30: NL | E30: Literatuur | F30: 9.5 | G30: 11 | H30: 2 | I30: 50 | J30: 12 | K30: 104.5 | L30: 19 | M30: 475 | N30: 114 | O30: 797 | P30: 178.125
A31: 46 | B31: Jij en ik, vriendinnen voor altijd! | C31: Verspui Warenhuis | D31: NL | E31: Literatuur | F31: 19.95 | G31: 10 | H31: 48 | I31: 17 | J31: 31 | K31: 199.5 | L31: 957.6 | M31: 339.15 | N31: 618.45 | O31: 2240.65 | P31: 528.675
A32: 47 | B32: Levenslang vast aan hem! | C32: Verspui Warenhuis | D32: NL | E32: Literatuur | F32: 19.5 | G32: 12 | H32: 15 | I32: 34 | J32: 23 | K32: 234 | L32: 292.5 | M32: 663 | N32: 448.5 | O32: 1741.5 | P32: 409.5
A33: 48 | B33: My chamsudin to my rumi (poëzi) | C33: Verspui Warenhuis | D33: EN | E33: Literatuur | F33: 25.45 | G33: 13 | H33: 38 | I33: 2 | J33: 10 | K33: 330.85 | L33: 967.1 | M33: 50.9 | N33: 254.5 | O33: 1691.8 | P33: 400.8375
A34: 49 | B34: Stttttttttttttt, i'm a shopaholic | C34: Verspui Warenhuis | D34: NL | E34: Literatuur | F34: 20 | G34: 34 | H34: 26 | I34: 13 | J34: 19 | K34: 680 | L34: 520 | M34: 260 | N34: 380 | O34: 1952 | P34: 460
A35: 50 | B35: The Memoir of Sara Hobson | C35: VSR Boekhandel | D35: EN | E35: Literatuur | F35: 16.25 | G35: 6 | H35: 7 | I35: 38 | J35: 26 | K35: 97.5 | L35: 113.75 | M35: 617.5 | N35: 422.5 | O35: 1344.5 | P35: 312.8125
A36: 51 | B36: Vang mijn tranen | C36: Wave | D36: NL | E36: Literatuur | F36: 33.95 | G36: 9 | H36: 0 | I36: 1 | J36: 28 | K36: 305.55 | M36: 33.95 | N36: 950.6 | O36: 1362.05 | P36: 430.0333333
A37: 52 | B37: Waarom ik lieg | C37: Wave | D37: NL | E37: Literatuur | F37: 17 | G37: 6 | H37: 34 | I37: 26 | J37: 30 | K37: 102 | L37: 578 | M37: 442 | N37: 510 | O37: 1745 | P37: 408
A38: 53 | B38: Was ik maar nooit gegaan! | C38: Wave | D38: NL | E38: Literatuur | F38: 22 | G38: 47 | H38: 42 | I38: 12 | J38: 23 | K38: 1034 | L38: 924 | M38: 264 | N38: 506 | O38: 2874 | P38: 682
A39: 54 | B39: Aan de slag met de Administratieve Organisatie | C39: Yace Library | D39: NL | E39: Studieboeken | F39: 37.69 | G39: 49 | H39: 25 | I39: 15 | J39: 5 | K39: 1846.81 | L39: 942.25 | M39: 565.35 | N39: 188.45 | O39: 3674.55 | P39: 885.715
A40: 55 | B40: Basisbegrippen Bedrijfseconomie / druk 35 | C40: Yace Library | D40: NL | E40: Studieboeken | F40: 24 | G40: 50 | H40: 1 | I40: 17 | J40: 5 | K40: 1200 | L40: 24 | M40: 408 | N40: 120 | O40: 1849 | P40: 438
A41: 56 | B41: Business to Business Management | C41: Yace Library | D41: NL | E41: Studieboeken | F41: 38 | G41: 10 | H41: 13 | I41: 17 | J41: 29 | K41: 380 | L41: 494 | M41: 646 | N41: 1102 | O41: 2729 | P41: 655.5
A42: 57 | B42: De acht eigenschappen van effectief leiderschap/ druk 40 | C42: Yace Library | D42: NL | E42: Studieboeken | F42: 44.95 | G42: 48 | H42: 42 | I42: 1 | J42: 44 | K42: 2157.6 | L42: 1887.9 | M42: 44.95 | N42: 1977.8 | O42: 6248.2 | P42: 1517.0625
A43: 58 | B43: Europees Staatsrecht | C43: Yace Library | D43: NL | E43: Studieboeken | F43: 130.95 | G43: 25 | H43: 40 | I43: 17 | J43: 11 | K43: 3273.75 | L43: 5238 | M43: 2226.15 | N43: 1440.45 | O43: 12402.3 | P43: 3044.5875
A44: 59 | B44: Examens voor de deur! | C44: Zeeuwse Bibliotheek LLS | D44: NL | E44: Studieboeken | F44: 55 | G44: 11 | H44: 18 | I44: 40 | J44: 20 | K44: 605 | L44: 990 | M44: 2200 | N44: 1100 | O44: 5039 | P44: 1223.75
A45: 60 | B45: Foutloos adviseren / druk 3 | C45: Zeeuwse Bibliotheek LLS | D45: NL | E45: Studieboeken | F45: 34 | G45: 6 | H45: 11 | I45: 18 | J45: 14 | K45: 204 | L45: 374 | M45: 612 | N45: 476 | O45: 1749 | P45: 416.5
A46: 61 | B46: Fundamenten van een Markt- en micro-economie + CD-ROM | C46: Zeeuwse Bibliotheek LLS | D46: NL | E46: Studieboeken | F46: 28.5 | G46: 3 | H46: 30 | I46: 14 | J46: 21 | K46: 85.5 | L46: 855 | M46: 399 | N46: 598.5 | O46: 2034.5 | P46: 484.5
A47: 62 | B47: Geld, IEB en bedrijfsprocessen | C47: Zeeuwse Bibliotheek LLS | D47: NL | E47: Studieboeken | F47: 49.3 | G47: 32 | H47: 2 | I47: 17 | J47: 28 | K47: 1577.6 | L47: 98.6 | M47: 838.1 | N47: 1380.4 | O47: 4023 | P47: 973.675
A48: 63 | B48: Human Resource Management to the MAX | C48: Zeeuwse Bibliotheek LLS | D48: EN | E48: Studieboeken | F48: 43.9 | G48: 5 | H48: 14 | I48: 36 | J48: 36 | K48: 219.5 | L48: 614.6 | M48: 1580.4 | N48: 1580.4 | O48: 4129.8 | P48: 998.725
A49: 64 | B49: How to survive in the World of ICT? | C49: Yace Library | D49: EN | E49: Studieboeken | F49: 33.25 | G49: 15 | H49: 10 | I49: 44 | J49: 37 | K49: 498.75 | L49: 332.5 | M49: 1463 | N49: 1230.25 | O49: 3663.75 | P49: 881.125
A50: 65 | B50: Internationale economische ontwikkelingen en bedrijfsomgeving | C50: Universiteit Vogelvrij | D50: NL | E50: Studieboeken | F50: 36.45 | G50: 13 | H50: 16 | I50: 23 | J50: 45 | K50: 473.85 | L50: 583.2 | M50: 838.35 | N50: 1640.25 | O50: 3669.1 | P50: 883.9125
A51: 66 | B51: Jaarverslaggeving voor het HBO | C51: Van Haette Ketering | D51: NL | E51: Studieboeken | F51: 37.95 | G51: 4 | H51: 36 | I51: 34 | J51: 36 | K51: 151.8 | L51: 1366.2 | M51: 1290.3 | N51: 1366.2 | O51: 4322.45 | P51: 1043.625
A52: 67 | B52: Kunst van het bedriegen (Security, Law & Social issues ) | C52: Van Haette Ketering | D52: NL | E52: Studieboeken | F52: 44 | G52: 43 | H52: 46 | I52: 10 | J52: 17 | K52: 1892 | L52: 2024 | M52: 440 | N52: 748 | O52: 5264 | P52: 1276
A53: 68 | B53: Linguistic in Dutch, Englisch, German and Spanish | C53: Van Haette Ketering | D53: NL | E53: Studieboeken | F53: 22.5 | G53: 9 | H53: 3 | I53: 26 | J53: 6 | K53: 202.5 | L53: 67.5 | M53: 585 | N53: 135 | O53: 1056.5 | P53: 247.5
A54: 69 | B54: Loosing is not an Option! | C54: Van Haette Ketering | D54: EN | E54: Studieboeken | F54: 36 | G54: 6 | H54: 33 | I54: 8 | J54: 16 | K54: 216 | L54: 1188 | M54: 288 | N54: 576 | O54: 2367 | P54: 567
A55: 70 | B55: Marketing,- Communiatie & Publicrelations | C55: Verspui Warenhuis | D55: NL | E55: Studieboeken | F55: 44.5 | G55: 47 | H55: 24 | I55: 40 | J55: 41 | K55: 2091.5 | L55: 1068 | M55: 1780 | N55: 1824.5 | O55: 6960.5 | P55: 1691
A56: 71 | B56: Met je ogen dicht boekhouden | C56: Verspui Warenhuis | D56: NL | E56: Studieboeken | F56: 26.75 | G56: 23 | H56: 46 | I56: 24 | J56: 16 | K56: 615.25 | L56: 1230.5 | M56: 642 | N56: 428 | O56: 3051.5 | P56: 728.9375
A57: 72 | B57: Opweg om Nederlands nummer 1 Secretaresse te worden. | C57: Verspui Warenhuis | D57: NL | E57: Studieboeken | F57: 78 | G57: 36 | H57: 45 | I57: 36 | J57: 11 | K57: 2808 | L57: 3510 | M57: 2808 | N57: 858 | O57: 10190 | P57: 2496
A58: 73 | B58: Perfecte Spelling | C58: Verspui Warenhuis | D58: NL | E58: Studieboeken | F58: 15 | G58: 25 | H58: 25 | I58: 0 | J58: 34 | K58: 375 | L58: 375 | N58: 510 | O58: 1359 | P58: 420
A59: 74 | B59: Psychologie in de Pedagogiek | C59: VSR Boekhandel | D59: NL | E59: Studieboeken | F59: 93 | G59: 50 | H59: 12 | I59: 49 | J59: 33 | K59: 4650 | L59: 1116 | M59: 4557 | N59: 3069 | O59: 13629 | P59: 3348
A60: 75 | B60: Rainbow strategy | C60: Wave | D60: NL | E60: Studieboeken | F60: 28 | G60: 20 | H60: 25 | I60: 4 | J60: 31 | K60: 560 | L60: 700 | M60: 112 | N60: 868 | O60: 2348 | P60: 560
A61: 76 | B61: Rainbow strategy | C61: Wave | D61: EN | E61: Studieboeken | F61: 28 | G61: 20 | H61: 28 | I61: 6 | J61: 46 | K61: 560 | L61: 784 | M61: 168 | N61: 1288 | O61: 2928 | P61: 700
A62: 77 | B62: Schrijven doe je ZO! | C62: Wave | D62: NL | E62: Studieboeken | F62: 13 | G62: 20 | H62: 18 | I62: 36 | J62: 31 | K62: 260 | L62: 234 | M62: 468 | N62: 403 | O62: 1483 | P62: 341.25
A63: 78 | B63: Sociale Media geschiedenis | C63: Yace Library | D63: NL | E63: Studieboeken | F63: 44 | G63: 22 | H63: 34 | I63: 21 | J63: 28 | K63: 968 | L63: 1496 | M63: 924 | N63: 1232 | O63: 4769 | P63: 1155
A64: 79 | B64: Staatkunde voor gevorderden + CD-ROM/ druk 15 | C64: Yace Library | D64: NL | E64: Studieboeken | F64: 56 | G64: 10 | H64: 21 | I64: 30 | J64: 23 | K64: 560 | L64: 1176 | M64: 1680 | N64: 1288 | O64: 4844 | P64: 1176
A65: 80 | B65: Van Lottik Woordenboeken EN-NE &NE-EN | C65: Yace Library | D65: NL | E65: Studieboeken | F65: 18 | G65: 36 | H65: 49 | I65: 39 | J65: 20 | K65: 648 | L65: 882 | M65: 702 | N65: 360 | O65: 2754 | P65: 648
A66: 81 | B66: Van Lottik Woordenboeken NE-SP & SP-EN | C66: Yace Library | D66: NL | E66: Studieboeken | F66: 18 | G66: 22 | H66: 21 | I66: 5 | J66: 23 | K66: 396 | L66: 378 | M66: 90 | N66: 414 | O66: =SUM(F66:N66) -> 1367 | P66: 319.5
A67: 82 | B67: Wizzkid (combinatie van verschillende vakken ter voorbereiding aan het voortgezet onderwijs). | C67: Yace Library | D67: NL | E67: Studieboeken | F67: 38 | G67: 39 | H67: 11 | I67: 37 | J67: 47 | K67: 1482 | L67: 418 | M67: 1406 | N67: 1786 | O67: 5264 | P67: =AVERAGE(K67:N67) -> 1273
A68: 93 | B68: Informatica de basis(Acces, Excel, Outlook, PowerPoint etc) | C68: Zeeuwse Bibliotheek LLS | D68: NL | E68: Studieboeken | F68: 80 | G68: 21 | H68: 9 | I68: 1 | J68: 19 | K68: 1680 | L68: 720 | M68: 80 | N68: 1520 | O68: 4130 | P68: 1000
A69: 94 | B69: Creatief een Internetsite bouwen (met diverse programma's) | C69: Zeeuwse Bibliotheek LLS | D69: NL | E69: Studieboeken | F69: 44 | G69: 19 | H69: 8 | I69: 25 | J69: 5 | K69: 836 | L69: 352 | M69: 1100 | N69: 220 | O69: 2609 | P69: 627
A70: 83 | B70: De Mesalinni Mysterie | C70: Zeeuwse Bibliotheek LLS | D70: NL | E70: Thrillers | F70: 45 | G70: 2 | H70: 42 | I70: 2 | J70: 2 | K70: 90 | L70: 1890 | M70: 90 | N70: 90 | O70: 2253 | P70: 540
A71: 84 | B71: The mesalinni Mystery | C71: Zeeuwse Bibliotheek LLS | D71: EN | E71: Thrillers | F71: 45 | G71: 15 | H71: 0 | I71: 0 | J71: 14 | K71: 675 | N71: 630 | O71: 1379 | P71: 652.5
A72: 85 | B72: De Monet Codes | C72: Zeeuwse Bibliotheek LLS | D72: NL | E72: Thrillers | F72: 40 | G72: 15 | H72: 11 | I72: 14 | J72: 23 | K72: 600 | L72: 440 | M72: 560 | N72: 920 | O72: 2623 | P72: 630
A73: 86 | B73: The Monet Codes | C73: Yace Library | D73: EN | E73: Thrillers | F73: 40 | G73: 41 | H73: 23 | I73: 48 | J73: 14 | K73: 1640 | L73: 920 | M73: 1920 | N73: 560 | O73: 5206 | P73: 1260
A74: 87 | B74: Being beautiful is a curse | C74: Universiteit Vogelvrij | D74: EN | E74: Thrillers | F74: 28 | G74: 24 | H74: 38 | I74: 9 | J74: 16 | K74: 672 | L74: 1064 | M74: 252 | N74: 448 | O74: 2551 | P74: 609
A75: 88 | B75: De vloek van de schoonheid | C75: Van Haette Ketering | D75: NL | E75: Thrillers | F75: 28 | G75: 32 | H75: 27 | I75: 15 | J75: 23 | K75: 896 | L75: 756 | M75: 420 | N75: 644 | O75: 2841 | P75: 679
A76: 89 | B76: Deception, no turning back! | C76: Van Haette Ketering | D76: EN | E76: Thrillers | F76: 33 | G76: 39 | H76: 15 | I76: 20 | J76: 40 | K76: 1287 | L76: 495 | M76: 660 | N76: 1320 | O76: 3909 | P76: 940.5
A77: 90 | B77: Doel! | C77: Van Haette Ketering | D77: NL | E77: Thrillers | F77: 25 | G77: 0 | H77: 28 | I77: 28 | J77: 50 | L77: 700 | M77: 700 | N77: 1250 | O77: 2781 | P77: 883.3333333
A78: 91 | B78: Dubbelleven | C78: Van Haette Ketering | D78: NL | E78: Thrillers | F78: 33 | G78: 32 | H78: 43 | I78: 29 | J78: 39 | K78: 1056 | L78: 1419 | M78: 957 | N78: 1287 | O78: 4895 | P78: 1179.75
A79: 92 | B79: Till death do us part | C79: Verspui Warenhuis | D79: EN | E79: Thrillers | F79: 25 | G79: 35 | H79: 7 | I79: 0 | J79: 21 | K79: 875 | L79: 175 | N79: 525 | O79: 1663 | P79: 525
A80: 1 | B80: Dromenboek | C80: Verspui Warenhuis | D80: NL | E80: Fantasie | F80: 18 | G80: 47 | H80: 2 | I80: 25 | J80: 10 | K80: 846 | L80: 36 | M80: 450 | N80: 180 | O80: 1614 | P80: 378
A81: 2 | B81: Dreambook | C81: Verspui Warenhuis | D81: EN | E81: Fantasie | F81: 19 | G81: 23 | H81: 15 | I81: 18 | J81: 14 | K81: 437 | L81: 285 | M81: 342 | N81: 266 | O81: 1419 | P81: 332.5
A82: 3 | B82: Hoge Druïde van Shahbän | C82: Verspui Warenhuis | D82: NL | E82: Fantasie | F82: 10 | G82: 32 | H82: 46 | I82: 18 | J82: 46 | K82: 320 | L82: 460 | M82: 180 | N82: 460 | O82: 1572 | P82: 355
A83: 4 | B83: In de ban van de Amulet | C83: VSR Boekhandel | D83: NL | E83: Fantasie | F83: 22 | G83: 26 | H83: 47 | I83: 39 | J83: 33 | K83: 572 | L83: 1034 | M83: 858 | N83: 726 | O83: 3357 | P83: 797.5
A84: 5 | B84: The spell of the Amulet | C84: Wave | D84: EN | E84: Fantasie | F84: 21.35 | G84: 41 | H84: 10 | I84: 46 | J84: 11 | K84: 875.35 | L84: 213.5 | M84: 982.1 | N84: 234.85 | O84: 2435.15 | P84: 576.45
A85: 6 | B85: In de schaduw/ Afrikaans wicca magie | C85: Wave | D85: NL | E85: Fantasie | F85: 25 | G85: 30 | H85: 37 | I85: 17 | J85: 11 | K85: 750 | L85: 925 | M85: 425 | N85: 275 | O85: 2495 | P85: 593.75
A86: 7 | B86: Shadow/ African Wicca Magic | C86: Wave | D86: EN | E86: Fantasie | F86: 30 | G86: 14 | H86: 6 | I86: 13 | J86: 17 | K86: 420 | L86: 180 | M86: 390 | N86: 510 | O86: 1580 | P86: 375
A87: 8 | B87: Seduced by sunlight | C87: Yace Library | D87: EN | E87: Fantasie | F87: 40 | G87: 25 | H87: 5 | I87: 17 | J87: 50 | K87: 1000 | L87: 200 | M87: 680 | N87: 2000 | O87: 4017 | P87: 970
A88: 9 | B88: The Pillars of Black and White Magic | C88: Yace Library | D88: EN | E88: Fantasie | F88: 97 | G88: 40 | H88: 45 | I88: 10 | J88: 41 | K88: 3880 | L88: 4365 | M88: 970 | N88: 3977 | O88: 13425 | P88: 3298
A89: 10 | B89: Verboden Magie / Forbidden Magic | C89: Yace Library | D89: NE | E89: Fantasie | F89: 31 | G89: 39 | H89: 2 | I89: 18 | J89: 26 | K89: 1209 | L89: 62 | M89: 558 | N89: 806 | O89: 2751 | P89: 658.75
A90: 11 | B90: Forbidden Magic | C90: Yace Library | D90: EN | E90: Fantasie | F90: 21 | G90: 7 | H90: 2 | I90: 35 | J90: 50 | K90: 147 | L90: 42 | M90: 735 | N90: 1050 | O90: 2089 | P90: 493.5
A91: 12 | B91: Eerste kennismaking met de oude wereld | C91: Yace Library | D91: NL | E91: Geschiedenis/Religie | F91: 38 | G91: 32 | H91: 48 | I91: 49 | J91: 48 | K91: 1216 | L91: 1824 | M91: 1862 | N91: 1824 | O91: 6941 | P91: 1681.5
A92: 13 | B92: Nederland en Slavenhandel Hoe,Wat, Waarom | C92: Zeeuwse Bibliotheek LLS | D92: NL | E92: Geschiedenis/Religie | F92: 6 | G92: 4 | H92: 3 | I92: 17 | J92: 18 | K92: 24 | L92: 18 | M92: 102 | N92: 108 | O92: 300 | P92: 63
A93: 14 | B93: Terugblik in de Nederlandse Geschiedenis | C93: Zeeuwse Bibliotheek LLS | D93: NL | E93: Geschiedenis/Religie | F93: 23.25 | G93: 8 | H93: 1 | I93: 29 | J93: 41 | K93: 186 | L93: 23.25 | M93: 674.25 | N93: 953.25 | O93: 1939 | P93: 459.1875
A94: 15 | B94: The thruth and nothing but the thruth (History of world affairs and Wars) | C94: Zeeuwse Bibliotheek LLS | D94: EN | E94: Geschiedenis/Religie | F94: 15.5 | G94: 14 | H94: 28 | I94: 7 | J94: 30 | K94: 217 | L94: 434 | M94: 108.5 | N94: 465 | O94: 1319 | P94: 306.125
A95: 16 | B95: Verleden, heden en toekomst het Bronnenboek | C95: Zeeuwse Bibliotheek LLS | D95: NL | E95: Geschiedenis/Religie | F95: 33.45 | G95: 34 | H95: 32 | I95: 45 | J95: 9 | K95: 1137.3 | L95: 1070.4 | M95: 1505.25 | N95: 301.05 | O95: 4167.45 | P95: 1003.5

Sheet Selecteren
A1: Productnummer | B1: Productnaam | C1: Taal versie | D1: Categorienummer | E1: Lever-id
A2: 46 | B2: Jij en ik, vriendinnen voor altijd! | C2: NL | D2: CA.NL.5 | E2: L28
A3: 1 | B3: Dromenboek | C3: NL | D3: CA.F.1 | E3: L22
A4: 3 | B4: Hoge Druïde van Shahbän | C4: NL | D4: CA.F.1 | E4: L4
A5: 4 | B5: In de ban van de Amulet | C5: NL | D5: CA.F.1 | E5: L23
A6: 6 | B6: In de schaduw/ Afrikaans wicca magie | C6: NL | D6: CA.F.1 | E6: L4
A7: 24 | B7: Mysterieus en charmant, zij is voor mij! | C7: NL | D7: CA.J.3 | E7: L25
A8: 26 | B8: Schrijf me! | C8: NL | D8: CA.J.3 | E8: L19
A9: 27 | B9: Stop! | C9: NL | D9: CA.J.3 | E9: L23
A11: Productnummer | B11: Productnaam | C11: Taal versie | D11: Categorienummer | E11: Lever-id
A12: 10 | B12: Verboden Magie / Forbidden Magic | C12: EN | D12: CA.F.1 | E12: L22
A13: 8 | B13: Seduced by sunlight | C13: EN | D13: CA.F.1 | E13: L12
A14: 48 | B14: My chamsudin to my rumi (poëzi) | C14: EN | D14: CA.NL.5 | E14: L13
A15: 50 | B15: The Memoir of Sara Hobson | C15: EN | D15: CA.NL.5 | E15: L14
A16: 2 | B16: Dreambook | C16: EN | D16: CA.F.1 | E16: L22
A17: 5 | B17: The spell of the Amulet | C17: EN | D17: CA.F.1 | E17: L23
A18: 7 | B18: Shadow/ African Wicca Magic | C18: EN | D18: CA.F.1 | E18: L4
A19: 9 | B19: The Pillars of Black and White Magic | C19: EN | D19: CA.F.1 | E19: L3
A20: 11 | B20: Forbidden Magic | C20: EN | D20: CA.F.1 | E20: L22
A21: 15 | B21: The thruth and nothing but the thruth (History of world affairs and Wars) | C21: EN | D21: CA.GR.2 | E21: L16
A22: 21 | B22: Amulets secret revealed | C22: EN | D22: CA.J.3 | E22: L19
A23: 25 | B23: Mysterious and Charming, she's mine | C23: EN | D23: CA.J.3 | E23: L25
A24: 30 | B24: Everything you can do, i can do better | C24: EN | D24: CA.J.3 | E24: L23
A25: 44 | B25: Devil on heals | C25: EN | D25: CA.NL.5 | E25: L29
A26: 64 | B26: Human Resource Management to the MAX | C26: EN | D26: CA.SW.6 | E26: L7
A27: 65 | B27: How to survive in the World of ICT? | C27: EN | D27: CA.SW.6 | E27: L16
A28: 70 | B28: Loosing is not an Option! | C28: EN | D28: CA.SW.6 | E28: L7
A29: 77 | B29: Rainbow strategy | C29: EN | D29: CA.SW.6 | E29: L6
A30: 85 | B30: The mesalinni Mystery | C30: EN | D30: CA.T.7 | E30: L29
A31: 87 | B31: The Monet Codes | C31: EN | D31: CA.T.7 | E31: L4
A32: 88 | B32: Being beautiful is a curse | C32: EN | D32: CA.T.7 | E32: L8
A33: 90 | B33: Deception, no turning back! | C33: EN | D33: CA.T.7 | E33: L26
A34: 93 | B34: Till death do us part | C34: EN | D34: CA.T.7 | E34: L20
A35: 60 | B35: Examens voor de deur! Een overzichtelijk boek met de belangrijkste onderwerpen, versie 2006/2007

Sheet Gemiddelde
B1: Proefwerk 1 | C1: Proefwerk 2 | D1: Proefwerk 3 | E1: Eerste Rapport | F1: Proefwerk 4 | G1: Proefwerk 5 | H1: Proefwerk 6 | I1: Tweede Rapport | J1: Eindrapport
A2: Ibrahim | B2: 9 | C2: 5 | D2: 7 | F2: 8 | G2: 9 | H2: 6
A3: Klaas | B3: 10 | C3: 5 | D3: 7 | F3: 9 | G3: 10 | H3: 10
A4: Samira | B4: 9 | C4: 7 | D4: 8 | F4: 10 | G4: 7 | H4: 9
A5: Geertje | B5: 9 | C5: 6 | D5: 6 | F5: 8 | G5: 9 | H5: 5
A6: Klas 1
A7: Vera | B7: 5 | C7: 7 | D7: 8 | F7: 10 | G7: 6 | H7: 7
A8: Ferdi | B8: 9 | C8: 7 | D8: 8 | F8: 8 | G8: 6 | H8: 7
A9: Stefan | B9: 6 | C9: 8 | D9: 8 | F9: 9 | G9: 10 | H9: 7
A10: Petra | B10: 10 | C10: 5 | D10: 10 | F10: 6 | G10: 9 | H10: 5
A11: Klas 2
A12: Klas 1+2

Sheet Gemiddelde opg
B1: Proefwerk 1 | C1: Proefwerk 2 | D1: Proefwerk 3 | E1: Eerste Rapport | F1: Proefwerk 4 | G1: Proefwerk 5 | H1: Proefwerk 6 | I1: Tweede Rapport | J1: Eindrapport
A2: Ibrahim | B2: 9 | C2: 5 | D2: 7 | E2: =AVERAGE(B2:D2) -> 7 | F2: 8 | G2: 9 | H2: 6 | I2: =AVERAGE(F2:H2) -> 7.666666667 | J2: =AVERAGE(B2:D2,F2:H2) -> 7.333333333
A3: Klaas | B3: 10 | C3: 5 | D3: 7 | E3: =AVERAGE(B3:D3) -> 7.333333333 | F3: 9 | G3: 10 | H3: 10 | I3: =AVERAGE(F3:H3) -> 9.666666667 | J3: =AVERAGE(B3:D3,F3:H3) -> 8.5
A4: Samira | B4: 9 | C4: 7 | D4: 8 | E4: =AVERAGE(B4:D4) -> 8 | F4: 10 | G4: 7 | H4: 9 | I4: =AVERAGE(F4:H4) -> 8.666666667 | J4: 8.333333333
A5: Geertje | B5: 9 | C5: 6 | D5: 6 | E5: =AVERAGE(B5:D5) -> 7 | F5: 8 | G5: 9 | H5: 5 | I5: =AVERAGE(F5:H5) -> 7.333333333 | J5: 7.166666667
A6: Klas 1 | B6: =AVERAGE(B2:B5) -> 9.25 | C6: 5.75 | D6: 7 | E6: 7.333333333 | F6: 8.75 | G6: 8.75 | H6: 7.5 | I6: 8.333333333 | J6: 7.833333333
A7: Vera | B7: 5 | C7: 7 | D7: 8 | E7: =AVERAGE(B7:D7) -> 6.666666667 | F7: 10 | G7: 6 | H7: 7 | I7: =AVERAGE(F7:H7) -> 7.666666667 | J7: 7.166666667
A8: Ferdi | B8: 9 | C8: 7 | D8: 8 | E8: =AVERAGE(B8:D8) -> 8 | F8: 8 | G8: 6 | H8: 7 | I8: =AVERAGE(F8:H8) -> 7 | J8: 7.5
A9: Stefan | B9: 6 | C9: 8 | D9: 8 | E9: =AVERAGE(B9:D9) -> 7.333333333 | F9: 9 | G9: 10 | H9: 7 | I9: =AVERAGE(F9:H9) -> 8.666666667 | J9: 8
A10: Petra | B10: 10 | C10: 5 | D10: 10 | E10: =AVERAGE(B10:D10) -> 8.333333333 | F10: 6 | G10: 9 | H10: 5 | I10: =AVERAGE(F10:H10) -> 6.666666667 | J10: 7.5
A11: Klas 2 | B11: =AVERAGE(B7:B10) -> 7.5 | C11: 6.75 | D11: 8.5 | E11: 7.583333333 | F11: 8.25 | G11: 7.75 | H11: 6.5 | I11: 7.5 | J11: 7.541666667
A12: Klas 1+2 | B12: =AVERAGE(B7:B10,B2:B5) -> 8.375 | C12: =AVERAGE(C7:C10,C2:C5) -> 6.25 | D12: 7.75 | E12: 7.458333333 | F12: 8.5 | G12: 8.25 | H12: 7 | I12: 7.916666667 | J12: 7.6875

Sheet Gemiddelde 1
A1: Product nummer | B1: Boektitel | C1: Taal | D1: Categorie | E1: Prijs | F1: Aantal
A2: 17 | B2: Alleen is ook maar alleen | C2: NL | D2: Jeugdboeken | E2: 19.95 | F2: 83
A3: 18 | B3: Alleen op vakantie | C3: NL | D3: Jeugdboeken | E3: 16.9 | F3: 77
A4: 19 | B4: Blijf van me af! | C4: NL | D4: Jeugdboeken | E4: 15.9 | F4: 77
A5: 20 | B5: Het geheim van het Amulet ontrafeld | C5: NL | D5: Jeugdboeken | E5: 29 | F5: 62
A6: 21 | B6: Amulets secret revealed | C6: EN | D6: Jeugdboeken | E6: 29 | F6: 88
A7: 22 | B7: Lifters | C7: NL | D7: Jeugdboeken | E7: 21 | F7: 107
A8: 23 | B8: Magie tussen gesloten deuren | C8: NL | D8: Jeugdboeken | E8: 19.5 | F8: 118
A9: 24 | B9: Mysterieus en charmant, zij is voor mij! | C9: NL | D9: Jeugdboeken | E9: 31.23 | F9: 153
A10: 25 | B10: Mysterious and Charming, she's mine | C10: EN | D10: Jeugdboeken | E10: 31.23 | F10: 81
A11: 26 | B11: Schrijf me! | C11: NL | D11: Jeugdboeken | E11: 19.5 | F11: 124
A12: 27 | B12: Stop! | C12: NL | D12: Jeugdboeken | E12: 23.46 | F12: 63
A13: 28 | B13: Wat als, ik dat ook ga doen! | C13: NL | D13: Jeugdboeken | E13: 25.89 | F13: 112
A14: 29 | B14: Wat jij kan doe ik beter! | C14: NL | D14: Jeugdboeken | E14: 25.89 | F14: 144
A15: 30 | B15: Everything you can do, i can do better | C15: EN | D15: Jeugdboeken | E15: 25.89 | F15: 90
B18: Gemiddelde prijs
B19: Gemiddeld aantal
B20: Totaal aantal

Sheet Gemiddelde 1 opg
A1: Product nummer | B1: Boektitel | C1: Taal | D1: Categorie | E1: Prijs | F1: Aantal
A2: 17 | B2: Alleen is ook maar alleen | C2: NL | D2: Jeugdboeken | E2: 19.95 | F2: 83
A3: 18 | B3: Alleen op vakantie | C3: NL | D3: Jeugdboeken | E3: 16.9 | F3: 77
A4: 19 | B4: Blijf van me af! | C4: NL | D4: Jeugdboeken | E4: 15.9 | F4: 77
A5: 20 | B5: Het geheim van het Amulet ontrafeld | C5: NL | D5: Jeugdboeken | E5: 29 | F5: 62
A6: 21 | B6: Amulets secret revealed | C6: EN | D6: Jeugdboeken | E6: 29 | F6: 88
A7: 22 | B7: Lifters | C7: NL | D7: Jeugdboeken | E7: 21 | F7: 107
A8: 23 | B8: Magie tussen gesloten deuren | C8: NL | D8: Jeugdboeken | E8: 19.5 | F8: 118
A9: 24 | B9: Mysterieus en charmant, zij is voor mij! | C9: NL | D9: Jeugdboeken | E9: 31.23 | F9: 153
A10: 25 | B10: Mysterious and Charming, she's mine | C10: EN | D10: Jeugdboeken | E10: 31.23 | F10: 81
A11: 26 | B11: Schrijf me! | C11: NL | D11: Jeugdboeken | E11: 19.5 | F11: 124
A12: 27 | B12: Stop! | C12: NL | D12: Jeugdboeken | E12: 23.46 | F12: 63
A13: 28 | B13: Wat als, ik dat ook ga doen! | C13: NL | D13: Jeugdboeken | E13: 25.89 | F13: 112
A14: 29 | B14: Wat jij kan doe ik beter! | C14: NL | D14: Jeugdboeken | E14: 25.89 | F14: 144
A15: 30 | B15: Everything you can do, i can do better | C15: EN | D15: Jeugdboeken | E15: 25.89 | F15: 90
B18: Gemiddelde prijs | C18: =AVERAGE(E2:E16) -> 23.88142857
B19: Gemiddeld aantal | C19: =AVERAGE(F2:F15) -> 98.5
B20: Totaal aantal | C20: =SUM(F2:F15) -> 1379

Sheet Perc
A1: Landelijk buitenspeeldag
B3: Inwoners | C3: Deelnemers | D3: Percentage
A4: Appelscha | B4: 8865 | C4: 135
A5: Blaricum | B5: 12873 | C5: 0
A6: Eindhoven | B6: 141762 | C6: 74
A7: Hilversum | B7: 38763 | C7: 65
A8: Lutjebroek | B8: 8763 | C8: 0
A9: Roosendaal | B9: 12903 | C9: 789
A10: Zeewolde | B10: 11982 | C10: 11

Sheet Perc opg
A1: Landelijk buitenspeeldag
B3: Inwoners | C3: Deelnemers | D3: Percentage | E3: Perc Deelnemers
A4: Appelscha | B4: 8865 | C4: 135 | D4: =C4/B4 -> 0.0152284264 | E4: =C4/$C$12 -> 0.125698324
A5: Blaricum | B5: 12873 | C5: 0 | D5: =C5/B5 -> 0 | E5: =C5/$C$12 -> 0
A6: Eindhoven | B6: 141762 | C6: 74 | D6: 0.0005220016648 | E6: 0.06890130354
A7: Hilversum | B7: 38763 | C7: 65 | D7: 0.001676856796 | E7: 0.06052141527
A8: Lutjebroek | B8: 8763 | C8: 0 | D8: 0 | E8: 0
A9: Roosendaal | B9: 12903 | C9: 789 | D9: 0.0611485701 | E9: 0.7346368715
A10: Zeewolde | B10: 11982 | C10: 11 | D10: 0.0009180437323 | E10: 0.01024208566
A12: Totaal | C12: =SUM(C4:C11) -> 1074

Sheet Perc 1
A1: Uitslag Enquête schoolkrant
B3: eens/ja | D3: oneens/nee | F3: geen mening/soms
A4: Kantine | B4: aantal | C4: % | D4: aantal | E4: % | F4: aantal | G4: % | H4: Totaal
A5: De kantine is groot genoeg | B5: 300 | D5: 34 | F5: 11
A6: De kantine is gezellig ingericht | B6: 150 | D6: 170 | F6: 25
A7: Een tussenuur breng ik in de kantine door | B7: 65 | D7: 40 | F7: 240
A8: Ik koop nooit wat in de kantine | B8: 76 | D8: 1 | F8: 268
A9: Ik vind het heel vervelend dat ik alleen in de pauze wat in de kantine kan kopen | B9: 146 | D9: 77 | F9: 122
K10: Bereken eerst het Totaal uitgebrachte stemmen
A11: Schoolfeesten | K11: In kolom H
A12: Er worden genoeg schoolfeesten georganiseerd | B12: 330 | D12: 13 | F12: 2
A13: Er moeten meer schoolfeesten komen alleen voor de onderbouw | B13: 150 | D13: 45 | F13: 150 | K13: Bereken daarna het percentage van de het aantal uitgebrachte stemmen
A14: Er moeten meer schoolfeesten komen alleen voor de bovenbouw | B14: 127 | D14: 56 | F14: 162 | K14: in kolom C; E en F
A15: De schoolfeesten zijn niet duur | B15: 331 | D15: 1 | F15: 13
A16: De schoolfeesten zijn gezellig | B16: 289 | D16: 11 | F16: 45
A18: Schoolkrant
A19: Ik lees de schoolkrant graag | B19: 187 | D19: 22 | F19: 136
A20: Ik vind dat de schoolkrant vaak genoeg uitkomt | B20: 333 | D20: 3 | F20: 9
A21: Ik wil graag af en toe een stukje in de schoolkrant schrijven | B21: 47 | D21: 277 | F21: 21
A22: In de schoolkrant moeten vaker dit soort enquêtes verschijnen | B22: 299 | D22: 24 | F22: 22
A24: Totaal aantal ingeleverde enquêtes | B24: 345
A25: Totaal aantal leerlingen | B25: 578
A26: Percentage ingeleverd | K26: Bereken het percentage van de ingeleverde enquêtes
K27: op basis van het aantal leerlingen

Sheet Perc 1 opg
A1: Uitslag Enquête schoolkrant
B3: eens/ja | D3: oneens/nee | F3: geen mening/soms
A4: Kantine | B4: aantal | C4: % | D4: aantal | E4: % | F4: aantal | G4: % | H4: Totaal
A5: De kantine is groot genoeg | B5: 300 | C5: =B5/H5 -> 0.8695652174 | D5: 34 | E5: =D5/H5 -> 0.09855072464 | F5: 11 | G5: =F5/H5 -> 0.03188405797 | H5: =F5+D5+B5 -> 345
A6: De kantine is gezellig ingericht | B6: 150 | C6: =B6/H6 -> 0.4347826087 | D6: 170 | E6: =D6/H6 -> 0.4927536232 | F6: 25 | G6: =F6/H6 -> 0.07246376812 | H6: =F6+D6+B6 -> 345
A7: Een tussenuur breng ik in de kantine door | B7: 65 | C7: =B7/H7 -> 0.1884057971 | D7: 40 | E7: =D7/H7 -> 0.115942029 | F7: 240 | G7: =F7/H7 -> 0.6956521739 | H7: =F7+D7+B7 -> 345
A8: Ik koop nooit wat in de kantine | B8: 76 | C8: =B8/H8 -> 0.2202898551 | D8: 1 | E8: =D8/H8 -> 0.002898550725 | F8: 268 | G8: =F8/H8 -> 0.7768115942 | H8: =F8+D8+B8 -> 345
A9: Ik vind het heel vervelend dat ik alleen in de pauze wat in de kantine kan kopen | B9: 146 | C9: =B9/H9 -> 0.4231884058 | D9: 77 | E9: =D9/H9 -> 0.2231884058 | F9: 122 | G9: =F9/H9 -> 0.3536231884 | H9: =F9+D9+B9 -> 345
A11: Schoolfeesten
A12: Er worden genoeg schoolfeesten georganiseerd | B12: 330 | C12: =B12/H12 -> 0.9565217391 | D12: 13 | E12: =D12/H12 -> 0.03768115942 | F12: 2 | G12: =F12/H12 -> 0.005797101449 | H12: =F12+D12+B12 -> 345
A13: Er moeten meer schoolfeesten komen alleen voor de onderbouw | B13: 150 | C13: =B13/H13 -> 0.4347826087 | D13: 45 | E13: =D13/H13 -> 0.1304347826 | F13: 150 | G13: =F13/H13 -> 0.4347826087 | H13: =F13+D13+B13 -> 345
A14: Er moeten meer schoolfeesten komen alleen voor de bovenbouw | B14: 127 | C14: =B14/H14 -> 0.368115942 | D14: 56 | E14: =D14/H14 -> 0.1623188406 | F14: 162 | G14: =F14/H14 -> 0.4695652174 | H14: =F14+D14+B14 -> 345
A15: De schoolfeesten zijn niet duur | B15: 331 | C15: =B15/H15 -> 0.9594202899 | D15: 1 | E15: =D15/H15 -> 0.002898550725 | F15: 13 | G15: =F15/H15 -> 0.03768115942 | H15: =F15+D15+B15 -> 345
A16: De schoolfeesten zijn gezellig | B16: 289 | C16: =B16/H16 -> 0.8376811594 | D16: 11 | E16: =D16/H16 -> 0.03188405797 | F16: 45 | G16: =F16/H16 -> 0.1304347826 | H16: =F16+D16+B16 -> 345
A18: Schoolkrant
A19: Ik lees de schoolkrant graag | B19: 187 | C19: =B19/H19 -> 0.5420289855 | D19: 22 | E19: =D19/H19 -> 0.06376811594 | F19: 136 | G19: =F19/H19 -> 0.3942028986 | H19: =F19+D19+B19 -> 345
A20: Ik vind dat de schoolkrant vaak genoeg uitkomt | B20: 333 | C20: =B20/H20 -> 0.9652173913 | D20: 3 | E20: =D20/H20 -> 0.008695652174 | F20: 9 | G20: =F20/H20 -> 0.02608695652 | H20: =F20+D20+B20 -> 345
A21: Ik wil graag af en toe een stukje in de schoolkrant schrijven | B21: 47 | C21: =B21/H21 -> 0.1362318841 | D21: 277 | E21: =D21/H21 -> 0.8028985507 | F21: 21 | G21: =F21/H21 -> 0.06086956522 | H21: =F21+D21+B21 -> 345
A22: In de schoolkrant moeten vaker dit soort enquêtes verschijnen | B22: 299 | C22: =B22/H22 -> 0.8666666667 | D22: 24 | E22: =D22/H22 -> 0.06956521739 | F22: 22 | G22: =F22/H22 -> 0.06376811594 | H22: =F22+D22+B22 -> 345
A24: Totaal aantal ingeleverde enquêtes | B24: 345
A25: Totaal aantal leerlingen | B25: 578
A26: Percentage ingeleverd | B26: =B24/B25 -> 0.5968858131

Sheet Opmaak
A1: Datum | B1: Boektitel | C1: Aantal | D1: Prijs zonder BTW | E1: Totaal | F1: BTW | G1: Totaal incl BTW
A2: 39085 | B2: Business to Business Management | C2: 2 | D2: 38
A3: 39085 | B3: In de ban van de Amulet | C3: 2 | D3: 22
A4: 39085 | B4: Magie tussen gesloten deuren | C4: 1 | D4: 19.5
A5: 39087 | B5: Devil on heals | C5: 3 | D5: 39
A6: 39087 | B6: Everything you do | C6: 1 | D6: 25.89
A7: 39091 | B7: Alleen is ook maar alleen | C7: 1 | D7: 19.95
A8: 39091 | B8: Alleen op vakantie | C8: 1 | D8: 16.9
A9: 39091 | B9: Magie tussen gesloten deuren | C9: 2 | D9: 19.5

Sheet Opmaak opg
A1: Datum | B1: Boektitel | C1: Aantal | D1: Prijs zonder BTW | E1: Totaal | F1: BTW 21% | G1: Totaal incl BTW
A2: 2007-01-03 | B2: Business to Business Management | C2: 2 | D2: 38 | E2: =C2*D2 -> 76 | F2: =21%*E2 -> 15.96 | G2: =SUM(E2:F2) -> 91.96
A3: 2007-01-03 | B3: In de ban van de Amulet | C3: 2 | D3: 22 | E3: =C3*D3 -> 44 | F3: =21%*E3 -> 9.24 | G3: =SUM(E3:F3) -> 53.24
A4: 2007-01-03 | B4: Magie tussen gesloten deuren | C4: 1 | D4: 19.5 | E4: 19.5 | F4: 4.095 | G4: 23.595
A5: 2007-01-05 | B5: Devil on heals | C5: 3 | D5: 39 | E5: 117 | F5: 24.57 | G5: 141.57
A6: 2007-01-05 | B6: Everything you do | C6: 1 | D6: 25.89 | E6: 25.89 | F6: 5.4369 | G6: 31.3269
A7: 2007-01-09 | B7: Alleen is ook maar alleen | C7: 1 | D7: 19.95 | E7: 19.95 | F7: 4.1895 | G7: 24.1395
A8: 2007-01-09 | B8: Alleen op vakantie | C8: 1 | D8: 16.9 | E8: 16.9 | F8: 3.549 | G8: 20.449
A9: 2007-01-09 | B9: Magie tussen gesloten deuren | C9: 2 | D9: 19.5 | E9: 39 | F9: 8.19 | G9: 47.19
E11: =SUM(E1:E9) -> 358.24 | F11: =SUM(F1:F9) -> 75.2304 | G11: =SUM(G1:G9) -> 433.4704

Sheet Opmaak 1
A1: HOLAN B.V.
A2: Omzet per artikel
A6: Artikel | C6: januari | D6: februari | E6: maart | F6: 1e kwartaal 2001 | G6: april | H6: mei | I6: juni | J6: 2e kwartaal 2001 | K6: juli | L6: augustus | M6: september | N6: 3e kwartaal 2001 | O6: october | P6: november | Q6: december | R6: 4e kwartaal 2001 | S6: Jaar Totaal
A7: Monitor | C7: 25300 | D7: 25225 | E7: 25187.5 | G7: 25262.5 | H7: 25312.5 | I7: 25262.5 | K7: 25212.5 | L7: 25243.75 | M7: 25262.5 | O7: 25312.5 | P7: 25337.5 | Q7: 25375
A8: Computer | C8: 96646.5 | D8: 96359.5 | E8: 96216.25 | G8: 96502.75 | H8: 96693.75 | I8: 96502.75 | K8: 96311.75 | L8: 96431.125 | M8: 96502.75 | O8: 96693.75 | P8: 96789.25 | Q8: 96932.5
A9: Printer | C9: 15180 | D9: 15135 | E9: 15112.5 | G9: 15157.5 | H9: 15187.5 | I9: 15157.5 | K9: 15127.5 | L9: 15146.25 | M9: 15157.5 | O9: 15187.5 | P9: 15202.5 | Q9: 15225
A10: Kabel | C10: 5060.5 | D10: 5045 | E10: 5037.5 | G10: 5052.5 | H10: 5062.5 | I10: 5052.5 | K10: 5042.5 | L10: 5048.75 | M10: 5052.5 | O10: 5062.5 | P10: 5067.5 | Q10: 5075
A11: Diskette | C11: 7590 | D11: 7567.5 | E11: 7556.25 | G11: 7578.75 | H11: 7593.75 | I11: 7578.75 | K11: 7563.75 | L11: 7573.125 | M11: 7578.75 | O11: 7593.75 | P11: 7601.25 | Q11: 7612.5
A12: Papier | C12: 45540 | D12: 45405 | E12: 45337.5 | G12: 45472.5 | H12: 45562.5 | I12: 45472.5 | K12: 45382.5 | L12: 45438.75 | M12: 45472.5 | O12: 45562.5 | P12: 45607.5 | Q12: 45675
A13: Cartridge | C13: 35420.5 | D13: 35315 | E13: 35262.5 | G13: 35367.5 | H13: 35437.5 | I13: 35367.5 | K13: 35297.5 | L13: 35341.25 | M13: 35367.5 | O13: 35437.5 | P13: 35472.5 | Q13: 35525
A14: CD | C14: 75900 | D14: 75675 | E14: 75562.5 | G14: 75787.5 | H14: 75937.5 | I14: 75787.5 | K14: 75637.5 | L14: 75731.25 | M14: 75787.5 | O14: 75937.5 | P14: 76012.5 | Q14: 76125
A15: Tape | C15: 15686 | D15: 15639.5 | E15: 15616.25 | G15: 15662.75 | H15: 15693.75 | I15: 15662.75 | K15: 15631.75 | L15: 15651.125 | M15: 15662.75 | O15: 15693.75 | P15: 15709.25 | Q15: 15732.5
A16: Fax | C16: 63756 | D16: 63567 | E16: 63472.5 | G16: 63661.5 | H16: 63787.5 | I16: 63661.5 | K16: 63535.5 | L16: 63614.25 | M16: 63661.5 | O16: 63787.5 | P16: 63850.5 | Q16: 63945
A17: Telefoon | C17: 68816.5 | D17: 68612 | E17: 68510 | G17: 68714 | H17: 68850 | I17: 68714 | K17: 68578 | L17: 68663 | M17: 68714 | O17: 68850 | P17: 68918 | Q17: 69020
A19: Totaal

Sheet Opmaak 1 opg
A1: HOLAN B.V.
A2: Omzet per artikel
A6: Artikel | B6: januari | C6: februari | D6: maart | E6: 1e kwartaal 2001 | F6: april | G6: mei | H6: juni | I6: 2e kwartaal 2001 | J6: juli | K6: augustus | L6: september | M6: 3e kwartaal 2001 | N6: october | O6: november | P6: december | Q6: 4e kwartaal 2001 | R6: Jaar Totaal
A7: Monitor | B7: 25300 | C7: 25225 | D7: 25187.5 | E7: =SUM(B7:D7) -> 75712.5 | F7: 25262.5 | G7: 25312.5 | H7: 25262.5 | I7: =SUM(F7:H7) -> 75837.5 | J7: 25212.5 | K7: 25243.75 | L7: 25262.5 | M7: =SUM(J7:L7) -> 75718.75 | N7: 25312.5 | O7: 25337.5 | P7: 25375 | Q7: =SUM(N7:P7) -> 76025 | R7: =SUM(I7,M7,E7,Q7) -> 303293.75
A8: Computer | B8: 96646.5 | C8: 96359.5 | D8: 96216.25 | E8: 289222.25 | F8: 96502.75 | G8: 96693.75 | H8: 96502.75 | I8: 289699.25 | J8: 96311.75 | K8: 96431.125 | L8: 96502.75 | M8: 289245.625 | N8: 96693.75 | O8: 96789.25 | P8: 96932.5 | Q8: 290415.5 | R8: =SUM(I8,M8,E8,Q8) -> 1158582.625
A9: Printer | B9: 15180 | C9: 15135 | D9: 15112.5 | E9: 45427.5 | F9: 15157.5 | G9: 15187.5 | H9: 15157.5 | I9: 45502.5 | J9: 15127.5 | K9: 15146.25 | L9: 15157.5 | M9: 45431.25 | N9: 15187.5 | O9: 15202.5 | P9: 15225 | Q9: 45615 | R9: 181976.25
A10: Kabel | B10: 5060.5 | C10: 5045 | D10: 5037.5 | E10: 15143 | F10: 5052.5 | G10: 5062.5 | H10: 5052.5 | I10: 15167.5 | J10: 5042.5 | K10: 5048.75 | L10: 5052.5 | M10: 15143.75 | N10: 5062.5 | O10: 5067.5 | P10: 5075 | Q10: 15205 | R10: 60659.25
A11: Diskette | B11: 7590 | C11: 7567.5 | D11: 7556.25 | E11: 22713.75 | F11: 7578.75 | G11: 7593.75 | H11: 7578.75 | I11: 22751.25 | J11: 7563.75 | K11: 7573.125 | L11: 7578.75 | M11: 22715.625 | N11: 7593.75 | O11: 7601.25 | P11: 7612.5 | Q11: 22807.5 | R11: 90988.125
A12: Papier | B12: 45540 | C12: 45405 | D12: 45337.5 | E12: 136282.5 | F12: 45472.5 | G12: 45562.5 | H12: 45472.5 | I12: 136507.5 | J12: 45382.5 | K12: 45438.75 | L12: 45472.5 | M12: 136293.75 | N12: 45562.5 | O12: 45607.5 | P12: 45675 | Q12: 136845 | R12: 545928.75
A13: Cartridge | B13: 35420.5 | C13: 35315 | D13: 35262.5 | E13: 105998 | F13: 35367.5 | G13: 35437.5 | H13: 35367.5 | I13: 106172.5 | J13: 35297.5 | K13: 35341.25 | L13: 35367.5 | M13: 106006.25 | N13: 35437.5 | O13: 35472.5 | P13: 35525 | Q13: 106435 | R13: 424611.75
A14: CD | B14: 75900 | C14: 75675 | D14: 75562.5 | E14: 227137.5 | F14: 75787.5 | G14: 75937.5 | H14: 75787.5 | I14: 227512.5 | J14: 75637.5 | K14: 75731.25 | L14: 75787.5 | M14: 227156.25 | N14: 75937.5 | O14: 76012.5 | P14: 76125 | Q14: 228075 | R14: 909881.25
A15: Tape | B15: 15686 | C15: 15639.5 | D15: 15616.25 | E15: 46941.75 | F15: 15662.75 | G15: 15693.75 | H15: 15662.75 | I15: 47019.25 | J15: 15631.75 | K15: 15651.125 | L15: 15662.75 | M15: 46945.625 | N15: 15693.75 | O15: 15709.25 | P15: 15732.5 | Q15: 47135.5 | R15: 188042.125
A16: Fax | B16: 63756 | C16: 63567 | D16: 63472.5 | E16: 190795.5 | F16: 63661.5 | G16: 63787.5 | H16: 63661.5 | I16: 191110.5 | J16: 63535.5 | K16: 63614.25 | L16: 63661.5 | M16: 190811.25 | N16: 63787.5 | O16: 63850.5 | P16: 63945 | Q16: 191583 | R16: 764300.25
A17: Telefoon | B17: 68816.5 | C17: 68612 | D17: 68510 | E17: 205938.5 | F17: 68714 | G17: 68850 | H17: 68714 | I17: 206278 | J17: 68578 | K17: 68663 | L17: 68714 | M17: 205955 | N17: 68850 | O17: 68918 | P17: 69020 | Q17: 206788 | R17: 824959.5
A19: Totaal | B19: =SUM(B7:B18) -> 454896 | C19: 453545.5 | D19: 452871.25 | E19: 1361312.75 | F19: 454219.75 | G19: 455118.75 | H19: 454219.75 | I19: 1363558.25 | J19: 453320.75 | K19: 453882.625 | L19: 454219.75 | M19: 1361423.125 | N19: 455118.75 | O19: 455568.25 | P19: 456242.5 | Q19: 1366929.5 | R19: 5453223.625

Sheet Opmaak 2
A1: HOLAN B.V.
A2: Omzet per artikel
B3: 1e kwartaal 2003 | E3: 2e kwartaal 2003 | H3: 3e kwartaal 2003 | K3: 4e kwartaal 2003
A4: Artikel | B4: januari | C4: februari | D4: maart | E4: april | F4: mei | G4: juni | H4: juli | I4: augustus | J4: september | K4: oktober | L4: november | M4: december | N4: Totaal:
A5: Monitor | B5: 25300 | C5: 25225 | D5: 25187.5 | E5: 25262.5 | F5: 25312.5 | G5: 25262.5 | H5: 25212.5 | I5: 25243.75 | J5: 25262.5 | K5: 25312.5 | L5: 25337.5 | M5: 25375 | N5: =SUM(B5:M5) -> 303293.75
A6: Computer | B6: 96646.5 | C6: 96359.5 | D6: 96216.25 | E6: 96502.75 | F6: 96693.75 | G6: 96502.75 | H6: 96311.75 | I6: 96431.125 | J6: 96502.75 | K6: 96693.75 | L6: 96789.25 | M6: 96932.5 | N6: 1158582.625
A7: Printer | B7: 15180 | C7: 15135 | D7: 15112.5 | E7: 15157.5 | F7: 15187.5 | G7: 15157.5 | H7: 15127.5 | I7: 15146.25 | J7: 15157.5 | K7: 15187.5 | L7: 15202.5 | M7: 15225 | N7: 181976.25
A8: Kabel | B8: 5060.5 | C8: 5045 | D8: 5037.5 | E8: 5052.5 | F8: 5062.5 | G8: 5052.5 | H8: 5042.5 | I8: 5048.75 | J8: 5052.5 | K8: 5062.5 | L8: 5067.5 | M8: 5075 | N8: 60659.25
A9: Diskette | B9: 7590 | C9: 7567.5 | D9: 7556.25 | E9: 7578.75 | F9: 7593.75 | G9: 7578.75 | H9: 7563.75 | I9: 7573.125 | J9: 7578.75 | K9: 7593.75 | L9: 7601.25 | M9: 7612.5 | N9: 90988.125
A10: Papier | B10: 45540 | C10: 45405 | D10: 45337.5 | E10: 45472.5 | F10: 45562.5 | G10: 45472.5 | H10: 45382.5 | I10: 45438.75 | J10: 45472.5 | K10: 45562.5 | L10: 45607.5 | M10: 45675 | N10: 545928.75
A11: Cartridge | B11: 35420.5 | C11: 35315 | D11: 35262.5 | E11: 35367.5 | F11: 35437.5 | G11: 35367.5 | H11: 35297.5 | I11: 35341.25 | J11: 35367.5 | K11: 35437.5 | L11: 35472.5 | M11: 35525 | N11: 424611.75
A12: CD | B12: 75900 | C12: 75675 | D12: 75562.5 | E12: 75787.5 | F12: 75937.5 | G12: 75787.5 | H12: 75637.5 | I12: 75731.25 | J12: 75787.5 | K12: 75937.5 | L12: 76012.5 | M12: 76125 | N12: 909881.25
A13: Tape | B13: 15686 | C13: 15639.5 | D13: 15616.25 | E13: 15662.75 | F13: 15693.75 | G13: 15662.75 | H13: 15631.75 | I13: 15651.125 | J13: 15662.75 | K13: 15693.75 | L13: 15709.25 | M13: 15732.5 | N13: 188042.125
A14: Fax | B14: 63756 | C14: 63567 | D14: 63472.5 | E14: 63661.5 | F14: 63787.5 | G14: 63661.5 | H14: 63535.5 | I14: 63614.25 | J14: 63661.5 | K14: 63787.5 | L14: 63850.5 | M14: 63945 | N14: 764300.25
A15: Telefoon | B15: 68816.5 | C15: 68612 | D15: 68510 | E15: 68714 | F15: 68850 | G15: 68714 | H15: 68578 | I15: 68663 | J15: 68714 | K15: 68850 | L15: 68918 | M15: 69020 | N15: 824959.5
A17: Totaal: | B17: =SUM(B5:B16) -> 454896 | C17: 453545.5 | D17: 452871.25 | E17: 454219.75 | F17: 455118.75 | G17: 454219.75 | H17: 453320.75 | I17: 453882.625 | J17: 454219.75 | K17: 455118.75 | L17: 455568.25 | M17: 456242.5 | N17: =SUM(B17:M17) -> 5453223.625

Sheet Opmaak 2 opg
A1: HOLAN B.V.
H2: Omzet per artikel
B3: 1e kwartaal 2003 | E3: 2e kwartaal 2003 | H3: 3e kwartaal 2003 | K3: 4e kwartaal 2003
A4: Artikel | B4: januari | C4: februari | D4: maart | E4: april | F4: mei | G4: juni | H4: juli | I4: augustus | J4: september | K4: oktober | L4: november | M4: december | N4: Totaal:
A5: Monitor | B5: 25300 | C5: 25225 | D5: 25187.5 | E5: 25262.5 | F5: 25312.5 | G5: 25262.5 | H5: 25212.5 | I5: 25243.75 | J5: 25262.5 | K5: 25312.5 | L5: 25337.5 | M5: 25375 | N5: 303293.75
A6: Computer | B6: 96646.5 | C6: 96359.5 | D6: 96216.25 | E6: 96502.75 | F6: 96693.75 | G6: 96502.75 | H6: 96311.75 | I6: 96431.125 | J6: 96502.75 | K6: 96693.75 | L6: 96789.25 | M6: 96932.5 | N6: 1158582.625
A7: Printer | B7: 15180 | C7: 15135 | D7: 15112.5 | E7: 15157.5 | F7: 15187.5 | G7: 15157.5 | H7: 15127.5 | I7: 15146.25 | J7: 15157.5 | K7: 15187.5 | L7: 15202.5 | M7: 15225 | N7: 181976.25
A8: Kabel | B8: 5060.5 | C8: 5045 | D8: 5037.5 | E8: 5052.5 | F8: 5062.5 | G8: 5052.5 | H8: 5042.5 | I8: 5048.75 | J8: 5052.5 | K8: 5062.5 | L8: 5067.5 | M8: 5075 | N8: 60659.25
A9: Diskette | B9: 7590 | C9: 7567.5 | D9: 7556.25 | E9: 7578.75 | F9: 7593.75 | G9: 7578.75 | H9: 7563.75 | I9: 7573.125 | J9: 7578.75 | K9: 7593.75 | L9: 7601.25 | M9: 7612.5 | N9: 90988.125
A10: Papier | B10: 45540 | C10: 45405 | D10: 45337.5 | E10: 45472.5 | F10: 45562.5 | G10: 45472.5 | H10: 45382.5 | I10: 45438.75 | J10: 45472.5 | K10: 45562.5 | L10: 45607.5 | M10: 45675 | N10: 545928.75
A11: Cartridge | B11: 35420.5 | C11: 35315 | D11: 35262.5 | E11: 35367.5 | F11: 35437.5 | G11: 35367.5 | H11: 35297.5 | I11: 35341.25 | J11: 35367.5 | K11: 35437.5 | L11: 35472.5 | M11: 35525 | N11: 424611.75
A12: CD | B12: 75900 | C12: 75675 | D12: 75562.5 | E12: 75787.5 | F12: 75937.5 | G12: 75787.5 | H12: 75637.5 | I12: 75731.25 | J12: 75787.5 | K12: 75937.5 | L12: 76012.5 | M12: 76125 | N12: 909881.25
A13: Tape | B13: 15686 | C13: 15639.5 | D13: 15616.25 | E13: 15662.75 | F13: 15693.75 | G13: 15662.75 | H13: 15631.75 | I13: 15651.125 | J13: 15662.75 | K13: 15693.75 | L13: 15709.25 | M13: 15732.5 | N13: 188042.125
A14: Fax | B14: 63756 | C14: 63567 | D14: 63472.5 | E14: 63661.5 | F14: 63787.5 | G14: 63661.5 | H14: 63535.5 | I14: 63614.25 | J14: 63661.5 | K14: 63787.5 | L14: 63850.5 | M14: 63945 | N14: 764300.25
A15: Telefoon | B15: 68816.5 | C15: 68612 | D15: 68510 | E15: 68714 | F15: 68850 | G15: 68714 | H15: 68578 | I15: 68663 | J15: 68714 | K15: 68850 | L15: 68918 | M15: 69020 | N15: 824959.5
A17: Totaal: | B17: 454896 | C17: 453545.5 | D17: 452871.25 | E17: 454219.75 | F17: 455118.75 | G17: 454219.75 | H17: 453320.75 | I17: 453882.625 | J17: 454219.75 | K17: 455118.75 | L17: 455568.25 | M17: 456242.5 | N17: 5453223.625

Sheet Voorwaardelijk
A1: naam | B1: voorletters | C1: regnr | D1: Nederl | E1: frans | F1: duits | G1: engels | H1: natuurk | I1: scheik | J1: wiskun | K1: biologie | L1: Gemiddelde
A2: Veldhuis | B2: K.H. | C2: 1238 | D2: 7.1 | E2: 6.7 | F2: 6.9 | G2: 2.522709517 | H2: 7.6 | I2: 5.7 | J2: 6.65 | K2: 3.656902416
A3: Hartman | B3: A. | C3: 635 | D3: 5.4 | E3: 5 | F3: 5.2 | G3: 7.17885309 | H3: 5.05 | I3: 7.1 | J3: 6.075 | K3: 5.55890544
A4: Ven | B4: M.R. van der | C4: 1075 | D4: 6.3 | E4: 5.9 | F4: 6.1 | G4: 2.983875879 | H4: 6.4 | I4: 6.3 | J4: 6.35 | K4: 2.523725233
A5: Rietveld | B5: J.J. | C5: 1229 | D5: 8.5 | E5: 8.1 | F5: 8.3 | G5: 8.001891855 | H5: 6.45 | I5: 6.9 | J5: 6.675 | K5: 10
A6: Linden | B6: A.C.M. van der | C6: 725 | D6: 6 | E6: 5.6 | F6: 5.8 | G6: 5.796409529 | H6: 6.1 | I6: 3.6 | J6: 4.85 | K6: 5.548120762
A7: Beuzenberg | B7: A. | C7: 892 | D7: 3.7 | E7: 3.3 | F7: 3.5 | G7: 8.25494731 | H7: 3.7 | I7: 6.3 | J7: 5 | K7: 1.265639294
A8: Bot | B8: J.K. | C8: 1519 | D8: 7.2 | E8: 6.8 | F8: 7 | G8: 8.899430783 | H8: 7.7 | I8: 6.8 | J8: 7.25 | K8: 5.59961531
A9: Boogaard | B9: J. | C9: 1483 | D9: 6.7 | E9: 6.3 | F9: 6.5 | G9: 9.4 | H9: 6.7 | I9: 5.7 | J9: 6.2 | K9: 6.734509568
A10: Vermeulen | B10: P. | C10: 1621 | D10: 5.4 | E10: 5 | F10: 5.2 | G10: 9.9 | H10: 6.55 | I10: 5.9 | J10: 6.225 | K10: 9.9
A11: Croese | B11: V. | C11: 928 | D11: 7.9 | E11: 7.5 | F11: 7.7 | G11: 9.2 | H11: 7.9 | I11: 4.7 | J11: 6.3 | K11: 9.002528463
A12: Spruijt | B12: W.H. | C12: 1224 | D12: 9.2 | E12: 8.8 | F12: 9 | G12: 5.61715235 | H12: 7.65 | I12: 6.3 | J12: 6.975 | K12: 9.495885901
A13: Schelde | B13: C. van der | C13: 476 | D13: 5.2 | E13: 4.8 | F13: 5 | G13: 5.479543847 | H13: 6.15 | I13: 7.4 | J13: 6.775 | K13: 1.354344561
A14: Souer | B14: H. | C14: 1235 | D14: 6.2 | E14: 5.8 | F14: 6 | G14: 2.693432992 | H14: 5.85 | I14: 6.2 | J14: 6.025 | K14: 6.469035546
A15: Verhaest | B15: F.M. | C15: 981 | D15: 5.7 | E15: 5.3 | F15: 5.5 | G15: 6.528291768 | H15: 7.3 | I15: 4.8 | J15: 6.05 | K15: 9.08042243
A16: Overbeeke | B16: F. van | C16: 1044 | D16: 4.8 | E16: 4.4 | F16: 4.6 | G16: 8.999739887 | H16: 5.4 | I16: 3.6 | J16: 4.5 | K16: 8.659786668
A17: Bloemendaal | B17: G.H. | C17: 366 | D17: 8.1 | E17: 7.7 | F17: 7.9 | G17: 6.628276222 | H17: 8.1 | I17: 5.1 | J17: 6.6 | K17: 9.0345366
A18: Hooijer | B18: C.C. | C18: 1522 | D18: 5.5 | E18: 5.1 | F18: 5.3 | G18: 9.438458897 | H18: 5.3 | I18: 7.1 | J18: 6.2 | K18: 7.456638368
A19: Hoogeband | B19: J.C.P. van den | C19: 633 | D19: 7.5 | E19: 7.1 | F19: 7.3 | G19: 8.7 | H19: 7.6 | I19: 8.5 | J19: 8.05 | K19: 7.721051972
A20: Kool | B20: F.A. | C20: 1249 | D20: 7 | E20: 6.6 | F20: 6.8 | G20: 9 | H20: 7.45 | I20: 4.9 | J20: 6.175 | K20: 1.720489435
A21: Klavers | B21: E. | C21: 1292 | D21: 6.9 | E21: 6.5 | F21: 6.7 | G21: 4.081621174 | H21: 7.8 | I21: 7.1 | J21: 7.45 | K21: 9.7
A22: Kooi | B22: J. | C22: 1230 | D22: 4.8 | E22: 4.4 | F22: 4.6 | G22: 7.807068178 | H22: 4.6 | I22: 5.4 | J22: 5 | K22: 3.619425074
A23: Essenius | B23: J.N. | C23: 869 | D23: 7.3 | E23: 6.9 | F23: 7.1 | G23: 8.6 | H23: 6.45 | I23: 5.9 | J23: 6.175 | K23: 5.67721123
A24: Flier | B24: J. van der | C24: 701 | D24: 6.4 | E24: 6 | F24: 6.2 | G24: 9.5 | H24: 7.65 | I24: 6.3 | J24: 6.975 | K24: 9.5
A25: Haasnoot | B25: O. | C25: 1503 | D25: 5.2 | E25: 4.8 | F25: 5 | G25: 5.499960133 | H25: 6.85 | I25: 6 | J25: 6.425 | K25: 7.821193768
A26: Graaf-van Dijk | B26: C.G. | C26: 1232 | D26: 5.8 | E26: 5.4 | F26: 5.6 | G26: 5.829949309 | H26: 5.35 | I26: 5 | J26: 5.175 | K26: 4.803660354
A27: Hurkmans | B27: P.H.T. | C27: 1076 | D27: 7.8 | E27: 7.4 | F27: 7.6 | G27: 9 | H27: 7.75 | I27: 7.1 | J27: 7.425 | K27: 9.119577839
A28: Visser | B28: W.C. | C28: 475 | D28: 9 | E28: 8.6 | F28: 8.8 | G28: 9 | H28: 8.05 | I28: 7 | J28: 7.525 | K28: 6.744741669
A29: Schick | B29: G.K.P. | C29: 429 | D29: 5 | E29: 4.6 | F29: 4.8 | G29: 6.728142933 | H29: 5.85 | I29: 5.7 | J29: 5.775 | K29: 2.87322762
A30: Zwanenburg | B30: Th. | C30: 737 | D30: 9 | E30: 8.6 | F30: 8.8 | G30: 7.89828044 | H30: 7.85 | I30: 6.8 | J30: 7.325 | K30: 4.336601054
A31: Borsboom | B31: A.N. | C31: 1507 | D31: 6.3 | E31: 5.9 | F31: 6.1 | G31: 4.399352576 | H31: 6 | I31: 4.7 | J31: 5.35 | K31: 9.253914359

Sheet Voorwaardelijk opg
A1: naam | B1: voorletters | C1: regnr | D1: Nederl | E1: frans | F1: duits | G1: engels | H1: natuurk | I1: scheik | J1: wiskun | K1: biologie | L1: Gemiddelde
A2: Veldhuis | B2: K.H. | C2: 1238 | D2: 7.1 | E2: 6.7 | F2: 6.9 | G2: 2.522709517 | H2: 7.6 | I2: 5.7 | J2: 6.65 | K2: 3.656902416 | L2: =AVERAGE(D2:K2) -> 5.853701492
A3: Hartman | B3: A. | C3: 635 | D3: 5.4 | E3: 5 | F3: 5.2 | G3: 7.17885309 | H3: 5.05 | I3: 7.1 | J3: 6.075 | K3: 5.55890544 | L3: =AVERAGE(D3:K3) -> 5.820344816
A4: Ven | B4: M.R. van der | C4: 1075 | D4: 6.3 | E4: 5.9 | F4: 6.1 | G4: 2.983875879 | H4: 6.4 | I4: 6.3 | J4: 6.35 | K4: 2.523725233 | L4: 5.357200139
A5: Rietveld | B5: J.J. | C5: 1229 | D5: 8.5 | E5: 8.1 | F5: 8.3 | G5: 8.001891855 | H5: 6.45 | I5: 6.9 | J5: 6.675 | K5: 10 | L5: 7.865861482
A6: Linden | B6: A.C.M. van der | C6: 725 | D6: 6 | E6: 5.6 | F6: 5.8 | G6: 5.796409529 | H6: 6.1 | I6: 3.6 | J6: 4.85 | K6: 5.548120762 | L6: 5.411816286
A7: Beuzenberg | B7: A. | C7: 892 | D7: 3.7 | E7: 3.3 | F7: 3.5 | G7: 8.25494731 | H7: 3.7 | I7: 6.3 | J7: 5 | K7: 1.265639294 | L7: 4.377573325
A8: Bot | B8: J.K. | C8: 1519 | D8: 7.2 | E8: 6.8 | F8: 7 | G8: 8.899430783 | H8: 7.7 | I8: 6.8 | J8: 7.25 | K8: 5.59961531 | L8: 7.156130762
A9: Boogaard | B9: J. | C9: 1483 | D9: 6.7 | E9: 6.3 | F9: 6.5 | G9: 9.4 | H9: 6.7 | I9: 5.7 | J9: 6.2 | K9: 6.734509568 | L9: 6.779313696
A10: Vermeulen | B10: P. | C10: 1621 | D10: 5.4 | E10: 5 | F10: 5.2 | G10: 9.9 | H10: 6.55 | I10: 5.9 | J10: 6.225 | K10: 9.9 | L10: 6.759375
A11: Croese | B11: V. | C11: 928 | D11: 7.9 | E11: 7.5 | F11: 7.7 | G11: 9.2 | H11: 7.9 | I11: 4.7 | J11: 6.3 | K11: 9.002528463 | L11: 7.525316058
A12: Spruijt | B12: W.H. | C12: 1224 | D12: 9.2 | E12: 8.8 | F12: 9 | G12: 5.61715235 | H12: 7.65 | I12: 6.3 | J12: 6.975 | K12: 9.495885901 | L12: 7.879754781
A13: Schelde | B13: C. van der | C13: 476 | D13: 5.2 | E13: 4.8 | F13: 5 | G13: 5.479543847 | H13: 6.15 | I13: 7.4 | J13: 6.775 | K13: 1.354344561 | L13: 5.269861051
A14: Souer | B14: H. | C14: 1235 | D14: 6.2 | E14: 5.8 | F14: 6 | G14: 2.693432992 | H14: 5.85 | I14: 6.2 | J14: 6.025 | K14: 6.469035546 | L14: 5.654683567
A15: Verhaest | B15: F.M. | C15: 981 | D15: 5.7 | E15: 5.3 | F15: 5.5 | G15: 6.528291768 | H15: 7.3 | I15: 4.8 | J15: 6.05 | K15: 9.08042243 | L15: 6.282339275
A16: Overbeeke | B16: F. van | C16: 1044 | D16: 4.8 | E16: 4.4 | F16: 4.6 | G16: 8.999739887 | H16: 5.4 | I16: 3.6 | J16: 4.5 | K16: 8.659786668 | L16: 5.619940819
A17: Bloemendaal | B17: G.H. | C17: 366 | D17: 8.1 | E17: 7.7 | F17: 7.9 | G17: 6.628276222 | H17: 8.1 | I17: 5.1 | J17: 6.6 | K17: 9.0345366 | L17: 7.395351603
A18: Hooijer | B18: C.C. | C18: 1522 | D18: 5.5 | E18: 5.1 | F18: 5.3 | G18: 9.438458897 | H18: 5.3 | I18: 7.1 | J18: 6.2 | K18: 7.456638368 | L18: 6.424387158
A19: Hoogeband | B19: J.C.P. van den | C19: 633 | D19: 7.5 | E19: 7.1 | F19: 7.3 | G19: 8.7 | H19: 7.6 | I19: 8.5 | J19: 8.05 | K19: 7.721051972 | L19: 7.808881496
A20: Kool | B20: F.A. | C20: 1249 | D20: 7 | E20: 6.6 | F20: 6.8 | G20: 9 | H20: 7.45 | I20: 4.9 | J20: 6.175 | K20: 1.720489435 | L20: 6.205686179
A21: Klavers | B21: E. | C21: 1292 | D21: 6.9 | E21: 6.5 | F21: 6.7 | G21: 4.081621174 | H21: 7.8 | I21: 7.1 | J21: 7.45 | K21: 9.7 | L21: 7.028952647
A22: Kooi | B22: J. | C22: 1230 | D22: 4.8 | E22: 4.4 | F22: 4.6 | G22: 7.807068178 | H22: 4.6 | I22: 5.4 | J22: 5 | K22: 3.619425074 | L22: 5.028311656
A23: Essenius | B23: J.N. | C23: 869 | D23: 7.3 | E23: 6.9 | F23: 7.1 | G23: 8.6 | H23: 6.45 | I23: 5.9 | J23: 6.175 | K23: 5.67721123 | L23: 6.762776404
A24: Flier | B24: J. van der | C24: 701 | D24: 6.4 | E24: 6 | F24: 6.2 | G24: 9.5 | H24: 7.65 | I24: 6.3 | J24: 6.975 | K24: 9.5 | L24: 7.315625
A25: Haasnoot | B25: O. | C25: 1503 | D25: 5.2 | E25: 4.8 | F25: 5 | G25: 5.499960133 | H25: 6.85 | I25: 6 | J25: 6.425 | K25: 7.821193768 | L25: 5.949519238
A26: Graaf-van Dijk | B26: C.G. | C26: 1232 | D26: 5.8 | E26: 5.4 | F26: 5.6 | G26: 5.829949309 | H26: 5.35 | I26: 5 | J26: 5.175 | K26: 4.803660354 | L26: 5.369826208
A27: Hurkmans | B27: P.H.T. | C27: 1076 | D27: 7.8 | E27: 7.4 | F27: 7.6 | G27: 9 | H27: 7.75 | I27: 7.1 | J27: 7.425 | K27: 9.119577839 | L27: 7.89932223
A28: Visser | B28: W.C. | C28: 475 | D28: 9 | E28: 8.6 | F28: 8.8 | G28: 9 | H28: 8.05 | I28: 7 | J28: 7.525 | K28: 6.744741669 | L28: 8.089967709
A29: Schick | B29: G.K.P. | C29: 429 | D29: 5 | E29: 4.6 | F29: 4.8 | G29: 6.728142933 | H29: 5.85 | I29: 5.7 | J29: 5.775 | K29: 2.87322762 | L29: 5.165796319
A30: Zwanenburg | B30: Th. | C30: 737 | D30: 9 | E30: 8.6 | F30: 8.8 | G30: 7.89828044 | H30: 7.85 | I30: 6.8 | J30: 7.325 | K30: 4.336601054 | L30: 7.576235187
A31: Borsboom | B31: A.N. | C31: 1507 | D31: 6.3 | E31: 5.9 | F31: 6.1 | G31: 4.399352576 | H31: 6 | I31: 4.7 | J31: 5.35 | K31: 9.253914359 | L31: 6.000408367

Sheet Voorwaardelijk 1
A1: Verkoopcijfers
B3: januari | C3: februari | D3: maart | E3: april | F3: mei | G3: juni | H3: juli | I3: augustus | J3: september | K3: oktober | L3: november | M3: december | N3: totaal | O3: gemiddeld
A4: 1996 | B4: 1112 | C4: 1212 | D4: 1211 | E4: 1205 | F4: 1234 | G4: 1245 | H4: 1258 | I4: 1265 | J4: 1223 | K4: 1103 | L4: 1085 | M4: 1103 | N4: =SUM(B4:M4) -> 14256 | O4: =AVERAGE(B4:M4) -> 1188
A5: 1997 | B5: 1134 | C5: 1245 | D5: 1245 | E5: 1225 | F5: 1257 | G5: 1264 | H5: 1282 | I5: 1283 | J5: 1253 | K5: 1201 | L5: 1154 | M5: 1125 | N5: 14668 | O5: 1222.333333
A6: 1998 | B6: 1245 | C6: 1275 | D6: 1273 | E6: 1302 | F6: 1353 | G6: 1357 | H6: 1385 | I6: 1383 | J6: 1390 | K6: 1389 | L6: 1392 | M6: 1400 | N6: 16144 | O6: 1345.333333
A7: 1999 | B7: 1412 | C7: 1425 | D7: 1423 | E7: 1433 | F7: 1412 | G7: 1476 | H7: 1490 | I7: 1523 | J7: 1404 | K7: 1465 | L7: 1474 | M7: 1482 | N7: 17419 | O7: 1451.583333
A8: 2000 | B8: 1485 | C8: 1512 | D8: 1510 | E8: 1498 | F8: 1512 | G8: 1567 | H8: 1568 | I8: 1573 | J8: 1554 | K8: 1535 | L8: 1512 | M8: 1515 | N8: 18341 | O8: 1528.416667
A9: 2001 | B9: 1523 | C9: 1545 | D9: 1534 | E9: 1552 | F9: 1545 | G9: 1602 | H9: 1608 | I9: 1623 | J9: 1598 | K9: 1589 | L9: 1592 | M9: 1578 | N9: 18889 | O9: 1574.083333

Sheet Voorwaardelijk 1 opg
A1: Verkoopcijfers
B3: januari | C3: februari | D3: maart | E3: april | F3: mei | G3: juni | H3: juli | I3: augustus | J3: september | K3: oktober | L3: november | M3: december | N3: totaal | O3: gemiddeld
A4: 1996 | B4: 1112 | C4: 1212 | D4: 1211 | E4: 1205 | F4: 1234 | G4: 1245 | H4: 1258 | I4: 1265 | J4: 1223 | K4: 1103 | L4: 1085 | M4: 1103 | N4: =SUM(B4:M4) -> 14256 | O4: =AVERAGE(B4:M4) -> 1188
A5: 1997 | B5: 1134 | C5: 1245 | D5: 1245 | E5: 1225 | F5: 1257 | G5: 1264 | H5: 1282 | I5: 1283 | J5: 1253 | K5: 1201 | L5: 1154 | M5: 1125 | N5: 14668 | O5: 1222.333333
A6: 1998 | B6: 1245 | C6: 1275 | D6: 1273 | E6: 1302 | F6: 1353 | G6: 1357 | H6: 1385 | I6: 1383 | J6: 1390 | K6: 1389 | L6: 1392 | M6: 1400 | N6: 16144 | O6: 1345.333333
A7: 1999 | B7: 1412 | C7: 1425 | D7: 1423 | E7: 1433 | F7: 1412 | G7: 1476 | H7: 1490 | I7: 1523 | J7: 1404 | K7: 1465 | L7: 1474 | M7: 1482 | N7: 17419 | O7: 1451.583333
A8: 2000 | B8: 1485 | C8: 1512 | D8: 1510 | E8: 1498 | F8: 1512 | G8: 1567 | H8: 1568 | I8: 1573 | J8: 1554 | K8: 1535 | L8: 1512 | M8: 1515 | N8: 18341 | O8: 1528.416667
A9: 2001 | B9: 1523 | C9: 1545 | D9: 1534 | E9: 1552 | F9: 1545 | G9: 1602 | H9: 1608 | I9: 1623 | J9: 1598 | K9: 1589 | L9: 1592 | M9: 1578 | N9: 18889 | O9: 1574.083333

Sheet Voorwaardelijk 2
A1: Begroting
A3: Afdeling | B3: Begroot | C3: Werkelijk | D3: % Begroot
A5: Binnendienst | B5: 95000 | C5: 98500
A6: Buitendienst | B6: 110000 | C6: 101250
A7: Directie | B7: 225000 | C7: 215000
A8: Inkoop | B8: 175000 | C8: 183500
A9: Interne Zaken | B9: 65000 | C9: 59000
A10: Verkoop | B10: 115000 | C10: 102500
K11: n
A12: Totalen

Sheet Voorw 2 OPG
A1: Begroting
A3: Afdeling | B3: Begroot | C3: Werkelijk | D3: % Begroot
A5: Binnendienst | B5: 95000 | C5: 98500 | D5: =C5/B5 -> 1.036842105
A6: Buitendienst | B6: 110000 | C6: 101250 | D6: 0.9204545455
A7: Directie | B7: 225000 | C7: 215000 | D7: 0.9555555556
A8: Inkoop | B8: 175000 | C8: 183500 | D8: 1.048571429
A9: Interne Zaken | B9: 65000 | C9: 59000 | D9: 0.9076923077
A10: Verkoop | B10: 115000 | C10: 102500 | D10: 0.8913043478
A12: Totalen | B12: =SUM(B5:B11) -> 785000 | C12: =SUM(C5:C11) -> 759750

Sheet Voorwaardelijk 3
A1: Groter dan 10 | E1: Boven gemiddelde | I1: Dubbele waarden | M1: Verschillende waarden
A2: =RANDBETWEEN(1,12) -> 2 | B2: 8 | C2: 7 | E2: =RANDBETWEEN(1,100) -> 51 | F2: 46 | G2: 22 | I2: =RANDBETWEEN(1,100) -> 23 | J2: 56 | K2: 60 | M2: 10
A3: 6 | B3: 6 | C3: 7 | E3: 36 | F3: 100 | G3: 62 | I3: 92 | J3: 82 | K3: 71 | M3: 15
A4: 3 | B4: 5 | C4: 12 | E4: 12 | F4: 86 | G4: 34 | I4: 16 | J4: 26 | K4: 78 | M4: 20
A5: 8 | B5: 2 | C5: 12 | E5: 41 | F5: 46 | G5: 39 | I5: 73 | J5: 83 | K5: 49 | M5: 25
A6: 6 | B6: 7 | C6: 7 | E6: 99 | F6: 44 | G6: 72 | I6: 77 | J6: 11 | K6: 76 | M6: 30
A7: 10 | B7: 10 | C7: 12 | E7: 30 | F7: 17 | G7: 85 | I7: 39 | J7: 62 | K7: 12 | M7: 35
A8: 7 | B8: 4 | C8: 11 | E8: 99 | F8: 68 | G8: 29 | I8: 23 | J8: 91 | K8: 43 | M8: 40
A9: 6 | B9: 7 | C9: 9 | E9: 52 | F9: 23 | G9: 58 | I9: 6 | J9: 82 | K9: 49 | M9: 45
A10: 8 | B10: 8 | C10: 2 | E10: 4 | F10: 3 | G10: 76 | I10: 4 | J10: 95 | K10: 33 | M10: 50
A11: 10 | B11: 10 | C11: 10 | E11: 28 | F11: 98 | G11: 9 | I11: 49 | J11: 46 | K11: 78 | M11: 55
M12: 60
A13: Woord bevat X | E13: Data Bars | I13: Kleurenschaal | M13: 65
A14: apple | B14: kite | C14: urn | E14: =RANDBETWEEN(1,10) -> 4 | F14: 8 | G14: 9 | I14: 1 | J14: =I23+1 -> 11 | K14: =J23+1 -> 21 | M14: 70
A15: baby | B15: light | C15: violin | E15: 5 | F15: 8 | G15: 10 | I15: =I14+1 -> 2 | J15: =J14+1 -> 12 | K15: 22 | M15: 75
A16: cry | B16: max | C16: wax | E16: 3 | F16: 8 | G16: 6 | I16: =I15+1 -> 3 | J16: 13 | K16: 23 | M16: 80
A17: dog | B17: night | C17: X-ray | E17: 4 | F17: 4 | G17: 9 | I17: 4 | J17: 14 | K17: 24 | M17: 85
A18: elf | B18: oxen | C18: young | E18: 5 | F18: 6 | G18: 4 | I18: 5 | J18: 15 | K18: 25 | M18: 90
A19: fox | B19: purple | C19: zebra | E19: 3 | F19: 10 | G19: 2 | I19: 6 | J19: 16 | K19: 26 | M19: 95
A20: garage | B20: quaint | C20: angle | E20: 3 | F20: 8 | G20: 8 | I20: 7 | J20: 17 | K20: 27 | M20: 100
A21: hex | B21: right | C21: boy | E21: 2 | F21: 9 | G21: 3 | I21: 8 | J21: 18 | K21: 28 | M21: 105
A22: icon | B22: sled | C22: chump | E22: 10 | F22: 5 | G22: 7 | I22: 9 | J22: 19 | K22: 29 | M22: 110
A23: jewel | B23: turtle | C23: dusty | E23: 2 | F23: 1 | G23: 1 | I23: 10 | J23: 20 | K23: 30 | M23: 115
A25: Icon Set | E25: Icon Set
A26: =RANDBETWEEN(1,100) -> 35 | B26: 53 | C26: 81 | E26: =RANDBETWEEN(1,3) -> 3 | F26: 3 | G26: 2
A27: 36 | B27: 19 | C27: 95 | E27: 1 | F27: 3 | G27: 2
A28: 49 | B28: 60 | C28: 15 | E28: 2 | F28: 3 | G28: 3
A29: 84 | B29: 81 | C29: 36 | E29: 2 | F29: 2 | G29: 1
A30: 77 | B30: 52 | C30: 46 | E30: 2 | F30: 2 | G30: 2
A31: 70 | B31: 85 | C31: 43 | E31: 1 | F31: 2 | G31: 1
A32: 50 | B32: 94 | C32: 52 | E32: 3 | F32: 1 | G32: 2
A33: 19 | B33: 12 | C33: 64 | E33: 2 | F33: 2 | G33: 2
A34: 42 | B34: 34 | C34: 63 | E34: 2 | F34: 3 | G34: 3
A35: 11 | B35: 31 | C35: 7 | E35: 1 | F35: 1 | G35: 1
A36: 37 | B36: 75 | C36: 83 | E36: 1 | F36: 1 | G36: 2

Sheet Voorwaardelijk opg 3
A1: Groter dan 10 | E1: Boven gemiddelde | I1: Dubbele waarden | M1: Verschillende waarden
A2: =RANDBETWEEN(1,12) -> 2 | B2: 12 | C2: 4 | E2: =RANDBETWEEN(1,100) -> 98 | F2: 100 | G2: 8 | I2: =RANDBETWEEN(1,100) -> 56 | J2: 79 | K2: 16 | M2: 10
A3: 7 | B3: 11 | C3: 4 | E3: 42 | F3: 66 | G3: 27 | I3: 64 | J3: 71 | K3: 3 | M3: 15
A4: 4 | B4: 10 | C4: 12 | E4: 89 | F4: 96 | G4: 14 | I4: 88 | J4: 14 | K4: 13 | M4: 20
A5: 9 | B5: 12 | C5: 2 | E5: 36 | F5: 62 | G5: 60 | I5: 69 | J5: 91 | K5: 95 | M5: 25
A6: 9 | B6: 12 | C6: 5 | E6: 92 | F6: 100 | G6: 96 | I6: 67 | J6: 82 | K6: 36 | M6: 30
A7: 4 | B7: 9 | C7: 6 | E7: 51 | F7: 25 | G7: 82 | I7: 61 | J7: 64 | K7: 42 | M7: 35
A8: 12 | B8: 3 | C8: 8 | E8: 73 | F8: 23 | G8: 85 | I8: 8 | J8: 50 | K8: 90 | M8: 40
A9: 4 | B9: 4 | C9: 9 | E9: 19 | F9: 14 | G9: 27 | I9: 13 | J9: 30 | K9: 40 | M9: 45
A10: 9 | B10: 12 | C10: 7 | E10: 39 | F10: 17 | G10: 54 | I10: 52 | J10: 48 | K10: 19 | M10: 50
A11: 3 | B11: 1 | C11: 6 | E11: 33 | F11: 79 | G11: 9 | I11: 52 | J11: 59 | K11: 36 | M11: 55
M12: 60
A13: Woord bevat X | E13: Data Bars | I13: Kleurenschaal | M13: 65
A14: apple | B14: kite | C14: urn | E14: =RANDBETWEEN(1,10) -> 9 | F14: 9 | G14: 9 | I14: 1 | J14: =I23+1 -> 11 | K14: =J23+1 -> 21 | M14: 70
A15: baby | B15: light | C15: violin | E15: 6 | F15: 5 | G15: 6 | I15: =I14+1 -> 2 | J15: =J14+1 -> 12 | K15: 22 | M15: 75
A16: cry | B16: max | C16: wax | E16: 3 | F16: 5 | G16: 3 | I16: =I15+1 -> 3 | J16: 13 | K16: 23 | M16: 80
A17: dog | B17: night | C17: X-ray | E17: 5 | F17: 3 | G17: 7 | I17: 4 | J17: 14 | K17: 24 | M17: 85
A18: elf | B18: oxen | C18: young | E18: 10 | F18: 10 | G18: 7 | I18: 5 | J18: 15 | K18: 25 | M18: 90
A19: fox | B19: purple | C19: zebra | E19: 2 | F19: 6 | G19: 2 | I19: 6 | J19: 16 | K19: 26 | M19: 95
A20: garage | B20: quaint | C20: angle | E20: 3 | F20: 1 | G20: 9 | I20: 7 | J20: 17 | K20: 27 | M20: 100
A21: hex | B21: right | C21: boy | E21: 6 | F21: 6 | G21: 7 | I21: 8 | J21: 18 | K21: 28 | M21: 105
A22: icon | B22: sled | C22: chump | E22: 9 | F22: 4 | G22: 5 | I22: 9 | J22: 19 | K22: 29 | M22: 110
A23: jewel | B23: turtle | C23: dusty | E23: 10 | F23: 4 | G23: 3 | I23: 10 | J23: 20 | K23: 30 | M23: 115
A25: Icon of pictogram Set | E25: Icon of pictogram Set
A26: =RANDBETWEEN(1,100) -> 37 | B26: 66 | C26: 13 | E26: =RANDBETWEEN(1,3) -> 1 | F26: 2 | G26: 2
A27: 13 | B27: 25 | C27: 34 | E27: 3 | F27: 2 | G27: 1
A28: 30 | B28: 7 | C28: 84 | E28: 1 | F28: 3 | G28: 2
A29: 66 | B29: 99 | C29: 57 | E29: 1 | F29: 3 | G29: 2
A30: 60 | B30: 76 | C30: 66 | E30: 3 | F30: 1 | G30: 2
A31: 29 | B31: 96 | C31: 91 | E31: 2 | F31: 2 | G31: 3
A32: 88 | B32: 41 | C32: 35 | E32: 2 | F32: 1 | G32: 1
A33: 58 | B33: 31 | C33: 2 | E33: 2 | F33: 2 | G33: 2
A34: 39 | B34: 13 | C34: 75 | E34: 2 | F34: 1 | G34: 2
A35: 33 | B35: 97 | C35: 52 | E35: 2 | F35: 3 | G35: 2
A36: 9 | B36: 38 | C36: 58 | E36: 1 | F36: 2 | G36: 1

Sheet Voorwaardelijk 4
A1: =TODAY() -> 2017-03-16 | B1: =A1 -> 2017-03-16
A2: =A1+1 -> 2017-03-17 | B2: 2017-03-17
A3: 2017-03-18 | B3: 2017-03-18
A4: 2017-03-19 | B4: 2017-03-19
A5: 2017-03-20 | B5: 2017-03-20
A6: 2017-03-21 | B6: 2017-03-21
A7: 2017-03-22 | B7: 2017-03-22
A8: 2017-03-23 | B8: 2017-03-23
A9: 2017-03-24 | B9: 2017-03-24
A10: 2017-03-25 | B10: 2017-03-25
A11: 2017-03-26 | B11: 2017-03-26
A12: 2017-03-27 | B12: 2017-03-27
A13: 2017-03-28 | B13: 2017-03-28
A14: 2017-03-29 | B14: 2017-03-29
A15: 2017-03-30 | B15: 2017-03-30
A16: 2017-03-31 | B16: 2017-03-31
A17: 2017-04-01 | B17: 2017-04-01
A18: 2017-04-02 | B18: 2017-04-02
A19: 2017-04-03 | B19: 2017-04-03
A20: 2017-04-04 | B20: 2017-04-04
A21: =TODAY() -> 2017-03-16 | B21: 2017-03-16
A22: =A21+1 -> 2017-03-17 | B22: 2017-03-17
A23: 2017-03-18 | B23: 2017-03-18
A24: 2017-03-19 | B24: 2017-03-19
A25: 2017-03-20 | B25: 2017-03-20
A26: 2017-03-21 | B26: 2017-03-21
A27: 2017-03-22 | B27: 2017-03-22
A28: 2017-03-23 | B28: 2017-03-23
A29: 2017-03-24 | B29: 2017-03-24
A30: 2017-03-25 | B30: 2017-03-25
A31: 2017-03-26 | B31: 2017-03-26
A32: 2017-03-27 | B32: 2017-03-27
A33: 2017-03-28 | B33: 2017-03-28
A34: 2017-03-29 | B34: 2017-03-29
A35: 2017-03-30 | B35: 2017-03-30
A36: 2017-03-31 | B36: 2017-03-31
A37: 2017-04-01 | B37: 2017-04-01
A38: 2017-04-02 | B38: 2017-04-02

Sheet Voorwaardelijk 4 opg
A1: =TODAY() -> 2017-03-16 | B1: =A1 -> 2017-03-16
A2: =A1+1 -> 2017-03-17 | B2: 2017-03-17
A3: 2017-03-18 | B3: 2017-03-18
A4: 2017-03-19 | B4: 2017-03-19
A5: 2017-03-20 | B5: 2017-03-20
A6: 2017-03-21 | B6: 2017-03-21
A7: 2017-03-22 | B7: 2017-03-22
A8: 2017-03-23 | B8: 2017-03-23
A9: 2017-03-24 | B9: 2017-03-24
A10: 2017-03-25 | B10: 2017-03-25
A11: 2017-03-26 | B11: 2017-03-26
A12: 2017-03-27 | B12: 2017-03-27
A13: 2017-03-28 | B13: 2017-03-28
A14: 2017-03-29 | B14: 2017-03-29
A15: 2017-03-30 | B15: 2017-03-30
A16: 2017-03-31 | B16: 2017-03-31
A17: 2017-04-01 | B17: 2017-04-01
A18: 2017-04-02 | B18: 2017-04-02
A19: 2017-04-03 | B19: 2017-04-03
A20: 2017-04-04 | B20: 2017-04-04
A21: =TODAY() -> 2017-03-16 | B21: 2017-03-16
A22: =A21+1 -> 2017-03-17 | B22: 2017-03-17
A23: 2017-03-18 | B23: 2017-03-18
A24: 2017-03-19 | B24: 2017-03-19
A25: 2017-03-20 | B25: 2017-03-20
A26: 2017-03-21 | B26: 2017-03-21
A27: 2017-03-22 | B27: 2017-03-22
A28: 2017-03-23 | B28: 2017-03-23
A29: 2017-03-24 | B29: 2017-03-24
A30: 2017-03-25 | B30: 2017-03-25
A31: 2017-03-26 | B31: 2017-03-26
A32: 2017-03-27 | B32: 2017-03-27
A33: 2017-03-28 | B33: 2017-03-28
A34: 2017-03-29 | B34: 2017-03-29
A35: 2017-03-30 | B35: 2017-03-30
A36: 2017-03-31 | B36: 2017-03-31
A37: 2017-04-01 | B37: 2017-04-01
A38: 2017-04-02 | B38: 2017-04-02

Sheet Voorwaardelijk 5
A1: Toont alleen waarden groter dan >=80
B3: =RANDBETWEEN(1,100) -> 84 | C3: 21 | D3: 67 | E3: 78
B4: 13 | C4: 86 | D4: 35 | E4: 46
B5: 99 | C5: 74 | D5: 66 | E5: 56
B6: 6 | C6: 89 | D6: 46 | E6: 52
B7: 56 | C7: 96 | D7: 42 | E7: 5
B8: 46 | C8: 11 | D8: 11 | E8: 27
B9: 21 | C9: 62 | D9: 26 | E9: 96
B10: 58 | C10: 85 | D10: 84 | E10: 39
B11: 58 | C11: 13 | D11: 13 | E11: 3
B12: 50 | C12: 54 | D12: 13 | E12: 24
B13: 7 | C13: 54 | D13: 3 | E13: 12
B14: 1 | C14: 95 | D14: 52 | E14: 4
B15: 93 | C15: 36 | D15: 74 | E15: 42

Sheet Voorwaardelijk 5 opg
A1: Toont alleen waarden groter dan >=80
B3: =RANDBETWEEN(1,100) -> 86 | C3: 74 | D3: 24 | E3: 41
B4: 56 | C4: 79 | D4: 13 | E4: 26
B5: 94 | C5: 77 | D5: =RANDBETWEEN(1,100) -> 33 | E5: 5
B6: 2 | C6: 13 | D6: 99 | E6: 28
B7: 87 | C7: 1 | D7: 7 | E7: 41
B8: 43 | C8: 73 | D8: 66 | E8: 85
B9: 90 | C9: 83 | D9: 51 | E9: 24
B10: 48 | C10: 35 | D10: 56 | E10: 50
B11: 47 | C11: 28 | D11: 56 | E11: 68
B12: 91 | C12: 48 | D12: 56 | E12: 67
B13: 91 | C13: 49 | D13: 35 | E13: 7
B14: 83 | C14: 95 | D14: 42 | E14: 79
B15: 36 | C15: 36 | D15: 86 | E15: 76

Sheet Voowaardelijk 6
A1: Persnr | B1: Achternaam | C1: Voorletters | D1: Tussenvoegsel | E1: Adres | F1: Postcode | G1: Woonplaats | H1: Geslacht | I1: Geboortedatum | J1: Leeftijd | K1: Leeftijd 1
A2: 1 | B2: Aar | C2: J.P. | D2: ter | E2: Hildegondestraat 25 | F2: 1672 PR | G2: Laren (NH) | H2: M | I2: 1964-02-21
A3: 2 | B3: Aar-van Meersbergen | C3: G.H. | D3: ter | E3: Hildegondestraat 25 | F3: 1672 PR | G3: Laren (NH) | H3: V | I3: 1967-06-12
A4: 3 | B4: Berg | C4: H.L. | D4: van den | E4: Kloppeven 17 | F4: 6085 TH | G4: Horn | H4: V | I4: 1945-01-31
A5: 4 | B5: Berg-van Dam | C5: J.L. | D5: van den | E5: Kloppeven 17 | F5: 6085 TH | G5: Horn | H5: M | I5: 1961-09-13
A6: 5 | B6: Boer | C6: H.U.R. | D6: den | E6: Huismanstraat 36 | F6: 7684 JL | G6: Biddinghuizen | H6: M | I6: 1956-04-22
A7: 6 | B7: Boer-Janssen | C7: J.K. | D7: den | E7: Huismanstraat 36 | F7: 7684 JL | G7: Biddinghuizen | H7: V | I7: 1965-12-18
A8: 7 | B8: Bouma | C8: R.G.S. | E8: Schelkensven 16 | F8: 6085 DG | G8: Horn | H8: M | I8: 1956-04-12
A9: 8 | B9: Bouma | C9: I.V. | E9: Schelkensven 16 | F9: 6085 DG | G9: Horn | H9: V | I9: 1962-07-23
A10: 9 | B10: Céres | C10: S.K. | E10: Bergsestraatweg 23 | F10: 6743 GR | G10: Rotterdam | H10: M | I10: 1950-05-14
A11: 10 | B11: Donkervoort | C11: F.S. | D11: van | E11: Onder den Bogen 36 | F11: 3021 LP | G11: Utrecht | H11: M | I11: 1970-03-08
A12: 11 | B12: Fluitsma | C12: F. | E12: Reguliersdwarsstraat 12 | F12: 7265 OK | G12: Groningen | H12: M | I12: 1956-04-12
A13: 12 | B13: Graus | C13: J.A.M. | E13: Frederikspad 57 | F13: 4560 PO | G13: Heerlen | H13: V | I13: 1973-05-06
A14: 13 | B14: Hoogstraten | C14: H.I.P. | D14: van den | E14: Kerkstraat 21 | F14: 3478 FG | G14: Nijkerk | H14: M | I14: 1977-02-15
A15: 14 | B15: Hoogstraten | C15: H. | D15: van den | E15: Grotestraat 23 | F15: 5234 UI | G15: Zaandam | H15: V | I15: 1976-01-01
A16: 15 | B16: Hoogstraten-de Boer | C16: H.I.P. | D16: van den | E16: Kerkstraat 21 | F16: 3478 FG | G16: Nijkerk | H16: V | I16: 1964-08-09
A17: 16 | B17: Huisman | C17: H. | E17: Grotestraat 23 | F17: 5234 UI | G17: Zaandam | H17: V | I17: 1964-08-19
A18: 17 | B18: Huismans | C18: H.J. | E18: Grotestraat 23 | F18: 5234 UI | G18: Zaandam | H18: V | I18: 1972-12-31
A19: 18 | B19: Janssen | C19: J. | E19: Korte Gracht 25 | F19: 4532 HJ | G19: Utrecht | H19: M | I19: 1964-02-21
A20: 19 | B20: Janssen | C20: J. | E20: Korte Gracht 25 | F20: 4532 HJ | G20: Utrecht | H20: M | I20: 1967-06-12
A21: 20 | B21: Jansson | C21: J. | D21: van | E21: Korte Gracht 25 | F21: 4532 HJ | G21: Utrecht | H21: M | I21: 1945-01-31
A22: 21 | B22: Kappersma | C22: P.S. | E22: Lange poten 12 | F22: 8762 ER | G22: Den Haag | H22: V | I22: 1961-09-13
A23: 22 | B23: Karelsen | C23: K. | E23: Lange Voorhout 56 | F23: 8761 HJ | G23: Den Haag | H23: V | I23: 1965-12-18
A24: 23 | B24: Kluivert | C24: P. | E24: Lange Voorhout 56 | F24: 8761 HJ | G24: Den Haag | H24: M | I24: 1956-04-22
A25: 24 | B25: Lee | C25: J.P. | D25: ter | E25: Holkerweg 48 | F25: 3862 FG | G25: Hoogland | H25: M | I25: 1956-04-11
A26: 25 | B26: Leenders | C26: J.P. | E26: Holkerweg 22 | F26: 3862 FG | G26: Hoogland | H26: M | I26: 1950-05-14
A27: 26 | B27: Lee-van Aartsen | C27: C.F. | D27: ter | E27: Holkerweg 48 | F27: 3862 FG | G27: Hoogland | H27: M | I27: 1962-07-23
A28: 27 | B28: Mandemaker | C28: H.D. | D28: de | E28: Kerkpad 55 | F28: 1261 DF | G28: Blaricum | H28: M | I28: 1970-03-08
A29: 28 | B29: Nietzce | C29: W.A. | E29: Mantsoerstraat 23 | F29: 8932 HO | G29: Wieringerwerf | H29: M | I29: 1955-04-12
A30: 29 | B30: Pieterse | C30: P. | E30: Vrijthof 15 | F30: 8722 JK | G30: Maastricht | H30: M | I30: 1973-05-06
A31: 30 | B31: Pietersen | C31: P. | E31: Vrijthof 15 | F31: 8722 JK | G31: Maastricht | H31: M | I31: 1977-02-15
A32: 31 | B32: Roodhooft | C32: T.P. | E32: Witstraat 25 | F32: 1251 HJ | G32: Kortenhoef | H32: M | I32: 1987-09-21
A33: 32 | B33: Roodt | C33: T.P. | D33: op ‘t | E33: Weergraaf 94 | F33: 1251 HJ | G33: Kortenhoef | H33: M | I33: 1965-06-19
A34: 33 | B34: Roodt | C34: T.P. | D34: op ‘t | E34: Aldegondehof 45 | F34: 7256 KO | G34: Groningen | H34: V | I34: 1976-01-01
A35: 34 | B35: Simons | C35: S. | E35: Appelhof 24 | F35: 7256 KO | G35: Groningen | H35: V | I35: 1972-05-31
A36: 35 | B36: Simonsma | C36: S. | E36: Aldegondehof 45 | F36: 7256 KO | G36: Groningen | H36: M | I36: 1967-12-14
A37: 36 | B37: Simonsma-de Beer | C37: J.A. | E37: Aldegondehof 45 | F37: 7256 KO | G37: Groningen | H37: V | I37: 1965-02-14
A38: 37 | B38: Wagemaker | C38: T.D. | D38: van | E38: Fruitstraat 34 | F38: 2045 HJ | G38: Amsterdam | H38: M | I38: 1950-07-16
A39: 38 | B39: Wagemaker-Vos | C39: G.S. | D39: van | E39: Fliersteeg 15 | F39: 2045 HJ | G39: Laren (NH) | H39: V | I39: 1949-07-21
A40: 39 | B40: Wagenaar | C40: G.S. | E40: Fruitstraat 34 | F40: 2045 HJ | G40: Amsterdam | H40: V | I40: 1948-04-01
A41: 40 | B41: Zuiderwijck | C41: T.R. | D41: van | E41: Dorpstraat 1 | F41: 1251 WS | G41: Laren (NH) | H41: V | I41: 1973-05-24

Sheet Voorwaardelijk 6 opg
A1: Persnr | B1: Achternaam | C1: Voorletters | D1: Tussenvoegsel | E1: Adres | F1: Postcode | G1: Woonplaats | H1: Geslacht | I1: Geboortedatum | J1: Leeftijd | K1: Leeftijd 1
A2: 1 | B2: Aar | C2: J.P. | D2: ter | E2: Hildegondestraat 25 | F2: 1672 PR | G2: Laren (NH) | H2: M | I2: 1964-02-21 | J2: =DATEDIF($I2,TODAY(),"y") -> 53 | K2: =DATEDIF($I2,TODAY(),"y") -> 53
A3: 2 | B3: Aar-van Meersbergen | C3: G.H. | D3: ter | E3: Hildegondestraat 25 | F3: 1672 PR | G3: Laren (NH) | H3: V | I3: 1967-06-12 | J3: =DATEDIF($I3,TODAY(),"y") -> 49 | K3: 49
A4: 3 | B4: Berg | C4: H.L. | D4: van den | E4: Kloppeven 17 | F4: 6085 TH | G4: Horn | H4: V | I4: 1945-01-31 | J4: 72 | K4: 72
A5: 4 | B5: Berg-van Dam | C5: J.L. | D5: van den | E5: Kloppeven 17 | F5: 6085 TH | G5: Horn | H5: M | I5: 1961-09-13 | J5: 55 | K5: 55
A6: 5 | B6: Boer | C6: H.U.R. | D6: den | E6: Huismanstraat 36 | F6: 7684 JL | G6: Biddinghuizen | H6: M | I6: 1956-04-22 | J6: 60 | K6: 60
A7: 6 | B7: Boer-Janssen | C7: J.K. | D7: den | E7: Huismanstraat 36 | F7: 7684 JL | G7: Biddinghuizen | H7: V | I7: 1965-12-18 | J7: 51 | K7: 51
A8: 7 | B8: Bouma | C8: R.G.S. | E8: Schelkensven 16 | F8: 6085 DG | G8: Horn | H8: M | I8: 1956-04-12 | J8: 60 | K8: 60
A9: 8 | B9: Bouma | C9: I.V. | E9: Schelkensven 16 | F9: 6085 DG | G9: Horn | H9: V | I9: 1962-07-23 | J9: 54 | K9: 54
A10: 9 | B10: Céres | C10: S.K. | E10: Bergsestraatweg 23 | F10: 6743 GR | G10: Rotterdam | H10: M | I10: 1950-05-14 | J10: 66 | K10: 66
A11: 10 | B11: Donkervoort | C11: F.S. | D11: van | E11: Onder den Bogen 36 | F11: 3021 LP | G11: Utrecht | H11: M | I11: 1970-03-08 | J11: 47 | K11: 47
A12: 11 | B12: Fluitsma | C12: F. | E12: Reguliersdwarsstraat 12 | F12: 7265 OK | G12: Groningen | H12: M | I12: 1956-04-12 | J12: 60 | K12: 60
A13: 12 | B13: Graus | C13: J.A.M. | E13: Frederikspad 57 | F13: 4560 PO | G13: Heerlen | H13: V | I13: 1973-05-06 | J13: 43 | K13: 43
A14: 13 | B14: Hoogstraten | C14: H.I.P. | D14: van den | E14: Kerkstraat 21 | F14: 3478 FG | G14: Nijkerk | H14: M | I14: 1977-02-15 | J14: 40 | K14: 40
A15: 14 | B15: Hoogstraten | C15: H. | D15: van den | E15: Grotestraat 23 | F15: 5234 UI | G15: Zaandam | H15: V | I15: 1976-01-01 | J15: 41 | K15: 41
A16: 15 | B16: Hoogstraten-de Boer | C16: H.I.P. | D16: van den | E16: Kerkstraat 21 | F16: 3478 FG | G16: Nijkerk | H16: V | I16: 1964-08-09 | J16: 52 | K16: 52
A17: 16 | B17: Huisman | C17: H. | E17: Grotestraat 23 | F17: 5234 UI | G17: Zaandam | H17: V | I17: 1964-08-19 | J17: 52 | K17: 52
A18: 17 | B18: Huismans | C18: H.J. | E18: Grotestraat 23 | F18: 5234 UI | G18: Zaandam | H18: V | I18: 1972-12-31 | J18: 44 | K18: 44
A19: 18 | B19: Janssen | C19: J. | E19: Korte Gracht 25 | F19: 4532 HJ | G19: Utrecht | H19: M | I19: 1964-02-21 | J19: 53 | K19: 53
A20: 19 | B20: Janssen | C20: J. | E20: Korte Gracht 25 | F20: 4532 HJ | G20: Utrecht | H20: M | I20: 1967-06-12 | J20: 49 | K20: 49
A21: 20 | B21: Jansson | C21: J. | D21: van | E21: Korte Gracht 25 | F21: 4532 HJ | G21: Utrecht | H21: M | I21: 1945-01-31 | J21: 72 | K21: 72
A22: 21 | B22: Kappersma | C22: P.S. | E22: Lange poten 12 | F22: 8762 ER | G22: Den Haag | H22: V | I22: 1961-09-13 | J22: 55 | K22: 55
A23: 22 | B23: Karelsen | C23: K. | E23: Lange Voorhout 56 | F23: 8761 HJ | G23: Den Haag | H23: V | I23: 1965-12-18 | J23: 51 | K23: 51
A24: 23 | B24: Kluivert | C24: P. | E24: Lange Voorhout 56 | F24: 8761 HJ | G24: Den Haag | H24: M | I24: 1956-04-22 | J24: 60 | K24: 60
A25: 24 | B25: Lee | C25: J.P. | D25: ter | E25: Holkerweg 48 | F25: 3862 FG | G25: Hoogland | H25: M | I25: 1956-04-11 | J25: 60 | K25: 60
A26: 25 | B26: Leenders | C26: J.P. | E26: Holkerweg 22 | F26: 3862 FG | G26: Hoogland | H26: M | I26: 1950-05-14 | J26: 66 | K26: 66
A27: 26 | B27: Lee-van Aartsen | C27: C.F. | D27: ter | E27: Holkerweg 48 | F27: 3862 FG | G27: Hoogland | H27: M | I27: 1962-07-23 | J27: 54 | K27: 54
A28: 27 | B28: Mandemaker | C28: H.D. | D28: de | E28: Kerkpad 55 | F28: 1261 DF | G28: Blaricum | H28: M | I28: 1970-03-08 | J28: 47 | K28: 47
A29: 28 | B29: Nietzce | C29: W.A. | E29: Mantsoerstraat 23 | F29: 8932 HO | G29: Wieringerwerf | H29: M | I29: 1955-04-12 | J29: 61 | K29: 61
A30: 29 | B30: Pieterse | C30: P. | E30: Vrijthof 15 | F30: 8722 JK | G30: Maastricht | H30: M | I30: 1973-05-06 | J30: 43 | K30: 43
A31: 30 | B31: Pietersen | C31: P. | E31: Vrijthof 15 | F31: 8722 JK | G31: Maastricht | H31: M | I31: 1977-02-15 | J31: 40 | K31: 40
A32: 31 | B32: Roodhooft | C32: T.P. | E32: Witstraat 25 | F32: 1251 HJ | G32: Kortenhoef | H32: M | I32: 1987-09-21 | J32: 29 | K32: 29
A33: 32 | B33: Roodt | C33: T.P. | D33: op ‘t | E33: Weergraaf 94 | F33: 1251 HJ | G33: Kortenhoef | H33: M | I33: 1965-06-19 | J33: 51 | K33: 51
A34: 33 | B34: Roodt | C34: T.P. | D34: op ‘t | E34: Aldegondehof 45 | F34: 7256 KO | G34: Groningen | H34: V | I34: 1976-01-01 | J34: 41 | K34: 41
A35: 34 | B35: Simons | C35: S. | E35: Appelhof 24 | F35: 7256 KO | G35: Groningen | H35: V | I35: 1972-05-31 | J35: 44 | K35: 44
A36: 35 | B36: Simonsma | C36: S. | E36: Aldegondehof 45 | F36: 7256 KO | G36: Groningen | H36: M | I36: 1967-12-14 | J36: 49 | K36: 49
A37: 36 | B37: Simonsma-de Beer | C37: J.A. | E37: Aldegondehof 45 | F37: 7256 KO | G37: Groningen | H37: V | I37: 1965-02-14 | J37: 52 | K37: 52
A38: 37 | B38: Wagemaker | C38: T.D. | D38: van | E38: Fruitstraat 34 | F38: 2045 HJ | G38: Amsterdam | H38: M | I38: 1950-07-16 | J38: 66 | K38: 66
A39: 38 | B39: Wagemaker-Vos | C39: G.S. | D39: van | E39: Fliersteeg 15 | F39: 2045 HJ | G39: Laren (NH) | H39: V | I39: 1949-07-21 | J39: 67 | K39: 67
A40: 39 | B40: Wagenaar | C40: G.S. | E40: Fruitstraat 34 | F40: 2045 HJ | G40: Amsterdam | H40: V | I40: 1948-04-01 | J40: 68 | K40: 68
A41: 40 | B41: Zuiderwijck | C41: T.R. | D41: van | E41: Dorpstraat 1 | F41: 1251 WS | G41: Laren (NH) | H41: V | I41: 1973-05-24 | J41: 43 | K41: 43

Sheet Voorwaardelijk 7
A1: Schoenmakerij "Zet een hak": Schoenmaten
A2: 38 | B2: 38 | C2: 43 | D2: 37 | E2: 37 | F2: 42 | G2: 44 | H2: 41 | I2: 42 | J2: 42 | K2: 43 | M2: 41 | N2: 35
A3: 43 | B3: 37 | C3: 43 | D3: 37 | E3: 38 | F3: 43 | G3: 38 | H3: 42 | I3: 36 | J3: 44 | K3: 41 | N3: 36
A4: 35 | B4: 37 | C4: 41 | D4: 43 | E4: 43 | F4: 39 | G4: 43 | H4: 37 | I4: 39 | J4: 42 | K4: 42 | N4: 37
A5: 36 | B5: 38 | C5: 35 | D5: 36 | E5: 39 | F5: 37 | G5: 40 | H5: 37 | I5: 36 | J5: 43 | K5: 44 | N5: 38
A6: 34 | B6: 40 | C6: 44 | D6: 38 | E6: 44 | F6: 37 | G6: 43 | H6: 39 | I6: 38 | J6: 37 | K6: 44 | N6: 39
A7: 38 | B7: 42 | C7: 43 | D7: 41 | E7: 43 | F7: 46 | G7: 36 | H7: 39 | I7: 42 | J7: 39 | K7: 41 | N7: 40
A8: 40 | B8: 39 | C8: 42 | D8: 38 | E8: 38 | F8: 41 | G8: 36 | H8: 35 | I8: 39 | J8: 36 | K8: 40 | N8: 41
A9: 43 | B9: 42 | C9: 41 | D9: 43 | E9: 44 | F9: 41 | G9: 36 | H9: 41 | I9: 41 | J9: 40 | K9: 44 | N9: 42
A10: 44 | B10: 42 | C10: 37 | D10: 39 | E10: 38 | F10: 36 | G10: 41 | H10: 43 | I10: 39 | J10: 36 | K10: 40 | N10: 43
A11: 42 | B11: 36 | C11: 37 | D11: 40 | E11: 37 | F11: 44 | G11: 42 | H11: 36 | I11: 39 | J11: 38 | K11: 43 | N11: 44
A12: 36 | B12: 39 | C12: 41 | D12: 42 | E12: 41 | F12: 44 | G12: 38 | H12: 40 | I12: 43 | J12: 44 | K12: 42 | N12: 45
A13: 42 | B13: 36 | C13: 43 | D13: 38 | E13: 44 | F13: 34 | G13: 44 | H13: 40 | I13: 42 | J13: 39 | K13: 39 | N13: 46
A14: 39 | B14: 38 | C14: 39 | D14: 36 | E14: 37 | F14: 42 | G14: 42 | H14: 40 | I14: 40 | J14: 43 | K14: 40 | N14: 47
A15: 40 | B15: 37 | C15: 44 | D15: 37 | E15: 44 | F15: 37 | G15: 42 | H15: 43 | I15: 37 | J15: 40 | K15: 39 | N15: 48
A16: 41 | B16: 40 | C16: 44 | D16: 36 | E16: 42 | F16: 38 | G16: 38 | H16: 39 | I16: 40 | J16: 40 | K16: 41
A17: 42 | B17: 40 | C17: 47 | D17: 36 | E17: 36 | F17: 42 | G17: 42 | H17: 37 | I17: 40 | J17: 39 | K17: 44
A18: 41 | B18: 37 | C18: 41 | D18: 38 | E18: 39 | F18: 38 | G18: 44 | H18: 38 | I18: 43 | J18: 35 | K18: 40
A19: 43 | B19: 40 | C19: 44 | D19: 37 | E19: 38 | F19: 39 | G19: 40 | H19: 40 | I19: 41 | J19: 36 | K19: 37
A20: 41 | B20: 37 | C20: 38 | D20: 39 | E20: 37 | F20: 35 | G20: 38 | H20: 36 | I20: 42 | J20: 39 | K20: 44
A21: 43 | B21: 43 | C21: 40 | D21: 44 | E21: 41 | F21: 39 | G21: 44 | H21: 36 | I21: 36 | J21: 45 | K21: 40
A22: 36 | B22: 43 | C22: 37 | D22: 42 | E22: 43 | F22: 39 | G22: 42 | H22: 36 | I22: 36 | J22: 38 | K22: 39

Sheet Voorwaardelijk 7 opg
A1: Schoenmakerij "Zet een hak": Schoenmaten
A2: 38 | B2: 38 | C2: 43 | D2: 37 | E2: 37 | F2: 42 | G2: 44 | H2: 41 | I2: 42 | J2: 42 | K2: 43 | M2: 43 | N2: 35
A3: 43 | B3: 37 | C3: 43 | D3: 37 | E3: 38 | F3: 43 | G3: 38 | H3: 42 | I3: 36 | J3: 44 | K3: 41 | N3: 36
A4: 35 | B4: 37 | C4: 41 | D4: 43 | E4: 43 | F4: 39 | G4: 43 | H4: 37 | I4: 39 | J4: 42 | K4: 42 | N4: 37
A5: 36 | B5: 38 | C5: 35 | D5: 36 | E5: 39 | F5: 37 | G5: 40 | H5: 37 | I5: 36 | J5: 43 | K5: 44 | N5: 38
A6: 34 | B6: 40 | C6: 44 | D6: 38 | E6: 44 | F6: 37 | G6: 43 | H6: 39 | I6: 38 | J6: 37 | K6: 44 | N6: 39
A7: 38 | B7: 42 | C7: 43 | D7: 41 | E7: 43 | F7: 46 | G7: 36 | H7: 39 | I7: 42 | J7: 39 | K7: 41 | N7: 40
A8: 40 | B8: 39 | C8: 42 | D8: 38 | E8: 38 | F8: 41 | G8: 36 | H8: 35 | I8: 39 | J8: 36 | K8: 40 | N8: 41
A9: 43 | B9: 42 | C9: 41 | D9: 43 | E9: 44 | F9: 41 | G9: 36 | H9: 41 | I9: 41 | J9: 40 | K9: 44 | N9: 42
A10: 44 | B10: 42 | C10: 37 | D10: 39 | E10: 38 | F10: 36 | G10: 41 | H10: 43 | I10: 39 | J10: 36 | K10: 40 | N10: 43
A11: 42 | B11: 36 | C11: 37 | D11: 40 | E11: 37 | F11: 44 | G11: 42 | H11: 36 | I11: 39 | J11: 38 | K11: 43 | N11: 44
A12: 36 | B12: 39 | C12: 41 | D12: 42 | E12: 41 | F12: 44 | G12: 38 | H12: 40 | I12: 43 | J12: 44 | K12: 42 | N12: 45
A13: 42 | B13: 36 | C13: 43 | D13: 38 | E13: 44 | F13: 34 | G13: 44 | H13: 40 | I13: 42 | J13: 39 | K13: 39 | N13: 46
A14: 39 | B14: 38 | C14: 39 | D14: 36 | E14: 37 | F14: 42 | G14: 42 | H14: 40 | I14: 40 | J14: 43 | K14: 40 | N14: 47
A15: 40 | B15: 37 | C15: 44 | D15: 37 | E15: 44 | F15: 37 | G15: 42 | H15: 43 | I15: 37 | J15: 40 | K15: 39 | N15: 48
A16: 41 | B16: 40 | C16: 44 | D16: 36 | E16: 42 | F16: 38 | G16: 38 | H16: 39 | I16: 40 | J16: 40 | K16: 41
A17: 42 | B17: 40 | C17: 47 | D17: 36 | E17: 36 | F17: 42 | G17: 42 | H17: 37 | I17: 40 | J17: 39 | K17: 44
A18: 41 | B18: 37 | C18: 41 | D18: 38 | E18: 39 | F18: 38 | G18: 44 | H18: 38 | I18: 43 | J18: 35 | K18: 40
A19: 43 | B19: 40 | C19: 44 | D19: 37 | E19: 38 | F19: 39 | G19: 40 | H19: 40 | I19: 41 | J19: 36 | K19: 37
A20: 41 | B20: 37 | C20: 38 | D20: 39 | E20: 37 | F20: 35 | G20: 38 | H20: 36 | I20: 42 | J20: 39 | K20: 44
A21: 43 | B21: 43 | C21: 40 | D21: 44 | E21: 41 | F21: 39 | G21: 44 | H21: 36 | I21: 36 | J21: 45 | K21: 40
A22: 36 | B22: 43 | C22: 37 | D22: 42 | E22: 43 | F22: 39 | G22: 42 | H22: 36 | I22: 36 | J22: 38 | K22: 39

Sheet Transponeren
A1: Neerslag per jaar in mm.
B3: De Kooy | C3: Eelde | D3: De Bilt | E3: Vlissingen | F3: Maastricht
A4: 1995 | B4: 760 | C4: 818 | D4: 789 | E4: 687 | F4: 719
A5: 1996 | B5: 619.7 | C5: 648.3 | D5: 701.2 | E5: 688.9 | F5: 655.3
A6: 1997 | B6: 916.8 | C6: 765.7 | D6: 944.2 | E6: 831.6 | F6: 800.8
A7: 1998 | B7: 847.7 | C7: 973.8 | D7: 1007.7 | E7: 885.9 | F7: 866
A8: 1999 | B8: 934.9 | C8: 949.8 | D8: 1068.4 | E8: 855.5 | F8: 777.1
A9: 2000 | B9: 822.3 | C9: 868.8 | D9: 804.1 | E9: 788.6 | F9: 761.5
A10: 2001 | B10: 630.5 | C10: 583.4 | D10: 692.3 | E10: 617 | F10: 668.8
A11: 2002 | B11: 657.1 | C11: 692.7 | D11: 736 | E11: 688.6 | F11: 775.4
A12: 2003 | B12: 997 | C12: 1082.5 | D12: 1203 | E12: 1090.7 | F12: 962.2
A13: 2004 | B13: 938.8 | C13: 878.9 | D13: 859.8 | E13: 999 | F13: 927.3
A23: Getransponeerd
B25: 1995 | C25: 1996 | D25: 1997 | E25: 1998 | F25: 1999 | G25: 2000 | H25: 2001 | I25: 2002 | J25: 2003 | K25: 2004
A26: De Kooy | B26: 760 | C26: 619.7 | D26: 916.8 | E26: 847.7 | F26: 934.9 | G26: 822.3 | H26: 630.5 | I26: 657.1 | J26: 997 | K26: 938.8
A27: Eelde | B27: 818 | C27: 648.3 | D27: 765.7 | E27: 973.8 | F27: 949.8 | G27: 868.8 | H27: 583.4 | I27: 692.7 | J27: 1082.5 | K27: 878.9
A28: De Bilt | B28: 789 | C28: 701.2 | D28: 944.2 | E28: 1007.7 | F28: 1068.4 | G28: 804.1 | H28: 692.3 | I28: 736 | J28: 1203 | K28: 859.8
A29: Vlissingen | B29: 687 | C29: 688.9 | D29: 831.6 | E29: 885.9 | F29: 855.5 | G29: 788.6 | H29: 617 | I29: 688.6 | J29: 1090.7 | K29: 999
A30: Maastricht | B30: 719 | C30: 655.3 | D30: 800.8 | E30: 866 | F30: 777.1 | G30: 761.5 | H30: 668.8 | I30: 775.4 | J30: 962.2 | K30: 927.3

Sheet Transponeren 1
B3: 1995 | C3: 1996 | D3: 1997 | E3: 1998 | F3: 1999 | G3: 2000 | H3: 2001 | I3: 2002 | J3: 2003 | K3: 2004
A4: De Kooy | B4: 3137.622534 | C4: 904.9777232 | D4: 3842.854357 | E4: 1729.271452 | F4: 4231.569152 | G4: 4297.277991 | H4: 4623.787091 | I4: 1269.659499 | J4: 382.5728257 | K4: 3304.356072
A5: Eelde | B5: 2930.357533 | C5: 97.96293111 | D5: 3150.58145 | E5: 2917.054417 | F5: 4448.068836 | G5: 540.6689221 | H5: 966.1191639 | I5: 4312.943211 | J5: 3471.911052 | K5: 3695.071871
A6: De Bilt | B6: 357.4790456 | C6: 1858.341535 | D6: 1828.850711 | E6: 2199.468795 | F6: 2039.668802 | G6: 2643.941498 | H6: 2206.087661 | I6: 2043.558042 | J6: 840.1662184 | K6: 2329.066118
A7: Vlissingen | B7: 4814.976305 | C7: 3938.929125 | D7: 279.5702635 | E7: 1716.192982 | F7: 787.9101774 | G7: 4122.4869 | H7: 3000.482536 | I7: 3795.625825 | J7: 2897.858615 | K7: 926.0898538
A8: Maastricht | B8: 1185.089336 | C8: 4819.003617 | D8: 3491.154008 | E8: 2680.150494 | F8: 2814.632193 | G8: 3559.401963 | H8: 2943.310121 | I8: 2305.337931 | J8: 1780.455819 | K8: 1913.231681

Sheet Verwijzingen
A1: Sommen maken
A3: Getal 1 | B3: Getal 2 | C3: Getal1+Getal2 | D3: Functie
A4: 23 | B4: 33 | F4: Maak in rij 4 de berekening
A5: 95 | B5: 69
A6: 72 | B6: 59 | F6: Kopieer de formule naar beneden
A7: 61 | B7: 47
A8: 44 | B8: 15

Sheet Verwijzingen opg
A1: Sommen maken
A3: Getal 1 | B3: Getal 2 | C3: Getal1+Getal2 | D3: Functie
A4: 23 | B4: 33 | C4: =A4+B4 -> 56 | D4: =SUM(A4:B4) -> 56
A5: 95 | B5: 69 | C5: =A5+B5 -> 164 | D5: =SUM(A5:B5) -> 164
A6: 72 | B6: 59 | C6: =A6+B6 -> 131 | D6: =SUM(A6:B6) -> 131
A7: 61 | B7: 47 | C7: =A7+B7 -> 108 | D7: =SUM(A7:B7) -> 108
A8: 44 | B8: 15 | C8: =A8+B8 -> 59 | D8: =SUM(A8:B8) -> 59

Sheet Verwijzing 1
A1: Salarisberekening
A3: Uurloon | B3: 10
B5: week1 | D5: week2
B6: uren | C6: loon | D6: uren | E6: loon
A7: ma | B7: 8 | D7: 4
A8: di | B8: 4 | D8: 0
A9: wo | B9: 8 | D9: 4
A10: do | B10: 7 | D10: 8
A11: vr | B11: 6 | D11: 8
A12: za | B12: 0 | D12: 6
A13: zo | B13: 0 | D13: 0
A14: Totaal

Sheet Verwijzing 1 opg
A1: Salarisberekening
A3: Uurloon | B3: 10
B5: week1 | D5: week2
B6: uren | C6: loon | D6: uren | E6: loon
A7: ma | B7: 8 | C7: =B7*$B$3 -> 80 | D7: 4 | E7: =D7*$B$3 -> 40
A8: di | B8: 4 | C8: =B8*$B$3 -> 40 | D8: 0 | E8: =D8*$B$3 -> 0
A9: wo | B9: 8 | C9: 80 | D9: 4 | E9: 40
A10: do | B10: 7 | C10: 70 | D10: 8 | E10: 80
A11: vr | B11: 6 | C11: 60 | D11: 8 | E11: 80
A12: za | B12: 0 | C12: 0 | D12: 6 | E12: 60
A13: zo | B13: 0 | C13: 0 | D13: 0 | E13: 0
A14: Totaal | C14: =SUM(C7:C13) -> 330 | E14: =SUM(E7:E13) -> 300

Sheet Verwijzing 2
A1: Bestellingen Chocomacronen | B1: Prijs per doos | C1: 1.25 | D1: BTW | E1: 0.21
B3: Bestelde dozen | C3: Bedrag | D3: BTW | E3: Totaal
A4: Piet Klein | B4: 10
A5: Mega Import | B5: 7
A6: Folklore Foods | B6: 5
A7: de Interne Mens | B7: 15
A8: Super Super | B8: 10
A9: Piccolo Snacks | B9: 20
A10: Jon Smit Foods | B10: 13
A11: Alberta N.V. | B11: 10
A12: Super Karel | B12: 7
A13: Bakker Bas B.V. | B13: 5
A14: Witte Markten | B14: 15
A15: Albinomarkt | B15: 10
A16: Groothandel De Boer | B16: 20

Sheet Verwijzing 2 opg
A1: Bestellingen Chocomacronen | B1: Prijs per doos | C1: 1.25 | D1: BTW | E1: 0.21
B3: Bestelde dozen | C3: Bedrag | D3: BTW | E3: Totaal
A4: Levensmiddelengroothandel Piet Klein | B4: 10 | C4: =B4*$C$1 -> 12.5 | D4: =$E$1*C4 -> 2.625 | E4: =SUM(C4:D4) -> 15.125
A5: Mega Import | B5: 7 | C5: =B5*$C$1 -> 8.75 | D5: =$E$1*C5 -> 1.8375 | E5: =SUM(C5:D5) -> 10.5875
A6: Folklore Foods | B6: 5 | C6: 6.25 | D6: 1.3125 | E6: 7.5625
A7: de Interne Mens | B7: 15 | C7: 18.75 | D7: 3.9375 | E7: 22.6875
A8: Super Super | B8: 10 | C8: 12.5 | D8: 2.625 | E8: 15.125
A9: Piccolo Snacks | B9: 20 | C9: 25 | D9: 5.25 | E9: 30.25
A10: Jon Smit Foods | B10: 13 | C10: 16.25 | D10: 3.4125 | E10: 19.6625
A11: Alberta N.V. | B11: 10 | C11: 12.5 | D11: 2.625 | E11: 15.125
A12: Super Karel | B12: 7 | C12: 8.75 | D12: 1.8375 | E12: 10.5875
A13: Bakker Bas B.V. | B13: 5 | C13: 6.25 | D13: 1.3125 | E13: 7.5625
A14: Witte Markten | B14: 15 | C14: 18.75 | D14: 3.9375 | E14: 22.6875
A15: Albinomarkt | B15: 10 | C15: 12.5 | D15: 2.625 | E15: 15.125
A16: Groothandel De Boer | B16: 20 | C16: 25 | D16: 5.25 | E16: 30.25

Sheet ABS Euro
A3: prijs appelen | B3: 0.12 | C3: per kg
A4: prijs appelsienen | B4: 0.25 | C4: per kg
A5: prijs peren | B5: 0.14 | C5: per kg
A7: Klanten | B7: #peren (kg) | C7: #appels (kg) | D7: #sinasappelen (kg) | E7: Totaal
A8: Pierre | B8: 120 | C8: 1254 | D8: 1500
A9: Jacques | B9: 140 | C9: 123 | D9: 154
A10: Bernard | B10: 1100 | C10: 125 | D10: 1230
A11: Tawfik | B11: 130 | C11: 458 | D11: 986
A12: Joost | B12: 125 | C12: 21 | D12: 125
A13: John | B13: 523 | C13: 0 | D13: 0
A14: Steven | B14: 265 | C14: 1458 | D14: 258
A15: Fanny | B15: 236 | C15: 123 | D15: 564
A16: Marianne | B16: 987 | C16: 231 | D16: 0
B20: Opgave:
B21: Bereken hoeveel elke klant moet betalen
B22: Zet alle bedragen in Euro

Sheet ABS Euro opg
A3: prijs appelen | B3: 0.12 | C3: per kg
A4: prijs appelsienen | B4: 0.25 | C4: per kg
A5: prijs peren | B5: 0.14 | C5: per kg
A7: Klanten | B7: #peren (kg) | C7: #appels (kg) | D7: #sinasappelen (kg) | E7: Totaal
A8: Pierre | B8: 120 | C8: 1254 | D8: 1500 | E8: =$B$3*B8+$B$4*C8+$B$5*D8 -> 537.9
A9: Jacques | B9: 140 | C9: 123 | D9: 154 | E9: =$B$3*B9+$B$4*C9+$B$5*D9 -> 69.11
A10: Bernard | B10: 1100 | C10: 125 | D10: 1230 | E10: 335.45
A11: Tawfik | B11: 130 | C11: 458 | D11: 986 | E11: 268.14
A12: Joost | B12: 125 | C12: 21 | D12: 125 | E12: 37.75
A13: John | B13: 523 | C13: 0 | D13: 0 | E13: 62.76
A14: Steven | B14: 265 | C14: 1458 | D14: 258 | E14: 432.42
A15: Fanny | B15: 236 | C15: 123 | D15: 564 | E15: 138.03
A16: Marianne | B16: 987 | C16: 231 | D16: 0 | E16: 176.19

Sheet Abs
A1: Resultaten | G1: Kortingpercentage: | H1: 0.25
B3: Product 1 | C3: Product 2 | D3: Product 3 | E3: Totaal | F3: Totaal met korting
A4: Januari | B4: 253.62 | C4: 356.41 | D4: 111.05 | E4: =SUM(B4:D4) -> 721.08
A5: Februari | B5: 564.32 | C5: 321.11 | D5: 120.16 | E5: 1005.59
A6: Maart | B6: 436.53 | C6: 364.88 | D6: 109.84 | E6: 911.25
A7: April | B7: 396.25 | C7: 403.58 | D7: 89.36 | E7: 889.19
A8: Mei | B8: 406.58 | C8: 399.58 | D8: 75.23 | E8: 881.39
A9: Juni | B9: 384.56 | C9: 338.66 | D9: 69.54 | E9: 792.76
A10: Juli | B10: 301.56 | C10: 305.41 | D10: 65.02 | E10: 671.99
A11: Augustus | B11: 325.64 | C11: 300.01 | D11: 79.85 | E11: 705.5
A12: September | B12: 389.65 | C12: 311.16 | D12: 104.37 | E12: 805.18
A13: Oktober | B13: 436.87 | C13: 350.44 | D13: 110.58 | E13: 897.89
A14: November | B14: 489.66 | C14: 319.85 | D14: 106.58 | E14: 916.09
A15: December | B15: 402.56 | C15: 299.04 | D15: 99.56 | E15: 801.16
A16: Totaal | B16: =SUM(B4:B15) -> 4787.8 | C16: =SUM(C4:C15) -> 4070.13 | D16: =SUM(D4:D15) -> 1141.14 | E16: 9999.07
A17: Totaal met korting:

Sheet Abs Opg
A1: Resultaten | G1: Kortingpercentage: | H1: 0.25
B3: Product 1 | C3: Product 2 | D3: Product 3 | E3: Totaal | F3: Totaal met korting
A4: Januari | B4: 253.62 | C4: 356.41 | D4: 111.05 | E4: =SUM(B4:D4) -> 721.08 | F4: =E4-E4*$H$1 -> 540.81
A5: Februari | B5: 564.32 | C5: 321.11 | D5: 120.16 | E5: 1005.59 | F5: 754.1925
A6: Maart | B6: 436.53 | C6: 364.88 | D6: 109.84 | E6: 911.25 | F6: 683.4375
A7: April | B7: 396.25 | C7: 403.58 | D7: 89.36 | E7: 889.19 | F7: 666.8925
A8: Mei | B8: 406.58 | C8: 399.58 | D8: 75.23 | E8: 881.39 | F8: 661.0425
A9: Juni | B9: 384.56 | C9: 338.66 | D9: 69.54 | E9: 792.76 | F9: 594.57
A10: Juli | B10: 301.56 | C10: 305.41 | D10: 65.02 | E10: 671.99 | F10: 503.9925
A11: Augustus | B11: 325.64 | C11: 300.01 | D11: 79.85 | E11: 705.5 | F11: 529.125
A12: September | B12: 389.65 | C12: 311.16 | D12: 104.37 | E12: 805.18 | F12: 603.885
A13: Oktober | B13: 436.87 | C13: 350.44 | D13: 110.58 | E13: 897.89 | F13: 673.4175
A14: November | B14: 489.66 | C14: 319.85 | D14: 106.58 | E14: 916.09 | F14: 687.0675
A15: December | B15: 402.56 | C15: 299.04 | D15: 99.56 | E15: 801.16 | F15: 600.87
A16: Totaal | B16: =SUM(B4:B15) -> 4787.8 | C16: =SUM(C4:C15) -> 4070.13 | D16: =SUM(D4:D15) -> 1141.14 | E16: 9999.07
A17: Totaal met korting: | F17: =E16-E16*$H$1 -> 7499.3025

Sheet Abs 1
A1: Naam | B1: Aantal uur | C1: Uurtarief | D1: Totaal | E1: Totaal incl. bonus
A3: Bomers | B3: 45 | C3: 125
A4: Lentfert | B4: 33 | C4: 120
A5: Nijkamp | B5: 46 | C5: 120
A6: Ten Voorde | B6: 54 | C6: 135
A7: Krophuis | B7: 12 | C7: 115
A8: Peters | B8: 24 | C8: 135
A12: Bonus | B12: 0.3

Sheet Abs 1 Opg
A1: Naam | B1: Aantal uur | C1: Uurtarief | D1: Totaal | E1: Totaal incl. bonus
A3: Bomers | B3: 45 | C3: 125 | D3: =B3*C3 -> 5625 | E3: =D3+D3*$B$12 -> 7312.5
A4: Lentfert | B4: 33 | C4: 120 | D4: 3960 | E4: 5148
A5: Nijkamp | B5: 46 | C5: 120 | D5: 5520 | E5: 7176
A6: Ten Voorde | B6: 54 | C6: 135 | D6: 7290 | E6: 9477
A7: Krophuis | B7: 12 | C7: 115 | D7: 1380 | E7: 1794
A8: Peters | B8: 24 | C8: 135 | D8: 3240 | E8: 4212
A12: Bonus | B12: 0.3

Sheet ABS 2
A1: Klimaatveranderingen (prognoses)
B4: Schatting van de stijging van de gemiddelde jaartemperatuur.
M6: Elke tien jaar wordt deze gemiddelde temperatuur | N6: 0.2 | O6: º C hoger
B8: 1990 | C8: 2000 | D8: 2010 | E8: 2020 | F8: 2030 | G8: 2040 | H8: 2050 | I8: 2060 | J8: 2070 | K8: 2080 | L8: 2090 | M8: 2100
B9: 14
B14: Schatting van de stijging van de zeespiegel
M16: Elke tien jaar stijgt de zeespiegel | N16: 3 | O16: centimeter
B18: 1990 | C18: 2000 | D18: 2010 | E18: 2020 | F18: 2030 | G18: 2040 | H18: 2050 | I18: 2060 | J18: 2070 | K18: 2080 | L18: 2090 | M18: 2100
B19: 0

Sheet ABS 2 opg
A1: Klimaatveranderingen (prognoses)
B4: Schatting van de stijging van de gemiddelde jaartemperatuur.
M6: Elke tien jaar wordt deze gemiddelde temperatuur | N6: 0.2 | O6: º C hoger
B8: 1990 | C8: 2000 | D8: 2010 | E8: 2020 | F8: 2030 | G8: 2040 | H8: 2050 | I8: 2060 | J8: 2070 | K8: 2080 | L8: 2090 | M8: 2100
B9: 14 | C9: =B9+$N$6 -> 14.2 | D9: =C9+$N$6 -> 14.4 | E9: 14.6 | F9: 14.8 | G9: 15 | H9: 15.2 | I9: 15.4 | J9: 15.6 | K9: 15.8 | L9: 16 | M9: 16.2
B14: Schatting van de stijging van de zeespiegel
M16: Elke tien jaar stijgt de zeespiegel | N16: 3 | O16: centimeter
B18: 1990 | C18: 2000 | D18: 2010 | E18: 2020 | F18: 2030 | G18: 2040 | H18: 2050 | I18: 2060 | J18: 2070 | K18: 2080 | L18: 2090 | M18: 2100
B19: 0 | C19: =B19+$N$16 -> 3 | D19: =C19+$N$16 -> 6 | E19: 9 | F19: 12 | G19: 15 | H19: 18 | I19: 21 | J19: 24 | K19: 27 | L19: 30 | M19: 33

Sheet ABS 3
A1: Bereken de actieprijzen
H3: De nieuwe actieprijs bedraagt
B4: Prijsoverzicht | H4: 0.8 | I4: van de adviesprijs.
C6: Artikel | D6: Adviesprijs | E6: Actieprijs
C8: computer apple | D8: 900
C9: inkjet kleurenprinter epson | D9: 120
C10: monitor eizo | D10: 400
C11: scanner canon | D11: 80
C12: externe harde schijf freecom | D12: 160
C13: externe dvd recorder | D13: 90
C14: laserprinter (kleur) hp | D14: 600
C15: webcam creative | D15: 50
C16: notebook toshiba | D16: 800
C17: muis logitech | D17: 20
C18: toetsenbord microsoft | D18: 40
C19: router draadloos belkin | D19: 110
C20: speakers philips | D20: 70
C21: sennheizer koptelefoon | D21: 60
C22: memory stick kingston | D22: 30
C23: microfoon ibm | D23: 10

Sheet ABS 3 opg
A1: Bereken de actieprijzen
H3: De nieuwe actieprijs bedraagt
B4: Prijsoverzicht | H4: 0.8 | I4: van de adviesprijs.
C6: Artikel | D6: Adviesprijs | E6: Actieprijs
C8: computer apple | D8: 900 | E8: =D8*$H$4 -> 720
C9: inkjet kleurenprinter epson | D9: 120 | E9: =D9*$H$4 -> 96
C10: monitor eizo | D10: 400 | E10: 320
C11: scanner canon | D11: 80 | E11: 64
C12: externe harde schijf freecom | D12: 160 | E12: 128
C13: externe dvd recorder | D13: 90 | E13: 72
C14: laserprinter (kleur) hp | D14: 600 | E14: 480
C15: webcam creative | D15: 50 | E15: 40
C16: notebook toshiba | D16: 800 | E16: 640
C17: muis logitech | D17: 20 | E17: 16
C18: toetsenbord microsoft | D18: 40 | E18: 32
C19: router draadloos belkin | D19: 110 | E19: 88
C20: speakers philips | D20: 70 | E20: 56
C21: sennheizer koptelefoon | D21: 60 | E21: 48
C22: memory stick kingston | D22: 30 | E22: 24
C23: microfoon ibm | D23: 10 | E23: 8

Sheet ABS 4
A2: Hoeveel brutoloonsverhoging is mogelijk?
E4: Salarisstijging: | F4: 0.05
C6: Salaris (bruto) | D6: loonstijging (bruto) | E6: Salaris nieuw (bruto)
B7: Jesse | C7: 2400
B8: Wim | C8: 1800
B9: Dirk | C9: 2300
B10: Peter | C10: 3300
B11: Ellen | C11: 2600
B12: Nico | C12: 3000
B13: Karin | C13: 2800
B14: Hanne | C14: 3700
B15: Ton | C15: 3100
B17: Totaal: | C17: =SUM(C7:C16) -> 25000 | D17: Nieuw totaal:
B20: Stap 1: | C20: ="Bereken in cel D7 met een formule welk bedrag "&B7&" er bruto (in euro's) bij krijgt als hij "&$F$4*100&" procent loonstijging krijgt" -> Bereken in cel D7 met een formule welk bedrag Jesse er bruto (in euro's) bij krijgt als hij 5 procent loonstijging krijgt
B22: Stap 2: | C22: ="Bereken in cel E7 met een formule hoeveel het nieuwe bruto-salaris van "&B7&" gaat bedragen ." -> Bereken in cel E7 met een formule hoeveel het nieuwe bruto-salaris van Jesse gaat bedragen .
B24: Stap 3: | C24: Bereken nu op een snelle manier hoe hoog deze bedragen zijn bij de overige werknemers.
B26: Stap 4: | C26: Bereken in cel E17 wat het totale bruto loonbedrag is
B28: Stap 5: | C28: Het totaal beschikbare bedrag voor een loonsverhoging bedraagt 1000 euro (in totaal zal dus 26000 euro beschikbaar zijn).
C29: Geef antwoord op de vraag of een loonsverhoging van 5% toegekend kan worden.
I30: Dit kan: | K30: ( wel / niet )
B31: Stap 6: | C31: Hoeveel procent loonsverhoging kan wel toegekend worden?
C32: Onderzoek dit. | I32: Toegekend kan worden maximaal | K32: procent.

Sheet ABS 4 opg
A2: Hoeveel brutoloonsverhoging is mogelijk?
E4: Salarisstijging: | F4: 0.05
C6: Salaris (bruto) | D6: loonstijging (bruto) | E6: Salaris nieuw (bruto)
B7: Jesse | C7: 2400 | D7: =C7*$F$4 -> 120 | E7: =SUM(C7:D7) -> 2520
B8: Wim | C8: 1800 | D8: =C8*$F$4 -> 90 | E8: =SUM(C8:D8) -> 1890
B9: Dirk | C9: 2300 | D9: 115 | E9: 2415
B10: Peter | C10: 3300 | D10: 165 | E10: 3465
B11: Ellen | C11: 2600 | D11: 130 | E11: 2730
B12: Nico | C12: 3000 | D12: 150 | E12: 3150
B13: Karin | C13: 2800 | D13: 140 | E13: 2940
B14: Hanne | C14: 3700 | D14: 185 | E14: 3885
B15: Ton | C15: 3100 | D15: 155 | E15: 3255
B17: Totaal: | C17: =SUM(C7:C16) -> 25000 | D17: Nieuw totaal: | E17: =SUM(E7:E16) -> 26250
B20: Stap 1: | C20: ="Bereken in cel D7 met een formule welk bedrag "&B7&" er bruto (in euro's) bij krijgt als hij "&$F$4*100&" procent loonstijging krijgt" -> Bereken in cel D7 met een formule welk bedrag Jesse er bruto (in euro's) bij krijgt als hij 5 procent loonstijging krijgt
B22: Stap 2: | C22: ="Bereken in cel E7 met een formule hoeveel het nieuwe bruto-salaris van "&B7&" gaat bedragen ." -> Bereken in cel E7 met een formule hoeveel het nieuwe bruto-salaris van Jesse gaat bedragen .
B24: Stap 3: | C24: Bereken nu op een snelle manier hoe hoog deze bedragen zijn bij de overige werknemers.
B26: Stap 4: | C26: Bereken in cel E17 wat het totale bruto loonbedrag is
B28: Stap 5: | C28: Het totaal beschikbare bedrag voor een loonsverhoging bedraagt 1000 euro (in totaal zal dus 26000 euro beschikbaar zijn).
C29: Geef antwoord op de vraag of een loonsverhoging van 5% toegekend kan worden.
I30: Dit kan: | J30: niet | K30: ( wel / niet )
B31: Stap 6: | C31: Hoeveel procent loonsverhoging kan wel toegekend worden?
C32: Onderzoek dit. | I32: Toegekend kan worden maximaal | J32: =26000/C17-1 -> 0.04 | K32: procent.

Sheet Abs 5
A1: PRIJSLIJST DE BACO 2016
A9: Artikel | B9: Artikelnummer | C9: Verkoopprijs | D9: Korting | E9: Prijs minus korting | F9: Aantal | G9: Totaalbedrag excl. BTW | H9: BTW | I9: Totaalbedrag incl. BTW
H10: 0.21
A11: Boormachine | B11: 123456 | C11: 99 | F11: 2
A12: Workmate | B12: 654321 | C12: 115 | F12: 1
A13: Sleutelset | B13: 678901 | C13: 50 | F13: 3
A14: Gereedschapskist | B14: 109876 | C14: 25 | F14: 2
A15: Lasapparaat | B15: 564738 | C15: 350 | F15: 1
A17: Korting | B17: 0.05 | G17: Factuurbedrag:
A18: Gemiddelde Verkoopprijs:

Sheet Abs 5 opg
A1: PRIJSLIJST DE BACO 2016
A9: Artikel | B9: Artikelnummer | C9: Verkoopprijs | D9: Korting | E9: Prijs minus korting | F9: Aantal | G9: Totaalbedrag excl. BTW | H9: BTW | I9: Totaalbedrag incl. BTW
H10: 0.21
A11: Boormachine | B11: 123456 | C11: 99 | D11: =C11*$B$17 -> 4.95 | E11: =C11-D11 -> 94.05 | F11: 2 | G11: =F11*E11 -> 188.1 | H11: =$H$10*G11 -> 39.501 | I11: =G11+H11 -> 227.601
A12: Workmate | B12: 654321 | C12: 115 | D12: =C12*$B$17 -> 5.75 | E12: =C12-D12 -> 109.25 | F12: 1 | G12: =F12*E12 -> 109.25 | H12: =$H$10*G12 -> 22.9425 | I12: =G12+H12 -> 132.1925
A13: Sleutelset | B13: 678901 | C13: 50 | D13: =C13*$B$17 -> 2.5 | E13: =C13-D13 -> 47.5 | F13: 3 | G13: =F13*E13 -> 142.5 | H13: =$H$10*G13 -> 29.925 | I13: =G13+H13 -> 172.425
A14: Gereedschapskist | B14: 109876 | C14: 25 | D14: =C14*$B$17 -> 1.25 | E14: =C14-D14 -> 23.75 | F14: 2 | G14: =F14*E14 -> 47.5 | H14: =$H$10*G14 -> 9.975 | I14: =G14+H14 -> 57.475
A15: Lasapparaat | B15: 564738 | C15: 350 | D15: =C15*$B$17 -> 17.5 | E15: =C15-D15 -> 332.5 | F15: 1 | G15: =F15*E15 -> 332.5 | H15: =$H$10*G15 -> 69.825 | I15: =G15+H15 -> 402.325
A17: Korting | B17: 0.05 | G17: Factuurbedrag: | I17: =SUM(I11:I16) -> 992.0185
A18: Gemiddelde Verkoopprijs: | B18: =AVERAGE(C11:C15) -> 127.8

Sheet ABS 6
A1: Snackbar MORALAND
A3: Verkopen | B3: Datum
A6: Prijzen
A7: Patat | B7: 1.25
A8: Kroket | B8: 1
A9: Frikandel | B9: 0.9
B11: Patat | D11: Kroket | F11: Frikandel
B12: afzet | C12: omzet | D12: afzet | E12: omzet | F12: afzet | G12: omzet
A13: Maandag | B13: 80 | D13: 13 | F13: 9
A14: Dinsdag | B14: 59 | D14: 1 | F14: 2
A15: Woensdag | B15: 121 | D15: 34 | F15: 11
A16: Donderdag | B16: 70 | D16: 21 | F16: 5
A17: Vrijdag | B17: 112 | D17: 33 | F17: 13
A18: Zaterdag | B18: 198 | D18: 68 | F18: 19
A19: Zondag | B19: 214 | D19: 99 | F19: 45
A21: Totaal

Sheet ABS 6 opg
A1: Snackbar MORALAND
A3: Verkopen | B3: Datum | C3: =TODAY() -> 2017-03-16
A6: Prijzen
A7: Patat | B7: 1.25
A8: Kroket | B8: 1
A9: Frikandel | B9: 0.9
B11: Patat | D11: Kroket | F11: Frikandel
B12: afzet | C12: omzet | D12: afzet | E12: omzet | F12: afzet | G12: omzet
A13: Maandag | B13: 80 | C13: =$B$7*B13 -> 100 | D13: 13 | E13: =$B$8*D13 -> 13 | F13: 9 | G13: =$B$9*F13 -> 8.1
A14: Dinsdag | B14: 59 | C14: =$B$7*B14 -> 73.75 | D14: 1 | E14: =$B$8*D14 -> 1 | F14: 2 | G14: =$B$9*F14 -> 1.8
A15: Woensdag | B15: 121 | C15: 151.25 | D15: 34 | E15: 34 | F15: 11 | G15: 9.9
A16: Donderdag | B16: 70 | C16: 87.5 | D16: 21 | E16: 21 | F16: 5 | G16: 4.5
A17: Vrijdag | B17: 112 | C17: 140 | D17: 33 | E17: 33 | F17: 13 | G17: 11.7
A18: Zaterdag | B18: 198 | C18: 247.5 | D18: 68 | E18: 68 | F18: 19 | G18: 17.1
A19: Zondag | B19: 214 | C19: 267.5 | D19: 99 | E19: 99 | F19: 45 | G19: 40.5
A21: Totaal | C21: =SUM(C13:C20) -> 1067.5 | E21: =SUM(E13:E20) -> 269 | G21: =SUM(G13:G20) -> 93.6

Sheet Gemengd
A1: Camping "De woelige IJssel"
A2: Prijzen per nacht 12.00-12.00 | C2: Gasten
C3: van der Berg | E3: Willemsen | G3: van Henegouwen
A4: Volwassenen | B4: 5.75 | C4: 2 | E4: 2 | G4: 2
A5: Kinderen | B5: 3.5 | C5: 2 | E5: 1 | G5: 3
A6: Tent groot | B6: 12.5 | C6: 1 | E6: 0 | G6: 0
A7: Tent klein | B7: 9.5 | C7: 1 | E7: 0 | G7: 1
A8: Caravan | B8: 27.75 | C8: 0 | E8: 1 | G8: 1
A9: Camper | B9: 27.75 | C9: 0 | E9: 0 | G9: 0
A10: Auto | B10: 6.5 | C10: 1 | E10: 1 | G10: 1
A11: Hond | B11: 2.5 | C11: 0 | E11: 1 | G11: 0
A12: Totaal per nacht:
A13: Aantal nachten | C13: 12 | E13: 5 | G13: 21
A14: Totaal:

Sheet Gemengd opg
A1: Camping "De woelige IJssel"
A2: Prijzen per nacht 12.00-12.00 | C2: Gasten
C3: van der Berg | E3: Willemsen | G3: van Henegouwen
A4: Volwassenen | B4: 5.75 | C4: 2 | D4: =$B4*C4 -> 11.5 | E4: 2 | F4: =$B4*E4 -> 11.5 | G4: 2 | H4: =$B4*G4 -> 11.5
A5: Kinderen | B5: 3.5 | C5: 2 | D5: =$B5*C5 -> 7 | E5: 1 | F5: 3.5 | G5: 3 | H5: 10.5
A6: Tent groot | B6: 12.5 | C6: 1 | D6: 12.5 | E6: 0 | F6: 0 | G6: 0 | H6: 0
A7: Tent klein | B7: 9.5 | C7: 1 | D7: 9.5 | E7: 0 | F7: 0 | G7: 1 | H7: 9.5
A8: Caravan | B8: 27.75 | C8: 0 | D8: 0 | E8: 1 | F8: 27.75 | G8: 1 | H8: 27.75
A9: Camper | B9: 27.75 | C9: 0 | D9: 0 | E9: 0 | F9: 0 | G9: 0 | H9: 0
A10: Auto | B10: 6.5 | C10: 1 | D10: 6.5 | E10: 1 | F10: 6.5 | G10: 1 | H10: 6.5
A11: Hond | B11: 2.5 | C11: 0 | D11: 0 | E11: 1 | F11: 2.5 | G11: 0 | H11: 0
A12: Totaal per nacht: | D12: =SUM(D4:D11) -> 47 | F12: =SUM(F4:F11) -> 51.75 | H12: =SUM(H4:H11) -> 65.75
A13: Aantal nachten | C13: 12 | E13: 5 | G13: 21
A14: Totaal: | D14: =C13*D12 -> 564 | F14: =E13*F12 -> 258.75 | H14: =G13*H12 -> 1380.75

Sheet Gemengd 1
C1: Dollar | D1: Yen | E1: Zloty | F1: Pond
B2: Euro | C2: 1.327 | D2: 157.76 | E2: 3.8287 | F2: 0.6735
A3: T-shirt Donkerblauw en wit. | B3: 9
A4: V-hals T-shirt wit met klein zegel | B4: 9
A5: "Zweetshirt" (T-shirt met zweetkamertje) | B5: 11.5
A6: Skinny's Bella lichtblauw mt S, M, L, XL | B6: 11.5
A7: Spaghetti shirt zwart met zilverkleurig logo | B7: 10.95
A8: Marlon polo korte mouw, leverkleur of geel, | B8: 12.5
A9: Slazenger dames baseballshirt, lichtblauw of rood | B9: 15
A10: Sol's herenpolo korte mouw, lichtblauw of roze | B10: 16.5
A11: T-shirt layered in blauw/grijs | B11: 9
A12: Herenpolo Melbourne blauw/wit | B12: 15

Sheet Gemengd 1 opg
C1: Dollar | D1: Yen | E1: Zloty | F1: Pond
B2: Euro | C2: 1.327 | D2: 157.76 | E2: 3.8287 | F2: 0.6735
A3: T-shirt Donkerblauw en wit. | B3: 9 | C3: =$B3*C$2 -> 11.943 | D3: =$B3*D$2 -> 1419.84 | E3: =$B3*E$2 -> 34.4583 | F3: =$B3*F$2 -> 6.0615
A4: V-hals T-shirt wit met klein zegel | B4: 9 | C4: =$B4*C$2 -> 11.943 | D4: 1419.84 | E4: 34.4583 | F4: 6.0615
A5: "Zweetshirt" (T-shirt met zweetkamertje) | B5: 11.5 | C5: 15.2605 | D5: 1814.24 | E5: 44.03005 | F5: 7.74525
A6: Skinny's Bella lichtblauw mt S, M, L, XL | B6: 11.5 | C6: 15.2605 | D6: 1814.24 | E6: 44.03005 | F6: 7.74525
A7: Spaghetti shirt zwart met zilverkleurig logo | B7: 10.95 | C7: 14.53065 | D7: 1727.472 | E7: 41.924265 | F7: 7.374825
A8: Marlon polo korte mouw, leverkleur of geel, | B8: 12.5 | C8: 16.5875 | D8: 1972 | E8: 47.85875 | F8: 8.41875
A9: Slazenger dames baseballshirt, lichtblauw of rood | B9: 15 | C9: 19.905 | D9: 2366.4 | E9: 57.4305 | F9: 10.1025
A10: Sol's herenpolo korte mouw, lichtblauw of roze | B10: 16.5 | C10: 21.8955 | D10: 2603.04 | E10: 63.17355 | F10: 11.11275
A11: T-shirt layered in blauw/grijs | B11: 9 | C11: 11.943 | D11: 1419.84 | E11: 34.4583 | F11: 6.0615
A12: Herenpolo Melbourne blauw/wit | B12: 15 | C12: 19.905 | D12: 2366.4 | E12: 57.4305 | F12: 10.1025

Sheet Gemengd 2
A1: Rij | B1: 2
A2: Kolom | B2: 8
B5: =B1 -> 2 | C5: =B5+1 -> 3 | D5: =C5+1 -> 4 | E5: 5 | F5: 6 | G5: 7 | H5: 8 | I5: 9 | J5: 10 | K5: 11 | L5: 12 | M5: 13 | N5: 14
A6: =B2 -> 8
A7: =A6+1 -> 9
A8: =A7+1 -> 10
A9: 11
A10: 12
A11: 13
A12: 14
A13: 15
A14: 16
A15: 17
A16: 18
A17: 19
A18: 20
A19: 21
A20: 22
A21: 23
A22: 24
A23: 25
A24: 26
A25: 27
A26: 28
A27: 29
A28: 30
A29: 31
A30: 32

Sheet Gemengd 2 opg
A1: Rij | B1: 2
A2: Kolom | B2: 8
B5: =B1 -> 2 | C5: =B5+1 -> 3 | D5: =C5+1 -> 4 | E5: 5 | F5: 6 | G5: 7 | H5: 8 | I5: 9 | J5: 10 | K5: =J5+1 -> 11 | L5: =K5+1 -> 12 | M5: =L5+1 -> 13 | N5: =M5+1 -> 14
A6: =B2 -> 8 | B6: =B$5*$A6 -> 16 | C6: =C$5*$A6 -> 24 | D6: 32 | E6: 40 | F6: 48 | G6: 56 | H6: 64 | I6: 72 | J6: 80 | K6: 88 | L6: 96 | M6: 104 | N6: 112
A7: =A6+1 -> 9 | B7: =B$5*$A7 -> 18 | C7: 27 | D7: 36 | E7: 45 | F7: 54 | G7: 63 | H7: 72 | I7: 81 | J7: 90 | K7: 99 | L7: 108 | M7: 117 | N7: 126
A8: =A7+1 -> 10 | B8: 20 | C8: 30 | D8: 40 | E8: 50 | F8: 60 | G8: 70 | H8: 80 | I8: 90 | J8: 100 | K8: 110 | L8: 120 | M8: 130 | N8: 140
A9: 11 | B9: 22 | C9: 33 | D9: 44 | E9: 55 | F9: 66 | G9: 77 | H9: 88 | I9: 99 | J9: 110 | K9: 121 | L9: 132 | M9: 143 | N9: 154
A10: 12 | B10: 24 | C10: 36 | D10: 48 | E10: 60 | F10: 72 | G10: 84 | H10: 96 | I10: 108 | J10: 120 | K10: 132 | L10: 144 | M10: 156 | N10: 168
A11: 13 | B11: 26 | C11: 39 | D11: 52 | E11: 65 | F11: 78 | G11: 91 | H11: 104 | I11: 117 | J11: 130 | K11: 143 | L11: 156 | M11: 169 | N11: 182
A12: 14 | B12: 28 | C12: 42 | D12: 56 | E12: 70 | F12: 84 | G12: 98 | H12: 112 | I12: 126 | J12: 140 | K12: 154 | L12: 168 | M12: 182 | N12: 196
A13: 15 | B13: 30 | C13: 45 | D13: 60 | E13: 75 | F13: 90 | G13: 105 | H13: 120 | I13: 135 | J13: 150 | K13: 165 | L13: 180 | M13: 195 | N13: 210
A14: 16 | B14: 32 | C14: 48 | D14: 64 | E14: 80 | F14: 96 | G14: 112 | H14: 128 | I14: 144 | J14: 160 | K14: 176 | L14: 192 | M14: 208 | N14: 224
A15: 17 | B15: 34 | C15: 51 | D15: 68 | E15: 85 | F15: 102 | G15: 119 | H15: 136 | I15: 153 | J15: 170 | K15: 187 | L15: 204 | M15: 221 | N15: 238
A16: 18 | B16: 36 | C16: 54 | D16: 72 | E16: 90 | F16: 108 | G16: 126 | H16: 144 | I16: 162 | J16: 180 | K16: 198 | L16: 216 | M16: 234 | N16: 252
A17: 19 | B17: 38 | C17: 57 | D17: 76 | E17: 95 | F17: 114 | G17: 133 | H17: 152 | I17: 171 | J17: 190 | K17: 209 | L17: 228 | M17: 247 | N17: 266
A18: 20 | B18: 40 | C18: 60 | D18: 80 | E18: 100 | F18: 120 | G18: 140 | H18: 160 | I18: 180 | J18: 200 | K18: 220 | L18: 240 | M18: 260 | N18: 280
A19: 21 | B19: 42 | C19: 63 | D19: 84 | E19: 105 | F19: 126 | G19: 147 | H19: 168 | I19: 189 | J19: 210 | K19: 231 | L19: 252 | M19: 273 | N19: 294
A20: 22 | B20: 44 | C20: 66 | D20: 88 | E20: 110 | F20: 132 | G20: 154 | H20: 176 | I20: 198 | J20: 220 | K20: 242 | L20: 264 | M20: 286 | N20: 308
A21: 23 | B21: 46 | C21: 69 | D21: 92 | E21: 115 | F21: 138 | G21: 161 | H21: 184 | I21: 207 | J21: 230 | K21: 253 | L21: 276 | M21: 299 | N21: 322
A22: 24 | B22: 48 | C22: 72 | D22: 96 | E22: 120 | F22: 144 | G22: 168 | H22: 192 | I22: 216 | J22: 240 | K22: 264 | L22: 288 | M22: 312 | N22: 336
A23: 25 | B23: 50 | C23: 75 | D23: 100 | E23: 125 | F23: 150 | G23: 175 | H23: 200 | I23: 225 | J23: 250 | K23: 275 | L23: 300 | M23: 325 | N23: 350
A24: 26 | B24: 52 | C24: 78 | D24: 104 | E24: 130 | F24: 156 | G24: 182 | H24: 208 | I24: 234 | J24: 260 | K24: 286 | L24: 312 | M24: 338 | N24: 364
A25: 27 | B25: 54 | C25: 81 | D25: 108 | E25: 135 | F25: 162 | G25: 189 | H25: 216 | I25: 243 | J25: 270 | K25: 297 | L25: 324 | M25: 351 | N25: 378
A26: 28 | B26: 56 | C26: 84 | D26: 112 | E26: 140 | F26: =F$5*$A26 -> 168 | G26: 196 | H26: 224 | I26: 252 | J26: 280 | K26: 308 | L26: 336 | M26: 364 | N26: 392
A27: 29 | B27: 58 | C27: 87 | D27: 116 | E27: 145 | F27: 174 | G27: 203 | H27: 232 | I27: 261 | J27: 290 | K27: 319 | L27: 348 | M27: 377 | N27: 406
A28: 30 | B28: 60 | C28: 90 | D28: 120 | E28: 150 | F28: 180 | G28: 210 | H28: 240 | I28: 270 | J28: 300 | K28: 330 | L28: 360 | M28: 390 | N28: 420
A29: 31 | B29: 62 | C29: 93 | D29: 124 | E29: 155 | F29: 186 | G29: 217 | H29: 248 | I29: 279 | J29: 310 | K29: 341 | L29: 372 | M29: 403 | N29: 434
A30: 32 | B30: 64 | C30: 96 | D30: 128 | E30: 160 | F30: 192 | G30: 224 | H30: 256 | I30: 288 | J30: 320 | K30: 352 | L30: 384 | M30: 416 | N30: 448

Sheet Gemengd 3
A1: BTW % | B1: 0.06
A3: Code | B3: Boektitel | C3: Taal | D3: Categorie | E3: Prijs | F3: Kw 1 | G3: Kw 2 | H3: Kw 3 | I3: Kw 4 | J3: Bedrag kw1 | K3: bedrag kw2 | L3: bedrag kw3 | M3: bedrag kw4
A4: 17 | B4: Alleen is ook maar alleen | C4: NL | D4: Jeugdboeken | E4: 19.95 | F4: 23 | G4: 10 | H4: 32 | I4: 38
A5: 18 | B5: Alleen op vakantie | C5: NL | D5: Jeugdboeken | E5: 16.9 | F5: 48 | G5: 40 | H5: 43 | I5: 10
A6: 19 | B6: Blijf van me af! | C6: NL | D6: Jeugdboeken | E6: 15.9 | F6: 24 | G6: 7 | H6: 45 | I6: 30
A7: 20 | B7: Het geheim van het Amulet ontrafeld | C7: NL | D7: Jeugdboeken | E7: 29 | F7: 32 | G7: 1 | H7: 44 | I7: 33
A8: 21 | B8: Amulets secret revealed | C8: EN | D8: Jeugdboeken | E8: 29 | F8: 6 | G8: 11 | H8: 32 | I8: 26
A9: 22 | B9: Lifters | C9: NL | D9: Jeugdboeken | E9: 21 | F9: 49 | G9: 0 | H9: 50 | I9: 44
A10: 23 | B10: Magie tussen gesloten deuren | C10: NL | D10: Jeugdboeken | E10: 19.5 | F10: 20 | G10: 30 | H10: 0 | I10: 24
A11: 24 | B11: Mysterieus en charmant, zij is voor mij! | C11: NL | D11: Jeugdboeken | E11: 31.23 | F11: 34 | G11: 35 | H11: 41 | I11: 50
A12: 25 | B12: Mysterious and Charming, she's mine | C12: EN | D12: Jeugdboeken | E12: 31.23 | F12: 27 | G12: 1 | H12: 17 | I12: 1
A13: 26 | B13: Schrijf me! | C13: NL | D13: Jeugdboeken | E13: 19.5 | F13: 35 | G13: 46 | H13: 16 | I13: 23
A14: 27 | B14: Stop! | C14: NL | D14: Jeugdboeken | E14: 23.46 | F14: 38 | G14: 43 | H14: 50 | I14: 27
A15: 28 | B15: Wat als, ik dat ook ga doen! | C15: NL | D15: Jeugdboeken | E15: 25.89 | F15: 27 | G15: 32 | H15: 9 | I15: 8
A16: 29 | B16: Wat jij kan doe ik beter! | C16: NL | D16: Jeugdboeken | E16: 25.89 | F16: 0 | G16: 15 | H16: 28 | I16: 32
A17: 30 | B17: Everything you can do, i can do better | C17: EN | D17: Jeugdboeken | E17: 25.89 | F17: 17 | G17: 11 | H17: 24 | I17: 2
A18: 31 | B18: Bril Smurfs ontdekking | C18: NL | D18: Kinderboeken | E18: 12.5 | F18: 50 | G18: 17 | H18: 11 | I18: 17
A19: 32 | B19: De mooiste sprookjes van Royer | C19: NL | D19: Kinderboeken | E19: 32 | F19: 16 | G19: 21 | H19: 36 | I19: 29
A20: 33 | B20: De zijden speeltuin | C20: NL | D20: Kinderboeken | E20: 12.5 | F20: 42 | G20: 7 | H20: 5 | I20: 28
A21: 34 | B21: Het grote voorleesboek | C21: NL | D21: Kinderboeken | E21: 14 | F21: 44 | G21: 30 | H21: 43 | I21: 14
A22: 35 | B22: Kelly ik vind jou lief! | C22: NL | D22: Kinderboeken | E22: 16.5 | F22: 41 | G22: 10 | H22: 23 | I22: 1
A23: 36 | B23: Koe de KREKEL | C23: NL | D23: Kinderboeken | E23: 13.5 | F23: 27 | G23: 44 | H23: 18 | I23: 21
A24: 37 | B24: Lekker puh! | C24: NL | D24: Kinderboeken | E24: 17 | F24: 9 | G24: 11 | H24: 27 | I24: 1
A25: 38 | B25: Mam, het spookt in mijn kamer | C25: NL | D25: Kinderboeken | E25: 16 | F25: 39 | G25: 23 | H25: 27 | I25: 17
A26: 39 | B26: Pak me dan als je kan, je kan me toch niet pakken! | C26: NL | D26: Kinderboeken | E26: 18 | F26: 23 | G26: 4 | H26: 31 | I26: 13
A27: 40 | B27: Sip & Annemieke | C27: NL | D27: Kinderboeken | E27: 18.4 | F27: 29 | G27: 7 | H27: 45 | I27: 1
A28: 41 | B28: Zwemmen met dolfijnen | C28: NL | D28: Kinderboeken | E28: 9.65 | F28: 32 | G28: 6 | H28: 33 | I28: 41
A29: 42 | B29: De Ziel openstellen | C29: NL | D29: Literatuur | E29: 24 | F29: 5 | G29: 42 | H29: 21 | I29: 13
A30: 43 | B30: Een duivel op naaldhakken | C30: NL | D30: Literatuur | E30: 39 | F30: 3 | G30: 8 | H30: 2 | I30: 49
A31: 44 | B31: Devil on heals | C31: EN | D31: Literatuur | E31: 39 | F31: 30 | G31: 47 | H31: 21 | I31: 39
A32: 45 | B32: Ik was 15 en toen… | C32: NL | D32: Literatuur | E32: 9.5 | F32: 11 | G32: 2 | H32: 50 | I32: 12
A33: 46 | B33: Jij en ik, vriendinnen voor altijd! | C33: NL | D33: Literatuur | E33: 19.95 | F33: 10 | G33: 48 | H33: 17 | I33: 31
A34: 47 | B34: Levenslang vast aan hem! | C34: NL | D34: Literatuur | E34: 19.5 | F34: 12 | G34: 15 | H34: 34 | I34: 23
A35: 48 | B35: My chamsudin to my rumi (poëzi) | C35: EN | D35: Literatuur | E35: 25.45 | F35: 13 | G35: 38 | H35: 2 | I35: 10
A36: 49 | B36: Stttttttttttttt, i'm a shopaholic | C36: NL | D36: Literatuur | E36: 20 | F36: 34 | G36: 26 | H36: 13 | I36: 19
A37: 50 | B37: The Memoir of Sara Hobson | C37: EN | D37: Literatuur | E37: 16.25 | F37: 6 | G37: 7 | H37: 38 | I37: 26
A38: 51 | B38: Vang mijn tranen | C38: NL | D38: Literatuur | E38: 33.95 | F38: 9 | G38: 0 | H38: 1 | I38: 28
A39: 52 | B39: Waarom ik lieg | C39: NL | D39: Literatuur | E39: 17 | F39: 6 | G39: 34 | H39: 26 | I39: 30
A40: 53 | B40: Was ik maar nooit gegaan! | C40: NL | D40: Literatuur | E40: 22 | F40: 47 | G40: 42 | H40: 12 | I40: 23
A41: 54 | B41: Aan de slag met de Administratieve Organisatie | C41: NL | D41: Studieboeken | E41: 37.69 | F41: 49 | G41: 25 | H41: 15 | I41: 5
A42: 55 | B42: Basisbegrippen Bedrijfseconomie / druk 35 | C42: NL | D42: Studieboeken | E42: 24 | F42: 50 | G42: 1 | H42: 17 | I42: 5
A43: 56 | B43: Business to Business Management | C43: NL | D43: Studieboeken | E43: 38 | F43: 10 | G43: 13 | H43: 17 | I43: 29
A44: 57 | B44: De acht eigenschappen van effectief leiderschap/ druk 40 | C44: NL | D44: Studieboeken | E44: 44.95 | F44: 48 | G44: 42 | H44: 1 | I44: 44
A45: 58 | B45: Europees Staatsrecht | C45: NL | D45: Studieboeken | E45: 130.95 | F45: 25 | G45: 40 | H45: 17 | I45: 11
A46: 59 | B46: Examens voor de deur! | C46: NL | D46: Studieboeken | E46: 55 | F46: 11 | G46: 18 | H46: 40 | I46: 20
A47: 60 | B47: Foutloos adviseren / druk 3 | C47: NL | D47: Studieboeken | E47: 34 | F47: 6 | G47: 11 | H47: 18 | I47: 14
A48: 61 | B48: Fundamenten van een Markt- en micro-economie + CD-ROM | C48: NL | D48: Studieboeken | E48: 28.5 | F48: 3 | G48: 30 | H48: 14 | I48: 21
A49: 62 | B49: Geld, IEB en bedrijfsprocessen | C49: NL | D49: Studieboeken | E49: 49.3 | F49: 32 | G49: 2 | H49: 17 | I49: 28
A50: 63 | B50: Human Resource Management to the MAX | C50: EN | D50: Studieboeken | E50: 43.9 | F50: 5 | G50: 14 | H50: 36 | I50: 36
A51: 64 | B51: How to survive in the World of ICT? | C51: EN | D51: Studieboeken | E51: 33.25 | F51: 15 | G51: 10 | H51: 44 | I51: 37
A52: 65 | B52: Internationale economische ontwikkelingen en bedrijfsomgeving | C52: NL | D52: Studieboeken | E52: 36.45 | F52: 13 | G52: 16 | H52: 23 | I52: 45
A53: 66 | B53: Jaarverslaggeving voor het HBO | C53: NL | D53: Studieboeken | E53: 37.95 | F53: 4 | G53: 36 | H53: 34 | I53: 36
A54: 67 | B54: Kunst van het bedriegen (Security, Law & Social issues ) | C54: NL | D54: Studieboeken | E54: 44 | F54: 43 | G54: 46 | H54: 10 | I54: 17
A55: 68 | B55: Linguistic in Dutch, Englisch, German and Spanish | C55: NL | D55: Studieboeken | E55: 22.5 | F55: 9 | G55: 3 | H55: 26 | I55: 6
A56: 69 | B56: Loosing is not an Option! | C56: EN | D56: Studieboeken | E56: 36 | F56: 6 | G56: 33 | H56: 8 | I56: 16
A57: 70 | B57: Marketing,- Communiatie & Publicrelations | C57: NL | D57: Studieboeken | E57: 44.5 | F57: 47 | G57: 24 | H57: 40 | I57: 41
A58: 71 | B58: Met je ogen dicht boekhouden | C58: NL | D58: Studieboeken | E58: 26.75 | F58: 23 | G58: 46 | H58: 24 | I58: 16
A59: 72 | B59: Opweg om Nederlands nummer 1 Secretaresse te worden. | C59: NL | D59: Studieboeken | E59: 78 | F59: 36 | G59: 45 | H59: 36 | I59: 11
A60: 73 | B60: Perfecte Spelling | C60: NL | D60: Studieboeken | E60: 15 | F60: 25 | G60: 25 | H60: 0 | I60: 34
A61: 74 | B61: Psychologie in de Pedagogiek | C61: NL | D61: Studieboeken | E61: 93 | F61: 50 | G61: 12 | H61: 49 | I61: 33
A62: 75 | B62: Rainbow strategy | C62: NL | D62: Studieboeken | E62: 28 | F62: 20 | G62: 25 | H62: 4 | I62: 31
A63: 76 | B63: Rainbow strategy | C63: EN | D63: Studieboeken | E63: 28 | F63: 20 | G63: 28 | H63: 6 | I63: 46
A64: 77 | B64: Schrijven doe je ZO! | C64: NL | D64: Studieboeken | E64: 13 | F64: 20 | G64: 18 | H64: 36 | I64: 31
A65: 78 | B65: Sociale Media geschiedenis | C65: NL | D65: Studieboeken | E65: 44 | F65: 22 | G65: 34 | H65: 21 | I65: 28
A66: 79 | B66: Staatkunde voor gevorderden + CD-ROM/ druk 15 | C66: NL | D66: Studieboeken | E66: 56 | F66: 10 | G66: 21 | H66: 30 | I66: 23
A67: 80 | B67: Van Lottik Woordenboeken EN-NE &NE-EN | C67: NL | D67: Studieboeken | E67: 18 | F67: 36 | G67: 49 | H67: 39 | I67: 20
A68: 81 | B68: Van Lottik Woordenboeken NE-SP & SP-EN | C68: NL | D68: Studieboeken | E68: 18 | F68: 22 | G68: 21 | H68: 5 | I68: 23
A69: 82 | B69: Wizzkid (combinatie van verschillende vakken ter voorbereiding aan het voortgezet onderwijs). | C69: NL | D69: Studieboeken | E69: 38 | F69: 39 | G69: 11 | H69: 37 | I69: 47
A70: 93 | B70: Informatica de basis(Acces, Excel, Outlook, PowerPoint etc) | C70: NL | D70: Studieboeken | E70: 80 | F70: 21 | G70: 9 | H70: 1 | I70: 19
A71: 94 | B71: Creatief een Internetsite bouwen (met diverse programma's) | C71: NL | D71: Studieboeken | E71: 44 | F71: 19 | G71: 8 | H71: 25 | I71: 5
A72: 83 | B72: De Mesalinni Mysterie | C72: NL | D72: Thrillers | E72: 45 | F72: 2 | G72: 42 | H72: 2 | I72: 2
A73: 84 | B73: The mesalinni Mystery | C73: EN | D73: Thrillers | E73: 45 | F73: 15 | G73: 0 | H73: 0 | I73: 14
A74: 85 | B74: De Monet Codes | C74: NL | D74: Thrillers | E74: 40 | F74: 15 | G74: 11 | H74: 14 | I74: 23
A75: 86 | B75: The Monet Codes | C75: EN | D75: Thrillers | E75: 40 | F75: 41 | G75: 23 | H75: 48 | I75: 14
A76: 87 | B76: Being beautiful is a curse | C76: EN | D76: Thrillers | E76: 28 | F76: 24 | G76: 38 | H76: 9 | I76: 16
A77: 88 | B77: De vloek van de schoonheid | C77: NL | D77: Thrillers | E77: 28 | F77: 32 | G77: 27 | H77: 15 | I77: 23
A78: 89 | B78: Deception, no turning back! | C78: EN | D78: Thrillers | E78: 33 | F78: 39 | G78: 15 | H78: 20 | I78: 40
A79: 90 | B79: Doel! | C79: NL | D79: Thrillers | E79: 25 | F79: 0 | G79: 28 | H79: 28 | I79: 50
A80: 91 | B80: Dubbelleven | C80: NL | D80: Thrillers | E80: 33 | F80: 32 | G80: 43 | H80: 29 | I80: 39
A81: 92 | B81: Till death do us part | C81: EN | D81: Thrillers | E81: 25 | F81: 35 | G81: 7 | H81: 0 | I81: 21
A82: 1 | B82: Dromenboek | C82: NL | D82: Fantasie | E82: 18 | F82: 47 | G82: 2 | H82: 25 | I82: 10
A83: 2 | B83: Dreambook | C83: EN | D83: Fantasie | E83: 19 | F83: 23 | G83: 15 | H83: 18 | I83: 14
A84: 3 | B84: Hoge Druïde van Shahbän | C84: NL | D84: Fantasie | E84: 10 | F84: 32 | G84: 46 | H84: 18 | I84: 46
A85: 4 | B85: In de ban van de Amulet | C85: NL | D85: Fantasie | E85: 22 | F85: 26 | G85: 47 | H85: 39 | I85: 33
A86: 5 | B86: The spell of the Amulet | C86: EN | D86: Fantasie | E86: 21.35 | F86: 41 | G86: 10 | H86: 46 | I86: 11
A87: 6 | B87: In de schaduw/ Afrikaans wicca magie | C87: NL | D87: Fantasie | E87: 25 | F87: 30 | G87: 37 | H87: 17 | I87: 11
A88: 7 | B88: Shadow/ African Wicca Magic | C88: EN | D88: Fantasie | E88: 30 | F88: 14 | G88: 6 | H88: 13 | I88: 17
A89: 8 | B89: Seduced by sunlight | C89: EN | D89: Fantasie | E89: 40 | F89: 25 | G89: 5 | H89: 17 | I89: 50
A90: 9 | B90: The Pillars of Black and White Magic | C90: EN | D90: Fantasie | E90: 97 | F90: 40 | G90: 45 | H90: 10 | I90: 41
A91: 10 | B91: Verboden Magie / Forbidden Magic | C91: NE | D91: Fantasie | E91: 31 | F91: 39 | G91: 2 | H91: 18 | I91: 26
A92: 11 | B92: Forbidden Magic | C92: EN | D92: Fantasie | E92: 21 | F92: 7 | G92: 2 | H92: 35 | I92: 50
A93: 12 | B93: Eerste kennismaking met de oude wereld | C93: NL | D93: Geschiedenis/Religie | E93: 38 | F93: 32 | G93: 48 | H93: 49 | I93: 48
A94: 13 | B94: Nederland en Slavenhandel Hoe,Wat, Waarom | C94: NL | D94: Geschiedenis/Religie | E94: 6 | F94: 4 | G94: 3 | H94: 17 | I94: 18
A95: 14 | B95: Terugblik in de Nederlandse Geschiedenis | C95: NL | D95: Geschiedenis/Religie | E95: 23.25 | F95: 8 | G95: 1 | H95: 29 | I95: 41
A96: 15 | B96: The thruth and nothing but the thruth (History of world affairs and Wars) | C96: EN | D96: Geschiedenis/Religie | E96: 15.5 | F96: 14 | G96: 28 | H96: 7 | I96: 30
A97: 16 | B97: Verleden, heden en toekomst het Bronnenboek | C97: NL | D97: Geschiedenis/Religie | E97: 33.45 | F97: 34 | G97: 32 | H97: 45 | I97: 9

Sheet Gemengd 3 opg
A1: BTW % | B1: 0.06
A3: Code | B3: Boektitel | C3: Taal | D3: Categorie | E3: Prijs | F3: Kw 1 | G3: Kw 2 | H3: Kw 3 | I3: Kw 4 | J3: Bedrag kw1 | K3: bedrag kw2 | L3: bedrag kw3 | M3: bedrag kw4
A4: 17 | B4: Alleen is ook maar alleen | C4: NL | D4: Jeugdboeken | E4: 19.95 | F4: 23 | G4: 10 | H4: 32 | I4: 38 | J4: =$E4*F4*(1+$B$1) -> 486.381 | K4: =$E4*G4*(1+$B$1) -> 211.47 | L4: 676.704 | M4: 803.586
A5: 18 | B5: Alleen op vakantie | C5: NL | D5: Jeugdboeken | E5: 16.9 | F5: 48 | G5: 40 | H5: 43 | I5: 10 | J5: =$E5*F5*(1+$B$1) -> 859.872 | K5: 716.56 | L5: 770.302 | M5: 179.14
A6: 19 | B6: Blijf van me af! | C6: NL | D6: Jeugdboeken | E6: 15.9 | F6: 24 | G6: 7 | H6: 45 | I6: 30 | J6: 404.496 | K6: 117.978 | L6: 758.43 | M6: 505.62
A7: 20 | B7: Het geheim van het Amulet ontrafeld | C7: NL | D7: Jeugdboeken | E7: 29 | F7: 32 | G7: 1 | H7: 44 | I7: 33 | J7: 983.68 | K7: 30.74 | L7: 1352.56 | M7: 1014.42
A8: 21 | B8: Amulets secret revealed | C8: EN | D8: Jeugdboeken | E8: 29 | F8: 6 | G8: 11 | H8: 32 | I8: 26 | J8: 184.44 | K8: 338.14 | L8: 983.68 | M8: 799.24
A9: 22 | B9: Lifters | C9: NL | D9: Jeugdboeken | E9: 21 | F9: 49 | G9: 0 | H9: 50 | I9: 44 | J9: 1090.74 | K9: 0 | L9: 1113 | M9: 979.44
A10: 23 | B10: Magie tussen gesloten deuren | C10: NL | D10: Jeugdboeken | E10: 19.5 | F10: 20 | G10: 30 | H10: 0 | I10: 24 | J10: 413.4 | K10: 620.1 | L10: 0 | M10: 496.08
A11: 24 | B11: Mysterieus en charmant, zij is voor mij! | C11: NL | D11: Jeugdboeken | E11: 31.23 | F11: 34 | G11: 35 | H11: 41 | I11: 50 | J11: 1125.5292 | K11: 1158.633 | L11: 1357.2558 | M11: 1655.19
A12: 25 | B12: Mysterious and Charming, she's mine | C12: EN | D12: Jeugdboeken | E12: 31.23 | F12: 27 | G12: 1 | H12: 17 | I12: 1 | J12: 893.8026 | K12: 33.1038 | L12: 562.7646 | M12: 33.1038
A13: 26 | B13: Schrijf me! | C13: NL | D13: Jeugdboeken | E13: 19.5 | F13: 35 | G13: 46 | H13: 16 | I13: 23 | J13: 723.45 | K13: 950.82 | L13: 330.72 | M13: 475.41
A14: 27 | B14: Stop! | C14: NL | D14: Jeugdboeken | E14: 23.46 | F14: 38 | G14: 43 | H14: 50 | I14: 27 | J14: 944.9688 | K14: 1069.3068 | L14: 1243.38 | M14: 671.4252
A15: 28 | B15: Wat als, ik dat ook ga doen! | C15: NL | D15: Jeugdboeken | E15: 25.89 | F15: 27 | G15: 32 | H15: 9 | I15: 8 | J15: 740.9718 | K15: 878.1888 | L15: 246.9906 | M15: 219.5472
A16: 29 | B16: Wat jij kan doe ik beter! | C16: NL | D16: Jeugdboeken | E16: 25.89 | F16: 0 | G16: 15 | H16: 28 | I16: 32 | J16: 0 | K16: 411.651 | L16: 768.4152 | M16: 878.1888
A17: 30 | B17: Everything you can do, i can do better | C17: EN | D17: Jeugdboeken | E17: 25.89 | F17: 17 | G17: 11 | H17: 24 | I17: 2 | J17: 466.5378 | K17: 301.8774 | L17: 658.6416 | M17: 54.8868
A18: 31 | B18: Bril Smurfs ontdekking | C18: NL | D18: Kinderboeken | E18: 12.5 | F18: 50 | G18: 17 | H18: 11 | I18: 17 | J18: 662.5 | K18: 225.25 | L18: 145.75 | M18: 225.25
A19: 32 | B19: De mooiste sprookjes van Royer | C19: NL | D19: Kinderboeken | E19: 32 | F19: 16 | G19: 21 | H19: 36 | I19: 29 | J19: 542.72 | K19: 712.32 | L19: 1221.12 | M19: 983.68
A20: 33 | B20: De zijden speeltuin | C20: NL | D20: Kinderboeken | E20: 12.5 | F20: 42 | G20: 7 | H20: 5 | I20: 28 | J20: 556.5 | K20: =$E20*G20*(1+$B$1) -> 92.75 | L20: =$E20*H20*(1+$B$1) -> 66.25 | M20: =$E20*I20*(1+$B$1) -> 371
A21: 34 | B21: Het grote voorleesboek | C21: NL | D21: Kinderboeken | E21: 14 | F21: 44 | G21: 30 | H21: 43 | I21: 14 | J21: 652.96 | K21: 445.2 | L21: 638.12 | M21: 207.76
A22: 35 | B22: Kelly ik vind jou lief! | C22: NL | D22: Kinderboeken | E22: 16.5 | F22: 41 | G22: 10 | H22: 23 | I22: 1 | J22: 717.09 | K22: 174.9 | L22: 402.27 | M22: 17.49
A23: 36 | B23: Koe de KREKEL | C23: NL | D23: Kinderboeken | E23: 13.5 | F23: 27 | G23: 44 | H23: 18 | I23: 21 | J23: 386.37 | K23: 629.64 | L23: 257.58 | M23: 300.51
A24: 37 | B24: Lekker puh! | C24: NL | D24: Kinderboeken | E24: 17 | F24: 9 | G24: 11 | H24: 27 | I24: 1 | J24: 162.18 | K24: 198.22 | L24: 486.54 | M24: 18.02
A25: 38 | B25: Mam, het spookt in mijn kamer | C25: NL | D25: Kinderboeken | E25: 16 | F25: 39 | G25: 23 | H25: 27 | I25: 17 | J25: 661.44 | K25: 390.08 | L25: 457.92 | M25: 288.32
A26: 39 | B26: Pak me dan als je kan, je kan me toch niet pakken! | C26: NL | D26: Kinderboeken | E26: 18 | F26: 23 | G26: 4 | H26: 31 | I26: 13 | J26: 438.84 | K26: 76.32 | L26: 591.48 | M26: 248.04
A27: 40 | B27: Sip & Annemieke | C27: NL | D27: Kinderboeken | E27: 18.4 | F27: 29 | G27: 7 | H27: 45 | I27: 1 | J27: 565.616 | K27: 136.528 | L27: 877.68 | M27: 19.504
A28: 41 | B28: Zwemmen met dolfijnen | C28: NL | D28: Kinderboeken | E28: 9.65 | F28: 32 | G28: 6 | H28: 33 | I28: 41 | J28: 327.328 | K28: 61.374 | L28: 337.557 | M28: 419.389
A29: 42 | B29: De Ziel openstellen | C29: NL | D29: Literatuur | E29: 24 | F29: 5 | G29: 42 | H29: 21 | I29: 13 | J29: 127.2 | K29: 1068.48 | L29: 534.24 | M29: 330.72
A30: 43 | B30: Een duivel op naaldhakken | C30: NL | D30: Literatuur | E30: 39 | F30: 3 | G30: 8 | H30: 2 | I30: 49 | J30: 124.02 | K30: 330.72 | L30: 82.68 | M30: 2025.66
A31: 44 | B31: Devil on heals | C31: EN | D31: Literatuur | E31: 39 | F31: 30 | G31: 47 | H31: 21 | I31: 39 | J31: 1240.2 | K31: 1942.98 | L31: 868.14 | M31: 1612.26
A32: 45 | B32: Ik was 15 en toen… | C32: NL | D32: Literatuur | E32: 9.5 | F32: 11 | G32: 2 | H32: 50 | I32: 12 | J32: 110.77 | K32: 20.14 | L32: 503.5 | M32: 120.84
A33: 46 | B33: Jij en ik, vriendinnen voor altijd! | C33: NL | D33: Literatuur | E33: 19.95 | F33: 10 | G33: 48 | H33: 17 | I33: 31 | J33: 211.47 | K33: 1015.056 | L33: 359.499 | M33: 655.557
A34: 47 | B34: Levenslang vast aan hem! | C34: NL | D34: Literatuur | E34: 19.5 | F34: 12 | G34: 15 | H34: 34 | I34: 23 | J34: 248.04 | K34: 310.05 | L34: 702.78 | M34: 475.41
A35: 48 | B35: My chamsudin to my rumi (poëzi) | C35: EN | D35: Literatuur | E35: 25.45 | F35: 13 | G35: 38 | H35: 2 | I35: 10 | J35: 350.701 | K35: 1025.126 | L35: 53.954 | M35: 269.77
A36: 49 | B36: Stttttttttttttt, i'm a shopaholic | C36: NL | D36: Literatuur | E36: 20 | F36: 34 | G36: 26 | H36: 13 | I36: 19 | J36: 720.8 | K36: 551.2 | L36: 275.6 | M36: 402.8
A37: 50 | B37: The Memoir of Sara Hobson | C37: EN | D37: Literatuur | E37: 16.25 | F37: 6 | G37: 7 | H37: 38 | I37: 26 | J37: 103.35 | K37: 120.575 | L37: 654.55 | M37: 447.85
A38: 51 | B38: Vang mijn tranen | C38: NL | D38: Literatuur | E38: 33.95 | F38: 9 | G38: 0 | H38: 1 | I38: 28 | J38: 323.883 | K38: 0 | L38: 35.987 | M38: 1007.636
A39: 52 | B39: Waarom ik lieg | C39: NL | D39: Literatuur | E39: 17 | F39: 6 | G39: 34 | H39: 26 | I39: 30 | J39: 108.12 | K39: 612.68 | L39: 468.52 | M39: 540.6
A40: 53 | B40: Was ik maar nooit gegaan! | C40: NL | D40: Literatuur | E40: 22 | F40: 47 | G40: 42 | H40: 12 | I40: 23 | J40: 1096.04 | K40: 979.44 | L40: 279.84 | M40: 536.36
A41: 54 | B41: Aan de slag met de Administratieve Organisatie | C41: NL | D41: Studieboeken | E41: 37.69 | F41: 49 | G41: 25 | H41: 15 | I41: 5 | J41: 1957.6186 | K41: 998.785 | L41: 599.271 | M41: 199.757
A42: 55 | B42: Basisbegrippen Bedrijfseconomie / druk 35 | C42: NL | D42: Studieboeken | E42: 24 | F42: 50 | G42: 1 | H42: 17 | I42: 5 | J42: 1272 | K42: 25.44 | L42: 432.48 | M42: 127.2
A43: 56 | B43: Business to Business Management | C43: NL | D43: Studieboeken | E43: 38 | F43: 10 | G43: 13 | H43: 17 | I43: 29 | J43: 402.8 | K43: 523.64 | L43: 684.76 | M43: 1168.12
A44: 57 | B44: De acht eigenschappen van effectief leiderschap/ druk 40 | C44: NL | D44: Studieboeken | E44: 44.95 | F44: 48 | G44: 42 | H44: 1 | I44: 44 | J44: 2287.056 | K44: 2001.174 | L44: 47.647 | M44: 2096.468
A45: 58 | B45: Europees Staatsrecht | C45: NL | D45: Studieboeken | E45: 130.95 | F45: 25 | G45: 40 | H45: 17 | I45: 11 | J45: 3470.175 | K45: 5552.28 | L45: 2359.719 | M45: 1526.877
A46: 59 | B46: Examens voor de deur! | C46: NL | D46: Studieboeken | E46: 55 | F46: 11 | G46: 18 | H46: 40 | I46: 20 | J46: 641.3 | K46: 1049.4 | L46: 2332 | M46: 1166
A47: 60 | B47: Foutloos adviseren / druk 3 | C47: NL | D47: Studieboeken | E47: 34 | F47: 6 | G47: 11 | H47: 18 | I47: 14 | J47: 216.24 | K47: 396.44 | L47: 648.72 | M47: 504.56
A48: 61 | B48: Fundamenten van een Markt- en micro-economie + CD-ROM | C48: NL | D48: Studieboeken | E48: 28.5 | F48: 3 | G48: 30 | H48: 14 | I48: 21 | J48: 90.63 | K48: 906.3 | L48: 422.94 | M48: 634.41
A49: 62 | B49: Geld, IEB en bedrijfsprocessen | C49: NL | D49: Studieboeken | E49: 49.3 | F49: 32 | G49: 2 | H49: 17 | I49: 28 | J49: 1672.256 | K49: 104.516 | L49: 888.386 | M49: 1463.224
A50: 63 | B50: Human Resource Management to the MAX | C50: EN | D50: Studieboeken | E50: 43.9 | F50: 5 | G50: 14 | H50: 36 | I50: 36 | J50: 232.67 | K50: 651.476 | L50: 1675.224 | M50: 1675.224
A51: 64 | B51: How to survive in the World of ICT? | C51: EN | D51: Studieboeken | E51: 33.25 | F51: 15 | G51: 10 | H51: 44 | I51: 37 | J51: 528.675 | K51: 352.45 | L51: 1550.78 | M51: 1304.065
A52: 65 | B52: Internationale economische ontwikkelingen en bedrijfsomgeving | C52: NL | D52: Studieboeken | E52: 36.45 | F52: 13 | G52: 16 | H52: 23 | I52: 45 | J52: 502.281 | K52: 618.192 | L52: 888.651 | M52: 1738.665
A53: 66 | B53: Jaarverslaggeving voor het HBO | C53: NL | D53: Studieboeken | E53: 37.95 | F53: 4 | G53: 36 | H53: 34 | I53: 36 | J53: 160.908 | K53: 1448.172 | L53: 1367.718 | M53: 1448.172
A54: 67 | B54: Kunst van het bedriegen (Security, Law & Social issues ) | C54: NL | D54: Studieboeken | E54: 44 | F54: 43 | G54: 46 | H54: 10 | I54: 17 | J54: 2005.52 | K54: 2145.44 | L54: 466.4 | M54: 792.88
A55: 68 | B55: Linguistic in Dutch, Englisch, German and Spanish | C55: NL | D55: Studieboeken | E55: 22.5 | F55: 9 | G55: 3 | H55: 26 | I55: 6 | J55: 214.65 | K55: 71.55 | L55: 620.1 | M55: 143.1
A56: 69 | B56: Loosing is not an Option! | C56: EN | D56: Studieboeken | E56: 36 | F56: 6 | G56: 33 | H56: 8 | I56: 16 | J56: 228.96 | K56: 1259.28 | L56: 305.28 | M56: 610.56
A57: 70 | B57: Marketing,- Communiatie & Publicrelations | C57: NL | D57: Studieboeken | E57: 44.5 | F57: 47 | G57: 24 | H57: 40 | I57: 41 | J57: 2216.99 | K57: 1132.08 | L57: 1886.8 | M57: 1933.97
A58: 71 | B58: Met je ogen dicht boekhouden | C58: NL | D58: Studieboeken | E58: 26.75 | F58: 23 | G58: 46 | H58: 24 | I58: 16 | J58: 652.165 | K58: 1304.33 | L58: 680.52 | M58: 453.68
A59: 72 | B59: Opweg om Nederlands nummer 1 Secretaresse te worden. | C59: NL | D59: Studieboeken | E59: 78 | F59: 36 | G59: 45 | H59: 36 | I59: 11 | J59: 2976.48 | K59: 3720.6 | L59: 2976.48 | M59: 909.48
A60: 73 | B60: Perfecte Spelling | C60: NL | D60: Studieboeken | E60: 15 | F60: 25 | G60: 25 | H60: 0 | I60: 34 | J60: 397.5 | K60: 397.5 | L60: 0 | M60: 540.6
A61: 74 | B61: Psychologie in de Pedagogiek | C61: NL | D61: Studieboeken | E61: 93 | F61: 50 | G61: 12 | H61: 49 | I61: 33 | J61: 4929 | K61: 1182.96 | L61: 4830.42 | M61: 3253.14
A62: 75 | B62: Rainbow strategy | C62: NL | D62: Studieboeken | E62: 28 | F62: 20 | G62: 25 | H62: 4 | I62: 31 | J62: 593.6 | K62: 742 | L62: 118.72 | M62: 920.08
A63: 76 | B63: Rainbow strategy | C63: EN | D63: Studieboeken | E63: 28 | F63: 20 | G63: 28 | H63: 6 | I63: 46 | J63: 593.6 | K63: 831.04 | L63: 178.08 | M63: 1365.28
A64: 77 | B64: Schrijven doe je ZO! | C64: NL | D64: Studieboeken | E64: 13 | F64: 20 | G64: 18 | H64: 36 | I64: 31 | J64: 275.6 | K64: 248.04 | L64: 496.08 | M64: 427.18
A65: 78 | B65: Sociale Media geschiedenis | C65: NL | D65: Studieboeken | E65: 44 | F65: 22 | G65: 34 | H65: 21 | I65: 28 | J65: 1026.08 | K65: 1585.76 | L65: 979.44 | M65: 1305.92
A66: 79 | B66: Staatkunde voor gevorderden + CD-ROM/ druk 15 | C66: NL | D66: Studieboeken | E66: 56 | F66: 10 | G66: 21 | H66: 30 | I66: 23 | J66: 593.6 | K66: 1246.56 | L66: 1780.8 | M66: 1365.28
A67: 80 | B67: Van Lottik Woordenboeken EN-NE &NE-EN | C67: NL | D67: Studieboeken | E67: 18 | F67: 36 | G67: 49 | H67: 39 | I67: 20 | J67: 686.88 | K67: 934.92 | L67: 744.12 | M67: 381.6
A68: 81 | B68: Van Lottik Woordenboeken NE-SP & SP-EN | C68: NL | D68: Studieboeken | E68: 18 | F68: 22 | G68: 21 | H68: 5 | I68: 23 | J68: 419.76 | K68: 400.68 | L68: 95.4 | M68: 438.84
A69: 82 | B69: Wizzkid (combinatie van verschillende vakken ter voorbereiding aan het voortgezet onderwijs). | C69: NL | D69: Studieboeken | E69: 38 | F69: 39 | G69: 11 | H69: 37 | I69: 47 | J69: =$E69*F69*(1+$B$1) -> 1570.92 | K69: 443.08 | L69: 1490.36 | M69: 1893.16
A70: 93 | B70: Informatica de basis(Acces, Excel, Outlook, PowerPoint etc) | C70: NL | D70: Studieboeken | E70: 80 | F70: 21 | G70: 9 | H70: 1 | I70: 19 | J70: 1780.8 | K70: 763.2 | L70: 84.8 | M70: 1611.2
A71: 94 | B71: Creatief een Internetsite bouwen (met diverse programma's) | C71: NL | D71: Studieboeken | E71: 44 | F71: 19 | G71: 8 | H71: 25 | I71: 5 | J71: 886.16 | K71: 373.12 | L71: 1166 | M71: 233.2
A72: 83 | B72: De Mesalinni Mysterie | C72: NL | D72: Thrillers | E72: 45 | F72: 2 | G72: 42 | H72: 2 | I72: 2 | J72: 95.4 | K72: 2003.4 | L72: 95.4 | M72: 95.4
A73: 84 | B73: The mesalinni Mystery | C73: EN | D73: Thrillers | E73: 45 | F73: 15 | G73: 0 | H73: 0 | I73: 14 | J73: 715.5 | K73: 0 | L73: 0 | M73: 667.8
A74: 85 | B74: De Monet Codes | C74: NL | D74: Thrillers | E74: 40 | F74: 15 | G74: 11 | H74: 14 | I74: 23 | J74: 636 | K74: 466.4 | L74: 593.6 | M74: 975.2
A75: 86 | B75: The Monet Codes | C75: EN | D75: Thrillers | E75: 40 | F75: 41 | G75: 23 | H75: 48 | I75: 14 | J75: 1738.4 | K75: 975.2 | L75: 2035.2 | M75: 593.6
A76: 87 | B76: Being beautiful is a curse | C76: EN | D76: Thrillers | E76: 28 | F76: 24 | G76: 38 | H76: 9 | I76: 16 | J76: 712.32 | K76: 1127.84 | L76: 267.12 | M76: 474.88
A77: 88 | B77: De vloek van de schoonheid | C77: NL | D77: Thrillers | E77: 28 | F77: 32 | G77: 27 | H77: 15 | I77: 23 | J77: 949.76 | K77: 801.36 | L77: 445.2 | M77: 682.64
A78: 89 | B78: Deception, no turning back! | C78: EN | D78: Thrillers | E78: 33 | F78: 39 | G78: 15 | H78: 20 | I78: 40 | J78: 1364.22 | K78: 524.7 | L78: 699.6 | M78: 1399.2
A79: 90 | B79: Doel! | C79: NL | D79: Thrillers | E79: 25 | F79: 0 | G79: 28 | H79: 28 | I79: 50 | J79: 0 | K79: 742 | L79: 742 | M79: 1325
A80: 91 | B80: Dubbelleven | C80: NL | D80: Thrillers | E80: 33 | F80: 32 | G80: 43 | H80: 29 | I80: 39 | J80: 1119.36 | K80: 1504.14 | L80: 1014.42 | M80: 1364.22
A81: 92 | B81: Till death do us part | C81: EN | D81: Thrillers | E81: 25 | F81: 35 | G81: 7 | H81: 0 | I81: 21 | J81: 927.5 | K81: 185.5 | L81: 0 | M81: 556.5
A82: 1 | B82: Dromenboek | C82: NL | D82: Fantasie | E82: 18 | F82: 47 | G82: 2 | H82: 25 | I82: 10 | J82: 896.76 | K82: 38.16 | L82: 477 | M82: 190.8
A83: 2 | B83: Dreambook | C83: EN | D83: Fantasie | E83: 19 | F83: 23 | G83: 15 | H83: 18 | I83: 14 | J83: 463.22 | K83: 302.1 | L83: 362.52 | M83: 281.96
A84: 3 | B84: Hoge Druïde van Shahbän | C84: NL | D84: Fantasie | E84: 10 | F84: 32 | G84: 46 | H84: 18 | I84: 46 | J84: 339.2 | K84: =$E84*G84*(1+$B$1) -> 487.6 | L84: =$E84*H84*(1+$B$1) -> 190.8 | M84: =$E84*I84*(1+$B$1) -> 487.6
A85: 4 | B85: In de ban van de Amulet | C85: NL | D85: Fantasie | E85: 22 | F85: 26 | G85: 47 | H85: 39 | I85: 33 | J85: 606.32 | K85: 1096.04 | L85: 909.48 | M85: 769.56
A86: 5 | B86: The spell of the Amulet | C86: EN | D86: Fantasie | E86: 21.35 | F86: 41 | G86: 10 | H86: 46 | I86: 11 | J86: 927.871 | K86: 226.31 | L86: 1041.026 | M86: 248.941
A87: 6 | B87: In de schaduw/ Afrikaans wicca magie | C87: NL | D87: Fantasie | E87: 25 | F87: 30 | G87: 37 | H87: 17 | I87: 11 | J87: 795 | K87: 980.5 | L87: 450.5 | M87: 291.5
A88: 7 | B88: Shadow/ African Wicca Magic | C88: EN | D88: Fantasie | E88: 30 | F88: 14 | G88: 6 | H88: 13 | I88: 17 | J88: 445.2 | K88: 190.8 | L88: 413.4 | M88: 540.6
A89: 8 | B89: Seduced by sunlight | C89: EN | D89: Fantasie | E89: 40 | F89: 25 | G89: 5 | H89: 17 | I89: 50 | J89: 1060 | K89: 212 | L89: 720.8 | M89: 2120
A90: 9 | B90: The Pillars of Black and White Magic | C90: EN | D90: Fantasie | E90: 97 | F90: 40 | G90: 45 | H90: 10 | I90: 41 | J90: 4112.8 | K90: 4626.9 | L90: 1028.2 | M90: 4215.62
A91: 10 | B91: Verboden Magie / Forbidden Magic | C91: NE | D91: Fantasie | E91: 31 | F91: 39 | G91: 2 | H91: 18 | I91: 26 | J91: 1281.54 | K91: 65.72 | L91: 591.48 | M91: 854.36
A92: 11 | B92: Forbidden Magic | C92: EN | D92: Fantasie | E92: 21 | F92: 7 | G92: 2 | H92: 35 | I92: 50 | J92: 155.82 | K92: 44.52 | L92: 779.1 | M92: 1113
A93: 12 | B93: Eerste kennismaking met de oude wereld | C93: NL | D93: Geschiedenis/Religie | E93: 38 | F93: 32 | G93: 48 | H93: 49 | I93: 48 | J93: 1288.96 | K93: 1933.44 | L93: 1973.72 | M93: 1933.44
A94: 13 | B94: Nederland en Slavenhandel Hoe,Wat, Waarom | C94: NL | D94: Geschiedenis/Religie | E94: 6 | F94: 4 | G94: 3 | H94: 17 | I94: 18 | J94: 25.44 | K94: 19.08 | L94: 108.12 | M94: 114.48
A95: 14 | B95: Terugblik in de Nederlandse Geschiedenis | C95: NL | D95: Geschiedenis/Religie | E95: 23.25 | F95: 8 | G95: 1 | H95: 29 | I95: 41 | J95: 197.16 | K95: 24.645 | L95: 714.705 | M95: 1010.445
A96: 15 | B96: The thruth and nothing but the thruth (History of world affairs and Wars) | C96: EN | D96: Geschiedenis/Religie | E96: 15.5 | F96: 14 | G96: 28 | H96: 7 | I96: 30 | J96: 230.02 | K96: 460.04 | L96: 115.01 | M96: 492.9
A97: 16 | B97: Verleden, heden en toekomst het Bronnenboek | C97: NL | D97: Geschiedenis/Religie | E97: 33.45 | F97: 34 | G97: 32 | H97: 45 | I97: 9 | J97: 1205.538 | K97: 1134.624 | L97: 1595.565 | M97: 319.113

Sheet Gemengd 4
A1: CARAVANVERHUUR | D1: Korting bij huur van: | H1: Toeslag bij:
C2: Aantal Weken >> | D2: 2 | E2: 3 | F2: 4 | G2: 5 | H2: minder dan 1 week
A3: Stacaravan | B3: Maten | C3: Normale prijs per week | D3: 0.1 | E3: 0.15 | F3: 0.2 | G3: 0.3 | H3: 0.15
A4: Loft | B4: 9 x 4 m | C4: 695
A5: Premier | B5: 10,5 x 3,80 m | C5: 745
A6: Sunlight | B6: 9 x 4 m | C6: 895
A7: Superior | B7: 9 x 4 m | C7: 910
A8: Comfort | B8: 8,70 x 4 m | C8: 755
A9: Classic | B9: 8,70 x 3,60 m | C9: 645
A11: CARAVANVERHUUR | D11: Korting bij huur van:
C12: Aantal Weken >> | D12: 2 | E12: 3 | F12: 4 | G12: 5
A13: Stacaravan | B13: Maten | C13: Normale prijs per week | D13: 0.1 | E13: 0.15 | F13: 0.2 | G13: 0.3
A14: Loft | B14: 9 x 4 m | C14: 695
A15: Premier | B15: 10,5 x 3,80 m | C15: 745
A16: Sunlight | B16: 9 x 4 m | C16: 895
A17: Superior | B17: 9 x 4 m | C17: 910
A18: Comfort | B18: 8,70 x 4 m | C18: 755
A19: Classic | B19: 8,70 x 3,60 m | C19: 645

Sheet Gemengd 4 opg
A1: CARAVANVERHUUR | D1: Korting bij huur van: | H1: Toeslag bij:
C2: Aantal Weken >> | D2: 2 | E2: 3 | F2: 4 | G2: 5 | H2: minder dan 1 week
A3: Stacaravan | B3: Maten | C3: Normale prijs per week | D3: 0.1 | E3: 0.15 | F3: 0.2 | G3: 0.3 | H3: 0.15
A4: Loft | B4: 9 x 4 m | C4: 695 | D4: =$C4*(1-D$3) -> 625.5 | E4: =$C4*(1-E$3) -> 590.75 | F4: =$C4*(1-F$3) -> 556 | G4: =$C4*(1-G$3) -> 486.5 | H4: =C4*(1+H$3) -> 799.25
A5: Premier | B5: 10,5 x 3,80 m | C5: 745 | D5: =$C5*(1-D$3) -> 670.5 | E5: 633.25 | F5: 596 | G5: 521.5 | H5: 856.75
A6: Sunlight | B6: 9 x 4 m | C6: 895 | D6: 805.5 | E6: 760.75 | F6: 716 | G6: 626.5 | H6: 1029.25
A7: Superior | B7: 9 x 4 m | C7: 910 | D7: 819 | E7: 773.5 | F7: 728 | G7: 637 | H7: 1046.5
A8: Comfort | B8: 8,70 x 4 m | C8: 755 | D8: 679.5 | E8: 641.75 | F8: 604 | G8: 528.5 | H8: 868.25
A9: Classic | B9: 8,70 x 3,60 m | C9: 645 | D9: 580.5 | E9: 548.25 | F9: 516 | G9: 451.5 | H9: 741.75
A11: CARAVANVERHUUR | D11: Korting bij huur van:
C12: Aantal Weken >> | D12: 2 | E12: 3 | F12: 4 | G12: 5
A13: Stacaravan | B13: Maten | C13: Normale prijs per week | D13: 0.1 | E13: 0.15 | F13: 0.2 | G13: 0.3
A14: Loft | B14: 9 x 4 m | C14: 695 | D14: =$C14*(1-D$13)*D$12 -> 1251 | E14: =$C14*(1-E$13)*E$12 -> 1772.25 | F14: =$C14*(1-F$13)*F$12 -> 2224 | G14: =$C14*(1-G$13)*G$12 -> 2432.5
A15: Premier | B15: 10,5 x 3,80 m | C15: 745 | D15: =$C15*(1-D$13)*D$12 -> 1341 | E15: 1899.75 | F15: 2384 | G15: 2607.5
A16: Sunlight | B16: 9 x 4 m | C16: 895 | D16: 1611 | E16: 2282.25 | F16: 2864 | G16: 3132.5
A17: Superior | B17: 9 x 4 m | C17: 910 | D17: 1638 | E17: 2320.5 | F17: 2912 | G17: 3185
A18: Comfort | B18: 8,70 x 4 m | C18: 755 | D18: 1359 | E18: 1925.25 | F18: 2416 | G18: 2642.5
A19: Classic | B19: 8,70 x 3,60 m | C19: 645 | D19: 1161 | E19: 1644.75 | F19: 2064 | G19: 2257.5

Sheet Gemengd 5
A1: Winkelketen W&W
A3: Product | B3: Inkoopprijs | C3: Verkoopprijs (met winstamarge)
C4: 0.3 | D4: 0.45 | E4: 0.6
A5: 123 | B5: 1200
A6: 125 | B6: 1300
A7: 129 | B7: 1450
A8: 131 | B8: 1430
A9: 145 | B9: 120
A10: 156 | B10: 20000
A11: 168 | B11: 100
A12: 188 | B12: 250
A13: 211 | B13: 300
A14: 223 | B14: 450
A15: 226 | B15: 335
A16: 268 | B16: 4455
A17: 278 | B17: 1000
A18: 312 | B18: 110
A19: 456 | B19: 2100
A20: 467 | B20: 120
A21: 478 | B21: 150
A22: 489 | B22: 25
A23: 499 | B23: 2500
A24: 512 | B24: 1250
A25: 513 | B25: 235
A26: 523 | B26: 222
A27: 536 | B27: 111
A28: 546 | B28: 145
A29: 568 | B29: 600
A30: 578 | B30: 560

Sheet Gemengd 5 opg
A1: Winkelketen W&W
A3: Product | B3: Inkoopprijs | C3: Verkoopprijs (met winstamarge)
C4: 0.3 | D4: 0.45 | E4: 0.6
A5: 123 | B5: 1200 | C5: =$B5+B5*C$4 -> 1560 | D5: =$B5+C5*D$4 -> 1902 | E5: 2341.2
A6: 125 | B6: 1300 | C6: =$B6+B6*C$4 -> 1690 | D6: 2060.5 | E6: 2536.3
A7: 129 | B7: 1450 | C7: 1885 | D7: 2298.25 | E7: 2828.95
A8: 131 | B8: 1430 | C8: 1859 | D8: 2266.55 | E8: 2789.93
A9: 145 | B9: 120 | C9: 156 | D9: 190.2 | E9: 234.12
A10: 156 | B10: 20000 | C10: 26000 | D10: 31700 | E10: 39020
A11: 168 | B11: 100 | C11: 130 | D11: 158.5 | E11: 195.1
A12: 188 | B12: 250 | C12: 325 | D12: 396.25 | E12: 487.75
A13: 211 | B13: 300 | C13: 390 | D13: 475.5 | E13: 585.3
A14: 223 | B14: 450 | C14: 585 | D14: 713.25 | E14: 877.95
A15: 226 | B15: 335 | C15: 435.5 | D15: 530.975 | E15: 653.585
A16: 268 | B16: 4455 | C16: 5791.5 | D16: 7061.175 | E16: 8691.705
A17: 278 | B17: 1000 | C17: 1300 | D17: 1585 | E17: 1951
A18: 312 | B18: 110 | C18: 143 | D18: 174.35 | E18: 214.61
A19: 456 | B19: 2100 | C19: 2730 | D19: 3328.5 | E19: 4097.1
A20: 467 | B20: 120 | C20: 156 | D20: 190.2 | E20: 234.12
A21: 478 | B21: 150 | C21: 195 | D21: 237.75 | E21: 292.65
A22: 489 | B22: 25 | C22: =$B22+B22*C$4 -> 32.5 | D22: 39.625 | E22: 48.775
A23: 499 | B23: 2500 | C23: 3250 | D23: 3962.5 | E23: 4877.5
A24: 512 | B24: 1250 | C24: 1625 | D24: 1981.25 | E24: 2438.75
A25: 513 | B25: 235 | C25: 305.5 | D25: 372.475 | E25: 458.485
A26: 523 | B26: 222 | C26: 288.6 | D26: 351.87 | E26: 433.122
A27: 536 | B27: 111 | C27: 144.3 | D27: 175.935 | E27: 216.561
A28: 546 | B28: 145 | C28: 188.5 | D28: 229.825 | E28: 282.895
A29: 568 | B29: 600 | C29: 780 | D29: 951 | E29: 1170.6
A30: 578 | B30: 560 | C30: 728 | D30: 887.6 | E30: 1092.56

Sheet Gemengd 6
A1: Huurprijs
B2: Aantal dagen
B3: 1 | C3: 7 | D3: 14 | E3: 21 | F3: 28
A4: Artikel | B4: Dagprijs | C4: 0.2 | D4: 0.3 | E4: 0.4 | F4: 0.45 | G4: Korting
A5: Bodemfrees 90 cm | B5: 24
A6: Kettingzaag 2 takt | B6: 34
A7: Houtkliefmachine 230 V | B7: 36
A8: Bosmaaier 4 takt | B8: 36
A9: Hooggrasmaaier 60 cm | B9: 62
A10: Verticuteermachine Benzine 6 pk | B10: 36
A11: Doorzaaimachine voor gazon | B11: 54
A12: Meststofstrooier | B12: 8
A13: Graszodensnijder zelfrijdend | B13: 76
A14: Tuinwals 175 kg | B14: 10
A15: Bladblaasmachine 2 takt | B15: 20
A16: Rugsproeier | B16: 12
A17: Palenrammer | B17: 44

Sheet Gemengd 6 opg
A1: Huurprijs
B2: Aantal dagen
B3: 1 | C3: 7 | D3: 14 | E3: 21 | F3: 28
A4: Artikel | B4: Dagprijs | C4: 0.2 | D4: 0.3 | E4: 0.4 | F4: 0.45 | G4: Korting
A5: Bodemfrees 90 cm | B5: 24 | C5: =$B5-$B5*C$4 -> 19.2 | D5: =$B5-$B5*D$4 -> 16.8 | E5: 14.4 | F5: 13.2
A6: Kettingzaag 2 takt | B6: 34 | C6: =$B6-$B6*C$4 -> 27.2 | D6: 23.8 | E6: 20.4 | F6: 18.7
A7: Houtkliefmachine 230 V | B7: 36 | C7: 28.8 | D7: 25.2 | E7: 21.6 | F7: 19.8
A8: Bosmaaier 4 takt | B8: 36 | C8: 28.8 | D8: 25.2 | E8: 21.6 | F8: 19.8
A9: Hooggrasmaaier 60 cm | B9: 62 | C9: 49.6 | D9: 43.4 | E9: 37.2 | F9: 34.1
A10: Verticuteermachine Benzine 6 pk | B10: 36 | C10: 28.8 | D10: 25.2 | E10: 21.6 | F10: 19.8
A11: Doorzaaimachine voor gazon | B11: 54 | C11: 43.2 | D11: 37.8 | E11: 32.4 | F11: 29.7
A12: Meststofstrooier | B12: 8 | C12: 6.4 | D12: 5.6 | E12: 4.8 | F12: 4.4
A13: Graszodensnijder zelfrijdend | B13: 76 | C13: 60.8 | D13: 53.2 | E13: 45.6 | F13: 41.8
A14: Tuinwals 175 kg | B14: 10 | C14: 8 | D14: 7 | E14: 6 | F14: 5.5
A15: Bladblaasmachine 2 takt | B15: 20 | C15: 16 | D15: 14 | E15: 12 | F15: 11
A16: Rugsproeier | B16: 12 | C16: 9.6 | D16: 8.4 | E16: 7.2 | F16: 6.6
A17: Palenrammer | B17: 44 | C17: 35.2 | D17: 30.8 | E17: 26.4 | F17: 24.2

Sheet Grafiek
B1: jan | C1: feb | D1: mrt | E1: apr | F1: mei | G1: jun | H1: jul | I1: aug | J1: sep | K1: okt | L1: nov | M1: dec | N1: Totaal
A2: Noord | B2: 118010 | C2: 118750 | D2: 122430 | E2: 112150 | F2: 121060 | G2: 120560 | H2: 118190 | I2: 121470 | J2: 124990 | K2: 122430 | L2: 123290 | M2: 128520 | N2: =SUM(B2:M2) -> 1451850
A3: West | B3: 181350 | C3: 186300 | D3: 166077 | E3: 145151 | F3: 160562 | G3: 165915 | H3: 188110 | I3: 188960 | J3: 196720 | K3: 193840 | L3: 192770 | M3: 205750 | N3: =SUM(B3:M3) -> 2171505
A4: Zuid | B4: 162090 | C4: 164650 | D4: 166940 | E4: 166670 | F4: 173910 | G4: 166220 | H4: 164900 | I4: 176270 | J4: 177440 | K4: 207084 | L4: 206724 | M4: 218052 | N4: =SUM(B4:M4) -> 2150950
A6: Totaal | B6: =SUM(B2:B4) -> 461450 | C6: 469700 | D6: 455447 | E6: 423971 | F6: 455532 | G6: 452695 | H6: 471200 | I6: 486700 | J6: 499150 | K6: 523354 | L6: 522784 | M6: 552322 | N6: =SUM(B6:M6) -> 5774305
B10: Kw 1 | C10: Kw 2 | D10: Kw 3 | E10: Kw 4 | F10: Totaal
A11: Noord | B11: 359190 | C11: 353770 | D11: 364650 | E11: 374240 | F11: =SUM(B11:E11) -> 1451850
A12: West | B12: 533727 | C12: 471628 | D12: 573790 | E12: 592360 | F12: =SUM(B12:E12) -> 2171505
A13: Zuid | B13: 493680 | C13: 506800 | D13: 518610 | E13: 631860 | F13: =SUM(B13:E13) -> 2150950
A15: Totaal | B15: =SUM(B11:B14) -> 1386597 | C15: =SUM(C11:C14) -> 1332198 | D15: =SUM(D11:D14) -> 1457050 | E15: =SUM(E11:E14) -> 1598460 | F15: =SUM(F11:F14) -> 5774305

Sheet Grafiek opg
B1: jan | C1: feb | D1: mrt | E1: apr | F1: mei | G1: jun | H1: jul | I1: aug | J1: sep | K1: okt | L1: nov | M1: dec | N1: Totaal
A2: Noord | B2: 118010 | C2: 118750 | D2: 122430 | E2: 112150 | F2: 121060 | G2: 120560 | H2: 118190 | I2: 121470 | J2: 124990 | K2: 122430 | L2: 123290 | M2: 128520 | N2: =SUM(B2:M2) -> 1451850
A3: West | B3: 181350 | C3: 186300 | D3: 166077 | E3: 145151 | F3: 160562 | G3: 165915 | H3: 188110 | I3: 188960 | J3: 196720 | K3: 193840 | L3: 192770 | M3: 205750 | N3: =SUM(B3:M3) -> 2171505
A4: Zuid | B4: 162090 | C4: 164650 | D4: 166940 | E4: 166670 | F4: 173910 | G4: 166220 | H4: 164900 | I4: 176270 | J4: 177440 | K4: 207084 | L4: 206724 | M4: 218052 | N4: =SUM(B4:M4) -> 2150950
A6: Totaal | B6: =SUM(B2:B4) -> 461450 | C6: 469700 | D6: 455447 | E6: 423971 | F6: 455532 | G6: 452695 | H6: 471200 | I6: 486700 | J6: 499150 | K6: 523354 | L6: 522784 | M6: 552322 | N6: =SUM(B6:M6) -> 5774305
B10: Kw 1 | C10: Kw 2 | D10: Kw 3 | E10: Kw 4 | F10: Totaal
A11: Noord | B11: 359190 | C11: 353770 | D11: 364650 | E11: 374240 | F11: =SUM(B11:E11) -> 1451850
A12: West | B12: 533727 | C12: 471628 | D12: 573790 | E12: 592360 | F12: =SUM(B12:E12) -> 2171505
A13: Zuid | B13: 493680 | C13: 506800 | D13: 518610 | E13: 631860 | F13: =SUM(B13:E13) -> 2150950
A15: Totaal | B15: =SUM(B11:B14) -> 1386597 | C15: =SUM(C11:C14) -> 1332198 | D15: =SUM(D11:D14) -> 1457050 | E15: =SUM(E11:E14) -> 1598460 | F15: =SUM(F11:F14) -> 5774305

Sheet Grafiek 1
B1: Noord | C1: West | D1: Zuid | E1: Totaal
A2: Chocomacronen | B2: 23040 | C2: 30840 | D2: 28730 | E2: =SUM(B2:D2) -> 82610
A3: Appeltijgers | B3: 31500 | C3: 35100 | D3: 31520 | E3: =SUM(B3:D3) -> 98120
A4: Stippetimpen | B4: 23970 | C4: 30200 | D4: 28040 | E4: 82210
A5: Krokolaatjes | B5: 20610 | C5: 26510 | D5: 24440 | E5: 71560
A6: Vlaaiflippen | B6: 13330 | C6: 16960 | D6: 17700 | E6: 47990
A7: Eurootjes | B7: 5780 | C7: 41740 | D7: 31660 | E7: 79180
A9: Totaal | B9: =SUM(B2:B7) -> 118230 | C9: =SUM(C2:C7) -> 181350 | D9: =SUM(D2:D7) -> 162090 | E9: 461670

Sheet Grafiek 1 opg
B1: Noord | C1: West | D1: Zuid | E1: Totaal
A2: Chocomacronen | B2: 23040 | C2: 30840 | D2: 28730 | E2: =SUM(B2:D2) -> 82610
A3: Appeltijgers | B3: 31500 | C3: 35100 | D3: 31520 | E3: =SUM(B3:D3) -> 98120
A4: Stippetimpen | B4: 23970 | C4: 30200 | D4: 28040 | E4: 82210
A5: Krokolaatjes | B5: 20610 | C5: 26510 | D5: 24440 | E5: 71560
A6: Vlaaiflippen | B6: 13330 | C6: 16960 | D6: 17700 | E6: 47990
A7: Eurootjes | B7: 5780 | C7: 41740 | D7: 31660 | E7: 79180
A9: Totaal | B9: =SUM(B2:B7) -> 118230 | C9: =SUM(C2:C7) -> 181350 | D9: =SUM(D2:D7) -> 162090 | E9: 461670

Sheet Grafiek 2
A1: Datum | B1: Amerikaanse dollar
A2: 2009-01-02 | B2: 1.327
A3: 2009-01-03 | B3: 1.3231
A4: 2009-01-04 | B4: 1.3106
A5: 2009-01-05 | B5: 1.3084
A6: 2009-01-06 | B6: 1.3006
A7: 2009-01-07 | B7: 1.3018
A8: 2009-01-08 | B8: 1.2988
A9: 2009-01-09 | B9: 1.2984
A10: 2009-01-10 | B10: 1.2893
A11: 2009-01-11 | B11: 1.2941
A12: 2009-01-12 | B12: 1.2953
A13: 2009-01-13 | B13: 1.2909
A14: 2009-01-14 | B14: 1.2922
A15: 2009-01-15 | B15: 1.2958
A16: 2009-01-16 | B16: 1.2936
A17: 2009-01-17 | B17: 1.304
A18: 2009-01-18 | B18: 1.3005
A19: 2009-01-19 | B19: 1.2978
A20: 2009-01-20 | B20: 1.2901
A21: 2009-01-21 | B21: 1.2921
A22: 2009-01-22 | B22: 1.2972
A23: 2009-01-23 | B23: 1.2954
A24: 2009-01-24 | B24: 1.302
A25: 2009-01-25 | B25: 1.302
A26: 2009-01-26 | B26: 1.2925
A27: 2009-01-27 | B27: 1.2955
A28: 2009-01-28 | B28: 1.2987
A29: 2009-01-29 | B29: 1.2991
A30: 2009-01-30 | B30: 1.3007
A31: 2009-01-31 | B31: 1.2956
A32: 2009-02-01 | B32: 1.3022
A33: 2009-02-02 | B33: 1.3082
A34: 2009-02-03 | B34: 1.3137
A35: 2009-02-04 | B35: 1.3119
A36: 2009-02-05 | B36: 1.3132
A37: 2009-02-06 | B37: 1.3145
A38: 2009-02-07 | B38: 1.3145
A39: 2009-02-08 | B39: 1.3106
A40: 2009-02-09 | B40: 1.3134
A41: 2009-02-10 | B41: 1.316
A42: 2009-02-11 | B42: 1.323
A43: 2009-02-12 | B43: 1.3211
A44: 2009-02-13 | B44: 1.3225
A45: 2009-02-14 | B45: 1.3163
A46: 2009-02-15 | B46: 1.3083
A47: 2009-02-16 | B47: 1.31
A48: 2009-02-17 | B48: 1.3135
A49: 2009-02-18 | B49: 1.3152
A50: 2009-02-19 | B50: 1.3155

Sheet Grafiek 2 opg
A1: Datum | B1: Amerikaanse dollar
A2: 2009-01-02 | B2: 1.327
A3: 2009-01-03 | B3: 1.3231
A4: 2009-01-04 | B4: 1.3106
A5: 2009-01-05 | B5: 1.3084
A6: 2009-01-06 | B6: 1.3006
A7: 2009-01-07 | B7: 1.3018
A8: 2009-01-08 | B8: 1.2988
A9: 2009-01-09 | B9: 1.2984
A10: 2009-01-10 | B10: 1.2893
A11: 2009-01-11 | B11: 1.2941
A12: 2009-01-12 | B12: 1.2953
A13: 2009-01-13 | B13: 1.2909
A14: 2009-01-14 | B14: 1.2922
A15: 2009-01-15 | B15: 1.2958
A16: 2009-01-16 | B16: 1.2936
A17: 2009-01-17 | B17: 1.304
A18: 2009-01-18 | B18: 1.3005
A19: 2009-01-19 | B19: 1.2978
A20: 2009-01-20 | B20: 1.2901
A21: 2009-01-21 | B21: 1.2921
A22: 2009-01-22 | B22: 1.2972
A23: 2009-01-23 | B23: 1.2954
A24: 2009-01-24 | B24: 1.302
A25: 2009-01-25 | B25: 1.302
A26: 2009-01-26 | B26: 1.2925
A27: 2009-01-27 | B27: 1.2955
A28: 2009-01-28 | B28: 1.2987
A29: 2009-01-29 | B29: 1.2991
A30: 2009-01-30 | B30: 1.3007
A31: 2009-01-31 | B31: 1.2956
A32: 2009-02-01 | B32: 1.3022
A33: 2009-02-02 | B33: 1.3082
A34: 2009-02-03 | B34: 1.3137
A35: 2009-02-04 | B35: 1.3119
A36: 2009-02-05 | B36: 1.3132
A37: 2009-02-06 | B37: 1.3145
A38: 2009-02-07 | B38: 1.3145
A39: 2009-02-08 | B39: 1.3106
A40: 2009-02-09 | B40: 1.3134
A41: 2009-02-10 | B41: 1.316
A42: 2009-02-11 | B42: 1.323
A43: 2009-02-12 | B43: 1.3211
A44: 2009-02-13 | B44: 1.3225
A45: 2009-02-14 | B45: 1.3163
A46: 2009-02-15 | B46: 1.3083
A47: 2009-02-16 | B47: 1.31
A48: 2009-02-17 | B48: 1.3135
A49: 2009-02-18 | B49: 1.3152
A50: 2009-02-19 | B50: 1.3155

Sheet Grafiek 3
A1: Boekhandel Roosmarijn, per categorie 2012
B3: Jeugd | C3: Kinder | D3: Literatuur | E3: Thrillers | F3: Geschienis/ Religie | G3: Studie
A4: Kwartaal 1 | B4: 352 | C4: 320 | D4: 298 | E4: 321 | F4: 340 | G4: 490
A5: Kwartaal 2 | B5: 435 | C5: 338 | D5: 357 | E5: 461 | F5: 453 | G5: 443
A6: Kwartaal 3 | B6: 267 | C6: 379 | D6: 338 | E6: 381 | F6: 325 | G6: 306
A7: Kwartaal 4 | B7: 800 | C7: 750 | D7: 393 | E7: 428 | F7: 427 | G7: 330

Sheet Grafiek 3 opg
A1: Boekhandel Roosmarijn, per categorie 2012
B3: Jeugd | C3: Kinder | D3: Literatuur | E3: Thrillers | F3: Geschienis/ Religie | G3: Studie
A4: Kwartaal 1 | B4: 352 | C4: 320 | D4: 298 | E4: 321 | F4: 340 | G4: 490
A5: Kwartaal 2 | B5: 435 | C5: 338 | D5: 357 | E5: 461 | F5: 453 | G5: 443
A6: Kwartaal 3 | B6: 267 | C6: 379 | D6: 338 | E6: 381 | F6: 325 | G6: 306
A7: Kwartaal 4 | B7: 800 | C7: 750 | D7: 393 | E7: 428 | F7: 427 | G7: 330

Sheet Grafiek 4
A1: Omzet en marge in 2011 per vestiging
B3: Forecast | C3: Bruto Omzet | D3: Netto Omzet | E3: Marge
A4: Amstelveen | B4: 225260 | C4: 251178 | D4: 213163 | E4: =D4/C4 -> 0.8486531464
A5: Heerenveen | B5: 149130 | C5: 119707 | D5: 101143 | E5: 0.8449213496
A6: Lekkerkerk | B6: 295738 | C6: 110048 | D6: 96102 | E6: 0.8732734807
A7: Papendrecht | B7: 143243 | C7: 149603 | D7: 129662 | E7: 0.8667072184
A8: Voorthuizen | B8: 108343 | C8: 108343 | D8: 92319 | E8: 0.8520993511
A9: Castricum | B9: 137785 | C9: 135285 | D9: 117690 | E9: 0.8699412352
A10: Nootdorp | B10: 288046 | C10: 258121 | D10: 201567 | E10: 0.7809012052
A11: Zoeterwoude | B11: 174020 | C11: 277309 | D11: 234630 | E11: 0.8460958714
A12: Weert | B12: 210204 | C12: 163810 | D12: 113347 | E12: 0.6919418839
A13: Oss | B13: 259321 | C13: 140901 | D13: 91374 | E13: 0.6484978815
A14: Deventer | B14: 189026 | C14: 287971 | D14: 265456 | E14: 0.9218150439

Sheet inflatie
A1: Jaar | B1: Inflatie (%)
A2: 1963-01-01 | B2: 3.8
A3: 1964-01-01 | B3: 5.5
A4: 1965-01-01 | B4: 5.2
A5: 1966-01-01 | B5: 5.8
A6: 1967-01-01 | B6: 3.1
A7: 1968-01-01 | B7: 3.7
A8: 1969-01-01 | B8: 7.5
A9: 1970-01-01 | B9: 4.4
A10: 1971-01-01 | B10: 7.6
A11: 1972-01-01 | B11: 7.8
A12: 1973-01-01 | B12: 8
A13: 1974-01-01 | B13: 9.6
A14: 1975-01-01 | B14: 10.2
A15: 1976-01-01 | B15: 8.8
A16: 1977-01-01 | B16: 6.7
A17: 1978-01-01 | B17: 4.1
A18: 1979-01-01 | B18: 4.2
A19: 1980-01-01 | B19: 6.5
A20: 1981-01-01 | B20: 6.7
A21: 1982-01-01 | B21: 6
A22: 1983-01-01 | B22: 2.8
A23: 1984-01-01 | B23: 3.3
A24: 1985-01-01 | B24: 2.3
A25: 1986-01-01 | B25: 0.2
A26: 1987-01-01 | B26: -0.5
A27: 1988-01-01 | B27: 0.7
A28: 1989-01-01 | B28: 1.1
A29: 1990-01-01 | B29: 2.5
A30: 1991-01-01 | B30: 3.9
A31: 1992-01-01 | B31: 3.7
A32: 1993-01-01 | B32: 2.1
A33: 1994-01-01 | B33: 2.7
A34: 1995-01-01 | B34: 2
A35: 1996-01-01 | B35: 2.1
A36: 1997-01-01 | B36: 2.2
A37: 1998-01-01 | B37: 2
A38: 1999-01-01 | B38: 2.2
A39: 2000-01-01 | B39: 2.6
A40: 2001-01-01 | B40: 4.5
A41: 2002-01-01 | B41: 3.4
A42: 2003-01-01 | B42: 2.1
A43: 2004-01-01 | B43: 1.2

Sheet inflatie opg
A1: Jaar | B1: Inflatie (%)
A2: 1963-01-01 | B2: 3.8
A3: 1964-01-01 | B3: 5.5
A4: 1965-01-01 | B4: 5.2
A5: 1966-01-01 | B5: 5.8
A6: 1967-01-01 | B6: 3.1
A7: 1968-01-01 | B7: 3.7
A8: 1969-01-01 | B8: 7.5
A9: 1970-01-01 | B9: 4.4
A10: 1971-01-01 | B10: 7.6
A11: 1972-01-01 | B11: 7.8
A12: 1973-01-01 | B12: 8
A13: 1974-01-01 | B13: 9.6
A14: 1975-01-01 | B14: 10.2
A15: 1976-01-01 | B15: 8.8
A16: 1977-01-01 | B16: 6.7
A17: 1978-01-01 | B17: 4.1
A18: 1979-01-01 | B18: 4.2
A19: 1980-01-01 | B19: 6.5
A20: 1981-01-01 | B20: 6.7
A21: 1982-01-01 | B21: 6
A22: 1983-01-01 | B22: 2.8
A23: 1984-01-01 | B23: 3.3
A24: 1985-01-01 | B24: 2.3
A25: 1986-01-01 | B25: 0.2
A26: 1987-01-01 | B26: -0.5
A27: 1988-01-01 | B27: 0.7
A28: 1989-01-01 | B28: 1.1
A29: 1990-01-01 | B29: 2.5
A30: 1991-01-01 | B30: 3.9
A31: 1992-01-01 | B31: 3.7
A32: 1993-01-01 | B32: 2.1
A33: 1994-01-01 | B33: 2.7
A34: 1995-01-01 | B34: 2
A35: 1996-01-01 | B35: 2.1
A36: 1997-01-01 | B36: 2.2
A37: 1998-01-01 | B37: 2
A38: 1999-01-01 | B38: 2.2
A39: 2000-01-01 | B39: 2.6
A40: 2001-01-01 | B40: 4.5
A41: 2002-01-01 | B41: 3.4
A42: 2003-01-01 | B42: 2.1
A43: 2004-01-01 | B43: 1.2

Sheet Hystogram
A1: Maand | B1: Aantal verkocht | D1: Grafiek
A2: Januari | B2: 834
A3: Februari | B3: 1132
A4: Maart | B4: 1243
A5: April | B5: 1094
A6: Mei | B6: 902
A7: Juni | B7: 1543
A8: Juli | B8: 1654
A9: Augustus | B9: 2123
A10: September | B10: 1566
A11: Oktober | B11: 1434
A12: November | B12: 1321
A13: December | B13: 1654

Sheet Hystogram Opg
A1: Maand | B1: Aantal verkocht | D1: Grafiek
A2: Januari | B2: 834 | D2: =REPT("=",B2/100) -> ========
A3: Februari | B3: 1132 | D3: =REPT("=",B3/100) -> ===========
A4: Maart | B4: 1243 | D4: ============
A5: April | B5: 1094 | D5: ==========
A6: Mei | B6: 902 | D6: =========
A7: Juni | B7: 1543 | D7: ===============
A8: Juli | B8: 1654 | D8: ================
A9: Augustus | B9: 2123 | D9: =====================
A10: September | B10: 1566 | D10: ===============
A11: Oktober | B11: 1434 | D11: ==============
A12: November | B12: 1321 | D12: =============
A13: December | B13: 1654 | D13: ================
A16: Maand | B16: Aantal verkocht | D16: Grafiek
A17: Januari | B17: 834 | D17: =REPT(":",B17/100) -> ::::::::
A18: Februari | B18: 1132 | D18: =REPT("-",B18/100) -> -----------
A19: Maart | B19: 1243 | D19: =REPT("_",B19/100) -> ____________
A20: April | B20: 1094 | D20: =REPT("|",B20/100) -> ||||||||||
A21: Mei | B21: 902 | D21: =REPT("\",B21/100) -> \\\\\\\\\
A22: Juni | B22: 1543 | D22: =REPT("/",B22/100) -> ///////////////
A23: Juli | B23: 1654 | D23: =REPT("<",B23/100) -> <<<<<<<<<<<<<<<<
A24: Augustus | B24: 2123 | D24: =REPT(">",B24/100) -> >>>>>>>>>>>>>>>>>>>>>
A25: September | B25: 1566 | D25: =REPT("!",B25/100) -> !!!!!!!!!!!!!!!
A26: Oktober | B26: 1434 | D26: =REPT("@",B26/100) -> @@@@@@@@@@@@@@
A27: November | B27: 1321 | D27: =REPT("#",B27/100) -> #############
A28: December | B28: 1654 | D28: =REPT("$",B28/100) -> $$$$$$$$$$$$$$$$

Sheet Functie
A1: Pretpark Xworld
A2: Bezoekersregistratie maand: | D2: Maart
A4: Tabel: Bezoekers per dag | F4: Tabel: Samenvatting
A5: Dagen | B5: Aantallen Volwassenen | C5: Aantallen < 12 jaar | D5: Aantallen Totaal | F5: Drukste dag
A6: 1 | B6: 234 | C6: 345 | D6: 579 | F6: Minst drukke dag
A7: 2 | B7: 222 | C7: 267 | D7: 489 | F7: Gemiddelde
A8: 3 | B8: 345 | C8: 400 | D8: 745 | F8: Totaal kinderen
A9: 4 | B9: 654 | C9: 699 | D9: 1353 | F9: Totaal volwassenen
A10: 5 | B10: 765 | C10: 789 | D10: 1554 | F10: Totaal bezoekers
A11: 6 | B11: 376 | C11: 409 | D11: 785
A12: 7 | B12: 943 | C12: 1089 | D12: 2032
A13: 8 | B13: 156 | C13: 199 | D13: 355
A14: 9 | B14: 234 | C14: 324 | D14: 558
A15: 10 | B15: 537 | C15: 600 | D15: 1137
A16: 11 | B16: 289 | C16: 306 | D16: 595
A17: 12 | B17: 987 | C17: 1066 | D17: 2053
A18: 13 | B18: 943 | C18: 1044 | D18: 1987
A19: 14 | B19: 298 | C19: 301 | D19: 599
A20: 15 | B20: 278 | C20: 299 | D20: 577
A21: 16 | B21: 259 | C21: 270 | D21: 529
A22: 17 | B22: 293 | C22: 360 | D22: 653
A23: 18 | B23: 367 | C23: 411 | D23: 778
A24: 19 | B24: 365 | C24: 400 | D24: 765
A25: 20 | B25: 476 | C25: 512 | D25: 988
A26: 21 | B26: 489 | C26: 513 | D26: 1002
A27: 22 | B27: 572 | C27: 634 | D27: 1206
A28: 23 | B28: 518 | C28: 623 | D28: 1141
A29: 24 | B29: 458 | C29: 500 | D29: 958
A30: 25 | B30: 697 | C30: 679 | D30: 1376
A31: 26 | B31: 786 | C31: 789 | D31: 1575
A32: 27 | B32: 876 | C32: 910 | D32: 1786
A33: 28 | B33: 546 | C33: 589 | D33: 1135
A34: 29 | B34: 728 | C34: 754 | D34: 1482
A35: 30 | B35: 436 | C35: 467 | D35: 903
A36: 31 | B36: 678 | C36: 768 | D36: 1446

Sheet Functie opg
A1: Pretpark Xworld
A2: Bezoekersregistratie maand: | D2: Maart
A4: Tabel: Bezoekers per dag | F4: Tabel: Samenvatting
A5: Dagen | B5: Aantallen Volwassenen | C5: Aantallen < 12 jaar | D5: Aantallen Totaal | F5: Drukste dag | G5: =MAX(B6:C36) -> 1089
A6: 1 | B6: 234 | C6: 345 | D6: =SUM(B6:C6) -> 579 | F6: Minst drukke dag | G6: =MIN(B6:C36) -> 156
A7: 2 | B7: 222 | C7: 267 | D7: =SUM(B7:C7) -> 489 | F7: Gemiddelde | G7: =AVERAGE(B6:C36) -> 534.2096774
A8: 3 | B8: 345 | C8: 400 | D8: 745 | F8: Totaal kinderen | G8: =SUM(C6:C36) -> 17316
A9: 4 | B9: 654 | C9: 699 | D9: 1353 | F9: Totaal volwassenen | G9: =SUM(B6:B36) -> 15805
A10: 5 | B10: 765 | C10: 789 | D10: 1554 | F10: Totaal | G10: =SUM(B6:C36) -> 33121
A11: 6 | B11: 376 | C11: 409 | D11: 785
A12: 7 | B12: 943 | C12: 1089 | D12: 2032
A13: 8 | B13: 156 | C13: 199 | D13: 355
A14: 9 | B14: 234 | C14: 324 | D14: 558
A15: 10 | B15: 537 | C15: 600 | D15: 1137
A16: 11 | B16: 289 | C16: 306 | D16: 595
A17: 12 | B17: 987 | C17: 1066 | D17: 2053
A18: 13 | B18: 943 | C18: 1044 | D18: 1987
A19: 14 | B19: 298 | C19: 301 | D19: 599
A20: 15 | B20: 278 | C20: 299 | D20: 577
A21: 16 | B21: 259 | C21: 270 | D21: 529
A22: 17 | B22: 293 | C22: 360 | D22: 653
A23: 18 | B23: 367 | C23: 411 | D23: 778
A24: 19 | B24: 365 | C24: 400 | D24: 765
A25: 20 | B25: 476 | C25: 512 | D25: 988
A26: 21 | B26: 489 | C26: 513 | D26: 1002
A27: 22 | B27: 572 | C27: 634 | D27: 1206
A28: 23 | B28: 518 | C28: 623 | D28: 1141
A29: 24 | B29: 458 | C29: 500 | D29: 958
A30: 25 | B30: 697 | C30: 679 | D30: 1376
A31: 26 | B31: 786 | C31: 789 | D31: 1575
A32: 27 | B32: 876 | C32: 910 | D32: 1786
A33: 28 | B33: 546 | C33: 589 | D33: 1135
A34: 29 | B34: 728 | C34: 754 | D34: 1482
A35: 30 | B35: 436 | C35: 467 | D35: 903
A36: 31 | B36: 678 | C36: 768 | D36: 1446

Sheet Functies
B1: Koekjes per doos | C1: Prijs per doos | D1: Bestelde dozen | E1: Bedrag
A2: Chocomacronen | B2: 12 | C2: 1.25 | D2: 10
A3: Appeltijgers | B3: 8 | C3: 0.99 | D3: 7
A4: Stippetimpen | B4: 15 | C4: 1.1 | D4: 5 | H4: Vermenigvuldig in kolom E
A5: Krokolaatjes | B5: 21 | C5: 1.7 | D5: 15 | H5: De gegevens in Kolom C met de gegevens in kolom D
A6: Vlaaiflippen | B6: 10 | C6: 1.38 | D6: 10
A7: Eurootjes | B7: 9 | C7: 1.62 | D7: 20
A9: Totaal bedrag
A10: Gemiddeld bedrag
A12: Gemiddeld aantal koekjes
A13: Doos met meeste koekjes | F13: Gebruik de functies SOM(); GEMIDDELDE(); AANTAL(); MAX() en MIN()
A14: Doos met minste koekjes | F14: Om de gegevens te berekenen
A16: Gemiddeld aantal dozen
A17: Hoogst aantal bestelde dozen
A18: Laagst aantal bestelde dozen

Sheet Functies opg
B1: Koekjes per doos | C1: Prijs per doos | D1: Bestelde dozen | E1: Bedrag
A2: Chocomacronen | B2: 12 | C2: 1.25 | D2: 10 | E2: =C2*D2 -> 12.5
A3: Appeltijgers | B3: 8 | C3: 0.99 | D3: 7 | E3: 6.93
A4: Stippetimpen | B4: 15 | C4: 1.1 | D4: 5 | E4: 5.5
A5: Krokolaatjes | B5: 21 | C5: 1.7 | D5: 15 | E5: 25.5
A6: Vlaaiflippen | B6: 10 | C6: 1.38 | D6: 10 | E6: 13.8
A7: Eurootjes | B7: 9 | C7: 1.62 | D7: 20 | E7: 32.4
A9: Totaal bedrag | C9: =SUM(E2:E7) -> 96.63
A10: Gemiddeld bedrag | C10: =AVERAGE(E2:E7) -> 16.105
A13: Gemiddeld aantal koekjes | C13: =AVERAGE(B2:B7) -> 12.5
A14: Doos met meeste koekjes | C14: =MAX(B2:B7) -> 21
A15: Doos met minste koekjes | C15: =MIN(B2:B7) -> 8
A17: Gemiddeld aantal dozen | C17: =AVERAGE(D2:D7) -> 11.16666667
A18: Hoogst aantal bestelde dozen | C18: =MAX(D2:D7) -> 20
A19: Laagst aantal bestelde dozen | C19: =MIN(D2:D7) -> 5

Sheet Functies 0
A1: Basis berekeningen
A3: Resultaten 2011
B4: Kwartaal 1 | C4: Kwartaal 2 | D4: Kwartaal 3 | E4: Kwartaal 4 | F4: Totaal | G4: Gemiddeld | H4: Hoogste | I4: Laagste
A5: Regio Noord | B5: 25679 | C5: 42344 | D5: 21118 | E5: 38839
A6: Regio Oost | B6: 30021 | C6: 27589 | D6: 18758 | E6: 19755
A7: Regio Zuid | B7: 15988 | C7: 17845 | D7: 12391 | E7: 16587
A8: Regio West | B8: 26544 | C8: 30011 | D8: 33355 | E8: 29455
A10: Totaal
A11: Gemiddeld
A12: Hoogste
A13: Laagste
A15: BTW van het totaal
A16: 21 | G16: Bereken hier de BTW van het Totaal
A19: BTW Over alle kwartalen en Regio's
B20: Kwartaal 1 | C20: Kwartaal 2 | D20: Kwartaal 3 | E20: Kwartaal 4
A21: Regio Noord
A22: Regio Oost
A23: Regio Zuid
A24: Regio West

Sheet Functies 0 opg
A1: Basis berekeningen
A3: Resultaten 2011
B4: Kwartaal 1 | C4: Kwartaal 2 | D4: Kwartaal 3 | E4: Kwartaal 4 | F4: Totaal | G4: Gemiddeld | H4: Hoogste | I4: Laagste
A5: Regio Noord | B5: 25679 | C5: 42344 | D5: 21118 | E5: 38839 | F5: =SUM(B5:E5) -> 127980 | G5: =AVERAGE(B5:E5) -> 31995 | H5: =MAX(B5:E5) -> 42344 | I5: =MIN(B5:E5) -> 21118
A6: Regio Oost | B6: 30021 | C6: 27589 | D6: 18758 | E6: 19755 | F6: =SUM(B6:E6) -> 96123 | G6: =AVERAGE(B6:E6) -> 24030.75 | H6: =MAX(B6:E6) -> 30021 | I6: =MIN(B6:E6) -> 18758
A7: Regio Zuid | B7: 15988 | C7: 17845 | D7: 12391 | E7: 16587 | F7: =SUM(B7:E7) -> 62811 | G7: =AVERAGE(B7:E7) -> 15702.75 | H7: =MAX(B7:E7) -> 17845 | I7: =MIN(B7:E7) -> 12391
A8: Regio West | B8: 26544 | C8: 30011 | D8: 33355 | E8: 29455 | F8: =SUM(B8:E8) -> 119365 | G8: =AVERAGE(B8:E8) -> 29841.25 | H8: =MAX(B8:E8) -> 33355 | I8: =MIN(B8:E8) -> 26544
A10: Totaal | B10: =SUM(B5:B8) -> 98232 | C10: =SUM(C5:C8) -> 117789 | D10: =SUM(D5:D8) -> 85622 | E10: =SUM(E5:E8) -> 104636
A11: Gemiddeld | B11: =AVERAGE(B5:B8) -> 24558 | C11: =AVERAGE(C5:C8) -> 29447.25 | D11: =AVERAGE(D5:D8) -> 21405.5 | E11: =AVERAGE(E5:E8) -> 26159
A12: Hoogste | B12: =MAX(B5:B8) -> 30021 | C12: =MAX(C5:C8) -> 42344 | D12: =MAX(D5:D8) -> 33355 | E12: =MAX(E5:E8) -> 38839
A13: Laagste | B13: =MIN(B5:B8) -> 15988 | C13: =MIN(C5:C8) -> 17845 | D13: =MIN(D5:D8) -> 12391 | E13: =MIN(E5:E8) -> 16587
A15: BTW van het totaal
A16: 0.21 | B16: =$A$16*B10 -> 20628.72 | C16: =$A$16*C10 -> 24735.69 | D16: =$A$16*D10 -> 17980.62 | E16: =$A$16*E10 -> 21973.56
A19: BTW Over alle kwartalen en Regio's
B20: Kwartaal 1 | C20: Kwartaal 2 | D20: Kwartaal 3 | E20: Kwartaal 4
A21: Regio Noord | B21: =$A$16*B5 -> 5392.59 | C21: =$A$16*C5 -> 8892.24 | D21: =$A$16*D5 -> 4434.78 | E21: =$A$16*E5 -> 8156.19
A22: Regio Oost | B22: =$A$16*B6 -> 6304.41 | C22: 5793.69 | D22: 3939.18 | E22: 4148.55
A23: Regio Zuid | B23: 3357.48 | C23: 3747.45 | D23: 2602.11 | E23: 3483.27
A24: Regio West | B24: 5574.24 | C24: 6302.31 | D24: 7004.55 | E24: 6185.55

Sheet Functies 1
A1: Temperaturen
A3: Plaats | B3: Temp. | C3: Resultaat | D3: Berekening | F3: Functies | I3: Wiskundige functies
A4: Eindhoven | B4: 20.6
A5: Eelde | B5: 16.9 | D5: Som B4 t/m B19: | F5: SOM | I5: Getal | J5: -124.6782975
A6: Amsterdam | B6: 18.4 | I6: Absolute waarde | L6: (functie ABS)
A7: Rotterdam | B7: 18.1 | D7: Aantal temperaturen: | F7: AANTAL | I7: Afkappen | L7: (functie GEHEEL)
A8: Den Haag | B8: 19 | I8: Afgerond | L8: (functie AFRONDEN)
A9: Middelburg | B9: 18.9 | D9: Gemiddelde temperatuur | F9: GEMIDDELDE | I9: Twee decimalen | J9: -124.6782975 | L9: (knop Minder decimalen)
A10: Vlissingen | B10: 17.6 | I10: Verschil
A11: Maastricht | B11: 20.8 | D11: Integer van E9: | F11: INTEGER
A12: Den Bosch | B12: 19.7
A13: Arnhem | B13: 19.7 | D13: E9 afgerond (2 decimalen): | F13: AFRONDEN | I13: Willekeurig getal (0-1) | L13: (functie ASELECT())
A14: Lelystad | B14: 18.5 | I14: Willekeurig getal (0-100) | L14: (functie ASELECTTUSSEN())
A15: Assen | B15: 18.4 | D15: Laagste temperatuur: | F15: MIN | I15: Willekeurig getal (x-y) | K15: 10 | L15: minimum (x)
A16: Groningen | B16: 17.9 | K16: 30 | L16: maximum (y)
A17: Leeuwarden | B17: 18.3 | D17: Hoogste temperatuur: | F17: MAX
A18: Den Helder | B18: 16.9 | I18: Dobbelen
A19: Utrecht | B19: 19.9
I20: Steen 1
I21: Steen 2
I22: Totaal

Sheet Functies 1 opg
A1: Temperaturen
A3: Plaats | B3: Temp. | C3: Resultaat | D3: Berekening | F3: Functies | K3: Wiskundige functies
A4: Eindhoven | B4: 20.6 | C4: =IF(B4>19,"Warm","Normaal") -> Warm
A5: Eelde | B5: 16.9 | C5: =IF(B5>19,"Warm","Normaal") -> Normaal | D5: Som B4 t/m B19: | E5: =SUM(B4:B19) -> 299.6 | F5: SOM | K5: Getal | L5: -124.6782975
A6: Amsterdam | B6: 18.4 | C6: Normaal | K6: Absolute waarde | L6: =ABS(L5) -> 124.6782975 | N6: (functie ABS)
A7: Rotterdam | B7: 18.1 | C7: Normaal | D7: Aantal temperaturen: | E7: =COUNT(B4:B19) -> 16 | F7: AANTAL | K7: Afkappen | L7: =TRUNC(L6,2) -> 124.67 | N7: (functie GEHEEL)
A8: Den Haag | B8: 19 | C8: Normaal | K8: Afgerond | L8: =ROUND(L5,2) -> -124.68 | N8: (functie AFRONDEN)
A9: Middelburg | B9: 18.9 | C9: Normaal | D9: Gemiddelde temperatuur | E9: =E5/E7 -> 18.725 | F9: GEMIDDELDE | G9: =AVERAGE(B4:B19) -> 18.725 | K9: Twee decimalen | L9: -124.6782975 | N9: (knop Minder decimalen)
A10: Vlissingen | B10: 17.6 | C10: Normaal | K10: Verschil | L10: =L8-L9 -> -0.00170249
A11: Maastricht | B11: 20.8 | C11: Warm | D11: Integer van E9: | E11: =INT(E9) -> 18 | F11: INTEGER | G11: =INT(AVERAGE(B4:B19)) -> 18
A12: Den Bosch | B12: 19.7 | C12: Warm
A13: Arnhem | B13: 19.7 | C13: Warm | D13: E9 afgerond (2 decimalen): | E13: =ROUND(E9,2) -> 18.73 | F13: AFRONDEN | G13: =ROUND(AVERAGE(B4:B19),2) -> 18.73 | K13: Willekeurig getal (0-1) | L13: =RAND() -> 0.2789476176
A14: Lelystad | B14: 18.5 | C14: Normaal | K14: Willekeurig getal (0-100) | L14: =INT(RANDBETWEEN(0,100)) -> 41
A15: Assen | B15: 18.4 | C15: Normaal | D15: Laagste temperatuur: | E15: =MIN(B4:B19) -> 16.9 | F15: MIN | K15: Willekeurig getal (x-y) | L15: =RANDBETWEEN(M15,M16) -> 20 | M15: 10 | N15: minimum (x)
A16: Groningen | B16: 17.9 | C16: Normaal | M16: 30 | N16: maximum (y)
A17: Leeuwarden | B17: 18.3 | C17: Normaal | D17: Hoogste temperatuur: | E17: =MAX(B4:B19) -> 20.8 | F17: MAX
A18: Den Helder | B18: 16.9 | C18: Normaal | K18: Dobbelen
A19: Utrecht | B19: 19.9 | C19: Warm
K20: Steen 1 | L20: =RANDBETWEEN(1,6) -> 2
K21: Steen 2 | L21: =RANDBETWEEN(1,6) -> 2
K22: Totaal | L22: =SUM(L20:L21) -> 4

Sheet Functies 2
A1: Eindexamen Economie 2013
A3: Naam | B3: Eindcijfer | C3: Resultaat | D3: Rang | F3: Statistieken: | G3: Resultaat | H3: Hoe?
A4: An | B4: 8.5
A5: Anita | B5: 6.8 | F5: Som van de cijfers in kolom B: | H5: (functie)
A6: Davey | B6: 7.1 | F6: Aantal cijfers (kandidaten): | H6: (functie)
A7: Edward | B7: 4.9 | F7: Gemiddelde cijfer: | H7: (functie)
A8: Fred | B8: 9
A9: Frederica | B9: 7.8 | F9: Laagste cijfer: | H9: (functie)
A10: Frederik | B10: 5.6 | F10: Hoogste cijfer: | H10: (functie)
A11: Hans | B11: 4.2
A12: Harry | B12: 6.3 | F12: Het gem. cijfer (G4) afgerond (2 decimalen): | H12: (functie)
A13: Jacqueline | B13: 7.5
A14: Johnny | B14: 3.8 | F14: Aantal geslaagde kandidaten: | H14: (functie AANTAL.ALS())
A15: Jos | B15: 8.5 | F15: Aantal gezakte kandidaten: | H15: (functie AANTAL.ALS())
A16: Judith | B16: 8.9 | F16: Antal kandidaten met een herexamen | H16: (functie AANTAL.ALS())
A17: Karel | B17: 5.5
A18: Kees | B18: 5.5
A19: Leon | B19: 9.2
A20: Lily | B20: 9.5
A21: Mette | B21: 5.5
A22: Michelle | B22: 6.3
A23: Querinus | B23: 5.6
A24: Richelle | B24: 6.1
A25: Rob | B25: 7.9
A26: Roger | B26: 8.2
A27: Rosa | B27: 5.2
A28: Rub | B28: 7.4
A29: Ruben | B29: 7.1
A30: Theo | B30: 7.5
A31: Trees | B31: 7.3
A32: Veronica | B32: 6.9
A33: Werner | B33: 8.9
A34: Willem Alexander | B34: 9.4
A35: Willie | B35: 6.3
A36: Wim | B36: 4.2
A37: Zacharias | B37: 5.5

Sheet Functies 2 opg
A1: Eindexamen Economie 2013
A3: Naam | B3: Eindcijfer | C3: Resultaat | D3: Rang | F3: Statistieken: | G3: Resultaat | H3: Hoe?
A4: An | B4: 8.5 | C4: =IF(B4>=6,"Geslaagd",IF(B4>5,"HEREXAMEN","Gezakt")) -> Geslaagd | D4: =RANK(B4,$B$4:$B$37) -> 7
A5: Anita | B5: 6.8 | C5: =IF(B5>=6,"Geslaagd",IF(B5>5,"HEREXAMEN","Gezakt")) -> Geslaagd | D5: =RANK(B5,$B$4:$B$37) -> 19 | F5: Som van de cijfers in kolom B: | G5: =SUM(B4:B37) -> 233.9 | H5: (functie)
A6: Davey | B6: 7.1 | C6: Geslaagd | D6: 16 | F6: Aantal cijfers (kandidaten): | G6: =COUNT(B4:B37) -> 34 | H6: (functie)
A7: Edward | B7: 4.9 | C7: Gezakt | D7: 31 | F7: Gemiddelde cijfer: | G7: =G5/G6 -> 6.879411765 | H7: (functie)
A8: Fred | B8: 9 | C8: Geslaagd | D8: 4
A9: Frederica | B9: 7.8 | C9: Geslaagd | D9: 11 | F9: Laagste cijfer: | G9: =MIN(B4:B37) -> 3.8 | H9: (functie)
A10: Frederik | B10: 5.6 | C10: HEREXAMEN | D10: 24 | F10: Hoogste cijfer: | G10: =MAX(B4:B37) -> 9.5 | H10: (functie)
A11: Hans | B11: 4.2 | C11: Gezakt | D11: 32
A12: Harry | B12: 6.3 | C12: Geslaagd | D12: 20 | F12: Het gem. cijfer (G4) afgerond (2 decimalen): | G12: =ROUND(G7,2) -> 6.88 | H12: (functie)
A13: Jacqueline | B13: 7.5 | C13: Geslaagd | D13: 12
A14: Johnny | B14: 3.8 | C14: Gezakt | D14: 34 | F14: Aantal geslaagde kandidaten: | G14: =COUNTIF($C$4:$C$37,"geslaagd") -> 23 | H14: (functie)
A15: Jos | B15: 8.5 | C15: Geslaagd | D15: 7 | F15: Aantal gezakte kandidaten: | G15: =COUNTIF($C$4:$C$37,"gezakt") -> 4 | H15: (functie)
A16: Judith | B16: 8.9 | C16: Geslaagd | D16: 5 | F16: Aantal kandidaten met een herexamen | G16: =COUNTIF($C$4:$C$37,"herexamen") -> 7 | H16: (functie)
A17: Karel | B17: 5.5 | C17: HEREXAMEN | D17: 26
A18: Kees | B18: 5.5 | C18: HEREXAMEN | D18: 26
A19: Leon | B19: 9.2 | C19: Geslaagd | D19: 3
A20: Lily | B20: 9.5 | C20: Geslaagd | D20: 1
A21: Mette | B21: 5.5 | C21: HEREXAMEN | D21: 26
A22: Michelle | B22: 6.3 | C22: Geslaagd | D22: 20
A23: Querinus | B23: 5.6 | C23: HEREXAMEN | D23: 24
A24: Richelle | B24: 6.1 | C24: Geslaagd | D24: 23
A25: Rob | B25: 7.9 | C25: Geslaagd | D25: 10
A26: Roger | B26: 8.2 | C26: Geslaagd | D26: 9
A27: Rosa | B27: 5.2 | C27: HEREXAMEN | D27: 30
A28: Rub | B28: 7.4 | C28: Geslaagd | D28: 14
A29: Ruben | B29: 7.1 | C29: Geslaagd | D29: 16
A30: Theo | B30: 7.5 | C30: Geslaagd | D30: 12
A31: Trees | B31: 7.3 | C31: Geslaagd | D31: 15
A32: Veronica | B32: 6.9 | C32: Geslaagd | D32: 18
A33: Werner | B33: 8.9 | C33: Geslaagd | D33: 5
A34: Willem Alexander | B34: 9.4 | C34: Geslaagd | D34: 2
A35: Willie | B35: 6.3 | C35: Geslaagd | D35: 20
A36: Wim | B36: 4.2 | C36: Gezakt | D36: 32
A37: Zacharias | B37: 5.5 | C37: HEREXAMEN | D37: 26

Sheet Functies 3
A1: CIJFEROVERZICHT KLAS 3A
A3: naam | B3: voorletters | C3: Nederl | D3: frans | E3: duits | F3: engels | G3: natuurk | H3: scheik | I3: wiskun | J3: biologie | K3: GEM | L3: MAX | M3: MIN | N3: RANG | O3: HEREX
A4: = | B4: = | C4: = | D4: = | E4: = | F4: = | G4: = | H4: = | I4: = | J4: = | K4: = | L4: = | M4: = | N4: = | O4: =
A5: Veldhuis | B5: K.H. | C5: 7.1 | D5: 6.7 | E5: 6.9 | F5: 2.522709517 | G5: 7.6 | H5: 5.7 | I5: 6.65 | J5: 3.656902416 | R5: Bepaal in kolom K het GEMIDDELDE proefwerken
A6: Hartman | B6: A. | C6: 5.4 | D6: 5 | E6: 5.2 | F6: 7.17885309 | G6: 5.05 | H6: 7.1 | I6: 6.075 | J6: 5.55890544
A7: Ven | B7: M.R. van der | C7: 6.3 | D7: 5.9 | E7: 6.1 | F7: 2.983875879 | G7: 6.4 | H7: 6.3 | I7: 6.35 | J7: 2.523725233 | R7: Bepaal in kolom L het hoogst behaalde cijfer
A8: Rietveld | B8: J.J. | C8: 8.5 | D8: 8.1 | E8: 8.3 | F8: 8.001891855 | G8: 6.45 | H8: 6.9 | I8: 6.675 | J8: 10
A9: Linden | B9: A.C.M. van der | C9: 6 | D9: 5.6 | E9: 5.8 | F9: 5.796409529 | G9: 6.1 | H9: 3.6 | I9: 4.85 | J9: 5.548120762 | R9: Bepaal in kolom M het laagst behaalde cijfer
A10: Beuzenberg | B10: A. | C10: 3.7 | D10: 3.3 | E10: 3.5 | F10: 8.25494731 | G10: 3.7 | H10: 6.3 | I10: 5 | J10: 1.265639294
A11: Bot | B11: J.K. | C11: 7.2 | D11: 6.8 | E11: 7 | F11: 8.899430783 | G11: 7.7 | H11: 6.8 | I11: 7.25 | J11: 5.59961531 | R11: Bepaal in kolom N de RANG volgorde op basis van het GEMIDDELDE
A12: Boogaard | B12: J. | C12: 6.7 | D12: 6.3 | E12: 6.5 | F12: 9.4 | G12: 6.7 | H12: 5.7 | I12: 6.2 | J12: 6.734509568
A13: Vermeulen | B13: P. | C13: 5.4 | D13: 5 | E13: 5.2 | F13: 9.9 | G13: 6.55 | H13: 5.9 | I13: 6.225 | J13: 9.9 | R13: Bepaal in kolom O bij het behalen van een gemiddeld cijfer van:
A14: Croese | B14: V. | C14: 7.9 | D14: 7.5 | E14: 7.7 | F14: 9.2 | G14: 7.9 | H14: 4.7 | I14: 6.3 | J14: 9.002528463
A15: Spruijt | B15: W.H. | C15: 9.2 | D15: 8.8 | E15: 9 | F15: 5.61715235 | G15: 7.65 | H15: 6.3 | I15: 6.975 | J15: 9.495885901 | R15: Hoger of gelijk aan 6 = GESLAAGD
A16: Schelde | B16: C. van der | C16: 5.2 | D16: 4.8 | E16: 5 | F16: 5.479543847 | G16: 6.15 | H16: 7.4 | I16: 6.775 | J16: 1.354344561
A17: Souer | B17: H. | C17: 6.2 | D17: 5.8 | E17: 6 | F17: 2.693432992 | G17: 5.85 | H17: 6.2 | I17: 6.025 | J17: 6.469035546 | R17: Lager of gelijk aan 4 is GEZAKT
A18: Verhaest | B18: F.M. | C18: 5.7 | D18: 5.3 | E18: 5.5 | F18: 6.528291768 | G18: 7.3 | H18: 4.8 | I18: 6.05 | J18: 9.08042243
A19: Overbeeke | B19: F. van | C19: 4.8 | D19: 4.4 | E19: 4.6 | F19: 8.999739887 | G19: 5.4 | H19: 3.6 | I19: 4.5 | J19: 8.659786668 | R19: Daartussen krijgt men een HEREXAMEN
A20: Bloemendaal | B20: G.H. | C20: 8.1 | D20: 7.7 | E20: 7.9 | F20: 6.628276222 | G20: 8.1 | H20: 5.1 | I20: 6.6 | J20: 9.0345366
A21: Hooijer | B21: C.C. | C21: 5.5 | D21: 5.1 | E21: 5.3 | F21: 9.438458897 | G21: 5.3 | H21: 7.1 | I21: 6.2 | J21: 7.456638368
A22: Hoogeband | B22: J.C.P. van den | C22: 7.5 | D22: 7.1 | E22: 7.3 | F22: 8.7 | G22: 7.6 | H22: 8.5 | I22: 8.05 | J22: 7.721051972
A23: Kool | B23: F.A. | C23: 7 | D23: 6.6 | E23: 6.8 | F23: 9 | G23: 7.45 | H23: 4.9 | I23: 6.175 | J23: 1.720489435
A24: Klavers | B24: E. | C24: 6.9 | D24: 6.5 | E24: 6.7 | F24: 4.081621174 | G24: 7.8 | H24: 7.1 | I24: 7.45 | J24: 9.7
A25: Kooi | B25: J. | C25: 4.8 | D25: 4.4 | E25: 4.6 | F25: 7.807068178 | G25: 4.6 | H25: 5.4 | I25: 5 | J25: 3.619425074
A26: Essenius | B26: J.N. | C26: 7.3 | D26: 6.9 | E26: 7.1 | F26: 8.6 | G26: 6.45 | H26: 5.9 | I26: 6.175 | J26: 5.67721123
A27: Flier | B27: J. van der | C27: 6.4 | D27: 6 | E27: 6.2 | F27: 9.5 | G27: 7.65 | H27: 6.3 | I27: 6.975 | J27: 9.5
A28: Haasnoot | B28: O. | C28: 5.2 | D28: 4.8 | E28: 5 | F28: 5.499960133 | G28: 6.85 | H28: 6 | I28: 6.425 | J28: 7.821193768
A29: Graaf-van Dijk | B29: C.G. | C29: 5.8 | D29: 5.4 | E29: 5.6 | F29: 5.829949309 | G29: 5.35 | H29: 5 | I29: 5.175 | J29: 4.803660354
A30: Hurkmans | B30: P.H.T. | C30: 7.8 | D30: 7.4 | E30: 7.6 | F30: 9 | G30: 7.75 | H30: 7.1 | I30: 7.425 | J30: 9.119577839
A31: Visser | B31: W.C. | C31: 9 | D31: 8.6 | E31: 8.8 | F31: 9 | G31: 8.05 | H31: 7 | I31: 7.525 | J31: 6.744741669
A32: Schick | B32: G.K.P. | C32: 5 | D32: 4.6 | E32: 4.8 | F32: 6.728142933 | G32: 5.85 | H32: 5.7 | I32: 5.775 | J32: 2.87322762
A33: Zwanenburg | B33: Th. | C33: 9 | D33: 8.6 | E33: 8.8 | F33: 7.89828044 | G33: 7.85 | H33: 6.8 | I33: 7.325 | J33: 4.336601054
A34: Borsboom | B34: A.N. | C34: 6.3 | D34: 5.9 | E34: 6.1 | F34: 4.399352576 | G34: 6 | H34: 4.7 | I34: 5.35 | J34: 9.253914359

Sheet Functies 3 opg
A1: CIJFEROVERZICHT KLAS 3A
A3: naam | B3: voorletters | C3: Nederl | D3: frans | E3: duits | F3: engels | G3: natuurk | H3: scheik | I3: wiskun | J3: biologie | K3: GEM | L3: MAX | M3: MIN | N3: RANG | O3: HEREX
A4: = | B4: = | C4: = | D4: = | E4: = | F4: = | G4: = | H4: = | I4: = | J4: = | K4: = | L4: = | M4: = | N4: = | O4: =
A5: Veldhuis | B5: K.H. | C5: 7.1 | D5: 6.7 | E5: 6.9 | F5: 2.522709517 | G5: 7.6 | H5: 5.7 | I5: 6.65 | J5: 3.656902416 | K5: =AVERAGE(C5:J5) -> 5.853701492 | L5: =MAX(C5:J5) -> 7.6 | M5: =MIN(C5:J5) -> 2.522709517 | N5: =RANK(K5,$K$5:$K$34) -> 20 | O5: =IF(K5>=6,"","HEREXAMEN") -> HEREXAMEN
A6: Hartman | B6: A. | C6: 5.4 | D6: 5 | E6: 5.2 | F6: 7.17885309 | G6: 5.05 | H6: 7.1 | I6: 6.075 | J6: 5.55890544 | K6: =AVERAGE(C6:J6) -> 5.820344816 | L6: =MAX(C6:J6) -> 7.17885309 | M6: =MIN(C6:J6) -> 5 | N6: =RANK(K6,$K$5:$K$34) -> 21 | O6: =IF(K6>=6,"","HEREXAMEN") -> HEREXAMEN
A7: Ven | B7: M.R. van der | C7: 6.3 | D7: 5.9 | E7: 6.1 | F7: 2.983875879 | G7: 6.4 | H7: 6.3 | I7: 6.35 | J7: 2.523725233 | K7: 5.357200139 | L7: 6.4 | M7: 2.523725233 | N7: 26 | O7: HEREXAMEN
A8: Rietveld | B8: J.J. | C8: 8.5 | D8: 8.1 | E8: 8.3 | F8: 8.001891855 | G8: 6.45 | H8: 6.9 | I8: 6.675 | J8: 10 | K8: 7.865861482 | L8: 10 | M8: 6.45 | N8: 4
A9: Linden | B9: A.C.M. van der | C9: 6 | D9: 5.6 | E9: 5.8 | F9: 5.796409529 | G9: 6.1 | H9: 3.6 | I9: 4.85 | J9: 5.548120762 | K9: 5.411816286 | L9: 6.1 | M9: 3.6 | N9: 24 | O9: HEREXAMEN
A10: Beuzenberg | B10: A. | C10: 3.7 | D10: 3.3 | E10: 3.5 | F10: 8.25494731 | G10: 3.7 | H10: 6.3 | I10: 5 | J10: 1.265639294 | K10: 4.377573325 | L10: 8.25494731 | M10: 1.265639294 | N10: 30 | O10: HEREXAMEN
A11: Bot | B11: J.K. | C11: 7.2 | D11: 6.8 | E11: 7 | F11: 8.899430783 | G11: 7.7 | H11: 6.8 | I11: 7.25 | J11: 5.59961531 | K11: 7.156130762 | L11: 8.899430783 | M11: 5.59961531 | N11: 10
A12: Boogaard | B12: J. | C12: 6.7 | D12: 6.3 | E12: 6.5 | F12: 9.4 | G12: 6.7 | H12: 5.7 | I12: 6.2 | J12: 6.734509568 | K12: 6.779313696 | L12: 9.4 | M12: 5.7 | N12: 12
A13: Vermeulen | B13: P. | C13: 5.4 | D13: 5 | E13: 5.2 | F13: 9.9 | G13: 6.55 | H13: 5.9 | I13: 6.225 | J13: 9.9 | K13: 6.759375 | L13: 9.9 | M13: 5 | N13: 14
A14: Croese | B14: V. | C14: 7.9 | D14: 7.5 | E14: 7.7 | F14: 9.2 | G14: 7.9 | H14: 4.7 | I14: 6.3 | J14: 9.002528463 | K14: 7.525316058 | L14: 9.2 | M14: 4.7 | N14: 7
A15: Spruijt | B15: W.H. | C15: 9.2 | D15: 8.8 | E15: 9 | F15: 5.61715235 | G15: 7.65 | H15: 6.3 | I15: 6.975 | J15: 9.495885901 | K15: 7.879754781 | L15: 9.495885901 | M15: 5.61715235 | N15: 3
A16: Schelde | B16: C. van der | C16: 5.2 | D16: 4.8 | E16: 5 | F16: 5.479543847 | G16: 6.15 | H16: 7.4 | I16: 6.775 | J16: 1.354344561 | K16: 5.269861051 | L16: 7.4 | M16: 1.354344561 | N16: 27 | O16: HEREXAMEN
A17: Souer | B17: H. | C17: 6.2 | D17: 5.8 | E17: 6 | F17: 2.693432992 | G17: 5.85 | H17: 6.2 | I17: 6.025 | J17: 6.469035546 | K17: 5.654683567 | L17: 6.469035546 | M17: 2.693432992 | N17: 22 | O17: HEREXAMEN
A18: Verhaest | B18: F.M. | C18: 5.7 | D18: 5.3 | E18: 5.5 | F18: 6.528291768 | G18: 7.3 | H18: 4.8 | I18: 6.05 | J18: 9.08042243 | K18: 6.282339275 | L18: 9.08042243 | M18: 4.8 | N18: 16
A19: Overbeeke | B19: F. van | C19: 4.8 | D19: 4.4 | E19: 4.6 | F19: 8.999739887 | G19: 5.4 | H19: 3.6 | I19: 4.5 | J19: 8.659786668 | K19: 5.619940819 | L19: 8.999739887 | M19: 3.6 | N19: 23 | O19: HEREXAMEN
A20: Bloemendaal | B20: G.H. | C20: 8.1 | D20: 7.7 | E20: 7.9 | F20: 6.628276222 | G20: 8.1 | H20: 5.1 | I20: 6.6 | J20: 9.0345366 | K20: 7.395351603 | L20: 9.0345366 | M20: 5.1 | N20: 8
A21: Hooijer | B21: C.C. | C21: 5.5 | D21: 5.1 | E21: 5.3 | F21: 9.438458897 | G21: 5.3 | H21: 7.1 | I21: 6.2 | J21: 7.456638368 | K21: 6.424387158 | L21: 9.438458897 | M21: 5.1 | N21: 15
A22: Hoogeband | B22: J.C.P. van den | C22: 7.5 | D22: 7.1 | E22: 7.3 | F22: 8.7 | G22: 7.6 | H22: 8.5 | I22: 8.05 | J22: 7.721051972 | K22: 7.808881496 | L22: 8.7 | M22: 7.1 | N22: 5
A23: Kool | B23: F.A. | C23: 7 | D23: 6.6 | E23: 6.8 | F23: 9 | G23: 7.45 | H23: 4.9 | I23: 6.175 | J23: 1.720489435 | K23: 6.205686179 | L23: 9 | M23: 1.720489435 | N23: 17
A24: Klavers | B24: E. | C24: 6.9 | D24: 6.5 | E24: 6.7 | F24: 4.081621174 | G24: 7.8 | H24: 7.1 | I24: 7.45 | J24: 9.7 | K24: 7.028952647 | L24: 9.7 | M24: 4.081621174 | N24: 11
A25: Kooi | B25: J. | C25: 4.8 | D25: 4.4 | E25: 4.6 | F25: 7.807068178 | G25: 4.6 | H25: 5.4 | I25: 5 | J25: 3.619425074 | K25: 5.028311656 | L25: 7.807068178 | M25: 3.619425074 | N25: 29 | O25: HEREXAMEN
A26: Essenius | B26: J.N. | C26: 7.3 | D26: 6.9 | E26: 7.1 | F26: 8.6 | G26: 6.45 | H26: 5.9 | I26: 6.175 | J26: 5.67721123 | K26: 6.762776404 | L26: 8.6 | M26: 5.67721123 | N26: 13
A27: Flier | B27: J. van der | C27: 6.4 | D27: 6 | E27: 6.2 | F27: 9.5 | G27: 7.65 | H27: 6.3 | I27: 6.975 | J27: 9.5 | K27: 7.315625 | L27: 9.5 | M27: 6 | N27: 9
A28: Haasnoot | B28: O. | C28: 5.2 | D28: 4.8 | E28: 5 | F28: 5.499960133 | G28: 6.85 | H28: 6 | I28: 6.425 | J28: 7.821193768 | K28: 5.949519238 | L28: 7.821193768 | M28: 4.8 | N28: 19 | O28: HEREXAMEN
A29: Graaf-van Dijk | B29: C.G. | C29: 5.8 | D29: 5.4 | E29: 5.6 | F29: 5.829949309 | G29: 5.35 | H29: 5 | I29: 5.175 | J29: 4.803660354 | K29: 5.369826208 | L29: 5.829949309 | M29: 4.803660354 | N29: 25 | O29: HEREXAMEN
A30: Hurkmans | B30: P.H.T. | C30: 7.8 | D30: 7.4 | E30: 7.6 | F30: 9 | G30: 7.75 | H30: 7.1 | I30: 7.425 | J30: 9.119577839 | K30: 7.89932223 | L30: 9.119577839 | M30: 7.1 | N30: 2
A31: Visser | B31: W.C. | C31: 9 | D31: 8.6 | E31: 8.8 | F31: 9 | G31: 8.05 | H31: 7 | I31: 7.525 | J31: 6.744741669 | K31: 8.089967709 | L31: 9 | M31: 6.744741669 | N31: 1
A32: Schick | B32: G.K.P. | C32: 5 | D32: 4.6 | E32: 4.8 | F32: 6.728142933 | G32: 5.85 | H32: 5.7 | I32: 5.775 | J32: 2.87322762 | K32: 5.165796319 | L32: 6.728142933 | M32: 2.87322762 | N32: 28 | O32: HEREXAMEN
A33: Zwanenburg | B33: Th. | C33: 9 | D33: 8.6 | E33: 8.8 | F33: 7.89828044 | G33: 7.85 | H33: 6.8 | I33: 7.325 | J33: 4.336601054 | K33: 7.576235187 | L33: 9 | M33: 4.336601054 | N33: 6
A34: Borsboom | B34: A.N. | C34: 6.3 | D34: 5.9 | E34: 6.1 | F34: 4.399352576 | G34: 6 | H34: 4.7 | I34: 5.35 | J34: 9.253914359 | K34: 6.000408367 | L34: 9.253914359 | M34: 4.399352576 | N34: 18

Sheet Functies 4
A1: Vijfkamp Roomburg
A3: Limiet NK: | B3: 4250 | J3: Datum: | N3: Vul hier de huidige datum in
A5: Naam | B5: Nr. | D5: Zwemmen (200 m) | E5: Luchtdrukpistool (10 m) | F5: Schermen (degen) | G5: Hardlopen (3000 m) | H5: Paardrijden (springen) | I5: Som | K5: Uitslag | L5: Limiet gehaald
A6: Adema, Astrid | B6: 200508 | D6: 724 | E6: 872 | F6: 680 | G6: 580 | H6: 1025 | N6: Bereken in kolom I het behaalde aantal punten
A7: Boukari, Benjamin | B7: 200503 | D7: 616 | E7: 676 | F7: 840 | G7: 748 | H7: 1200
A8: Claassen, Claudia | B8: 200507 | D8: 532 | E8: 574 | F8: 980 | G8: 739 | H8: 1110 | N8: Bereken in kolom K de rangvolgorde van de uitslag
A9: Dikhout, Dries van | B9: 200511 | D9: 872 | E9: 868 | F9: 860 | G9: 619 | H9: 1080
A10: El Bakir, Esther | B10: 200545 | D10: 878 | E10: 772 | F10: 740 | G10: 619 | H10: 1035 | N10: Bereken in Kolom L of de limiet is gehaald.
A11: Fortez, Fatima | B11: 200531 | D11: 924 | E11: 544 | F11: 680 | G11: 631 | H11: 1005 | N11: Is deze gehaald dan de cel leeg laten
A12: Gomes, Gilbert | B12: 200521 | D12: 960 | E12: 724 | F12: 920 | G12: 956 | H12: 1172 | N12: Is de limiet niet gehaald plaats dan de tekst Niet gehaald
A13: Heidema, Hans | B13: 200519 | D13: 864 | E13: 772 | F13: 980 | G13: 631 | H13: 1045
A14: Immerzeel, Iwris | B14: 200524 | D14: 745 | E14: 835 | F14: 720 | G14: 814 | H14: 1040
A15: Janssen, Joke | B15: 200525 | D15: 910 | E15: 496 | F15: 900 | G15: 792 | H15: 1150
A17: Aantal deelnemers: | E17: Bereken het aantal deelnemers
A19: Gemiddelde score:
A20: Hoogste score:
A21: Laagste score:

Sheet Functies 4 opg
A1: Vijfkamp Roomburg
A3: Limiet NK: | B3: 4250 | J3: Datum: | K3: =TODAY() -> 2017-03-16
A5: Naam | B5: Nr. | D5: Zwemmen (200 m) | E5: Luchtdrukpistool (10 m) | F5: Schermen (degen) | G5: Hardlopen (3000 m) | H5: Paardrijden (springen) | I5: Som | K5: Uitslag | L5: Limiet gehaald
A6: Adema, Astrid | B6: 200508 | D6: 724 | E6: 872 | F6: 680 | G6: 580 | H6: 1025 | I6: =SUM(D6:H6) -> 3881 | K6: =_xlfn.RANK.EQ(I6,$I$6:$I$15,0) -> 9 | L6: =IF(I6>=$B$3,"Niet gehaald","") -> 
A7: Boukari, Benjamin | B7: 200503 | D7: 616 | E7: 676 | F7: 840 | G7: 748 | H7: 1200 | I7: =SUM(D7:H7) -> 4080 | K7: =_xlfn.RANK.EQ(I7,$I$6:$I$15,0) -> 6 | L7: =IF(I7>=$B$3,"Niet gehaald","") -> 
A8: Claassen, Claudia | B8: 200507 | D8: 532 | E8: 574 | F8: 980 | G8: 739 | H8: 1110 | I8: 3935 | K8: 8
A9: Dikhout, Dries van | B9: 200511 | D9: 872 | E9: 868 | F9: 860 | G9: 619 | H9: 1080 | I9: 4299 | K9: 2 | L9: Niet gehaald
A10: El Bakir, Esther | B10: 200545 | D10: 878 | E10: 772 | F10: 740 | G10: 619 | H10: 1035 | I10: 4044 | K10: 7
A11: Fortez, Fatima | B11: 200531 | D11: 924 | E11: 544 | F11: 680 | G11: 631 | H11: 1005 | I11: 3784 | K11: 10
A12: Gomes, Gilbert | B12: 200521 | D12: 960 | E12: 724 | F12: 920 | G12: 956 | H12: 1172 | I12: 4732 | K12: 1 | L12: Niet gehaald
A13: Heidema, Hans | B13: 200519 | D13: 864 | E13: 772 | F13: 980 | G13: 631 | H13: 1045 | I13: 4292 | K13: 3 | L13: Niet gehaald
A14: Immerzeel, Iwris | B14: 200524 | D14: 745 | E14: 835 | F14: 720 | G14: 814 | H14: 1040 | I14: 4154 | K14: 5
A15: Janssen, Joke | B15: 200525 | D15: 910 | E15: 496 | F15: 900 | G15: 792 | H15: 1150 | I15: 4248 | K15: 4
A17: Aantal deelnemers: | B17: =COUNT(D6:D15) -> 10
A18: Gemiddelde score: | D18: =AVERAGE(D6:D15) -> 802.5 | E18: =AVERAGE(E6:E15) -> 713.3 | F18: =AVERAGE(F6:F15) -> 830 | G18: =AVERAGE(G6:G15) -> 712.9 | H18: =AVERAGE(H6:H15) -> 1086.2
A19: Hoogste score: | D19: =MAX(D6:D15) -> 960 | E19: =MAX(E6:E15) -> 872 | F19: =MAX(F6:F15) -> 980 | G19: =MAX(G6:G15) -> 956 | H19: =MAX(H6:H15) -> 1200
A20: Laagste score: | D20: =MIN(D6:D15) -> 532 | E20: =MIN(E6:E15) -> 496 | F20: =MIN(F6:F15) -> 680 | G20: =MIN(G6:G15) -> 580 | H20: =MIN(H6:H15) -> 1005

Sheet AlsBasis
A1: Oefeningen op de ALS-functie
A2: Gebruik de tabs onderaan om door de verschillende werkbladen te navigeren
A4: Als de persoon meerderjarig is, moet er "meerderjarig" staan, anders "minderjarig"
B6: Leeftijd | C6: Meerderjarig of minderjarig?
A7: Lies | B7: 18
A8: Emma | B8: 12
A9: Rene | B9: 13
A10: Tom | B10: 14
A11: Jonas | B11: 16
A12: Dirk | B12: 22
A13: Lien | B13: 23
A14: Lisbeth | B14: 10
A19: Als de persoon meerderjarig is, moet er "meerderjarig" staan, anders "minderjarig"
B21: Leeftijd | C21: Meerderjarig of minderjarig?
A22: Lies | B22: 18
A23: Emma | B23: 12
A24: Rene | B24: 13
A25: Tom | B25: 14
A26: Jonas | B26: 16
A27: Dirk | B27: 22
A28: Lien | B28: 23
A29: Lisbeth | B29: 10
D32: meerderjarig op:
D33: 18

Sheet AlsBasis opg
A1: Oefeningen op de ALS-functie
A2: Gebruik de tabs onderaan om door de verschillende werkbladen te navigeren
A4: Als de persoon meerderjarig is, moet er "meerderjarig" staan, anders "minderjarig"
B6: Leeftijd | C6: Meerderjarig of minderjarig?
A7: Lies | B7: 18 | C7: =IF(B7>=18,"Meerderjarig","Minderjarig") -> Meerderjarig
A8: Emma | B8: 12 | C8: =IF(B8>=18,"Meerderjarig","Minderjarig") -> Minderjarig
A9: Rene | B9: 13 | C9: Minderjarig
A10: Tom | B10: 14 | C10: Minderjarig
A11: Jonas | B11: 16 | C11: Minderjarig
A12: Dirk | B12: 22 | C12: Meerderjarig
A13: Lien | B13: 23 | C13: Meerderjarig
A14: Lisbeth | B14: 10 | C14: Minderjarig
A19: Als de persoon meerderjarig is, moet er "meerderjarig" staan, anders "minderjarig"
B21: Leeftijd | C21: Meerderjarig of minderjarig?
A22: Lies | B22: 18 | C22: =IF(B22>=$D$33,"Meerderjarig","Minderjarig") -> Meerderjarig
A23: Emma | B23: 12 | C23: =IF(B23>=$D$33,"Meerderjarig","Minderjarig") -> Minderjarig
A24: Rene | B24: 13 | C24: Minderjarig
A25: Tom | B25: 14 | C25: Minderjarig
A26: Jonas | B26: 16 | C26: Minderjarig
A27: Dirk | B27: 22 | C27: Meerderjarig
A28: Lien | B28: 23 | C28: Meerderjarig
A29: Lisbeth | B29: 10 | C29: Minderjarig
D32: meerderjarig op:
D33: 18

Sheet AlsBasis 1
A1: Enkel personen onder de 65kg mogen op de botsauto´s
B3: Gewicht (in kg) | C3: Toegelaten op de botsauto´s? (ja of nee)
A4: Lies | B4: 48
A5: Emma | B5: 60
A6: Rene | B6: 72
A7: Tom | B7: 88
A8: Jonas | B8: 85
A9: Dirk | B9: 56
A10: Lien | B10: 51
A11: Lisbeth | B11: 71
A16: Enkel personen onder de 65kg mogen op de botsauto´s
B18: Gewicht (in kg) | C18: Toegelaten op de botsauto´s? (ja of nee)
A19: Lies | B19: 48
A20: Emma | B20: 60
A21: Rene | B21: 72
A22: Tom | B22: 88
A23: Jonas | B23: 85
A24: Dirk | B24: 56
A25: Lien | B25: 51
A26: Lisbeth | B26: 71
C28: gewicht:
C29: 65

Sheet AlsBasis 1 opg
A1: Enkel personen onder de 65kg mogen op de botsauto´s
B3: Gewicht (in kg) | C3: Toegelaten op de botsauto´s? (ja of nee)
A4: Lies | B4: 48 | C4: =IF(B4>=65,"Nee","Ja") -> Ja
A5: Emma | B5: 60 | C5: =IF(B5>=65,"Nee","Ja") -> Ja
A6: Rene | B6: 72 | C6: Nee
A7: Tom | B7: 88 | C7: Nee
A8: Jonas | B8: 85 | C8: Nee
A9: Dirk | B9: 56 | C9: Ja
A10: Lien | B10: 51 | C10: Ja
A11: Lisbeth | B11: 71 | C11: Nee
A16: Enkel personen onder de 65kg mogen op de botsauto´s
B18: Gewicht (in kg) | C18: Toegelaten op de botsauto´s? (ja of nee)
A19: Lies | B19: 48 | C19: =IF(B19>=$C$29,"Nee","Ja") -> Ja
A20: Emma | B20: 60 | C20: =IF(B20>=$C$29,"Nee","Ja") -> Ja
A21: Rene | B21: 72 | C21: Nee
A22: Tom | B22: 88 | C22: Nee
A23: Jonas | B23: 85 | C23: Nee
A24: Dirk | B24: 56 | C24: Ja
A25: Lien | B25: 51 | C25: Ja
A26: Lisbeth | B26: 71 | C26: Nee
C28: gewicht:
C29: 65

Sheet AlsBasis 2
A1: Iedereen die maandelijks meer dan 15 € doneert aan Amnesty International, wordt speciaal lid
A2: Duid dus met een X aan wie maandelijks meer dan 15 € doneert en minder cel leeglaten
B4: Maandelijkse donatie | C4: Special member?
A5: Lies | B5: 10
A6: Emma | B6: 12
A7: Rene | B7: 45
A8: Tom | B8: 0
A9: Jonas | B9: 10
A10: Dirk | B10: 20
A11: Lien | B11: 5
A12: Lisbeth | B12: 5
A17: Iedereen die maandelijks meer dan 15 € doneert aan Amnesty International, wordt speciaal lid
A18: Duid dus met een X aan wie maandelijks meer dan 15 € doneert en minder cel leeglaten
B20: Maandelijkse donatie | C20: Special member?
A21: Lies | B21: 10
A22: Emma | B22: 12
A23: Rene | B23: 45
A24: Tom | B24: 0
A25: Jonas | B25: 10
A26: Dirk | B26: 20
A27: Lien | B27: 5
A28: Lisbeth | B28: 5
D30: lidgeld:
D31: 15

Sheet AlsBasis 2 opg
A1: Iedereen die maandelijks meer dan 15 € doneert aan Amnesty International, wordt speciaal lid
A2: Duid dus met een X aan wie maandelijks meer dan 15 € doneert en minder cel leeglaten
B4: Maandelijkse donatie | C4: Special member?
A5: Lies | B5: 10 | C5: =IF(B5>=15,"X","") -> 
A6: Emma | B6: 12 | C6: =IF(B6>=15,"X","") -> 
A7: Rene | B7: 45 | C7: X
A8: Tom | B8: 0
A9: Jonas | B9: 10
A10: Dirk | B10: 20 | C10: X
A11: Lien | B11: 5
A12: Lisbeth | B12: 5
A17: Iedereen die maandelijks meer dan 15 € doneert aan Amnesty International, wordt speciaal lid
A18: Duid dus met een X aan wie maandelijks meer dan 15 € doneert en minder cel leeglaten
B20: Maandelijkse donatie | C20: Special member?
A21: Lies | B21: 10 | C21: =IF(B21>=$D$31,"X","") -> 
A22: Emma | B22: 12 | C22: =IF(B22>=$D$31,"X","") -> 
A23: Rene | B23: 45 | C23: X
A24: Tom | B24: 0
A25: Jonas | B25: 10
A26: Dirk | B26: 20 | C26: X
A27: Lien | B27: 5
A28: Lisbeth | B28: 5
D30: lidgeld:
D31: 15

Sheet AlsBasis 3
A1: Scherpe hoek of stompe hoek?
A3: Hoek in graden | B3: Scherpe of stompe?
A4: 12
A5: 84
A6: 97
A7: 165
A8: 65
A9: 45
A10: 145
A11: 170
A12: 175
A13: 14
A14: 60
A15: 65
A16: 68
A17: 92
A18: 84
A19: 78
A20: 100
A21: 120
A25: Scherpe hoek of stompe hoek?
A27: Hoek in graden | B27: Scherpe of stompe?
A28: 12
A29: 84
A30: 97
A31: 165
A32: 65
A33: 45
A34: 145
A35: 170
A36: 175
A37: 14
A38: 60 | D38: graden:
A39: 65 | D39: 90
A40: 68
A41: 92
A42: 84
A43: 78
A44: 100
A45: 120

Sheet AlsBasis 3 opg
A1: Scherpe hoek of stompe hoek?
A3: Hoek in graden | B3: Scherpe of stompe?
A4: 12 | B4: =IF(A4>=90,"Stomp","Scherp") -> Scherp
A5: 84 | B5: =IF(A5>=90,"Stomp","Scherp") -> Scherp
A6: 97 | B6: Stomp
A7: 165 | B7: Stomp
A8: 65 | B8: Scherp
A9: 45 | B9: Scherp
A10: 145 | B10: Stomp
A11: 170 | B11: Stomp
A12: 175 | B12: Stomp
A13: 14 | B13: Scherp
A14: 60 | B14: Scherp
A15: 65 | B15: Scherp
A16: 68 | B16: Scherp
A17: 92 | B17: Stomp
A18: 84 | B18: Scherp
A19: 78 | B19: Scherp
A20: 100 | B20: Stomp
A21: 120 | B21: Stomp
A25: Scherpe hoek of stompe hoek?
A27: Hoek in graden | B27: Scherpe of stompe?
A28: 12 | B28: =IF(A28>=$D$39,"Stomp","Scherp") -> Scherp
A29: 84 | B29: =IF(A29>=$D$39,"Stomp","Scherp") -> Scherp
A30: 97 | B30: Stomp
A31: 165 | B31: Stomp
A32: 65 | B32: Scherp
A33: 45 | B33: Scherp
A34: 145 | B34: Stomp
A35: 170 | B35: Stomp
A36: 175 | B36: Stomp
A37: 14 | B37: Scherp
A38: 60 | B38: Scherp | D38: graden:
A39: 65 | B39: Scherp | D39: 90
A40: 68 | B40: Scherp
A41: 92 | B41: Stomp
A42: 84 | B42: Scherp
A43: 78 | B43: Scherp
A44: 100 | B44: Stomp
A45: 120 | B45: Stomp

Sheet Converteren
A1: Converteren
B3: Celcius | D3: Fahrenheit | F3: Meter
C4: is … Fahrenheit | E4: is Celcius | G4: is … Centimeter | H4: Is INCHES
A5: maandag | B5: 6 | D5: 75 | F5: 1
A6: dinsdag | B6: 26.7 | D6: 82 | F6: 1.75
A7: woensdag | B7: 14.3 | D7: 120 | F7: 3
A8: donderdag | B8: 19.4 | D8: 55 | F8: 4
A9: vrijdag | B9: 18.3 | D9: 107 | F9: 10
A10: zaterdag | B10: 18.2 | D10: 109 | F10: 6
A11: zondag | B11: 1 | D11: 95 | F11: 0.5
I14: Celcius | J14: C
I15: Fahrenheit | J15: F
I16: Meter | J16: m
I17: Centimeter | J17: cm
I18: Inches | J18: in

Sheet Converteren opg
A1: Converteren
B3: Celcius | D3: Fahrenheit | F3: Meter
C4: is … Fahrenheit | E4: is Celcius | G4: is … Centimeter | H4: Is INCHES
A5: maandag | B5: 6 | C5: =CONVERT(B5,"C","F") -> 42.8 | D5: 75 | E5: =CONVERT(D5,"F","C") -> 23.88888889 | F5: 1 | G5: =CONVERT(F5,"m","cm") -> 100 | H5: =CONVERT(F5,"m","in") -> 39.37007874
A6: dinsdag | B6: 26.7 | C6: 80.06 | D6: 82 | E6: 27.77777778 | F6: 1.75 | G6: 175 | H6: 68.8976378
A7: woensdag | B7: 14.3 | C7: 57.74 | D7: 120 | E7: 48.88888889 | F7: 3 | G7: 300 | H7: 118.1102362
A8: donderdag | B8: 19.4 | C8: 66.92 | D8: 55 | E8: 12.77777778 | F8: 4 | G8: 400 | H8: 157.480315
A9: vrijdag | B9: 18.3 | C9: 64.94 | D9: 107 | E9: 41.66666667 | F9: 10 | G9: 1000 | H9: 393.7007874
A10: zaterdag | B10: 18.2 | C10: 64.76 | D10: 109 | E10: 42.77777778 | F10: 6 | G10: 600 | H10: 236.2204724
A11: zondag | B11: 1 | C11: 33.8 | D11: 95 | E11: 35 | F11: 0.5 | G11: 50 | H11: 19.68503937

Sheet Afronden
B2: INTEGER | C2: AFRONDEN | D2: GEHEEL
A3: 153.87765
A4: 7.845
A5: 7.889
A6: -4.894

Sheet Afronden opg
B2: INTEGER | C2: AFRONDEN | D2: GEHEEL
A3: 153.87765 | B3: =INT(A3) -> 153 | C3: =ROUND(A3,2) -> 153.88 | D3: =TRUNC(A3,2) -> 153.87
A4: 7.845 | B4: =INT(A4) -> 7 | C4: =ROUND(A4,2) -> 7.85 | D4: =TRUNC(A4,2) -> 7.84
A5: 7.889 | B5: =INT(A5) -> 7 | C5: =ROUND(A5,2) -> 7.89 | D5: =TRUNC(A5,2) -> 7.88
A6: -4.894 | B6: =INT(A6) -> -5 | C6: =ROUND(A6,2) -> -4.89 | D6: =TRUNC(A6,2) -> -4.89
A9: Integer met rekenen | B9: =INT(152/12) -> 12

Sheet Afronden VV
A1: Worldwide Sporting Goods
A2: Verkopen 1995
A4: Bedrijf | B4: Totaal | C4: Veelvouden
A5: SportsCity | B5: 68744
A6: Athlete's Dream | B6: 9212
A7: Sports Emporium | B7: 122
A8: SportsWorld | B8: 61771
A9: Tennis Joint | B9: 42237
A10: Athlete's World | B10: 78840
A11: Sportsman's Den | B11: 86445
A12: World of Sports | B12: 68531
A13: Specialty Sports | B13: 79426
A15: Totaal | B15: =SUM(B5:B13) -> 495328
A16: Gemiddelde | B16: =AVERAGE(B5:B13) -> 55036.44444

Sheet Afronden VV OPG
A1: Worldwide Sporting Goods
A2: Verkopen 1995
A4: Bedrijf | B4: Totaal | C4: Veelvouden
A5: SportsCity | B5: 68744 | C5: =IF(B5>10000,MROUND(B5,1000),IF(B5>1000,MROUND(B5,100),MROUND(B5,10))) -> 69000
A6: Athlete's Dream | B6: 9212 | C6: =IF(B6>10000,MROUND(B6,1000),IF(B6>1000,MROUND(B6,100),MROUND(B6,10))) -> 9200
A7: Sports Emporium | B7: 122 | C7: 120
A8: SportsWorld | B8: 61771 | C8: 62000
A9: Tennis Joint | B9: 42237 | C9: 42000
A10: Athlete's World | B10: 78840 | C10: 79000
A11: Sportsman's Den | B11: 86445 | C11: 86000
A12: World of Sports | B12: 68531 | C12: 69000
A13: Specialty Sports | B13: 79426 | C13: 79000
A15: Totaal | B15: =SUM(B5:B13) -> 495328
A16: Gemiddelde | B16: =AVERAGE(B5:B13) -> 55036.44444

Sheet ASELECT
A1: ASELECT
A2: ASELECT afronden | D2: Laat in de cellen, B1, B2 en B3 willekeurige getallen verschijnen door gebruik te maken van de functies ASELECT() en ASELECTTUSSEN()
A3: Aselect Tussen

Sheet ASELECT opg
A1: ASELECT | B1: =RAND() -> 0.1097973012
A2: ASELECT afronden | B2: =ROUND(RAND()*50,0) -> 38
A3: Aselect Tussen | B3: =RANDBETWEEN(500,2000) -> 1813

Sheet Als
A1: KOERSVERLOOP WALLSTREET
A2: 1e HALFJAAR 2013
G4: Verschil
A5: Datum | B5: Opening | C5: Hoog | D5: Laag | E5: Slot | F5: Dow Jones | G5: opening - slot | H5: Koerswinst
A6: 2000-01-02 | B6: 97.9 | C6: 99.035 | D6: 95.207 | E6: 96.591 | F6: 9402.8078
A7: 2000-01-03 | B7: 102.056 | C7: 104.808 | D7: 96.458 | E7: 103.043 | F7: 9447.2105
A8: 2000-01-04 | B8: 106.98 | C8: 112.33 | D8: 103.099 | E8: 108.535 | F8: 9393.9168
A9: 2000-01-05 | B9: 99.822 | C9: 101.36 | D9: 96.46 | E9: 102.258 | F9: 9421.4789
A10: 2000-01-06 | B10: 105.938 | C10: 108.699 | D10: 102.853 | E10: 107.216 | F10: 9415.6213
A11: 2000-01-09 | B11: 99.234 | C11: 100.871 | D11: 98.359 | E11: 98.676 | F11: 9381.4694
A12: 2000-01-10 | B12: 98.524 | C12: 102.653 | D12: 95.03 | E12: 96.879 | F12: 9423.0479
A13: 2000-01-11 | B13: 108.638 | C13: 111.909 | D13: 105.655 | E13: 106.482 | F13: 9428.8009
A14: 2000-01-12 | B14: 111.936 | C14: 116.511 | D14: 108.757 | E14: 111.936 | F14: 9373.8859
A15: 2000-01-13 | B15: 100.146 | C15: 105.508 | D15: 97.149 | E15: 98.197 | F15: 9397.0548
A16: 2000-01-14 | B16: 109.809 | C16: 112.569 | D16: 107.485 | E16: 112.03 | F16: 9438.9471
A17: 2000-01-16 | B17: 102.193 | C17: 104.882 | D17: 98.024 | E17: 104.059 | F17: 9435.1292
A18: 2000-01-17 | B18: 111.559 | C18: 115.773 | D18: 111.48 | E18: 112.547 | F18: 9389.4713
A19: 2000-01-18 | B19: 108.198 | C19: 111.719 | D19: 107.135 | E19: 109.376 | F19: 9368.8651
A20: 2000-01-19 | B20: 96.119 | C20: 98.977 | D20: 91.13 | E20: 96.14 | F20: 9378.959
A21: 2000-01-20 | B21: 96.962 | C21: 100.794 | D21: 96.275 | E21: 98.734 | F21: 9420.0668
A22: =A21+3 -> 2000-01-23 | B22: 109.696 | C22: 111.004 | D22: 106.06 | E22: 109.026 | F22: 9445.1185
A23: 2000-01-24 | B23: 103.01 | C23: 108.789 | D23: 99.895 | E23: 101.771 | F23: 9456.7814
A24: 2000-01-25 | B24: 102.716 | C24: 105.636 | D24: 97.267 | E24: 101.611 | F24: 9392.557
A25: 2000-01-26 | B25: 104.804 | C25: 105.574 | D25: 101.303 | E25: 104.364 | F25: 9388.1115
A26: 2000-01-27 | B26: 97.632 | C26: 102.641 | D26: 94.221 | E26: 99.599 | F26: 9439.1563
A27: =A26+3 -> 2000-01-30 | B27: 96.955 | C27: 98.229 | D27: 95.756 | E27: 95.705 | F27: 9381.5217
A28: =IF(WEEKDAY(A27,2)>4,A27+3,A27+1) -> 2000-02-02 | B28: 109.327 | C28: 111.247 | D28: 109.305 | E28: 110.008 | F28: 9423.4663
A29: =IF(WEEKDAY(A28,2)>4,A28+3,A28+1) -> 2000-02-03 | B29: 107.651 | C29: 110.419 | D29: 104.12 | E29: 108.255 | F29: 9398.7284
A30: 2000-02-04 | B30: 104.591 | C30: 107.339 | D30: 103.625 | E30: 104.123 | F30: 9395.2766
A31: 2000-02-07 | B31: 104.04 | C31: 104.303 | D31: 99.028 | E31: 103.507 | F31: 9370.3818
A32: 2000-02-08 | B32: 109.34 | C32: 113.589 | D32: 108.919 | E32: 108.9 | F32: 9404.6383
A33: 2000-02-09 | B33: 103.88 | C33: 104.131 | D33: 100.519 | E33: 104.045 | F33: 9444.2294
A34: 2000-02-10 | B34: 100.126 | C34: 100.601 | D34: 99.037 | E34: 100.596 | F34: 9364.2627
A35: 2000-02-11 | B35: 111.072 | C35: 115.952 | D35: 105.533 | E35: 108.595 | F35: 9368.4467
A36: 2000-02-14 | B36: 111.635 | C36: 114.351 | D36: 111.3 | E36: 110.013 | F36: 9454.6371
A37: 2000-02-15 | B37: 105.38 | C37: 110.995 | D37: 101.549 | E37: 104.45 | F37: 9454.8986
A38: 2000-02-16 | B38: 104.082 | C38: 105.217 | D38: 100.266 | E38: 104.003 | F38: 9433.1418
A39: 2000-02-17 | B39: 107.906 | C39: 110.47 | D39: 103.312 | E39: 106.218 | F39: 9401.3434
A40: 2000-02-18 | B40: 103.988 | C40: 104.49 | D40: 100.152 | E40: 102.951 | F40: 9379.9527
A41: 2000-02-21 | B41: 98.624 | C41: 102.811 | D41: 94.47 | E41: 99.866 | F41: 9371.8462
A42: 2000-02-22 | B42: 105.197 | C42: 108.772 | D42: 104.936 | E42: 106.911 | F42: 9441.3006
A43: 2000-02-23 | B43: 99.875 | C43: 105.206 | D43: 99.281 | E43: 102.206 | F43: 9434.92
A44: 2000-02-24 | B44: 102.679 | C44: 107.413 | D44: 102.224 | E44: 101.785 | F44: 9399.356
A45: 2000-02-25 | B45: 109.02 | C45: 110.317 | D45: 105.283 | E45: 106.77 | F45: 9414.8368
A46: 2000-02-28 | B46: 99.323 | C46: 103.683 | D46: 94.964 | E46: 98.014 | F46: 9443.4972
A47: 2000-02-29 | B47: 97.18 | C47: 101.593 | D47: 94.511 | E47: 96.986 | F47: 9396.8979
A48: 2000-03-01 | B48: 98.162 | C48: 101.259 | D48: 94.09 | E48: 97.119 | F48: 9429.9515
A49: 2000-03-02 | B49: 106.997 | C49: 107.524 | D49: 106.423 | E49: 105.585 | F49: 9444.1248
A50: 2000-03-03 | B50: 102.192 | C50: 106.233 | D50: 101.844 | E50: 100.48 | F50: 9439.6793
A51: 2000-03-06 | B51: 110.925 | C51: 114.296 | D51: 109.867 | E51: 110.839 | F51: 9413.1109
A52: 2000-03-07 | B52: 105.72 | C52: 106.899 | D52: 102.054 | E52: 103.409 | F52: 9421.5835
A53: 2000-03-08 | B53: 96.398 | C53: 100.328 | D53: 93.554 | E53: 94.972 | F53: 9410.4436
A54: 2000-03-09 | B54: 101.108 | C54: 104.264 | D54: 96.393 | E54: 100.921 | F54: 9433.5079
A55: 2000-03-10 | B55: 102.385 | C55: 105.667 | D55: 101.692 | E55: 101.576 | F55: 9443.0265
A56: 2000-03-13 | B56: 106.984 | C56: 110.737 | D56: 103.62 | E56: 105.022 | F56: 9432.4619
A57: 2000-03-14 | B57: 100.117 | C57: 103.224 | D57: 99.254 | E57: 99.211 | F57: 9392.3478
A58: 2000-03-15 | B58: 111.954 | C58: 112.661 | D58: 110.732 | E58: 109.786 | F58: 9460.8608
A59: 2000-03-16 | B59: 96.07 | C59: 98.333 | D59: 90.335 | E59: 94.015 | F59: 9404.2199
A60: 2000-03-17 | B60: 110.787 | C60: 115.303 | D60: 105.474 | E60: 113.144 | F60: 9368.7605
A61: 2000-03-20 | B61: 109.345 | C61: 113.411 | D61: 107.539 | E61: 111.324 | F61: 9450.2962
A62: 2000-03-21 | B62: 102.097 | C62: 105.59 | D62: 98.95 | E62: 104.065 | F62: 9381.1556
A63: 2000-03-22 | B63: 107.425 | C63: 112.137 | D63: 103.948 | E63: 107.382 | F63: 9415.3598
A64: 2000-03-23 | B64: 104.129 | C64: 107.657 | D64: 103.776 | E64: 102.117 | F64: 9444.2294
A65: 2000-03-24 | B65: 97.698 | C65: 99.711 | D65: 96.965 | E65: 96.704 | F65: 9417.6087
A66: 2000-03-27 | B66: 105.532 | C66: 106.486 | D66: 102.727 | E66: 103.905 | F66: 9381.5217
A67: 2000-03-28 | B67: 102.746 | C67: 108.052 | D67: 97.947 | E67: 100.919 | F67: 9381.9924
A68: 2000-03-29 | B68: 105.945 | C68: 108.09 | D68: 103.178 | E68: 106.283 | F68: 9452.4928
A69: 2000-03-30 | B69: 96.16 | C69: 99.303 | D69: 92.216 | E69: 97.923 | F69: 9439.8362
A70: 2000-03-31 | B70: 101.658 | C70: 103.836 | D70: 99.59 | E70: 101.658 | F70: 9379.3774
A71: 2000-04-03 | B71: 101.088 | C71: 102.641 | D71: 97.823 | E71: 103.313 | F71: 9455.0032
A72: 2000-04-04 | B72: 105.944 | C72: 107.361 | D72: 103.186 | E72: 106.641 | F72: 9401.6049
A73: 2000-04-05 | B73: 97.987 | C73: 102.697 | D73: 97.862 | E73: 98.016 | F73: 9425.1922
A74: 2000-04-06 | B74: 96.714 | C74: 100.579 | D74: 92.211 | E74: 98.074 | F74: 9443.1834
A75: 2000-04-07 | B75: 97.629 | C75: 99.214 | D75: 92.266 | E75: 98.505 | F75: 9373.9382
A76: 2000-04-10 | B76: 108.729 | C76: 110.948 | D76: 104.59 | E76: 110.643 | F76: 9374.3566
A77: 2000-04-11 | B77: 98.65 | C77: 98.705 | D77: 95.574 | E77: 99.295 | F77: 9445.0662
A78: 2000-04-12 | B78: 108.994 | C78: 114.874 | D78: 104.237 | E78: 110.444 | F78: 9363.6351
A79: 2000-04-13 | B79: 98.632 | C79: 103.836 | D79: 93.824 | E79: 99.404 | F79: 9388.9483
A80: 2000-04-14 | B80: 99.132 | C80: 104.29 | D80: 94.985 | E80: 100.216 | F80: 9451.3422
A81: 2000-04-17 | B81: 101.664 | C81: 105.655 | D81: 99.082 | E81: 101.181 | F81: 9434.5539
A82: 2000-04-18 | B82: 103.452 | C82: 104.861 | D82: 100.958 | E82: 101.465 | F82: 9424.0939
A83: 2000-04-19 | B83: 108.774 | C83: 113.807 | D83: 102.786 | E83: 108.082 | F83: 9429.5854
A84: 2000-04-20 | B84: 105.307 | C84: 110.505 | D84: 100.131 | E84: 105.476 | F84: 9458.6119
A85: 2000-04-21 | B85: 99.092 | C85: 99.202 | D85: 97.299 | E85: 98.914 | F85: 9375.6641
A86: 2000-04-24 | B86: 108.34 | C86: 111.559 | D86: 108.269 | E86: 110.455 | F86: 9386.6994
A87: 2000-04-25 | B87: 111.182 | C87: 111.478 | D87: 109.409 | E87: 110.556 | F87: 9366.0409
A88: 2000-04-26 | B88: 96.1 | C88: 99.438 | D88: 90.784 | E88: 98.381 | F88: 9425.9767
A89: 2000-04-27 | B89: 98.458 | C89: 103.683 | D89: 95.674 | E89: 96.062 | F89: 9399.5129
A90: 2000-04-28 | B90: 100.936 | C90: 105.867 | D90: 100.786 | E90: 101.745 | F90: 9398.4669
A91: 2000-05-01 | B91: 101.675 | C91: 103.942 | D91: 99.971 | E91: 102.109 | F91: 9429.5331
A92: 2000-05-02 | B92: 99.7 | C92: 99.99 | D92: 95.253 | E92: 101.874 | F92: 9426.8658
A93: =IF(WEEKDAY(A92,2)>4,A92+3,A92+1) -> 2000-05-03 | B93: 100.862 | C93: 102.96 | D93: 100.081 | E93: 101.376 | F93: 9401.9187
A94: 2000-05-04 | B94: 107.914 | C94: 113.217 | D94: 106.14 | E94: 109.592 | F94: 9392.0863
A95: 2000-05-05 | B95: 111.06 | C95: 111.443 | D95: 106.535 | E95: 112.461 | F95: 9451.6037
A96: 2000-05-08 | B96: 108.074 | C96: 110.982 | D96: 106.599 | E96: 106.848 | F96: 9417.4518
A97: 2000-05-09 | B97: 111.035 | C97: 111.395 | D97: 108.984 | E97: 109.395 | F97: 9403.0693
A98: 2000-05-10 | B98: 100.622 | C98: 103.867 | D98: 100.446 | E98: 98.364 | F98: 9392.6616
A99: 2000-05-11 | B99: 99.655 | C99: 105.059 | D99: 97.964 | E99: 99.079 | F99: 9377.8084
A100: 2000-05-12 | B100: 110.875 | C100: 115.144 | D100: 105.824 | E100: 108.397 | F100: 9405.1613
A101: 2000-05-15 | B101: 104.325 | C101: 106.693 | D101: 100.973 | E101: 102.911 | F101: 9410.4436
A102: 2000-05-16 | B102: 111.733 | C102: 115.328 | D102: 108.383 | E102: 112.896 | F102: 9451.9698
A103: 2000-05-17 | B103: 104.609 | C103: 108.519 | D103: 102.642 | E103: 106.096 | F103: 9453.1727
A104: 2000-05-18 | B104: 110.285 | C104: 112.021 | D104: 108.291 | E104: 110.919 | F104: 9361.9092
A105: 2000-05-19 | B105: 105.312 | C105: 107.192 | D105: 103.432 | E105: 105.632 | F105: 9437.9534
A106: 2000-05-22 | B106: 96.072 | C106: 97.62 | D106: 94.783 | E106: 96.325 | F106: 9373.1537
A107: 2000-05-23 | B107: 102.165 | C107: 103.152 | D107: 100.401 | E107: 103.961 | F107: 9414.8891
A108: 2000-05-24 | B108: 99.553 | C108: 105.135 | D108: 99.301 | E108: 100.888 | F108: 9422.3157
A109: 2000-05-25 | B109: 103.047 | C109: 106.152 | D109: 98.406 | E109: 103.557 | F109: 9456.2584
A110: 2000-05-26 | B110: 103.259 | C110: 109.001 | D110: 97.538 | E110: 103.608 | F110: 9369.7019
A111: 2000-05-29 | B111: 107.473 | C111: 110.986 | D111: 103.563 | E111: 108.192 | F111: 9404.2199
A112: 2000-05-30 | B112: 103.316 | C112: 108.011 | D112: 102.17 | E112: 104.515 | F112: 9444.0202
A113: 2000-05-31 | B113: 110.17 | C113: 115.421 | D113: 105.574 | E113: 110.248 | F113: 9397.3163
A114: 2000-06-01 | B114: 108.005 | C114: 108.673 | D114: 102.455 | E114: 108.005 | F114: 9455.0555
A115: 2000-06-02 | B115: 103.356 | C115: 104.451 | D115: 102.583 | E115: 104.934 | F115: 9447.9427
A116: 2000-06-05 | B116: 111.139 | C116: 116.104 | D116: 107.687 | E116: 109.523 | F116: 9415.9874
A117: 2000-06-06 | B117: 101.558 | C117: 107.449 | D117: 98.988 | E117: 100.394 | F117: 9461.0177
A118: 2000-06-07 | B118: 108.015 | C118: 113.947 | D118: 107.221 | E118: 106.787 | F118: 9403.4877
A119: 2000-06-08 | B119: 103.994 | C119: 109.697 | D119: 100.791 | E119: 102.766 | F119: 9381.6786
A120: 2000-06-09 | B120: 104.384 | C120: 106.15 | D120: 101.882 | E120: 104.37 | F120: 9428.644
A121: 2000-06-12 | B121: 98.669 | C121: 101.786 | D121: 98.251 | E121: 98.573 | F121: 9403.3308
A122: 2000-06-13 | B122: 102.437 | C122: 103.593 | D122: 97.342 | E122: 100.911 | F122: 9429.9515
A123: 2000-06-14 | B123: 103.848 | C123: 104.887 | D123: 102.898 | E123: 103.095 | F123: 9453.6434
A124: 2000-06-15 | B124: 110.783 | C124: 112.339 | D124: 108.295 | E124: 111.857 | F124: 9405.5274
A125: 2000-06-16 | B125: 100.593 | C125: 104.091 | D125: 96.732 | E125: 101.453 | F125: 9433.1941
A126: 2000-06-19 | B126: 111.743 | C126: 115.179 | D126: 109.33 | E126: 113.393 | F126: 9446.949
A127: 2000-06-20 | B127: 109.797 | C127: 115.517 | D127: 107.718 | E127: 108.417 | F127: 9407.724
A128: 2000-06-21 | B128: 106.359 | C128: 111.882 | D128: 102.32 | E128: 106.615 | F128: 9383.0907
A129: 2000-06-22 | B129: 96.641 | C129: 101.529 | D129: 90.788 | E129: 94.354 | F129: 9423.414
A130: 2000-06-23 | B130: 106.206 | C130: 111.345 | D130: 102.59 | E130: 105.203 | F130: 9438.8948
A131: 2000-06-26 | B131: 106.795 | C131: 109.146 | D131: 102.645 | E131: 108.75 | F131: 9367.9237
A132: 2000-06-27 | B132: 96.948 | C132: 98.644 | D132: 93.835 | E132: 97.678 | F132: 9423.4663
A133: 2000-06-28 | B133: 105.384 | C133: 110.954 | D133: 101.808 | E133: 105.46 | F133: 9452.179
A134: 2000-06-29 | B134: 98.522 | C134: 99.529 | D134: 94.426 | E134: 99.85 | F134: 9362.8506
A137: Gemiddelde:
A138: Hoogste:
A139: Laagste:
A140: Aantal

Sheet Als opg
A1: KOERSVERLOOP WALLSTREET
A2: 1e HALFJAAR 2013
G4: Verschil
A5: Datum | B5: Opening | C5: Hoog | D5: Laag | E5: Slot | F5: Dow Jones | G5: opening - slot | H5: Koerswinst
A6: 2000-01-02 | B6: 97.9 | C6: 99.035 | D6: 95.207 | E6: 96.591 | F6: 9402.8078 | G6: =E6-B6 -> -1.309 | H6: =IF(G6<0,"Verlies",IF(G6=0,"Geen winst of verlies","Winst")) -> Verlies
A7: 2000-01-03 | B7: 102.056 | C7: 104.808 | D7: 96.458 | E7: 103.043 | F7: 9447.2105 | G7: 0.987 | H7: =IF(G7<0,"Verlies",IF(G7=0,"Geen winst of verlies","Winst")) -> Winst
A8: 2000-01-04 | B8: 106.98 | C8: 112.33 | D8: 103.099 | E8: 108.535 | F8: 9393.9168 | G8: 1.555 | H8: Winst
A9: 2000-01-05 | B9: 99.822 | C9: 101.36 | D9: 96.46 | E9: 102.258 | F9: 9421.4789 | G9: 2.436 | H9: Winst
A10: 2000-01-06 | B10: 105.938 | C10: 108.699 | D10: 102.853 | E10: 107.216 | F10: 9415.6213 | G10: 1.278 | H10: Winst
A11: 2000-01-09 | B11: 99.234 | C11: 100.871 | D11: 98.359 | E11: 98.676 | F11: 9381.4694 | G11: -0.558 | H11: Verlies
A12: 2000-01-10 | B12: 98.524 | C12: 102.653 | D12: 95.03 | E12: 96.879 | F12: 9423.0479 | G12: -1.645 | H12: Verlies
A13: 2000-01-11 | B13: 108.638 | C13: 111.909 | D13: 105.655 | E13: 106.482 | F13: 9428.8009 | G13: -2.156 | H13: Verlies
A14: 2000-01-12 | B14: 111.936 | C14: 116.511 | D14: 108.757 | E14: 111.936 | F14: 9373.8859 | G14: 0 | H14: Geen winst of verlies
A15: 2000-01-13 | B15: 100.146 | C15: 105.508 | D15: 97.149 | E15: 98.197 | F15: 9397.0548 | G15: -1.949 | H15: Verlies
A16: 2000-01-14 | B16: 109.809 | C16: 112.569 | D16: 107.485 | E16: 112.03 | F16: 9438.9471 | G16: 2.221 | H16: Winst
A17: 2000-01-16 | B17: 102.193 | C17: 104.882 | D17: 98.024 | E17: 104.059 | F17: 9435.1292 | G17: 1.866 | H17: Winst
A18: 2000-01-17 | B18: 111.559 | C18: 115.773 | D18: 111.48 | E18: 112.547 | F18: 9389.4713 | G18: 0.988 | H18: Winst
A19: 2000-01-18 | B19: 108.198 | C19: 111.719 | D19: 107.135 | E19: 109.376 | F19: 9368.8651 | G19: 1.178 | H19: Winst
A20: 2000-01-19 | B20: 96.119 | C20: 98.977 | D20: 91.13 | E20: 96.14 | F20: 9378.959 | G20: 0.021 | H20: Winst
A21: 2000-01-20 | B21: 96.962 | C21: 100.794 | D21: 96.275 | E21: 98.734 | F21: 9420.0668 | G21: 1.772 | H21: Winst
A22: =A21+3 -> 2000-01-23 | B22: 109.696 | C22: 111.004 | D22: 106.06 | E22: 109.026 | F22: 9445.1185 | G22: -0.67 | H22: Verlies
A23: 2000-01-24 | B23: 103.01 | C23: 108.789 | D23: 99.895 | E23: 101.771 | F23: 9456.7814 | G23: -1.239 | H23: Verlies
A24: 2000-01-25 | B24: 102.716 | C24: 105.636 | D24: 97.267 | E24: 101.611 | F24: 9392.557 | G24: -1.105 | H24: Verlies
A25: 2000-01-26 | B25: 104.804 | C25: 105.574 | D25: 101.303 | E25: 104.364 | F25: 9388.1115 | G25: -0.44 | H25: Verlies
A26: 2000-01-27 | B26: 97.632 | C26: 102.641 | D26: 94.221 | E26: 99.599 | F26: 9439.1563 | G26: 1.967 | H26: Winst
A27: =A26+3 -> 2000-01-30 | B27: 96.955 | C27: 98.229 | D27: 95.756 | E27: 95.705 | F27: 9381.5217 | G27: -1.25 | H27: Verlies
A28: =IF(WEEKDAY(A27,2)>4,A27+3,A27+1) -> 2000-02-02 | B28: 109.327 | C28: 111.247 | D28: 109.305 | E28: 110.008 | F28: 9423.4663 | G28: =E28-B28 -> 0.681 | H28: Winst
A29: =IF(WEEKDAY(A28,2)>4,A28+3,A28+1) -> 2000-02-03 | B29: 107.651 | C29: 110.419 | D29: 104.12 | E29: 108.255 | F29: 9398.7284 | G29: =E29-B29 -> 0.604 | H29: Winst
A30: 2000-02-04 | B30: 104.591 | C30: 107.339 | D30: 103.625 | E30: 104.123 | F30: 9395.2766 | G30: -0.468 | H30: Verlies
A31: 2000-02-07 | B31: 104.04 | C31: 104.303 | D31: 99.028 | E31: 103.507 | F31: 9370.3818 | G31: -0.533 | H31: Verlies
A32: 2000-02-08 | B32: 109.34 | C32: 113.589 | D32: 108.919 | E32: 108.9 | F32: 9404.6383 | G32: -0.44 | H32: Verlies
A33: 2000-02-09 | B33: 103.88 | C33: 104.131 | D33: 100.519 | E33: 104.045 | F33: 9444.2294 | G33: 0.165 | H33: Winst
A34: 2000-02-10 | B34: 100.126 | C34: 100.601 | D34: 99.037 | E34: 100.596 | F34: 9364.2627 | G34: 0.47 | H34: Winst
A35: 2000-02-11 | B35: 111.072 | C35: 115.952 | D35: 105.533 | E35: 108.595 | F35: 9368.4467 | G35: -2.477 | H35: Verlies
A36: 2000-02-14 | B36: 111.635 | C36: 114.351 | D36: 111.3 | E36: 110.013 | F36: 9454.6371 | G36: -1.622 | H36: Verlies
A37: 2000-02-15 | B37: 105.38 | C37: 110.995 | D37: 101.549 | E37: 104.45 | F37: 9454.8986 | G37: -0.93 | H37: Verlies
A38: 2000-02-16 | B38: 104.082 | C38: 105.217 | D38: 100.266 | E38: 104.003 | F38: 9433.1418 | G38: -0.079 | H38: Verlies
A39: 2000-02-17 | B39: 107.906 | C39: 110.47 | D39: 103.312 | E39: 106.218 | F39: 9401.3434 | G39: -1.688 | H39: Verlies
A40: 2000-02-18 | B40: 103.988 | C40: 104.49 | D40: 100.152 | E40: 102.951 | F40: 9379.9527 | G40: -1.037 | H40: Verlies
A41: 2000-02-21 | B41: 98.624 | C41: 102.811 | D41: 94.47 | E41: 99.866 | F41: 9371.8462 | G41: 1.242 | H41: Winst
A42: 2000-02-22 | B42: 105.197 | C42: 108.772 | D42: 104.936 | E42: 106.911 | F42: 9441.3006 | G42: 1.714 | H42: Winst
A43: 2000-02-23 | B43: 99.875 | C43: 105.206 | D43: 99.281 | E43: 102.206 | F43: 9434.92 | G43: 2.331 | H43: Winst
A44: 2000-02-24 | B44: 102.679 | C44: 107.413 | D44: 102.224 | E44: 101.785 | F44: 9399.356 | G44: -0.894 | H44: Verlies
A45: 2000-02-25 | B45: 109.02 | C45: 110.317 | D45: 105.283 | E45: 106.77 | F45: 9414.8368 | G45: -2.25 | H45: Verlies
A46: 2000-02-28 | B46: 99.323 | C46: 103.683 | D46: 94.964 | E46: 98.014 | F46: 9443.4972 | G46: -1.309 | H46: Verlies
A47: 2000-02-29 | B47: 97.18 | C47: 101.593 | D47: 94.511 | E47: 96.986 | F47: 9396.8979 | G47: -0.194 | H47: Verlies
A48: 2000-03-01 | B48: 98.162 | C48: 101.259 | D48: 94.09 | E48: 97.119 | F48: 9429.9515 | G48: -1.043 | H48: Verlies
A49: 2000-03-02 | B49: 106.997 | C49: 107.524 | D49: 106.423 | E49: 105.585 | F49: 9444.1248 | G49: -1.412 | H49: Verlies
A50: 2000-03-03 | B50: 102.192 | C50: 106.233 | D50: 101.844 | E50: 100.48 | F50: 9439.6793 | G50: -1.712 | H50: Verlies
A51: 2000-03-06 | B51: 110.925 | C51: 114.296 | D51: 109.867 | E51: 110.839 | F51: 9413.1109 | G51: -0.086 | H51: Verlies
A52: 2000-03-07 | B52: 105.72 | C52: 106.899 | D52: 102.054 | E52: 103.409 | F52: 9421.5835 | G52: -2.311 | H52: Verlies
A53: 2000-03-08 | B53: 96.398 | C53: 100.328 | D53: 93.554 | E53: 94.972 | F53: 9410.4436 | G53: -1.426 | H53: Verlies
A54: 2000-03-09 | B54: 101.108 | C54: 104.264 | D54: 96.393 | E54: 100.921 | F54: 9433.5079 | G54: -0.187 | H54: Verlies
A55: 2000-03-10 | B55: 102.385 | C55: 105.667 | D55: 101.692 | E55: 101.576 | F55: 9443.0265 | G55: -0.809 | H55: Verlies
A56: 2000-03-13 | B56: 106.984 | C56: 110.737 | D56: 103.62 | E56: 105.022 | F56: 9432.4619 | G56: -1.962 | H56: Verlies
A57: 2000-03-14 | B57: 100.117 | C57: 103.224 | D57: 99.254 | E57: 99.211 | F57: 9392.3478 | G57: -0.906 | H57: Verlies
A58: 2000-03-15 | B58: 111.954 | C58: 112.661 | D58: 110.732 | E58: 109.786 | F58: 9460.8608 | G58: -2.168 | H58: Verlies
A59: 2000-03-16 | B59: 96.07 | C59: 98.333 | D59: 90.335 | E59: 94.015 | F59: 9404.2199 | G59: -2.055 | H59: Verlies
A60: 2000-03-17 | B60: 110.787 | C60: 115.303 | D60: 105.474 | E60: 113.144 | F60: 9368.7605 | G60: 2.357 | H60: Winst
A61: 2000-03-20 | B61: 109.345 | C61: 113.411 | D61: 107.539 | E61: 111.324 | F61: 9450.2962 | G61: 1.979 | H61: Winst
A62: 2000-03-21 | B62: 102.097 | C62: 105.59 | D62: 98.95 | E62: 104.065 | F62: 9381.1556 | G62: 1.968 | H62: Winst
A63: 2000-03-22 | B63: 107.425 | C63: 112.137 | D63: 103.948 | E63: 107.382 | F63: 9415.3598 | G63: -0.043 | H63: Verlies
A64: 2000-03-23 | B64: 104.129 | C64: 107.657 | D64: 103.776 | E64: 102.117 | F64: 9444.2294 | G64: -2.012 | H64: Verlies
A65: 2000-03-24 | B65: 97.698 | C65: 99.711 | D65: 96.965 | E65: 96.704 | F65: 9417.6087 | G65: -0.994 | H65: Verlies
A66: 2000-03-27 | B66: 105.532 | C66: 106.486 | D66: 102.727 | E66: 103.905 | F66: 9381.5217 | G66: -1.627 | H66: Verlies
A67: 2000-03-28 | B67: 102.746 | C67: 108.052 | D67: 97.947 | E67: 100.919 | F67: 9381.9924 | G67: -1.827 | H67: Verlies
A68: 2000-03-29 | B68: 105.945 | C68: 108.09 | D68: 103.178 | E68: 106.283 | F68: 9452.4928 | G68: 0.338 | H68: Winst
A69: 2000-03-30 | B69: 96.16 | C69: 99.303 | D69: 92.216 | E69: 97.923 | F69: 9439.8362 | G69: 1.763 | H69: Winst
A70: 2000-03-31 | B70: 101.658 | C70: 103.836 | D70: 99.59 | E70: 101.658 | F70: 9379.3774 | G70: 0 | H70: Geen winst of verlies
A71: 2000-04-03 | B71: 101.088 | C71: 102.641 | D71: 97.823 | E71: 103.313 | F71: 9455.0032 | G71: 2.225 | H71: =IF(G71<0,"Verlies",IF(G71=0,"Geen winst of verlies","Winst")) -> Winst
A72: 2000-04-04 | B72: 105.944 | C72: 107.361 | D72: 103.186 | E72: 106.641 | F72: 9401.6049 | G72: 0.697 | H72: Winst
A73: 2000-04-05 | B73: 97.987 | C73: 102.697 | D73: 97.862 | E73: 98.016 | F73: 9425.1922 | G73: 0.029 | H73: Winst
A74: 2000-04-06 | B74: 96.714 | C74: 100.579 | D74: 92.211 | E74: 98.074 | F74: 9443.1834 | G74: 1.36 | H74: Winst
A75: 2000-04-07 | B75: 97.629 | C75: 99.214 | D75: 92.266 | E75: 98.505 | F75: 9373.9382 | G75: 0.876 | H75: Winst
A76: 2000-04-10 | B76: 108.729 | C76: 110.948 | D76: 104.59 | E76: 110.643 | F76: 9374.3566 | G76: 1.914 | H76: Winst
A77: 2000-04-11 | B77: 98.65 | C77: 98.705 | D77: 95.574 | E77: 99.295 | F77: 9445.0662 | G77: 0.645 | H77: Winst
A78: 2000-04-12 | B78: 108.994 | C78: 114.874 | D78: 104.237 | E78: 110.444 | F78: 9363.6351 | G78: 1.45 | H78: Winst
A79: 2000-04-13 | B79: 98.632 | C79: 103.836 | D79: 93.824 | E79: 99.404 | F79: 9388.9483 | G79: 0.772 | H79: Winst
A80: 2000-04-14 | B80: 99.132 | C80: 104.29 | D80: 94.985 | E80: 100.216 | F80: 9451.3422 | G80: 1.084 | H80: Winst
A81: 2000-04-17 | B81: 101.664 | C81: 105.655 | D81: 99.082 | E81: 101.181 | F81: 9434.5539 | G81: -0.483 | H81: Verlies
A82: 2000-04-18 | B82: 103.452 | C82: 104.861 | D82: 100.958 | E82: 101.465 | F82: 9424.0939 | G82: -1.987 | H82: Verlies
A83: 2000-04-19 | B83: 108.774 | C83: 113.807 | D83: 102.786 | E83: 108.082 | F83: 9429.5854 | G83: -0.692 | H83: Verlies
A84: 2000-04-20 | B84: 105.307 | C84: 110.505 | D84: 100.131 | E84: 105.476 | F84: 9458.6119 | G84: 0.169 | H84: Winst
A85: 2000-04-21 | B85: 99.092 | C85: 99.202 | D85: 97.299 | E85: 98.914 | F85: 9375.6641 | G85: -0.178 | H85: Verlies
A86: 2000-04-24 | B86: 108.34 | C86: 111.559 | D86: 108.269 | E86: 110.455 | F86: 9386.6994 | G86: 2.115 | H86: Winst
A87: 2000-04-25 | B87: 111.182 | C87: 111.478 | D87: 109.409 | E87: 110.556 | F87: 9366.0409 | G87: -0.626 | H87: Verlies
A88: 2000-04-26 | B88: 96.1 | C88: 99.438 | D88: 90.784 | E88: 98.381 | F88: 9425.9767 | G88: 2.281 | H88: Winst
A89: 2000-04-27 | B89: 98.458 | C89: 103.683 | D89: 95.674 | E89: 96.062 | F89: 9399.5129 | G89: -2.396 | H89: Verlies
A90: 2000-04-28 | B90: 100.936 | C90: 105.867 | D90: 100.786 | E90: 101.745 | F90: 9398.4669 | G90: 0.809 | H90: Winst
A91: 2000-05-01 | B91: 101.675 | C91: 103.942 | D91: 99.971 | E91: 102.109 | F91: 9429.5331 | G91: 0.434 | H91: Winst
A92: 2000-05-02 | B92: 99.7 | C92: 99.99 | D92: 95.253 | E92: 101.874 | F92: 9426.8658 | G92: 2.174 | H92: Winst
A93: =IF(WEEKDAY(A92,2)>4,A92+3,A92+1) -> 2000-05-03 | B93: 100.862 | C93: 102.96 | D93: 100.081 | E93: 101.376 | F93: 9401.9187 | G93: =E93-B93 -> 0.514 | H93: Winst
A94: 2000-05-04 | B94: 107.914 | C94: 113.217 | D94: 106.14 | E94: 109.592 | F94: 9392.0863 | G94: 1.678 | H94: Winst
A95: 2000-05-05 | B95: 111.06 | C95: 111.443 | D95: 106.535 | E95: 112.461 | F95: 9451.6037 | G95: 1.401 | H95: Winst
A96: 2000-05-08 | B96: 108.074 | C96: 110.982 | D96: 106.599 | E96: 106.848 | F96: 9417.4518 | G96: -1.226 | H96: Verlies
A97: 2000-05-09 | B97: 111.035 | C97: 111.395 | D97: 108.984 | E97: 109.395 | F97: 9403.0693 | G97: -1.64 | H97: Verlies
A98: 2000-05-10 | B98: 100.622 | C98: 103.867 | D98: 100.446 | E98: 98.364 | F98: 9392.6616 | G98: -2.258 | H98: Verlies
A99: 2000-05-11 | B99: 99.655 | C99: 105.059 | D99: 97.964 | E99: 99.079 | F99: 9377.8084 | G99: -0.576 | H99: Verlies
A100: 2000-05-12 | B100: 110.875 | C100: 115.144 | D100: 105.824 | E100: 108.397 | F100: 9405.1613 | G100: -2.478 | H100: Verlies
A101: 2000-05-15 | B101: 104.325 | C101: 106.693 | D101: 100.973 | E101: 102.911 | F101: 9410.4436 | G101: -1.414 | H101: Verlies
A102: 2000-05-16 | B102: 111.733 | C102: 115.328 | D102: 108.383 | E102: 112.896 | F102: 9451.9698 | G102: 1.163 | H102: Winst
A103: 2000-05-17 | B103: 104.609 | C103: 108.519 | D103: 102.642 | E103: 106.096 | F103: 9453.1727 | G103: 1.487 | H103: Winst
A104: 2000-05-18 | B104: 110.285 | C104: 112.021 | D104: 108.291 | E104: 110.919 | F104: 9361.9092 | G104: 0.634 | H104: Winst
A105: 2000-05-19 | B105: 105.312 | C105: 107.192 | D105: 103.432 | E105: 105.632 | F105: 9437.9534 | G105: 0.32 | H105: Winst
A106: 2000-05-22 | B106: 96.072 | C106: 97.62 | D106: 94.783 | E106: 96.325 | F106: 9373.1537 | G106: 0.253 | H106: Winst
A107: 2000-05-23 | B107: 102.165 | C107: 103.152 | D107: 100.401 | E107: 103.961 | F107: 9414.8891 | G107: 1.796 | H107: Winst
A108: 2000-05-24 | B108: 99.553 | C108: 105.135 | D108: 99.301 | E108: 100.888 | F108: 9422.3157 | G108: 1.335 | H108: Winst
A109: 2000-05-25 | B109: 103.047 | C109: 106.152 | D109: 98.406 | E109: 103.557 | F109: 9456.2584 | G109: 0.51 | H109: Winst
A110: 2000-05-26 | B110: 103.259 | C110: 109.001 | D110: 97.538 | E110: 103.608 | F110: 9369.7019 | G110: 0.349 | H110: Winst
A111: 2000-05-29 | B111: 107.473 | C111: 110.986 | D111: 103.563 | E111: 108.192 | F111: 9404.2199 | G111: 0.719 | H111: Winst
A112: 2000-05-30 | B112: 103.316 | C112: 108.011 | D112: 102.17 | E112: 104.515 | F112: 9444.0202 | G112: 1.199 | H112: Winst
A113: 2000-05-31 | B113: 110.17 | C113: 115.421 | D113: 105.574 | E113: 110.248 | F113: 9397.3163 | G113: 0.078 | H113: Winst
A114: 2000-06-01 | B114: 108.005 | C114: 108.673 | D114: 102.455 | E114: 108.005 | F114: 9455.0555 | G114: 0 | H114: Geen winst of verlies
A115: 2000-06-02 | B115: 103.356 | C115: 104.451 | D115: 102.583 | E115: 104.934 | F115: 9447.9427 | G115: 1.578 | H115: Winst
A116: 2000-06-05 | B116: 111.139 | C116: 116.104 | D116: 107.687 | E116: 109.523 | F116: 9415.9874 | G116: -1.616 | H116: Verlies
A117: 2000-06-06 | B117: 101.558 | C117: 107.449 | D117: 98.988 | E117: 100.394 | F117: 9461.0177 | G117: -1.164 | H117: Verlies
A118: 2000-06-07 | B118: 108.015 | C118: 113.947 | D118: 107.221 | E118: 106.787 | F118: 9403.4877 | G118: -1.228 | H118: Verlies
A119: 2000-06-08 | B119: 103.994 | C119: 109.697 | D119: 100.791 | E119: 102.766 | F119: 9381.6786 | G119: -1.228 | H119: Verlies
A120: 2000-06-09 | B120: 104.384 | C120: 106.15 | D120: 101.882 | E120: 104.37 | F120: 9428.644 | G120: -0.014 | H120: Verlies
A121: 2000-06-12 | B121: 98.669 | C121: 101.786 | D121: 98.251 | E121: 98.573 | F121: 9403.3308 | G121: -0.096 | H121: Verlies
A122: 2000-06-13 | B122: 102.437 | C122: 103.593 | D122: 97.342 | E122: 100.911 | F122: 9429.9515 | G122: -1.526 | H122: Verlies
A123: 2000-06-14 | B123: 103.848 | C123: 104.887 | D123: 102.898 | E123: 103.095 | F123: 9453.6434 | G123: -0.753 | H123: Verlies
A124: 2000-06-15 | B124: 110.783 | C124: 112.339 | D124: 108.295 | E124: 111.857 | F124: 9405.5274 | G124: 1.074 | H124: Winst
A125: 2000-06-16 | B125: 100.593 | C125: 104.091 | D125: 96.732 | E125: 101.453 | F125: 9433.1941 | G125: 0.86 | H125: Winst
A126: 2000-06-19 | B126: 111.743 | C126: 115.179 | D126: 109.33 | E126: 113.393 | F126: 9446.949 | G126: 1.65 | H126: Winst
A127: 2000-06-20 | B127: 109.797 | C127: 115.517 | D127: 107.718 | E127: 108.417 | F127: 9407.724 | G127: -1.38 | H127: Verlies
A128: 2000-06-21 | B128: 106.359 | C128: 111.882 | D128: 102.32 | E128: 106.615 | F128: 9383.0907 | G128: 0.256 | H128: Winst
A129: 2000-06-22 | B129: 96.641 | C129: 101.529 | D129: 90.788 | E129: 94.354 | F129: 9423.414 | G129: -2.287 | H129: Verlies
A130: 2000-06-23 | B130: 106.206 | C130: 111.345 | D130: 102.59 | E130: 105.203 | F130: 9438.8948 | G130: -1.003 | H130: Verlies
A131: 2000-06-26 | B131: 106.795 | C131: 109.146 | D131: 102.645 | E131: 108.75 | F131: 9367.9237 | G131: 1.955 | H131: Winst
A132: 2000-06-27 | B132: 96.948 | C132: 98.644 | D132: 93.835 | E132: 97.678 | F132: 9423.4663 | G132: 0.73 | H132: Winst
A133: 2000-06-28 | B133: 105.384 | C133: 110.954 | D133: 101.808 | E133: 105.46 | F133: 9452.179 | G133: 0.076 | H133: Winst
A134: 2000-06-29 | B134: 98.522 | C134: 99.529 | D134: 94.426 | E134: 99.85 | F134: 9362.8506 | G134: 1.328 | H134: Winst
A137: Gemiddelde: | C137: =AVERAGE(C6:C134) -> 107.0193256
A138: Hoogste: | C138: =MAX(C6:C134) -> 116.511
A139: Laagste: | C139: =MIN(C6:C134) -> 97.62
A140: Aantal | C140: =COUNT(C6:C134) -> 129

Sheet Als 1
A1: Bestelling Boekhandel van Zanten
A3: Product nummer | B3: Boektitel | C3: Taal | D3: Categorie | E3: Prijs | F3: Kw1 | G3: Kw2 | H3: Kw3 | I3: Kw4 | J3: Totaal NL | K3: Totaal EN
A4: 17 | B4: Alleen is ook maar alleen | C4: NL | D4: Jeugdboeken | E4: 19.95 | F4: 36 | G4: 23 | H4: 13 | I4: 11
A5: 18 | B5: Alleen op vakantie | C5: NL | D5: Jeugdboeken | E5: 16.9 | F5: 0 | G5: 42 | H5: 26 | I5: 9
A6: 19 | B6: Blijf van me af! | C6: NL | D6: Jeugdboeken | E6: 15.9 | F6: 11 | G6: 5 | H6: 47 | I6: 14
A7: 20 | B7: Het geheim van het Amulet ontrafeld | C7: NL | D7: Jeugdboeken | E7: 29 | F7: 31 | G7: 11 | H7: 17 | I7: 3
A8: 21 | B8: Amulets secret revealed | C8: EN | D8: Jeugdboeken | E8: 29 | F8: 22 | G8: 9 | H8: 41 | I8: 16
A9: 22 | B9: Lifters | C9: NL | D9: Jeugdboeken | E9: 21 | F9: 47 | G9: 46 | H9: 7 | I9: 7
A10: 23 | B10: Magie tussen gesloten deuren | C10: NL | D10: Jeugdboeken | E10: 19.5 | F10: 24 | G10: 3 | H10: 48 | I10: 43
A11: 24 | B11: Mysterieus en charmant, zij is voor mij! | C11: NL | D11: Jeugdboeken | E11: 31.23 | F11: 49 | G11: 42 | H11: 12 | I11: 50
A12: 25 | B12: Mysterious and Charming, she's mine | C12: EN | D12: Jeugdboeken | E12: 31.23 | F12: 10 | G12: 19 | H12: 14 | I12: 38
A13: 26 | B13: Schrijf me! | C13: NL | D13: Jeugdboeken | E13: 19.5 | F13: 39 | G13: 13 | H13: 25 | I13: 47
A14: 27 | B14: Stop! | C14: NL | D14: Jeugdboeken | E14: 23.46 | F14: 23 | G14: 21 | H14: 7 | I14: 12
A15: 28 | B15: Wat als, ik dat ook ga doen! | C15: NL | D15: Jeugdboeken | E15: 25.89 | F15: 28 | G15: 33 | H15: 35 | I15: 16
A16: 29 | B16: Wat jij kan doe ik beter! | C16: NL | D16: Jeugdboeken | E16: 25.89 | F16: 37 | G16: 42 | H16: 50 | I16: 15
A17: 30 | B17: Everything you can do, i can do better | C17: EN | D17: Jeugdboeken | E17: 25.89 | F17: 16 | G17: 48 | H17: 5 | I17: 21

Sheet Als 1 opg
A1: Bestelling Boekhandel van Zanten
A3: Product nummer | B3: Boektitel | C3: Taal | D3: Categorie | E3: Prijs | F3: Kw1 | G3: Kw2 | H3: Kw3 | I3: Kw4 | J3: Totaal NL | K3: Totaal EN
A4: 17 | B4: Alleen is ook maar alleen | C4: NL | D4: Jeugdboeken | E4: 19.95 | F4: 36 | G4: 23 | H4: 13 | I4: 11 | J4: =IF($C4="NL",SUM($F4:$I4),"") -> 83 | K4: =IF($C4="EN",SUM($F4:$I4),"") -> 
A5: 18 | B5: Alleen op vakantie | C5: NL | D5: Jeugdboeken | E5: 16.9 | F5: 0 | G5: 42 | H5: 26 | I5: 9 | J5: =IF($C5="NL",SUM($F5:$I5),"") -> 77 | K5: =IF($C5="EN",SUM($F5:$I5),"") -> 
A6: 19 | B6: Blijf van me af! | C6: NL | D6: Jeugdboeken | E6: 15.9 | F6: 11 | G6: 5 | H6: 47 | I6: 14 | J6: 77
A7: 20 | B7: Het geheim van het Amulet ontrafeld | C7: NL | D7: Jeugdboeken | E7: 29 | F7: 31 | G7: 11 | H7: 17 | I7: 3 | J7: 62
A8: 21 | B8: Amulets secret revealed | C8: EN | D8: Jeugdboeken | E8: 29 | F8: 22 | G8: 9 | H8: 41 | I8: 16 | K8: 88
A9: 22 | B9: Lifters | C9: NL | D9: Jeugdboeken | E9: 21 | F9: 47 | G9: 46 | H9: 7 | I9: 7 | J9: 107
A10: 23 | B10: Magie tussen gesloten deuren | C10: NL | D10: Jeugdboeken | E10: 19.5 | F10: 24 | G10: 3 | H10: 48 | I10: 43 | J10: 118
A11: 24 | B11: Mysterieus en charmant, zij is voor mij! | C11: NL | D11: Jeugdboeken | E11: 31.23 | F11: 49 | G11: 42 | H11: 12 | I11: 50 | J11: 153
A12: 25 | B12: Mysterious and Charming, she's mine | C12: EN | D12: Jeugdboeken | E12: 31.23 | F12: 10 | G12: 19 | H12: 14 | I12: 38 | K12: 81
A13: 26 | B13: Schrijf me! | C13: NL | D13: Jeugdboeken | E13: 19.5 | F13: 39 | G13: 13 | H13: 25 | I13: 47 | J13: 124
A14: 27 | B14: Stop! | C14: NL | D14: Jeugdboeken | E14: 23.46 | F14: 23 | G14: 21 | H14: 7 | I14: 12 | J14: 63
A15: 28 | B15: Wat als, ik dat ook ga doen! | C15: NL | D15: Jeugdboeken | E15: 25.89 | F15: 28 | G15: 33 | H15: 35 | I15: 16 | J15: 112
A16: 29 | B16: Wat jij kan doe ik beter! | C16: NL | D16: Jeugdboeken | E16: 25.89 | F16: 37 | G16: 42 | H16: 50 | I16: 15 | J16: 144
A17: 30 | B17: Everything you can do, i can do better | C17: EN | D17: Jeugdboeken | E17: 25.89 | F17: 16 | G17: 48 | H17: 5 | I17: 21 | K17: 90

Sheet Als 2
A1: PILGRIM KANTOOR-BOEKHANDEL
A3: Korting bij meer dan 15 dezelfde titels | B3: 0.07
D5: Aantal besteld | G5: Verleende korting | J5: Totaal bedrag geleverd
A6: Boektitel | B6: Prijs | D6: Januari | E6: Februari | F6: Maart | G6: Januari | H6: Februari | I6: Maart | J6: Januari | K6: Februari | L6: Maart
A7: Fundamenten van een Markt- en micro-economie + CD-ROM | B7: 28.5 | D7: 11 | E7: 16 | F7: 24
A8: Geld, IEB en bedrijfsprocessen | B8: 49.3 | D8: 48 | E8: 19 | F8: 11
A9: Human Resource Management to the MAX | B9: 43.9 | D9: 11 | E9: 10 | F9: 23
A10: Linguistic in Dutch, Englisch, German and Spanish | B10: 22.5 | D10: 26 | E10: 14 | F10: 20
A11: Met je ogen dicht boekhouden | B11: 26.75 | D11: 11 | E11: 18 | F11: 12
A12: Opweg om Nederlands nummer 1 Secretaresse te worden. | B12: 78 | D12: 20 | E12: 15 | F12: 15
A13: Schrijven doe je ZO! | B13: 13 | D13: 11 | E13: 10 | F13: 30
A14: Van Lottik Woordenboeken EN-NE &NE-EN | B14: 18 | D14: 10 | E14: 18 | F14: 27
A15: Van Lottik Woordenboeken NE-SP & SP-EN | B15: 18 | D15: 13 | E15: 15 | F15: 13
A16: Creatief een Internetsite bouwen (met diverse programma's) | B16: 44 | D16: 8 | E16: 7 | F16: 14
A18: Totaal eerste kwartaal
A19: Gemiddeld eerste kwartaal

Sheet Als 2 opg
A1: PILGRIM KANTOOR-BOEKHANDEL
A3: Korting bij meer dan 15 dezelfde titels | B3: 0.07
D5: Aantal besteld | G5: Verleende korting | J5: Totaal bedrag geleverd
A6: Boektitel | B6: Prijs | D6: Januari | E6: Februari | F6: Maart | G6: Januari | H6: Februari | I6: Maart | J6: Januari | K6: Februari | L6: Maart
A7: Fundamenten van een Markt- en micro-economie + CD-ROM | B7: 28.5 | D7: 11 | E7: 16 | F7: 24 | G7: =IF(D7>=15,$B$3*$B7*D7,"") ->  | H7: =IF(E7>=15,$B$3*$B7*E7,"") -> 31.92 | I7: 47.88 | J7: =IFERROR($B7*D7-G7,$B7*D7-0) -> 313.5 | K7: =IFERROR($B7*E7-H7,$B7*E7-0) -> 424.08 | L7: 636.12
A8: Geld, IEB en bedrijfsprocessen | B8: 49.3 | D8: 48 | E8: 19 | F8: 11 | G8: =IF(D8>=15,$B$3*$B8*D8,"") -> 165.648 | H8: 65.569 | J8: =IFERROR($B8*D8-G8,$B8*D8-0) -> 2200.752 | K8: 871.131 | L8: 542.3
A9: Human Resource Management to the MAX | B9: 43.9 | D9: 11 | E9: 10 | F9: 23 | I9: 70.679 | J9: 482.9 | K9: 439 | L9: 939.021
A10: Linguistic in Dutch, Englisch, German and Spanish | B10: 22.5 | D10: 26 | E10: 14 | F10: 20 | G10: 40.95 | I10: 31.5 | J10: 544.05 | K10: 315 | L10: 418.5
A11: Met je ogen dicht boekhouden | B11: 26.75 | D11: 11 | E11: 18 | F11: 12 | H11: 33.705 | J11: 294.25 | K11: 447.795 | L11: 321
A12: Opweg om Nederlands nummer 1 Secretaresse te worden. | B12: 78 | D12: 20 | E12: 15 | F12: 15 | G12: 109.2 | H12: 81.9 | I12: 81.9 | J12: 1450.8 | K12: 1088.1 | L12: 1088.1
A13: Schrijven doe je ZO! | B13: 13 | D13: 11 | E13: 10 | F13: 30 | I13: 27.3 | J13: 143 | K13: 130 | L13: 362.7
A14: Van Lottik Woordenboeken EN-NE &NE-EN | B14: 18 | D14: 10 | E14: 18 | F14: 27 | H14: 22.68 | I14: 34.02 | J14: 180 | K14: 301.32 | L14: 451.98
A15: Van Lottik Woordenboeken NE-SP & SP-EN | B15: 18 | D15: 13 | E15: 15 | F15: 13 | H15: 18.9 | J15: 234 | K15: 251.1 | L15: 234
A16: Creatief een Internetsite bouwen (met diverse programma's) | B16: 44 | D16: 8 | E16: 7 | F16: 14 | J16: 352 | K16: 308 | L16: 616
A18: Totaal eerste kwartaal | D18: =SUM(D7:F16) -> 500 | G18: =SUM(G7:I16) -> 863.751 | J18: =SUM(J7:L16) -> 16380.499
A19: Gemiddeld eerste kwartaal | D19: =AVERAGE(D7:F16) -> 16.66666667 | G19: =AVERAGE(G7:I16) -> 57.5834 | J19: =AVERAGE(J7:L16) -> 546.0166333

Sheet Als 3
A1: Contributie | J1: Eindtotaal contributie
A2: Volwassene per half jaar (V) | C2: 72
A3: Jeugd per half jaar (J) | C3: 43
A4: Recreant per half jaar (R) | C4: 45
A6: Ledenlijst
A7: Achternaam | B7: Adres | C7: Postcode | D7: Woonplaats | E7: Aantal leden | H7: Totale contributie
E8: V | F8: J | G8: R
A9: fam. de Boer | B9: Bospad 3 | C9: 5364 YT | D9: Raalte | E9: 1 | F9: 2
A10: fam. de Boer | B10: Kleiweg 10 | C10: 5364 YT | D10: Zwolle | E10: 1
A11: fam. de Bruin | B11: Plein 10 | C11: 2345 TT | D11: Zwolle | E11: 1
A12: fam. Christiaanse | B12: Kastanjeweg 3 | C12: 3479 KL | D12: Wijhe | E12: 1 | G12: 2
A13: fam. de Eénberg | B13: Marktstraat 13 | C13: 3454 VV | D13: Zwolle | E13: 1 | F13: 3
A14: fam. Grind | B14: De Dreef 35 | C14: 4673 TG | D14: Zwolle | E14: 1 | F14: 2
A15: fam. de Groot | B15: Klinker 3 | C15: 4573 JJ | D15: Raalte | E15: 2 | F15: 1
A16: fam. Janssen | B16: Vijverweg 7 | C16: 6485 OP | D16: Zwolle | E16: 1 | F16: 1
A17: fam. Klein | B17: Bergpad 8 | C17: 3423 TT | D17: Zwolle | E17: 1 | F17: 3 | G17: 1
A18: fam. Lemstra | B18: Markstraat 2 | C18: 2435 HU | D18: Zwolle | E18: 1 | F18: 2 | G18: 1
A19: fam. Loenen | B19: Pollengras 8 | C19: 6677 JJ | D19: Kampen | E19: 2
A20: fam. van Maanen | B20: Eikenlaan 10 | C20: 9876 BB | D20: Kampen | E20: 1
A21: fam. de Meer | B21: Vijverweg 7 | C21: 6485 OP | D21: Zwolle | E21: 2 | F21: 3 | G21: 1
A22: fam. Tuinman | B22: Beukenlaan 5 | C22: 8749 NT | D22: Zwolle | E22: 1 | G22: 2
A23: fam. de Meester | B23: Beukenlaan 2 | C23: 8749 NT | D23: Zwolle | E23: 1 | F23: 2 | G23: 1
A24: fam. Munster | B24: Plein 4 | C24: 2345 TT | D24: Zwolle | E24: 1 | F24: 1
A25: fam. Tegelen | B25: Marktstraat 34 | C25: 3454 TT | D25: Zwolle | E25: 1 | F25: 2
A26: fam. Timmerman | B26: Heggeweg 8 | C26: 8976 TU | D26: Zwolle | E26: 1 | F26: 1
A27: fam. Veenstra | B27: Potterstraat 33 | C27: 5467 DD | D27: Zwolle | E27: 1 | F27: 2
A28: fam. Vermeer | B28: Grote straat 3 | C28: 6897 FR | D28: Zwolle | E28: 2 | F28: 1
A29: fam. de Vries | B29: 't Steegje 7 | C29: 3456 ST | D29: Zwolle | E29: 1 | G29: 2
A30: fam. de Zwart | B30: Dorpsstraat 2 | C30: 3465 VV | D30: Wijhe | E30: 2 | G30: 1

Sheet Als 3 opg
A1: Contributie | J1: Eindtotaal contributie | K1: =SUM(H9:H30) -> 3557
A2: Volwassene per half jaar (V) | C2: 72
A3: Jeugd per half jaar (J) | C3: 43
A4: Recreant per half jaar (R) | C4: 45
A6: Ledenlijst
A7: Achternaam | B7: Adres | C7: Postcode | D7: Woonplaats | E7: Aantal leden | H7: Totale contributie
E8: V | F8: J | G8: R
A9: fam. de Boer | B9: Bospad 3 | C9: 5364 YT | D9: Raalte | E9: 1 | F9: 2 | H9: =SUM(IF(E9="","0",$C$2*E9),IF(F9="","0",$C$3*F9),IF(G9="","0",$C$4*G9)) -> 158
A10: fam. de Boer | B10: Kleiweg 10 | C10: 5364 YT | D10: Zwolle | E10: 1 | H10: =SUM(IF(E10="","0",$C$2*E10),IF(F10="","0",$C$3*F10),IF(G10="","0",$C$4*G10)) -> 72
A11: fam. de Bruin | B11: Plein 10 | C11: 2345 TT | D11: Zwolle | E11: 1 | H11: 72
A12: fam. Christiaanse | B12: Kastanjeweg 3 | C12: 3479 KL | D12: Wijhe | E12: 1 | G12: 2 | H12: 162
A13: fam. de Eénberg | B13: Marktstraat 13 | C13: 3454 VV | D13: Zwolle | E13: 1 | F13: 3 | H13: 201
A14: fam. Grind | B14: De Dreef 35 | C14: 4673 TG | D14: Zwolle | E14: 1 | F14: 2 | H14: 158
A15: fam. de Groot | B15: Klinker 3 | C15: 4573 JJ | D15: Raalte | E15: 2 | F15: 1 | H15: 187
A16: fam. Janssen | B16: Vijverweg 7 | C16: 6485 OP | D16: Zwolle | E16: 1 | F16: 1 | H16: 115
A17: fam. Klein | B17: Bergpad 8 | C17: 3423 TT | D17: Zwolle | E17: 1 | F17: 3 | G17: 1 | H17: 246
A18: fam. Lemstra | B18: Markstraat 2 | C18: 2435 HU | D18: Zwolle | E18: 1 | F18: 2 | G18: 1 | H18: 203
A19: fam. Loenen | B19: Pollengras 8 | C19: 6677 JJ | D19: Kampen | E19: 2 | H19: 144
A20: fam. van Maanen | B20: Eikenlaan 10 | C20: 9876 BB | D20: Kampen | E20: 1 | H20: 72
A21: fam. de Meer | B21: Vijverweg 7 | C21: 6485 OP | D21: Zwolle | E21: 2 | F21: 3 | G21: 1 | H21: 318
A22: fam. Tuinman | B22: Beukenlaan 5 | C22: 8749 NT | D22: Zwolle | E22: 1 | G22: 2 | H22: 162
A23: fam. de Meester | B23: Beukenlaan 2 | C23: 8749 NT | D23: Zwolle | E23: 1 | F23: 2 | G23: 1 | H23: 203
A24: fam. Munster | B24: Plein 4 | C24: 2345 TT | D24: Zwolle | E24: 1 | F24: 1 | H24: 115
A25: fam. Tegelen | B25: Marktstraat 34 | C25: 3454 TT | D25: Zwolle | E25: 1 | F25: 2 | H25: 158
A26: fam. Timmerman | B26: Heggeweg 8 | C26: 8976 TU | D26: Zwolle | E26: 1 | F26: 1 | H26: 115
A27: fam. Veenstra | B27: Potterstraat 33 | C27: 5467 DD | D27: Zwolle | E27: 1 | F27: 2 | H27: 158
A28: fam. Vermeer | B28: Grote straat 3 | C28: 6897 FR | D28: Zwolle | E28: 2 | F28: 1 | H28: 187
A29: fam. de Vries | B29: 't Steegje 7 | C29: 3456 ST | D29: Zwolle | E29: 1 | G29: 2 | H29: 162
A30: fam. de Zwart | B30: Dorpsstraat 2 | C30: 3465 VV | D30: Wijhe | E30: 2 | G30: 1 | H30: 189

Sheet Als Functie
A1: l | B1: Rekening
K2: BTWH | L2: 0.21
A3: Aantal | B3: Artikel omschrijving | C3: L/H | D3: Prijs/stuk | E3: Prijs/excl | F3: Btw | G3: Prijs/incl | K3: BTWL | L3: 0.06
A4: 5 | B4: Tomaten ketchup | C4: L | D4: 3.5
A5: 2 | B5: Calgonit Tabs | C5: H | D5: 15
A6: 2 | B6: Ambi-pur | C6: H | D6: 9.6
A7: 3 | B7: Kandijkoek | C7: L | D7: 5.95
A8: 7 | B8: Koffie | C8: H | D8: 3.25
A9: 4 | B9: Thee | C9: H | D9: 2.95
A10: 2 | B10: Koffie filters no 4 | C10: L | D10: 1.5
A11: 12 | B11: Coca Cola | C11: H | D11: 1.95
A12: 2 | B12: Heineken | C12: H | D12: 16.34
A13: 6 | B13: Chips | C13: H | D13: 1.25
A14: 4 | B14: Rookworst | C14: L | D14: 2.5
A16: Totaal

Sheet Als Functie opg
B1: Rekening
K2: BTWH | L2: 0.21
A3: Aantal | B3: Artikel omschrijving | C3: L/H | D3: Prijs/stuk | E3: Prijs/excl | F3: Btw | G3: Prijs/incl | K3: BTWL | L3: 0.06
A4: 5 | B4: Tomaten ketchup | C4: L | D4: 3.5 | E4: =A4*D4 -> 17.5 | F4: =IF(C4="L",E4*$L$3,E4*$L$2) -> 1.05 | G4: =E4+F4 -> 18.55
A5: 2 | B5: Calgonit Tabs | C5: H | D5: 15 | E5: =A5*D5 -> 30 | F5: =IF(C5="L",E5*$L$3,E5*$L$2) -> 6.3 | G5: =E5+F5 -> 36.3
A6: 2 | B6: Ambi-pur | C6: H | D6: 9.6 | E6: 19.2 | F6: 4.032 | G6: 23.232
A7: 3 | B7: Kandijkoek | C7: L | D7: 5.95 | E7: 17.85 | F7: 1.071 | G7: 18.921
A8: 7 | B8: Koffie | C8: H | D8: 3.25 | E8: 22.75 | F8: 4.7775 | G8: 27.5275
A9: 4 | B9: Thee | C9: H | D9: 2.95 | E9: 11.8 | F9: 2.478 | G9: 14.278
A10: 2 | B10: Koffie filters no 4 | C10: L | D10: 1.5 | E10: 3 | F10: 0.18 | G10: 3.18
A11: 12 | B11: Coca Cola | C11: H | D11: 1.95 | E11: 23.4 | F11: 4.914 | G11: 28.314
A12: 2 | B12: Heineken | C12: H | D12: 16.34 | E12: 32.68 | F12: 6.8628 | G12: 39.5428
A13: 6 | B13: Chips | C13: H | D13: 1.25 | E13: 7.5 | F13: 1.575 | G13: 9.075
A14: 4 | B14: Rookworst | C14: L | D14: 2.5 | E14: 10 | F14: 0.6 | G14: 10.6
A16: Totaal

Sheet Fouten
A1: Worldwide Sporting Goods
A2: Verkopen 1995 | B2: 2013
A4: Bedrijf | B4: Status | C4: Kwrt 1 | D4: Kwrt 2 | E4: Kwrt 3 | F4: Kwrt 4 | G4: Totaal | H4: Gemiddelde
A5: SportsCity | B5: 2 | G5: =SUM(C5:F5) -> 0 | H5: =AVERAGE(C5:F5) -> 
A6: Athlete's Dream | B6: 3 | G6: =SUM(C6:F6) -> 0 | H6: =AVERAGE(C6:F6) -> 
A7: Sports Emporium | B7: 1 | G7: 0
A8: SportsWorld | B8: 4 | G8: 0
A9: Tennis Joint | B9: 3 | G9: 0
A10: Athlete's World | B10: 2 | G10: 0
A11: Sportsman's Den | B11: 1 | G11: 0
A12: World of Sports | B12: 3 | G12: 0
A13: Specialty Sports | B13: 4 | G13: =SUM(C13:F13) -> 0
A15: Totaal | C15: =SUM(C5:C13) -> 0 | D15: =SUM(D5:D13) -> 0 | E15: =SUM(E5:E13) -> 0 | F15: =SUM(F5:F13) -> 0 | G15: =SUM(G5:G13) -> 0
A16: Gemiddelde | C16: =AVERAGE(C5:C13) ->  | D16: =AVERAGE(D5:D13) ->  | E16: =AVERAGE(E5:E13) ->  | F16: =AVERAGE(F5:F13) ->  | G16: =AVERAGE(G5:G13) -> 0

Sheet Fouten Opg
A1: Worldwide Sporting Goods
A2: Verkopen 1995 | B2: 2013
A4: Bedrijf | B4: Status | C4: Kwrt 1 | D4: Kwrt 2 | E4: Kwrt 3 | F4: Kwrt 4 | G4: Totaal | H4: Gemiddelde
A5: SportsCity | B5: 2 | G5: =IF(SUM(C5:F5)=0,"",SUM(C5:F5)) ->  | H5: =IF(ISERROR(AVERAGE(C5:F5)),"",AVERAGE(C5:F5)) -> 
A6: Athlete's Dream | B6: 3 | G6: =IF(SUM(C6:F6)=0,"",SUM(C6:F6)) ->  | H6: =IF(ISERROR(AVERAGE(C6:F6)),"",AVERAGE(C6:F6)) -> 
A7: Sports Emporium | B7: 1
A8: SportsWorld | B8: 4
A9: Tennis Joint | B9: 3
A10: Athlete's World | B10: 2
A11: Sportsman's Den | B11: 1
A12: World of Sports | B12: 3
A13: Specialty Sports | B13: 4
A15: Totaal | C15: =IF(SUM(C5:C13)=0,"",SUM(C5:C13)) ->  | D15: =IF(SUM(D5:D13)=0,"",SUM(D5:D13)) ->  | E15: =IF(SUM(E5:E13)=0,"",SUM(E5:E13)) ->  | F15: =IF(SUM(F5:F13)=0,"",SUM(F5:F13)) ->  | G15: =IF(SUM(G5:G13)=0,"",SUM(G5:G13)) -> 
A16: Gemiddelde | C16: =IFERROR(AVERAGE(C5:C13),"") ->  | D16: =IFERROR(AVERAGE(D5:D13),"") ->  | E16: =IFERROR(AVERAGE(E5:E13),"") ->  | F16: =IFERROR(AVERAGE(F5:F13),"") ->  | G16: =IFERROR(AVERAGE(G5:G13),"") ->  | H16: =IF(ISERROR(AVERAGE(H5:H13)),"",AVERAGE(H5:H13)) -> 

Sheet Aantal Als
A1: Overzicht vakantie- en ziektedagen
B3: jan | C3: feb | D3: mrt | E3: apr | F3: mei | G3: jun | H3: jul | I3: aug | J3: sep | K3: okt | L3: nov | M3: dec
A4: 1 | K4: z | O4: Aantal vakantiedagen
A5: 2 | K5: z | O5: Aantal ziektedagen
A6: 3 | K6: z | O6: Aantal lege cellen
A7: 4 | K7: z
A8: 5
A9: 6
A10: 7
A11: 8
A12: 9
A13: 10 | E13: v
A14: 11
A15: 12
A16: 13
A17: 14 | C17: v
A18: 15 | C18: v | I18: v
A19: 16 | I19: v
A20: 17
A21: 18
A22: 19 | I22: v
A23: 20 | I23: v
A24: 21 | I24: v | K24: v
A25: 22 | H25: v | I25: v | K25: v
A26: 23 | B26: z | H26: v | I26: v | K26: v
A27: 24 | H27: v | K27: v
A28: 25 | H28: v | K28: v
A29: 26 | H29: v
A30: 27 | C30: z
A31: 28 | C31: z
A32: 29 | C32: X | E32: v | H32: v
A33: 30 | C33: X | H33: v | M33: v
A34: 31 | C34: X | E34: X | G34: X | H34: v | J34: X | L34: X | M34: v

Sheet Aantal Als opg
A1: Overzicht vakantie- en ziektedagen
B3: jan | C3: feb | D3: mrt | E3: apr | F3: mei | G3: jun | H3: jul | I3: aug | J3: sep | K3: okt | L3: nov | M3: dec
A4: 1 | K4: z | O4: Aantal vakantiedagen | P4: =COUNTIF(B4:M34,"v") -> 26
A5: 2 | K5: z | O5: Aantal ziektedagen | P5: =COUNTIF(B4:M34,"z") -> 7
A6: 3 | K6: z | O6: Aantal lege cellen | P6: =COUNTIF(B4:M34,"") -> 332
A7: 4 | K7: z
A8: 5
A9: 6
A10: 7
A11: 8
A12: 9
A13: 10 | E13: v
A14: 11
A15: 12
A16: 13
A17: 14 | C17: v
A18: 15 | C18: v | I18: v
A19: 16 | I19: v
A20: 17
A21: 18
A22: 19 | I22: v
A23: 20 | I23: v
A24: 21 | I24: v | K24: v
A25: 22 | H25: v | I25: v | K25: v
A26: 23 | B26: z | H26: v | I26: v | K26: v
A27: 24 | H27: v | K27: v
A28: 25 | H28: v | K28: v
A29: 26 | H29: v
A30: 27 | C30: z
A31: 28 | C31: z
A32: 29 | C32: X | E32: v | H32: v
A33: 30 | C33: X | H33: v | M33: v
A34: 31 | C34: X | E34: X | G34: X | H34: v | J34: X | L34: X | M34: v

Sheet AantaAls
A1: Vergaderschema
A2: Datum | B2: Vestiging | D2: Vestiging | E2: Aantal vergaderingen
A3: 2004-01-05 | B3: Den Haag | D3: Den Haag
A4: =A3+14 -> 2004-01-19 | B4: Den Haag | D4: Zwolle
A5: =A4+14 -> 2004-02-02 | B5: Eindhoven | D5: Eindhoven
A6: 2004-02-16 | B6: Den Haag
A7: 2004-03-01 | B7: Zwolle
A8: 2004-03-15 | B8: Zwolle
A9: 2004-03-29 | B9: Den Haag
A10: 2004-04-12 | B10: Zwolle
A11: 2004-04-26 | B11: Eindhoven
A12: 2004-05-10 | B12: Den Haag
A13: 2004-05-24 | B13: Zwolle
A14: 2004-06-07 | B14: Zwolle
A15: 2004-06-21 | B15: Den Haag
A16: 2004-07-05 | B16: Zwolle
A17: 2004-07-19 | B17: Den Haag
A18: 2004-08-02 | B18: Den Haag
A19: 2004-08-16 | B19: Zwolle
A20: 2004-08-30 | B20: Eindhoven
A21: 2004-09-13 | B21: Eindhoven
A22: 2004-09-27 | B22: Zwolle
A23: =A22+14 -> 2004-10-11 | B23: Eindhoven
A24: 2004-10-25 | B24: Den Haag
A25: 2004-11-08 | B25: Zwolle
A26: 2004-11-22 | B26: Eindhoven
A27: =A26+14 -> 2004-12-06 | B27: Den Haag
A28: 2004-12-20 | B28: Zwolle

Sheet AantaAls opg
A1: Vergaderschema
A2: Datum | B2: Vestiging | D2: Vestiging | E2: Aantal vergaderingen
A3: 2004-01-05 | B3: Den Haag | D3: Den Haag | E3: =COUNTIF(B3:B28,D3) -> 10
A4: =A3+14 -> 2004-01-19 | B4: Den Haag | D4: Zwolle | E4: =COUNTIF(B3:B28,D4) -> 10
A5: =A4+14 -> 2004-02-02 | B5: Eindhoven | D5: Eindhoven | E5: =COUNTIF(B3:B28,D5) -> 6
A6: 2004-02-16 | B6: Den Haag
A7: 2004-03-01 | B7: Zwolle
A8: 2004-03-15 | B8: Zwolle
A9: 2004-03-29 | B9: Den Haag
A10: 2004-04-12 | B10: Zwolle
A11: 2004-04-26 | B11: Eindhoven
A12: 2004-05-10 | B12: Den Haag
A13: 2004-05-24 | B13: Zwolle
A14: 2004-06-07 | B14: Zwolle
A15: 2004-06-21 | B15: Den Haag
A16: 2004-07-05 | B16: Zwolle
A17: 2004-07-19 | B17: Den Haag
A18: 2004-08-02 | B18: Den Haag
A19: 2004-08-16 | B19: Zwolle
A20: 2004-08-30 | B20: Eindhoven
A21: 2004-09-13 | B21: Eindhoven
A22: 2004-09-27 | B22: Zwolle
A23: =A22+14 -> 2004-10-11 | B23: Eindhoven
A24: 2004-10-25 | B24: Den Haag
A25: 2004-11-08 | B25: Zwolle
A26: 2004-11-22 | B26: Eindhoven
A27: =A26+14 -> 2004-12-06 | B27: Den Haag
A28: 2004-12-20 | B28: Zwolle

Sheet AantalAls1
A1: Maaltijden
C2: Maandag | D2: Dinsdag | E2: Woensdag | F2: Donderdag | G2: Vrijdag | H2: Zaterdag | I2: Zondag
A3: Henk | B3: Denneboom | C3: a | D3: a | E3: a | F3: b | G3: a | H3: a | I3: b
A4: Joop | B4: Peijn | C4: a | D4: b | E4: a | F4: b | G4: a | H4: b | I4: c
A5: Jan | B5: Jansen | C5: b | D5: b | E5: c | F5: a | G5: c | H5: c | I5: b
A6: Inge | B6: Hondjes | C6: c | D6: c | E6: c | F6: b | G6: c | H6: a | I6: a
A7: Jaap | B7: Jongbloed | C7: a | D7: b | E7: b | F7: b | G7: b | H7: b | I7: b
A8: Gerrit | B8: Minnetjes | C8: b | D8: a | E8: a | F8: c | G8: a | H8: b | I8: c
A9: Mike | B9: Hailwood | C9: c | D9: b | E9: a | F9: b | G9: a | H9: a | I9: a
A10: Eline | B10: Veere | C10: a | D10: c | E10: b | F10: a | G10: b | H10: a | I10: b
A11: Barry | B11: Worsteman | C11: a | D11: a | E11: b | F11: b | G11: c | H11: b | I11: b
A12: Ernest | B12: Hemmingway | C12: b | D12: b | E12: c | F12: c | G12: a | H12: c | I12: a
A13: Jeanne | B13: d'Arc | C13: b | D13: b | E13: b | F13: a | G13: b | H13: b | I13: a
A14: Kim | B14: Bakkersknecht | C14: c | D14: a | E14: a | F14: b | G14: b | H14: c | I14: b
A15: Ine | B15: Gas | C15: b | D15: a | E15: b | F15: b | G15: a | H15: a | I15: b
A16: Natascha | B16: Erlebnis | C16: a | D16: a | E16: c | F16: a | G16: a | H16: b | I16: a
A17: Hubert | B17: Prijzemans | C17: b | D17: c | E17: a | F17: a | G17: b | H17: b | I17: a
A18: Willem | B18: Centurion | C18: c | D18: c | E18: b | F18: b | G18: c | H18: a | I18: b
A19: Ali | B19: Bin Salaam | C19: a | D19: b | E19: b | F19: c | G19: a | H19: a | I19: c
A20: Humphrey | B20: Boogart | C20: b | D20: a | E20: a | F20: a | G20: b | H20: b | I20: a
A21: Yildit | B21: Karadach | C21: b | D21: a | E21: a | F21: b | G21: b | H21: a | I21: b
A22: Catharina | B22: Plesman | C22: a | D22: b | E22: b | F22: b | G22: a | H22: b | I22: b
A23: Anja | B23: Buffetkast | C23: a | D23: c | E23: c | F23: a | G23: c | H23: c | I23: a
A24: Ursul | B24: Uitgerust | C24: c | D24: a | E24: a | F24: c | G24: a | H24: a | I24: c
A25: Adelhart | B25: Graanoogst | C25: c | D25: b | E25: b | F25: a | G25: b | H25: b | I25: b
A26: Martina | B26: Vleugela | C26: b | D26: b | E26: b | F26: b | G26: b | H26: b | I26: a
A27: Spora | B27: Treinemans | C27: a | D27: a | E27: a | F27: b | G27: a | H27: a | I27: c
A29: Menu | B29: A
A30: Menu | B30: B
A31: Menu | B31: C

Sheet AantalAls1 opg
A1: Maaltijden
C2: Maandag | D2: Dinsdag | E2: Woensdag | F2: Donderdag | G2: Vrijdag | H2: Zaterdag | I2: Zondag
A3: Henk | B3: Denneboom | C3: a | D3: a | E3: a | F3: b | G3: a | H3: a | I3: b
A4: Joop | B4: Peijn | C4: a | D4: b | E4: a | F4: b | G4: a | H4: b | I4: c
A5: Jan | B5: Jansen | C5: b | D5: b | E5: c | F5: a | G5: c | H5: c | I5: b
A6: Inge | B6: Hondjes | C6: c | D6: c | E6: c | F6: b | G6: c | H6: a | I6: a
A7: Jaap | B7: Jongbloed | C7: a | D7: b | E7: b | F7: b | G7: b | H7: b | I7: b
A8: Gerrit | B8: Minnetjes | C8: b | D8: a | E8: a | F8: c | G8: a | H8: b | I8: c
A9: Mike | B9: Hailwood | C9: c | D9: b | E9: a | F9: b | G9: a | H9: a | I9: a
A10: Eline | B10: Veere | C10: a | D10: c | E10: b | F10: a | G10: b | H10: a | I10: b
A11: Barry | B11: Worsteman | C11: a | D11: a | E11: b | F11: b | G11: c | H11: b | I11: b
A12: Ernest | B12: Hemmingway | C12: b | D12: b | E12: c | F12: c | G12: a | H12: c | I12: a
A13: Jeanne | B13: d'Arc | C13: b | D13: b | E13: b | F13: a | G13: b | H13: b | I13: a
A14: Kim | B14: Bakkersknecht | C14: c | D14: a | E14: a | F14: b | G14: b | H14: c | I14: b
A15: Ine | B15: Gas | C15: b | D15: a | E15: b | F15: b | G15: a | H15: a | I15: b
A16: Natascha | B16: Erlebnis | C16: a | D16: a | E16: c | F16: a | G16: a | H16: b | I16: a
A17: Hubert | B17: Prijzemans | C17: b | D17: c | E17: a | F17: a | G17: b | H17: b | I17: a
A18: Willem | B18: Centurion | C18: c | D18: c | E18: b | F18: b | G18: c | H18: a | I18: b
A19: Ali | B19: Bin Salaam | C19: a | D19: b | E19: b | F19: c | G19: a | H19: a | I19: c
A20: Humphrey | B20: Boogart | C20: b | D20: a | E20: a | F20: a | G20: b | H20: b | I20: a
A21: Yildit | B21: Karadach | C21: b | D21: a | E21: a | F21: b | G21: b | H21: a | I21: b
A22: Catharina | B22: Plesman | C22: a | D22: b | E22: b | F22: b | G22: a | H22: b | I22: b
A23: Anja | B23: Buffetkast | C23: a | D23: c | E23: c | F23: a | G23: c | H23: c | I23: a
A24: Ursul | B24: Uitgerust | C24: c | D24: a | E24: a | F24: c | G24: a | H24: a | I24: c
A25: Adelhart | B25: Graanoogst | C25: c | D25: b | E25: b | F25: a | G25: b | H25: b | I25: b
A26: Martina | B26: Vleugela | C26: b | D26: b | E26: b | F26: b | G26: b | H26: b | I26: a
A27: Spora | B27: Treinemans | C27: a | D27: a | E27: a | F27: b | G27: a | H27: a | I27: c
A29: Menu | B29: A | C29: =COUNTIF(C$3:C$27,"a") -> 10 | D29: =COUNTIF(D$3:D$27,"a") -> 10 | E29: 10 | F29: 8 | G29: 11 | H29: 10 | I29: 9
A30: Menu | B30: B | C30: =COUNTIF(C$3:C$27,"b") -> 9 | D30: =COUNTIF(D$3:D$27,"b") -> 10 | E30: 10 | F30: 13 | G30: 9 | H30: 11 | I30: 11
A31: Menu | B31: C | C31: =COUNTIF(C$3:C$27,"c") -> 6 | D31: =COUNTIF(D$3:D$27,"c") -> 5 | E31: 5 | F31: 4 | G31: 5 | H31: 4 | I31: 5

Sheet Som.Als
A1: Datum | B1: Klant | C1: bedrag | F1: Totaal
A2: 2006-07-15 | B2: Jansen | C2: 100 | E2: Jansen
A3: 2006-07-25 | B3: Pietersen | C3: 225 | E3: Pietersen
A4: 2006-08-04 | B4: Willems | C4: 475 | E4: Willems
A5: 2006-08-14 | B5: Pietersen | C5: 975
A6: 2006-08-24 | B6: Pietersen | C6: 475
A7: 2006-09-03 | B7: Jansen | C7: 1975
A8: 2006-09-13 | B8: Pietersen | C8: 975
A9: 2006-09-23 | B9: Willems | C9: 1975
A10: 2006-10-03 | B10: Jansen | C10: 225
A11: 2006-10-13 | B11: Pietersen | C11: 100
A12: 2006-10-23 | B12: Jansen | C12: 1450
A13: 2006-11-02 | B13: Pietersen | C13: 225
A14: 2006-11-12 | B14: Jansen | C14: 1450
A15: 2006-11-22 | B15: Jansen | C15: 475
A16: 2006-12-02 | B16: Pietersen | C16: 975
A17: 2006-12-12 | B17: Willems | C17: 845
A18: 2006-12-22 | B18: Jansen | C18: 375
A19: 2007-01-01 | B19: Pietersen | C19: 125
A20: 2007-01-11 | B20: Willems | C20: 875
A21: 2007-01-21 | B21: Willems | C21: 1865

Sheet Som.Als opg
A1: Datum | B1: Klant | C1: bedrag | F1: Totaal
A2: 2006-07-15 | B2: Jansen | C2: 100 | E2: Jansen | F2: =SUMIF(B:B,E2,C:C) -> 6050
A3: 2006-07-25 | B3: Pietersen | C3: 225 | E3: Pietersen | F3: =SUMIF(B:B,E3,C:C) -> 4075
A4: 2006-08-04 | B4: Willems | C4: 475 | E4: Willems | F4: =SUMIF(B:B,E4,C:C) -> 6035
A5: 2006-08-14 | B5: Pietersen | C5: 975
A6: 2006-08-24 | B6: Pietersen | C6: 475
A7: 2006-09-03 | B7: Jansen | C7: 1975
A8: 2006-09-13 | B8: Pietersen | C8: 975
A9: 2006-09-23 | B9: Willems | C9: 1975
A10: 2006-10-03 | B10: Jansen | C10: 225
A11: 2006-10-13 | B11: Pietersen | C11: 100
A12: 2006-10-23 | B12: Jansen | C12: 1450
A13: 2006-11-02 | B13: Pietersen | C13: 225
A14: 2006-11-12 | B14: Jansen | C14: 1450
A15: 2006-11-22 | B15: Jansen | C15: 475
